Workbook

Sheet PlotDat6 (hidden)
A1: Source sheet | B1: Sheet1 | C1: 1.70061192 | D1: 0.1762 | E1: 0.3639100633 | F1: 0.05 | G1: 0.2177075089 | H1: 0.03151129135 | I1: 1.819093542 | J1: 0.1767751698 | K1: 2.021038418 | L1: 0.1817028944 | M1: 2.000082444 | N1: 0.1844440125 | O1: 2.075558801 | P1: 0.1843161656 | Q1: 2.99715685 | R1: 0.2292160775 | S1: 2.919209091 | T1: 0.2310936549 | U1: 3.162760505 | V1: 0.2464079672 | W1: 3.259073143 | X1: 0.2456107185 | Y1: 3.226298825 | Z1: 0.2494474988 | AA1: 3.332763825 | AB1: 0.2526425543 | AC1: 4.459001265 | AD1: 0.3026211759 | AE1: 4.622282196 | AF1: 0.3105846047 | AG1: 4.646403375 | AH1: 0.3090069647 | AI1: 4.940658681 | AJ1: 0.3231525172 | AK1: 4.94384077 | AL1: 0.3226388704 | AM1: 4.60043123 | AN1: 0.2972592627 | AO1: 4.943240635 | AP1: 0.3210713574 | AQ1: 4.893751598 | AR1: 0.3197149625 | AS1: 4.900482435 | AT1: 0.318251008 | AU1: 4.875132415 | AV1: 0.3174246942 | AW1: 4.958189153 | AX1: 0.3214897222 | AY1: 5.042574898 | AZ1: 0.323962499 | BA1: 4.942551437 | BB1: 0.3194523041 | BC1: 4.769694776 | BD1: 0.309503123 | BE1: 5.089014023 | BF1: 0.3304405401 | BG1: 5.016285339 | BH1: 0.3216063946 | BI1: 4.724798536 | BJ1: 0.3038856006 | BK1: 5.046256959 | BL1: 0.3262497696 | BM1: 4.964048759 | BN1: 0.3195890347 | BO1: 4.862856045 | BP1: 0.3151038633 | BQ1: 5.172748686 | BR1: 0.3335697402 | BS1: 5.024240864 | BT1: 0.321761311 | BU1: 4.944359527 | BV1: 0.317649929 | BW1: 4.83851663 | BX1: 0.3066774374 | BY1: 4.979964833 | BZ1: 0.3191767565 | CA1: 4.922970282 | CB1: 0.3190105305 | CC1: 4.99156207 | CD1: 0.320052665 | CE1: 5.028921894 | CF1: 0.3222212485 | CG1: 4.995230469 | CH1: 0.319863909 | CI1: 5.103290376 | CJ1: 0.328256321 | CK1: 4.971171124 | CL1: 0.318438755 | CM1: 4.954344078 | CN1: 0.3185301451 | CO1: 5.171270012 | CP1: 0.3275342703 | CQ1: 5.215316132 | CR1: 0.3341013304 | CS1: 4.970526391 | CT1: 0.319001693 | CU1: 5.011767425 | CV1: 0.3207848775 | CW1: 5.161304795 | CX1: 0.3300480201 | CY1: 4.957107397 | CZ1: 0.3165924206 | DA1: 4.978037075 | DB1: 0.3175821842 | DC1: 4.924180854 | DD1: 0.3140469451 | DE1: 5.084969996 | DF1: 0.3221761211 | DG1: 4.997746197 | DH1: 0.3200568621 | DI1: 4.910201847 | DJ1: 0.3133964178 | DK1: 5.156181218 | DL1: 0.3274891167 | DM1: 4.987248248 | DN1: 0.3146735081 | DO1: 4.903579384 | DP1: 0.3134271346 | DQ1: 5.014491255 | DR1: 0.3214683046 | DS1: 5.059252397 | DT1: 0.321582372 | DU1: 5.086821333 | DV1: 0.3216148646 | DW1: 5.031364831 | DX1: 0.3177197726 | DY1: 4.995061539 | DZ1: 0.3157109089 | EA1: 4.997120098 | EB1: 0.3188861171 | EC1: 4.927514804 | ED1: 0.3117058419 | EE1: 5.140931973 | EF1: 0.3256135035 | EG1: 5.027381908 | EH1: 0.318052356 | EI1: 5.051108332 | EJ1: 0.3174204038 | EK1: 5.079584883 | EL1: 0.3242720466 | EM1: 5.069894152 | EN1: 0.3200816348 | EO1: 5.11065085 | EP1: 0.3216767709 | EQ1: 5.070025798 | ER1: 0.3207590143 | ES1: 5.046323374 | ET1: 0.3176063982 | EU1: 5.023148236 | EV1: 0.3156824795 | EW1: 5.213856721 | EX1: 0.3295729597 | EY1: 5.330234927 | EZ1: 0.3352530785 | FA1: 5.247535598 | FB1: 0.3285034334 | FC1: 5.26578809 | FD1: 0.3289252073 | FE1: 5.297996019 | FF1: 0.3288771314 | FG1: 5.437964322 | FH1: 0.3365272521 | FI1: 5.364502452 | FJ1: 0.3308123388 | FK1: 5.672971167 | FL1: 0.3411547151 | FM1: 5.565229897 | FN1: 0.3341338386 | FO1: 5.662884367 | FP1: 0.3426485047 | FQ1: 5.776081262 | FR1: 0.3418531095 | FS1: 6.065232079 | FT1: 0.3470075158 | FU1: 6.832553894 | FV1: 0.3802031433 | FW1: 8.763562815 | FX1: 0.4348891309 | FY1: 10.23023345 | FZ1: 0.4550457823 | GA1: 10.58401004 | GB1: 0.4727101636 | GC1: 10.41421943 | GD1: 0.4599554919 | GE1: 10.90882868 | GF1: 0.4727358586 | GG1: 11.05770924 | GH1: 0.4772790485 | GI1: 10.96830097 | GJ1: 0.4658963757 | GK1: 11.35986459 | GL1: 0.4776982247 | GM1: 11.5957448 | GN1: 0.4869856761 | GO1: 11.76537039 | GP1: 0.4890286771 | GQ1: 11.68162681 | GR1: 0.4792775069 | GS1: 12.01384622 | GT1: 0.487276266 | GU1: 12.60475403 | GV1: 0.5120167467 | GW1: 12.20195795 | GX1: 0.4930131308 | GY1: 12.60046002 | GZ1: 0.5027121969 | HA1: 13.56961237 | HB1: 0.5168935533 | HC1: 14.80085029 | HD1: 0.5299069885 | HE1: 15.80926324 | HF1: 0.5598834576 | HG1: 15.51501554 | HH1: 0.5402986556 | HI1: 16.46353182 | HJ1: 0.5679488431 | HK1: 16.86457117 | HL1: 0.5694179034 | HM1: 18.26185149 | HN1: 0.5882454078 | HO1: 18.00162522 | HP1: 0.5754148219
A2: Plot name | B2: Concordia3 | C2: 1.910073701 | D2: 0.1818 | E2: 0.4766218012 | F2: 0.06331471268 | G2: 0.4828115773 | H2: 0.06401554418 | I2: 1.814288192 | J2: 0.1779903193 | K2: 2.016544641 | L2: 0.1829343025 | M2: 1.996485241 | N2: 0.1856331303 | O2: 2.071404867 | P2: 0.1855454187 | Q2: 2.990755408 | R2: 0.2307518624 | S2: 2.912698309 | T2: 0.2326407003 | U2: 3.15696162 | V2: 0.2479227433 | W2: 3.251967961 | X2: 0.2472805208 | Y2: 3.221013869 | Z2: 0.2509971097 | AA2: 3.327205256 | AB2: 0.2542630688 | AC2: 4.451955101 | AD2: 0.3044145375 | AE2: 4.615904256 | AF2: 0.312377584 | AG2: 4.639326054 | AH2: 0.3109689363 | AI2: 4.932877608 | AJ2: 0.3251041032 | AK2: 4.93646941 | AL2: 0.3246209533 | AM2: 4.59246675 | AN2: 0.2991514984 | AO2: 4.935157229 | AP2: 0.3229289656 | AQ2: 4.887140576 | AR2: 0.3215698633 | AS2: 4.893284009 | AT2: 0.320182203 | AU2: 4.868283764 | AV2: 0.3192804808 | AW2: 4.950458941 | AX2: 0.3233853573 | AY2: 5.033976946 | AZ2: 0.3260284783 | BA2: 4.934846084 | BB2: 0.3213853285 | BC2: 4.763199504 | BD2: 0.3113886328 | BE2: 5.081360743 | BF2: 0.3321919905 | BG2: 5.00781476 | BH2: 0.3235383155 | BI2: 4.716978736 | BJ2: 0.3056420409 | BK2: 5.039184795 | BL2: 0.3281550295 | BM2: 4.956782737 | BN2: 0.3215417363 | BO2: 4.85625204 | BP2: 0.3168317081 | BQ2: 5.165309437 | BR2: 0.3354973312 | BS2: 5.016601194 | BT2: 0.3237747021 | BU2: 4.937325254 | BV2: 0.3196128693 | BW2: 4.82930007 | BX2: 0.3086546683 | BY2: 4.972343559 | BZ2: 0.3211347188 | CA2: 4.91662523 | CB2: 0.3207232556 | CC2: 4.983764464 | CD2: 0.3219437528 | CE2: 5.02144561 | CF2: 0.3241799643 | CG2: 4.987401579 | CH2: 0.3217612824 | CI2: 5.095727739 | CJ2: 0.3300902115 | CK2: 4.963521802 | CL2: 0.3203468027 | CM2: 4.947363439 | CN2: 0.3203767018 | CO2: 5.162700832 | CP2: 0.3296947531 | CQ2: 5.207385119 | CR2: 0.3360354236 | CS2: 4.963871115 | CT2: 0.3209256282 | CU2: 5.004395773 | CV2: 0.3226127222 | CW2: 5.15390659 | CX2: 0.332010916 | CY2: 4.949866843 | CZ2: 0.3184929962 | DA2: 4.970553059 | DB2: 0.3194582098 | DC2: 4.917224255 | DD2: 0.3159897595 | DE2: 5.076425116 | DF2: 0.3241904794 | DG2: 4.990688598 | DH2: 0.3218767925 | DI2: 4.903428527 | DJ2: 0.3153129863 | DK2: 5.148194763 | DL2: 0.3295174947 | DM2: 4.97870903 | DN2: 0.3166754569 | DO2: 4.896497187 | DP2: 0.3151783606 | DQ2: 5.007649218 | DR2: 0.3231654248 | DS2: 5.051591758 | DT2: 0.3234735076 | DU2: 5.07848417 | DV2: 0.3236013327 | DW2: 5.02322979 | DX2: 0.3197018048 | DY2: 4.988154059 | DZ2: 0.3177791034 | EA2: 4.990523044 | EB2: 0.3207041751 | EC2: 4.919453898 | ED2: 0.3134715817 | EE2: 5.13309299 | EF2: 0.3275217577 | EG2: 5.020311702 | EH2: 0.3200508627 | EI2: 5.042883667 | EJ2: 0.3194336197 | EK2: 5.072595531 | EL2: 0.3259078912 | EM2: 5.062182087 | EN2: 0.3219781398 | EO2: 5.102283678 | EP2: 0.3236255915 | EQ2: 5.063034313 | ER2: 0.3226361937 | ES2: 5.038527058 | ET2: 0.3194527157 | EU2: 5.015738369 | EV2: 0.3176354576 | EW2: 5.206371622 | EX2: 0.3313476275 | EY2: 5.322102997 | EZ2: 0.3372201589 | FA2: 5.239599662 | FB2: 0.3304038902 | FC2: 5.257674008 | FD2: 0.3308517172 | FE2: 5.289755657 | FF2: 0.3308971017 | FG2: 5.430012091 | FH2: 0.3384881626 | FI2: 5.356345845 | FJ2: 0.3327945571 | FK2: 5.66329555 | FL2: 0.3432357978 | FM2: 5.556566491 | FN2: 0.3361944798 | FO2: 5.655510546 | FP2: 0.3445788346 | FQ2: 5.767036741 | FR2: 0.3438987887 | FS2: 6.055485469 | FT2: 0.3490587111 | FU2: 6.82211908 | FV2: 0.3824074144 | FW2: 8.751324968 | FX2: 0.4370785309 | FY2: 10.21621875 | FZ2: 0.4575527814 | GA2: 10.57019018 | GB2: 0.4748204421 | GC2: 10.39952967 | GD2: 0.4626524552 | GE2: 10.89330319 | GF2: 0.475542957 | GG2: 11.04350553 | GH2: 0.4801200996 | GI2: 10.95143705 | GJ2: 0.4687673543 | GK2: 11.34213295 | GL2: 0.480461555 | GM2: 11.57925748 | GN2: 0.4896394256 | GO2: 11.75028333 | GP2: 0.4916343505 | GQ2: 11.66408527 | GR2: 0.4821137422 | GS2: 11.99726222 | GT2: 0.4901405766 | GU2: 12.58760679 | GV2: 0.5148190841 | GW2: 12.1854209 | GX2: 0.496038177 | GY2: 12.58322019 | GZ2: 0.5056082972 | HA2: 13.54802881 | HB2: 0.5198484623 | HC2: 14.78141532 | HD2: 0.5329786218 | HE2: 15.78401924 | HF2: 0.5632129658 | HG2: 15.49173419 | HH2: 0.5435909876 | HI2: 16.44042224 | HJ2: 0.5713429644 | HK2: 16.84045102 | HL2: 0.5727594599 | HM2: 18.24816581 | HN2: 0.5908787203 | HO2: 17.97644881 | HP2: 0.5788921767
A3: Plot Type | B3: 1 | C3: 1.911393212 | D3: 0.1841 | E3: 0.6277458441 | F3: 0.07976010934 | G3: 0.805630792 | H3: 0.09754404798 | I3: 1.800273466 | J3: 0.1790604278 | K3: 2.003425222 | L3: 0.1840738162 | M3: 1.985994387 | N3: 0.186698043 | O3: 2.059277588 | P3: 0.1866818768 | Q3: 2.972077871 | R3: 0.2321295191 | S3: 2.893705044 | T3: 0.2340143189 | U3: 3.140065755 | V3: 0.2492007361 | W3: 3.231230151 | X3: 0.2488060759 | Y3: 3.205612783 | Z3: 0.2523363182 | AA3: 3.310990448 | AB3: 0.2557164457 | AC3: 4.431431162 | AD3: 0.305898868 | AE3: 4.597342093 | AF3: 0.3138402217 | AG3: 4.618683582 | AH3: 0.3127146865 | AI3: 4.910203955 | AJ3: 0.3267475035 | AK3: 4.914989505 | AL3: 0.3263096882 | AM3: 4.569237411 | AN3: 0.3008127226 | AO3: 4.911610519 | AP3: 0.3244358667 | AQ3: 4.867898609 | AR3: 0.3230869465 | AS3: 4.872309129 | AT3: 0.3218231892 | AU3: 4.848344051 | AV3: 0.3208056912 | AW3: 4.927940234 | AX3: 0.3249500211 | AY3: 5.008900783 | AZ3: 0.327841007 | BA3: 4.912391277 | BB3: 0.3230197895 | BC3: 4.744276488 | BD3: 0.3129996158 | BE3: 5.059090104 | BF3: 0.3335228167 | BG3: 4.98312798 | BH3: 0.3251511775 | BI3: 4.694202866 | BJ3: 0.3070467148 | BK3: 5.0185953 | BL3: 0.3297155722 | BM3: 4.935606819 | BN3: 0.3232156089 | BO3: 4.837041116 | BP3: 0.3181843194 | BQ3: 5.143649111 | BR3: 0.3370686766 | BS3: 4.994326521 | BT3: 0.3255308978 | BU3: 4.91682375 | BV3: 0.3213074206 | BW3: 4.802414405 | BX3: 0.3103925296 | BY3: 4.95012891 | BZ3: 0.3228144206 | CA3: 4.898177564 | CB3: 0.3220452292 | CC3: 4.961047735 | CD3: 0.3235072399 | CE3: 4.999658091 | CF3: 0.3258486526 | CG3: 4.964591583 | CH3: 0.3233377362 | CI3: 5.073712399 | CJ3: 0.331544129 | CK3: 4.941234439 | CL3: 0.3219432054 | CM3: 4.927039739 | CN3: 0.321884887 | CO3: 5.137680097 | CP3: 0.3317098356 | CQ3: 5.184286782 | CR3: 0.3376101852 | CS3: 4.944485866 | CT3: 0.3225558367 | CU3: 4.982933131 | CV3: 0.3240830744 | CW3: 5.132357359 | CX3: 0.3336488714 | CY3: 4.928771448 | CZ3: 0.3200943873 | DA3: 4.948751637 | DB3: 0.3210135648 | DC3: 4.896947047 | DD3: 0.3176741586 | DE3: 5.051509784 | DF3: 0.3259301611 | DG3: 4.970144248 | DH3: 0.3233421411 | DI3: 4.883692782 | DJ3: 0.316953055 | DK3: 5.124911844 | DL3: 0.3312690075 | DM3: 4.953800072 | DN3: 0.3184444532 | DO3: 4.875882669 | DP3: 0.3165667765 | DQ3: 4.98775093 | DR3: 0.3244521744 | DS3: 5.029276283 | DT3: 0.3250346319 | DU3: 5.054178305 | DV3: 0.3253041437 | DW3: 4.999508432 | DX3: 0.3214244457 | DY3: 4.967989066 | DZ3: 0.3196869627 | EA3: 4.971325179 | EB3: 0.3221735343 | EC3: 4.895975387 | ED3: 0.3148750605 | EE3: 5.110259119 | EF3: 0.3290879903 | EG3: 4.999696134 | EH3: 0.321810308 | EI3: 5.018894594 | EJ3: 0.3212091712 | EK3: 5.052274638 | EL3: 0.3270975193 | EM3: 5.039714114 | EN3: 0.3235523596 | EO3: 5.077900998 | EP3: 0.3252482826 | EQ3: 5.042675592 | ER3: 0.3241863846 | ES3: 5.015818479 | ET3: 0.3209545036 | EU3: 4.994139502 | EV3: 0.3193182167 | EW3: 5.184590593 | EX3: 0.3327133666 | EY3: 5.298416667 | EZ3: 0.3388291443 | FA3: 5.216486105 | FB3: 0.33194757 | FC3: 5.234036167 | FD3: 0.3324337783 | FE3: 5.26573453 | FF3: 0.3326256562 | FG3: 5.406850726 | FH3: 0.3400935703 | FI3: 5.332578176 | FJ3: 0.3344531601 | FK3: 5.635087982 | FL3: 0.3449899242 | FM3: 5.531308631 | FN3: 0.3379639177 | FO3: 5.634050767 | FP3: 0.3461220117 | FQ3: 5.740679139 | FR3: 0.3455962056 | FS3: 6.027078346 | FT3: 0.3507486882 | FU3: 6.791712471 | FV3: 0.3841979132 | FW3: 8.715683838 | FX3: 0.4386782676 | FY3: 10.1753743 | FZ3: 0.4595208118 | GA3: 10.52994266 | GB3: 0.4762242422 | GC3: 10.3566997 | GD3: 0.4648752873 | GE3: 10.8480294 | GF3: 0.4778847952 | GG3: 11.00209372 | GH3: 0.4824977422 | GI3: 10.90225316 | GJ3: 0.4711710962 | GK3: 11.29042664 | GL3: 0.4826852057 | GM3: 11.53119833 | GN3: 0.4916904772 | GO3: 11.70631885 | GP3: 0.4936296356 | GQ3: 11.61292674 | GR3: 0.4844546785 | GS3: 11.94890179 | GT3: 0.4925074141 | GU3: 12.5376226 | GV3: 0.5170041685 | GW3: 12.13719282 | GX3: 0.4985902488 | GY3: 12.53295212 | GZ3: 0.5079609312 | HA3: 13.48507841 | HB3: 0.5222080425 | HC3: 14.72474613 | HD3: 0.5354362804 | HE3: 15.71037585 | HF3: 0.5659581225 | HG3: 15.42380945 | HH3: 0.546389864 | HI3: 16.37300846 | HJ3: 0.5741827095 | HK3: 16.77009196 | HL3: 0.5755047967 | HM3: 18.20773853 | HN3: 0.5932376225 | HO3: 17.90299658 | HP3: 0.5818273711
A4: 1st free col | B4: 225 | C4: 1.972985587 | D4: 0.1844 | E4: 0.7943365938 | F4: 0.09645985316 | G4: 1.198730174 | H4: 0.1321290782 | I4: 1.778184755 | J4: 0.1798988014 | K4: 1.982743018 | L4: 0.1850291188 | M4: 1.96945979 | N4: 0.1875524777 | O4: 2.040159445 | P4: 0.1876334708 | Q4: 2.94263738 | R4: 0.2332374379 | S4: 2.863768018 | T4: 0.2351032282 | U4: 3.113441713 | V4: 0.2501384103 | W4: 3.198539766 | X4: 0.2500637924 | Y4: 3.181343271 | Z4: 0.2533566296 | AA4: 3.28543303 | AB4: 0.256884941 | AC4: 4.399092175 | AD4: 0.3069539157 | AE4: 4.568099503 | AF4: 0.3148540235 | AG4: 4.58614829 | AH4: 0.3141027851 | AI4: 4.874474605 | AJ4: 0.3279495794 | AK4: 4.881141229 | AL4: 0.3275682637 | AM4: 4.532625115 | AN4: 0.3021083529 | AO4: 4.874508118 | AP4: 0.3254699807 | AQ4: 4.837584568 | AR4: 0.3241433072 | AS4: 4.839257055 | AT4: 0.3230410237 | AU4: 4.816928672 | AV4: 0.3218767617 | AW4: 4.892457364 | AX4: 0.3260569538 | AY4: 4.969377932 | AZ4: 0.3292532446 | BA4: 4.877006171 | BB4: 0.3242232728 | BC4: 4.714458759 | BD4: 0.3142055597 | BE4: 5.024006339 | BF4: 0.3343252031 | BG4: 4.944224976 | BH4: 0.3263143162 | BI4: 4.658316091 | BJ4: 0.3079858241 | BK4: 4.986156514 | BL4: 0.3308049718 | BM4: 4.902236552 | BN4: 0.3244750453 | BO4: 4.806779627 | BP4: 0.3190521167 | BQ4: 5.109522498 | BR4: 0.3381564753 | BS4: 4.959221406 | BT4: 0.3268876215 | BU4: 4.884515924 | BV4: 0.3225963006 | BW4: 4.760037752 | BX4: 0.3117502301 | BY4: 4.915120583 | BZ4: 0.3240797824 | CA4: 4.869121805 | CB4: 0.3228693529 | CC4: 4.925252255 | CD4: 0.3246164617 | CE4: 4.965324433 | CF4: 0.3270921264 | CG4: 4.928648411 | CH4: 0.3244655556 | CI4: 5.039027909 | CJ4: 0.3325002857 | CK4: 4.906114624 | CL4: 0.3230986319 | CM4: 4.895019483 | CN4: 0.3229325165 | CO4: 5.098234841 | CP4: 0.3334162679 | CQ4: 5.147892409 | CR4: 0.3386980373 | CS4: 4.913941123 | CT4: 0.3237602484 | CU4: 4.949118274 | CV4: 0.3250768149 | CW4: 5.098402891 | CX4: 0.3348291888 | CY4: 4.895530237 | CZ4: 0.3212668585 | DA4: 4.914399031 | DB4: 0.3221222437 | DC4: 4.864991968 | DD4: 0.3189636823 | DE4: 5.012242491 | DF4: 0.3272542277 | DG4: 4.937777527 | DH4: 0.3243341942 | DI4: 4.852593486 | DJ4: 0.3181837553 | DK4: 5.088218705 | DL4: 0.3326017581 | DM4: 4.914539351 | DN4: 0.3198371836 | DO4: 4.843405897 | DP4: 0.317479901 | DQ4: 4.956408431 | DR4: 0.3252243086 | DS4: 4.994113839 | DT4: 0.3261392719 | DU4: 5.015872857 | DV4: 0.3265853458 | DW4: 4.962122523 | DX4: 0.3227481374 | DY4: 4.936200207 | DZ4: 0.3212799235 | EA4: 4.941081801 | EB4: 0.3231751562 | EC4: 4.858981362 | ED4: 0.3158025769 | EE4: 5.074280227 | EF4: 0.3301853143 | EG4: 4.967205357 | EH4: 0.3231881522 | EI4: 4.981084568 | EJ4: 0.3226032136 | EK4: 5.020268481 | EL4: 0.3277445541 | EM4: 5.004310456 | EN4: 0.3246767603 | EO4: 5.039478151 | EP4: 0.3264133835 | EQ4: 5.010598978 | ER4: 0.3252839999 | ES4: 4.98003735 | ET4: 0.3219900958 | EU4: 4.960101445 | EV4: 0.3205944298 | EW4: 5.150278204 | EX4: 0.3335595329 | EY4: 5.261094862 | EZ4: 0.3399496843 | FA4: 5.180067448 | FB4: 0.3330094131 | FC4: 5.196789564 | FD4: 0.3335432214 | FE4: 5.227878688 | FF4: 0.3339227578 | FG4: 5.370356623 | FH4: 0.3412134145 | FI4: 5.295124961 | FJ4: 0.3356537777 | FK4: 5.590633672 | FL4: 0.3462749854 | FM4: 5.491502559 | FN4: 0.3392988028 | FO4: 5.600243576 | FP4: 0.3471530171 | FQ4: 5.699143795 | FR4: 0.3468078456 | FS4: 5.982312086 | FT4: 0.3519405352 | FU4: 6.743797429 | FV4: 0.3854295841 | FW4: 8.659526858 | FX4: 0.4395587399 | FY4: 10.11100906 | FZ4: 0.4607904353 | GA4: 10.46652809 | GB4: 0.4768078364 | GC4: 10.28919936 | GD4: 0.4664439077 | GE4: 10.77667512 | GF4: 0.4795716514 | GG4: 10.93682878 | GH4: 0.484219354 | GI4: 10.82473386 | GJ4: 0.4729128644 | GK4: 11.2089346 | GL4: 0.4841890299 | GM4: 11.45546081 | GN4: 0.4929726667 | GO4: 11.63703868 | GP4: 0.4948528862 | GQ4: 11.5322958 | GR4: 0.486110667 | GS4: 11.87268281 | GT4: 0.4941850315 | GU4: 12.45885088 | GV4: 0.5183949775 | GW4: 12.06118086 | GX4: 0.5004625926 | GY4: 12.45372821 | GZ4: 0.5095795024 | HA4: 13.38586104 | HB4: 0.5237811349 | HC4: 14.63543374 | HD4: 0.5370808591 | HE4: 15.59429922 | HF4: 0.5678965312 | HG4: 15.31674417 | HH4: 0.5484685365 | HI4: 16.26675194 | HJ4: 0.576238019 | HK4: 16.65919406 | HL4: 0.577431503 | HM4: 18.14233651 | HN4: 0.5952190191 | HO4: 17.7872192 | HP4: 0.5839826132
A5: Sigma Level | B5: 2 | C5: 2.83922496 | D5: 0.2288 | E5: 0.9779769818 | F5: 0.1134178779 | G5: 1.677410243 | H5: 0.1678039275 | I5: 1.749811554 | J5: 0.1804375202 | K5: 1.956173578 | L5: 0.1857228174 | M5: 1.948220984 | N5: 0.1881272132 | O5: 2.015599275 | P5: 0.1883231082 | Q5: 2.904819031 | R5: 0.2339858618 | S5: 2.825312549 | T5: 0.2358192114 | U5: 3.079246417 | V5: 0.250659801 | W5: 3.156545186 | X5: 0.2509517776 | Y5: 3.150171505 | Z5: 0.2539753844 | AA5: 3.25260351 | AB5: 0.2576738903 | AC5: 4.357558053 | AD5: 0.3074942069 | AE5: 4.530545546 | AF5: 0.3153368574 | AG5: 4.544355992 | AH5: 0.3150207766 | AI5: 4.828584138 | AJ5: 0.3286129459 | AK5: 4.837666767 | AL5: 0.3282947176 | AM5: 4.485595973 | AN5: 0.302933425 | AO5: 4.826855843 | AP5: 0.3259475296 | AQ5: 4.798654315 | AR5: 0.3246533653 | AS5: 4.796805468 | AT5: 0.3237370448 | AU5: 4.776582714 | AV5: 0.3224069208 | AW5: 4.846884941 | AX5: 0.3266164782 | AY5: 4.918610299 | AZ5: 0.3301507802 | BA5: 4.831557457 | BB5: 0.3248982794 | BC5: 4.676161973 | BD5: 0.314908766 | BE5: 4.978951727 | BF5: 0.3345341451 | BG5: 4.894257437 | BH5: 0.3269335009 | BI5: 4.612225744 | BJ5: 0.3083832877 | BK5: 4.944496433 | BL5: 0.3313349717 | BM5: 4.859375397 | BN5: 0.3252180134 | BO5: 4.767919178 | BP5: 0.3193647963 | BQ5: 5.065694334 | BR5: 0.3386726004 | BS5: 4.914129857 | BT5: 0.3277349595 | BU5: 4.843019164 | BV5: 0.3233750916 | BW5: 4.705603215 | BX5: 0.3126177769 | BY5: 4.870154745 | BZ5: 0.3248282922 | CA5: 4.831811876 | CB5: 0.3231288611 | CC5: 4.879277962 | CD5: 0.3251815557 | CE5: 4.921226144 | CF5: 0.3278096467 | CG5: 4.882483966 | CH5: 0.3250533714 | CI5: 4.994484198 | CJ5: 0.3328812194 | CK5: 4.861007556 | CL5: 0.3237194765 | CM5: 4.853896762 | CN5: 0.3234347175 | CO5: 5.047560682 | CP5: 0.334675805 | CQ5: 5.101150458 | CR5: 0.3392108486 | CS5: 4.874711439 | CT5: 0.3244412893 | CU5: 4.90569068 | CV5: 0.3255134368 | CW5: 5.054793977 | CX5: 0.3354562459 | CY5: 4.852836214 | CZ5: 0.3219154234 | DA5: 4.870278286 | DB5: 0.3226944277 | DC5: 4.823947828 | DD5: 0.3197538612 | DE5: 4.961804441 | DF5: 0.3280554112 | DG5: 4.896210596 | DH5: 0.3247725815 | DI5: 4.812650117 | DJ5: 0.318905383 | DK5: 5.041088004 | DL5: 0.3334077749 | DM5: 4.864107536 | DN5: 0.3207408172 | DO5: 4.801697945 | DP5: 0.3178437582 | DQ5: 4.916160906 | DR5: 0.3254192737 | DS5: 4.948953079 | DT5: 0.3266979361 | DU5: 4.966671103 | DV5: 0.3273411439 | DW5: 4.914100844 | DX5: 0.3235656421 | DY5: 4.895362826 | DZ5: 0.3224289334 | EA5: 4.902243046 | EB5: 0.3236278952 | EC5: 4.811468857 | ED5: 0.3161789889 | EE5: 5.028071108 | EF5: 0.3307248311 | EG5: 4.925471578 | EH5: 0.3240727705 | EI5: 4.93251673 | EJ5: 0.32350281 | EK5: 4.979170008 | EL5: 0.3277965768 | EM5: 4.958839306 | EN5: 0.3252602496 | EO5: 4.990127927 | EP5: 0.3270265045 | EQ5: 4.969403126 | ER5: 0.3258401173 | ES5: 4.934082447 | ET5: 0.3224755948 | EU5: 4.916381761 | EV5: 0.3213607056 | EW5: 5.10621424 | EX5: 0.3338175749 | EY5: 5.213161174 | EZ5: 0.3404909994 | FA5: 5.133294114 | FB5: 0.3335033952 | FC5: 5.148951697 | FD5: 0.334090166 | FE5: 5.179254986 | FF5: 0.3346833229 | FG5: 5.323486316 | FH5: 0.3417569722 | FI5: 5.247020437 | FJ5: 0.336299143 | FK5: 5.533534044 | FL5: 0.3469868733 | FM5: 5.440373126 | FN5: 0.3400909907 | FO5: 5.556827829 | FP5: 0.3475883247 | FQ5: 5.645795653 | FR5: 0.3474355487 | FS5: 5.924813386 | FT5: 0.3525376956 | FU5: 6.682255746 | FV5: 0.3860026445 | FW5: 8.587403531 | FX5: 0.4396486171 | FY5: 10.02833752 | FZ5: 0.4612587945 | GA5: 10.38508395 | GB5: 0.4765239454 | GC5: 10.20249713 | GD5: 0.467231236 | GE5: 10.68502105 | GF5: 0.4804668665 | GG5: 10.85299806 | GH5: 0.48514546 | GI5: 10.72515933 | GJ5: 0.4738515513 | GK5: 11.10425883 | GL5: 0.4848511967 | GM5: 11.35818073 | GN5: 0.4933821189 | GO5: 11.5480555 | GP5: 0.495205002 | GQ5: 11.42872468 | GR5: 0.4869475495 | GS5: 11.77478008 | GT5: 0.4950375183 | GU5: 12.35767324 | GV5: 0.5188788361 | GW5: 11.96354305 | GX5: 0.5015035222 | GY5: 12.35196673 | GZ5: 0.5103328838 | HA5: 13.25841471 | HB5: 0.5244402969 | HC5: 14.52071369 | HD5: 0.5377791241 | HE5: 15.44519319 | HF5: 0.5688711538 | HG5: 15.17921215 | HH5: 0.5496586034 | HI5: 16.13026096 | HJ5: 0.577342384 | HK5: 16.51674162 | HL5: 0.5783834885 | HM5: 18.05481814 | HN5: 0.5967363137 | HO5: 17.63849625 | HP5: 0.5851832981
A6: Absolute Errs | B6: FALSE | C6: 2.758620312 | D6: 0.2305 | E6: 1.180411944 | F6: 0.1306381782 | G6: 2.260302557 | H6: 0.2046029373 | I6: 1.717452491 | J6: 0.1806329402 | K6: 1.9258694 | L6: 0.1860987127 | M6: 1.923998611 | N6: 0.1883756878 | O6: 1.987586798 | P6: 0.1886949188 | Q6: 2.86168664 | R6: 0.2343141581 | S6: 2.781454073 | T6: 0.2361042638 | U6: 3.040250164 | V6: 0.2507226683 | W6: 3.108648564 | X6: 0.2513980921 | Y6: 3.114622836 | Z6: 0.2541424546 | AA6: 3.215161542 | AB6: 0.2580193776 | AC6: 4.310193643 | AD6: 0.3074759705 | AE6: 4.487722622 | AF6: 0.315249607 | AG6: 4.496692452 | AH6: 0.3153942907 | AI6: 4.776250327 | AJ6: 0.328683861 | AK6: 4.788088162 | AL6: 0.3284301968 | AM6: 4.431960006 | AN6: 0.3032210965 | AO6: 4.772514196 | AP6: 0.3258298254 | AQ6: 4.754261748 | AR6: 0.3245757988 | AS6: 4.748393545 | AT6: 0.3238548649 | AU6: 4.730574767 | AV6: 0.322353218 | AW6: 4.794914973 | AX6: 0.3265832651 | AY6: 4.860710775 | AZ6: 0.3304609006 | BA6: 4.779727119 | BB6: 0.3249901241 | BC6: 4.632488707 | BD6: 0.3150522652 | BE6: 4.927576324 | BF6: 0.3341327155 | BG6: 4.837273436 | BH6: 0.3269585689 | BI6: 4.559665792 | BJ6: 0.3082069055 | BK6: 4.89699011 | BL6: 0.3312626344 | BM6: 4.810495709 | BN6: 0.3253843225 | BO6: 4.723608013 | BP6: 0.3190970267 | BQ6: 5.015715315 | BR6: 0.3385752384 | BS6: 4.862704923 | BT6: 0.3280042655 | BU6: 4.79569529 | BV6: 0.3235807009 | BW6: 4.643520756 | BX6: 0.3129248865 | BY6: 4.818874261 | BZ6: 0.3249993102 | CA6: 4.789270407 | CB6: 0.3228027299 | CC6: 4.82684942 | CD6: 0.3251567414 | CE6: 4.870935806 | CF6: 0.3279430843 | CG6: 4.829838215 | CH6: 0.3250535621 | CI6: 4.943689935 | CJ6: 0.3326560693 | CK6: 4.809567542 | CL6: 0.3237554421 | CM6: 4.807003094 | CN6: 0.3233508047 | CO6: 4.989762939 | CP6: 0.3353864067 | CQ6: 5.047847682 | CR6: 0.3391070743 | CS6: 4.82997497 | CT6: 0.3245437854 | CU6: 4.856168595 | CV6: 0.3253575675 | CW6: 5.00506355 | CX6: 0.3354792424 | CY6: 4.804148196 | CZ6: 0.321987539 | DA6: 4.8199638 | DB6: 0.322683762 | DC6: 4.777139781 | DD6: 0.3199806796 | DE6: 4.904281823 | DF6: 0.3282688044 | DG6: 4.84881096 | DH6: 0.3246217876 | DI6: 4.767098651 | DJ6: 0.3190594763 | DK6: 4.987337992 | DL6: 0.3336217593 | DM6: 4.806590313 | DN6: 0.3210821472 | DO6: 4.754137745 | DP6: 0.3176288707 | DQ6: 4.870268968 | DR6: 0.3250212748 | DS6: 4.897452658 | DT6: 0.326665365 | DU6: 4.910559079 | DV6: 0.3275103075 | DW6: 4.859333828 | DX6: 0.3238107305 | DY6: 4.848785326 | DZ6: 0.3230409065 | EA6: 4.857955402 | EB6: 0.3234950731 | EC6: 4.757287054 | ED6: 0.315973802 | EE6: 4.97537535 | EF6: 0.3306628322 | EG6: 4.877875821 | EH6: 0.3243924964 | EI6: 4.877125758 | EJ6: 0.3238350803 | EK6: 4.932308774 | EL6: 0.3272493729 | EM6: 4.906984466 | EN6: 0.3252555566 | EO6: 4.933848387 | EP6: 0.3270379743 | EQ6: 4.92242548 | ER6: 0.3258096835 | ES6: 4.881676762 | ET6: 0.3223716684 | EU6: 4.866522356 | EV6: 0.321554965 | EW6: 5.055968503 | EX6: 0.3334665878 | EY6: 5.158498904 | EZ6: 0.3404092355 | FA6: 5.079955402 | FB6: 0.3333894969 | FC6: 5.094398106 | FD6: 0.3340303018 | FE6: 5.123802626 | FF6: 0.3348457351 | FG6: 5.27003696 | FH6: 0.3416802075 | FI6: 5.192161745 | FJ6: 0.3363369723 | FK6: 5.468414971 | FL6: 0.3470679151 | FM6: 5.382062535 | FN6: 0.3402763032 | FO6: 5.507320812 | FP6: 0.3473926685 | FQ6: 5.584956663 | FR6: 0.3474284624 | FS6: 5.859240447 | FT6: 0.3524917912 | FU6: 6.612073163 | FV6: 0.3858706683 | FW6: 8.505156862 | FX6: 0.4389406179 | FY6: 9.934057249 | FZ6: 0.4608879458 | GA6: 10.29220835 | GB6: 0.4753955683 | GC6: 10.10361709 | GD6: 0.4671734876 | GE6: 10.58049246 | GF6: 0.4804979155 | GG6: 10.75739305 | GH6: 0.4852010329 | GI6: 10.61159648 | GJ6: 0.4739111101 | GK6: 10.98487953 | GL6: 0.4846180612 | GM6: 11.24723913 | GN6: 0.4928856622 | GO6: 11.44657819 | GP6: 0.4946574566 | GQ6: 11.31060409 | GR6: 0.4868975265 | GS6: 11.66312511 | GT6: 0.4949958109 | GU6: 12.24228649 | GV6: 0.5184165447 | GW6: 11.85218943 | GX6: 0.5016287076 | GY6: 12.23591178 | GZ6: 0.510160041 | HA6: 13.11306436 | HB6: 0.5241321269 | HC6: 14.38987993 | HD6: 0.5374745062 | HE6: 15.27513744 | HF6: 0.5688030321 | HG6: 15.02235542 | HH6: 0.5498636526 | HI6: 15.9745932 | HJ6: 0.5774063355 | HK6: 16.35427529 | HL6: 0.578283629 | HM6: 17.94900838 | HN6: 0.5977231931 | HO6: 17.46887639 | HP6: 0.5853321533
A7: Symbol Type | B7: 1 | C7: 3.01998564 | D7: 0.245 | E7: 1.403565 | F7: 0.1481248104 | G7: 2.970094905 | H7: 0.2425615314 | I7: 1.683729105 | J7: 0.1804692298 | K7: 1.894285549 | L7: 0.1861263518 | M7: 1.898755024 | N7: 0.1882777716 | O7: 1.958391417 | P7: 0.1887187805 | Q7: 2.816734537 | R7: 0.2341957301 | S7: 2.735745741 | T7: 0.235935292 | U7: 2.9996122 | V7: 0.2503219191 | W7: 3.058730197 | X7: 0.2513665784 | Y7: 3.077577205 | Z7: 0.2538443054 | AA7: 3.176140451 | AB7: 0.2578934135 | AC7: 4.260836127 | AD7: 0.3069006839 | AE7: 4.443099988 | AF7: 0.3145993407 | AG7: 4.447019088 | AH7: 0.3151930676 | AI7: 4.721712946 | AJ7: 0.3281565797 | AK7: 4.736421978 | AL7: 0.3279637256 | AM7: 4.376062481 | AN7: 0.3029480618 | AO7: 4.715885616 | AP7: 0.3251264038 | AQ7: 4.708003289 | AR7: 0.3239168918 | AS7: 4.697943331 | AT7: 0.323384939 | AU7: 4.682632122 | AV7: 0.321720004 | AW7: 4.740757757 | AX7: 0.3259600052 | AY7: 4.800370036 | AZ7: 0.3301584819 | BA7: 4.725714144 | BB7: 0.3244913664 | BC7: 4.586977109 | BD7: 0.3146244318 | BE7: 4.874042261 | BF7: 0.3331534356 | BG7: 4.777889478 | BH7: 0.3263874895 | BI7: 4.504894328 | BJ7: 0.3074709668 | BK7: 4.847486225 | BL7: 0.3305938202 | BM7: 4.759557431 | BN7: 0.324960499 | BO7: 4.677435958 | BP7: 0.318270501 | BQ7: 4.963634444 | BR7: 0.337872277 | BS7: 4.809112747 | BT7: 0.3276737219 | BU7: 4.746378203 | BV7: 0.323196471 | BW7: 4.578819928 | BX7: 0.3126466788 | BY7: 4.765433571 | BZ7: 0.3245789815 | CA7: 4.744943854 | CB7: 0.3219173806 | CC7: 4.772214077 | CD7: 0.3245440291 | CE7: 4.818527642 | CF7: 0.3274816288 | CG7: 4.774976205 | CH7: 0.3244661123 | CI7: 4.890760167 | CJ7: 0.3318430756 | CK7: 4.755961945 | CL7: 0.3232036149 | CM7: 4.758137525 | CN7: 0.3226875763 | CO7: 4.929524043 | CP7: 0.3354905043 | CQ7: 4.992302356 | CR7: 0.3383951214 | CS7: 4.783355998 | CT7: 0.3240594331 | CU7: 4.804564005 | CV7: 0.3246218347 | CW7: 4.953240475 | CX7: 0.334896315 | CY7: 4.753410595 | CZ7: 0.3214773629 | DA7: 4.767531755 | DB7: 0.3220911107 | DC7: 4.728359935 | DD7: 0.319625762 | DE7: 4.844334778 | DF7: 0.3278771195 | DG7: 4.799418655 | DH7: 0.3238940287 | DI7: 4.719629395 | DJ7: 0.3186335514 | DK7: 4.931323174 | DL7: 0.3332263754 | DM7: 4.746647385 | DN7: 0.3208335208 | DO7: 4.704578339 | DP7: 0.3168526472 | DQ7: 4.82245051 | DR7: 0.3240625553 | DS7: 4.843784835 | DT7: 0.3260441972 | DU7: 4.852082646 | DV7: 0.3270791321 | DW7: 4.802258372 | DX7: 0.323463547 | DY7: 4.800241138 | DZ7: 0.3230662645 | EA7: 4.811806788 | EB7: 0.3227874504 | EC7: 4.70082544 | ED7: 0.3152036391 | EE7: 4.920462051 | EF7: 0.3300043404 | EG7: 4.828274011 | EH7: 0.3241214277 | EI7: 4.819399099 | EJ7: 0.3235731061 | EK7: 4.883481198 | EL7: 0.3261472735 | EM7: 4.852946907 | EN7: 0.3246630615 | EO7: 4.875198965 | EP7: 0.3264468637 | EQ7: 4.87347189 | ER7: 0.3251951639 | ES7: 4.827065892 | ET7: 0.3216867361 | EU7: 4.814562545 | EV7: 0.3211614703 | EW7: 5.003611602 | EX7: 0.3325350064 | EY7: 5.101536464 | EZ7: 0.3397110166 | FA7: 5.024372496 | FB7: 0.3326769455 | FC7: 5.037548397 | FD7: 0.3333684789 | FE7: 5.06601403 | FF7: 0.3343968367 | FG7: 5.214338704 | FH7: 0.3409893395 | FI7: 5.134993211 | FJ7: 0.335764201 | FK7: 5.400552012 | FL7: 0.3465115452 | FM7: 5.321294763 | FN7: 0.3398397272 | FO7: 5.455733288 | FP7: 0.3465818996 | FQ7: 5.521555639 | FR7: 0.3467871605 | FS7: 5.790905599 | FT7: 0.3518065408 | FU7: 6.538935455 | FV7: 0.3850443476 | FW7: 8.419449985 | FX7: 0.4374921002 | FY7: 9.835806265 | FZ7: 0.4597079331 | GA7: 10.19542553 | GB7: 0.4735141196 | GC7: 10.00056992 | GD7: 0.466275341 | GE7: 10.47155763 | GF7: 0.479662283 | GG7: 10.65775908 | GH7: 0.4843815702 | GI7: 10.49324552 | GJ7: 0.4730867156 | GK7: 10.86046812 | GL7: 0.4835085108 | GM7: 11.13162386 | GN7: 0.4915235168 | GO7: 11.34082783 | GP7: 0.4932546088 | GQ7: 11.18750347 | GR7: 0.4859646508 | GS7: 11.5467635 | GT7: 0.4940632884 | GU7: 12.12203859 | GV7: 0.5170455557 | GW7: 11.73614121 | GX7: 0.5008280071 | GY7: 12.11496544 | GZ7: 0.5090749766 | HA7: 12.96158541 | HB7: 0.5228815913 | HC7: 14.25353183 | HD7: 0.5361916835 | HE7: 15.09790889 | HF7: 0.5676976848 | HG7: 14.85888157 | HH7: 0.5490670721 | HI7: 15.81235994 | HJ7: 0.5764246924 | HK7: 16.18495712 | HL7: 0.5771400144 | HM7: 17.82953164 | HN7: 0.5981365261 | HO7: 17.2921012 | HP7: 0.5844171196
A8: Inverse Plot | B8: FALSE | C8: 3.083693094 | D8: 0.2455 | E8: 1.649556533 | F8: 0.1658818937 | G8: 3.834414377 | H8: 0.2817162498 | I8: 1.651373464 | J8: 0.1799596519 | K8: 1.86398076 | L8: 0.1858034957 | M8: 1.874535307 | N8: 0.1878413973 | O8: 1.930378369 | P8: 0.1883927604 | Q8: 2.773604475 | R8: 0.2336401721 | S8: 2.69189057 | T8: 0.2353259851 | U8: 2.960624771 | V8: 0.2494900196 | W8: 3.010834176 | X8: 0.2508597893 | Y8: 3.04203583 | Z8: 0.2531050909 | AA8: 3.138701493 | AB8: 0.2573062029 | AC8: 4.213484159 | AD8: 0.3058149533 | AE8: 4.400292704 | AF8: 0.3134387393 | AG8: 4.399360139 | AH8: 0.3144334091 | AI8: 4.669390289 | AJ8: 0.327073819 | AK8: 4.686853901 | AL8: 0.3269330948 | AM8: 4.322431884 | AN8: 0.3021364408 | AO8: 4.661557813 | AP8: 0.3238942517 | AQ8: 4.663626523 | AR8: 0.3227300249 | AS8: 4.649542002 | AT8: 0.3223653378 | AU8: 4.636638806 | AV8: 0.320558578 | AW8: 4.688800789 | AX8: 0.3247971913 | AY8: 4.74247653 | AZ8: 0.3292680241 | BA8: 4.67389434 | BB8: 0.3234424125 | BC8: 4.543314259 | BD8: 0.3136599263 | BE8: 4.822686548 | BF8: 0.331675641 | BG8: 4.720916499 | BH8: 0.3252665281 | BI8: 4.452348611 | BJ8: 0.3062350931 | BK8: 4.799995287 | BL8: 0.3293827125 | BM8: 4.710687277 | BN8: 0.3239808787 | BO8: 4.633143599 | BP8: 0.3169521794 | BQ8: 4.913671005 | BR8: 0.3366206661 | BS8: 4.757695047 | BT8: 0.3267701075 | BU8: 4.699063278 | BV8: 0.3222535301 | BW8: 4.516742407 | BX8: 0.3118056925 | BY8: 4.714162121 | BZ8: 0.3236013586 | CA8: 4.702423291 | CB8: 0.3205445389 | CC8: 4.719798164 | CD8: 0.323393057 | CE8: 4.768247451 | CF8: 0.3264626648 | CG8: 4.72234253 | CH8: 0.3233386138 | CI8: 4.83998295 | CJ8: 0.3305081022 | CK8: 4.704533572 | CL8: 0.3221087007 | CM8: 4.711258854 | CN8: 0.321498763 | CO8: 4.87172419 | CP8: 0.3349796643 | CQ8: 4.939014432 | CR8: 0.3371326682 | CS8: 4.738631315 | CT8: 0.3230274717 | CU8: 4.755057604 | CV8: 0.323365843 | CW8: 4.903523149 | CX8: 0.3337546893 | CY8: 4.704733871 | CZ8: 0.3204262266 | DA8: 4.717229884 | DB8: 0.3209644867 | DC8: 4.681560144 | DD8: 0.3187178618 | DE8: 4.78681986 | DF8: 0.3269120885 | DG8: 4.752035152 | DH8: 0.3226482637 | DI8: 4.674088028 | DJ8: 0.3176621142 | DK8: 4.877581538 | DL8: 0.332253655 | DM8: 4.689134973 | DN8: 0.3200150805 | DO8: 4.657034737 | DP8: 0.3155779729 | DQ8: 4.776579499 | DR8: 0.3226207851 | DS8: 4.792297457 | DT8: 0.324884756 | DU8: 4.795979218 | DV8: 0.3260825489 | DW8: 4.74749839 | DX8: 0.3225522183 | DY8: 4.753663024 | DZ8: 0.322502953 | EA8: 4.767535892 | EB8: 0.3215623544 | EC8: 4.646658198 | ED8: 0.3139308943 | EE8: 4.86777996 | EF8: 0.3288027029 | EG8: 4.780684591 | EH8: 0.3232815246 | EI8: 4.764013425 | EJ8: 0.3227381108 | EK8: 4.836642998 | EL8: 0.3245795642 | EM8: 4.801104431 | EN8: 0.3235307649 | EO8: 4.818931089 | EP8: 0.3253010608 | EQ8: 4.826508283 | ER8: 0.3240463435 | ES8: 4.774674085 | ET8: 0.320476287 | EU8: 4.764711801 | EV8: 0.3202121001 | EW8: 4.953385183 | EX8: 0.3310983018 | EY8: 5.046888613 | EZ8: 0.3384529082 | FA8: 4.971048392 | FB8: 0.3314234676 | FC8: 4.983008197 | FD8: 0.332158314 | FE8: 5.010570885 | FF8: 0.3333729948 | FG8: 5.160903888 | FH8: 0.3397403382 | FI8: 5.08014629 | FJ8: 0.3346272315 | FK8: 5.33544302 | FL8: 0.3453628373 | FM8: 5.262992853 | FN8: 0.3388166316 | FO8: 5.406244573 | FP8: 0.3452217014 | FQ8: 5.460728954 | FR8: 0.3455635977 | FS8: 5.725344926 | FT8: 0.3505374593 | FU8: 6.468767805 | FV8: 0.3835906259 | FW8: 8.337226363 | FX8: 0.4354204143 | FY8: 9.741544281 | FZ8: 0.4578143541 | GA8: 10.10257625 | GB8: 0.471032023 | GC8: 9.901703903 | GD8: 0.4646095586 | GE8: 10.36704181 | GF8: 0.478027667 | GG8: 10.56216791 | GH8: 0.4827534601 | GI8: 10.37969452 | GJ8: 0.4714451554 | GK8: 10.74110365 | GL8: 0.4816124346 | GM8: 11.02070137 | GN8: 0.4894060355 | GO8: 11.2393717 | GP8: 0.491110109 | GQ8: 11.0693957 | GR8: 0.4842244983 | GS8: 11.4351222 | GT8: 0.4923154981 | GU8: 12.0066713 | GV8: 0.5148769382 | GW8: 11.62479991 | GX8: 0.4991662886 | GY8: 11.99892607 | GZ8: 0.5071655962 | HA8: 12.81624978 | HB8: 0.5207900008 | HC8: 14.1227155 | HD8: 0.5340345828 | HE8: 14.92786552 | HF8: 0.5656446607 | HG8: 14.70203428 | HH8: 0.5473333963 | HI8: 15.65670435 | HJ8: 0.5744769817 | HK8: 16.02250426 | HL8: 0.5750452938 | HM8: 17.70160961 | HN8: 0.5979582478 | HO8: 17.12249197 | HP8: 0.5825123275
A9: Color Plot | B9: FALSE | C9: 3.096145037 | D9: 0.2484 | E9: 1.920723934 | F9: 0.1839136109 | G9: 4.886902688 | H9: 0.322104784 | I9: 1.62300683 | J9: 0.1791454892 | K9: 1.837410146 | L9: 0.1851563001 | M9: 1.853301599 | N9: 0.1871019171 | O9: 1.905817105 | P9: 0.1877432705 | Q9: 2.735790594 | R9: 0.2326924922 | S9: 2.653441447 | T9: 0.2343257057 | U9: 2.926446407 | V9: 0.2482943654 | W9: 2.968840751 | X9: 0.249918782 | Y9: 3.010878061 | Z9: 0.2519846979 | AA9: 3.105877751 | AB9: 0.2563053181 | AC9: 4.171973913 | AD9: 0.3043067383 | AE9: 4.362768764 | AF9: 0.3118618278 | AG9: 4.35757665 | AH9: 0.3131768583 | AI9: 4.623521227 | AJ9: 0.3255232979 | AK9: 4.643399643 | AL9: 0.3254218 | AM9: 4.275413046 | AN9: 0.300851986 | AO9: 4.613932103 | AP9: 0.3222331908 | AQ9: 4.624726592 | AR9: 0.3211113512 | AS9: 4.607110746 | AT9: 0.3208786631 | AU9: 4.596320924 | AV9: 0.318963032 | AW9: 4.643253313 | AX9: 0.3231890276 | AY9: 4.691720443 | AZ9: 0.3278616669 | BA9: 4.628465841 | BB9: 0.3219282426 | BC9: 4.50503746 | BD9: 0.3122368873 | BE9: 4.77766972 | BF9: 0.3298190538 | BG9: 4.670970109 | BH9: 0.3236864982 | BI9: 4.406285583 | BJ9: 0.3045994076 | BK9: 4.75836473 | BL9: 0.3277274281 | BM9: 4.667844419 | BN9: 0.3225248246 | BO9: 4.594319238 | BP9: 0.3152488646 | BQ9: 4.869872737 | BR9: 0.3349218036 | BS9: 4.712617381 | BT9: 0.3253666277 | BU9: 4.657583689 | BV9: 0.3208282696 | BW9: 4.462317343 | BX9: 0.3104700593 | BY9: 4.669213621 | BZ9: 0.3221456427 | CA9: 4.665153482 | CB9: 0.3187954243 | CC9: 4.673848107 | CD9: 0.3217970702 | CE9: 4.724168634 | CF9: 0.3249687425 | CG9: 4.676201256 | CH9: 0.3217624097 | CI9: 4.795471952 | CJ9: 0.3287593008 | CK9: 4.659448844 | CL9: 0.3205594029 | CM9: 4.670164911 | CN9: 0.3198806755 | CO9: 4.821045981 | CP9: 0.333895272 | CQ9: 4.89230098 | CR9: 0.3354219911 | CS9: 4.699424249 | CT9: 0.3215315046 | CU9: 4.711660109 | CV9: 0.3216913454 | CW9: 4.859939374 | CX9: 0.3321468529 | CY9: 4.662061522 | CZ9: 0.3189192869 | DA9: 4.673133344 | DB9: 0.3193951625 | DC9: 4.640531848 | DD9: 0.3173305316 | DE9: 4.736396585 | DF9: 0.3254518924 | DG9: 4.710499181 | DH9: 0.320985417 | DI9: 4.634164039 | DJ9: 0.3162238648 | DK9: 4.830466912 | DL9: 0.3307824021 | DM9: 4.638712389 | DN9: 0.3186931313 | DO9: 4.615358639 | DP9: 0.3139081142 | DQ9: 4.736372132 | DR9: 0.3208127677 | DS9: 4.747161725 | DT9: 0.3232809726 | DU9: 4.746793959 | DV9: 0.3246012951 | DW9: 4.69949021 | DX9: 0.321150575 | DY9: 4.712824466 | DZ9: 0.321396608 | EA9: 4.728729278 | EB9: 0.3199190352 | EC9: 4.599173638 | ED9: 0.3122586777 | EE9: 4.821597066 | EF9: 0.3271552691 | EG9: 4.738962974 | EH9: 0.3219408311 | EI9: 4.715455752 | EJ9: 0.321397741 | EK9: 4.795588728 | EL9: 0.3226732515 | EM9: 4.755657006 | EN9: 0.3219503985 | EO9: 4.769603248 | EP9: 0.323693392 | EQ9: 4.785339373 | ER9: 0.3224562926 | ES9: 4.728745814 | ET9: 0.3188383845 | EU9: 4.721008736 | EV9: 0.3187837667 | EW9: 4.90935829 | EX9: 0.3292728673 | EY9: 4.998982595 | EZ9: 0.3367368347 | FA9: 4.924303093 | FB9: 0.3297306127 | FC9: 4.935196028 | FD9: 0.3304978475 | FE9: 4.961964866 | FF9: 0.331857155 | FG9: 5.114061483 | FH9: 0.3380343903 | FI9: 5.032064352 | FJ9: 0.3330181744 | FK9: 5.27836274 | FL9: 0.3437148531 | FM9: 5.21188008 | FN9: 0.3372899014 | FO9: 5.362863948 | FP9: 0.3434222693 | FQ9: 5.407404425 | FR9: 0.3438568996 | FS9: 5.667869763 | FT9: 0.3487873601 | FU9: 6.407254779 | FV9: 0.381627275 | FW9: 8.265147265 | FX9: 0.4328933959 | FY9: 9.658907842 | FZ9: 0.4553606152 | GA9: 10.02118261 | GB9: 0.4681503632 | GC9: 9.815028561 | GD9: 0.4623110922 | GE9: 10.27541226 | GF9: 0.4757264943 | GG9: 10.47836377 | GH9: 0.4804486024 | GI9: 10.28014273 | GJ9: 0.469119419 | GK9: 10.63645634 | GL9: 0.4790834413 | GM9: 10.92345794 | GN9: 0.486704764 | GO9: 11.15042917 | GP9: 0.488397692 | GQ9: 10.96584915 | GR9: 0.4818180459 | GS9: 11.33724571 | GT9: 0.4898940356 | GU9: 11.90553099 | GV9: 0.5120863809 | GW9: 11.52718576 | GX9: 0.4967781748 | GY9: 11.89719449 | GZ9: 0.5045865863 | HA9: 12.6888317 | HB9: 0.5180268038 | HC9: 14.0080289 | HD9: 0.5311779596 | HE9: 14.77878324 | HF9: 0.5628102835 | HG9: 14.56452039 | HH9: 0.5448030772 | HI9: 15.52023673 | HJ9: 0.5717209952 | HK9: 15.88007768 | HL9: 0.5721691687 | HM9: 17.57083311 | HN9: 0.5971961501 | HO9: 16.97378942 | HP9: 0.579772092
A10: 3D plot | B10: FALSE | C10: 3.195669578 | D10: 0.2522 | E10: 2.219643812 | F10: 0.2022242096 | G10: 6.168525608 | H10: 0.363766013 | I10: 1.6009273 | J10: 0.1780927006 | K10: 1.816726302 | L10: 0.1842371971 | M10: 1.836774128 | N10: 0.1861192395 | O10: 1.886697431 | P10: 0.1868229288 | Q10: 2.70635635 | R10: 0.2314294657 | S10: 2.623513289 | T10: 0.2330154903 | U10: 2.899846035 | V10: 0.2468318214 | W10: 2.93615198 | X10: 0.2486197912 | Y10: 2.986628115 | Z10: 0.250573894 | AA10: 3.080328409 | AB10: 0.2549718449 | AC10: 4.139668302 | AD10: 0.3024982253 | AE10: 4.333568132 | AF10: 0.3099963582 | AG10: 4.325053671 | AH10: 0.3115252134 | AI10: 4.587821798 | AJ10: 0.3236306302 | AK10: 4.609579608 | AL10: 0.3235522772 | AM10: 4.238815154 | AN10: 0.2991987564 | AO10: 4.576866837 | AP10: 0.3202777904 | AQ10: 4.594454937 | AR10: 0.3191920058 | AS10: 4.574087092 | AT10: 0.3190453566 | AU10: 4.564944791 | AV10: 0.3170626274 | AW10: 4.607805315 | AX10: 0.321265798 | AY10: 4.652213733 | AZ10: 0.3260533449 | BA10: 4.593108993 | BB10: 0.3200715255 | BC10: 4.475247672 | BD10: 0.3104706008 | BE10: 4.742638772 | BF10: 0.3277340836 | BG10: 4.632096669 | BH10: 0.3217754046 | BI10: 4.370436996 | BJ10: 0.3026964236 | BK10: 4.725967214 | BL10: 0.3257620682 | BM10: 4.634499728 | BN10: 0.3207102976 | BO10: 4.564108196 | BP10: 0.3132985488 | BQ10: 4.835787916 | BR10: 0.3329133213 | BS10: 4.677531672 | BT10: 0.323576984 | BU10: 4.625299867 | BV10: 0.3190361556 | BW10: 4.419953933 | BX10: 0.3087479843 | BY10: 4.634229529 | BZ10: 0.3203297673 | CA10: 4.636153803 | CB10: 0.3168117396 | CC10: 4.638086506 | CD10: 0.3198853659 | CE10: 4.689862196 | CF10: 0.3231208906 | CG10: 4.640290476 | CH10: 0.3198651948 | CI10: 4.760833189 | CJ10: 0.3267383487 | CK10: 4.624360258 | CL10: 0.3186812364 | CM10: 4.638184882 | CN10: 0.3179644015 | CO10: 4.781595062 | CP10: 0.3323251784 | CQ10: 4.855946447 | CR10: 0.3334016791 | CS10: 4.668911124 | CT10: 0.3196927262 | CU10: 4.677887326 | CV10: 0.3197339998 | CW10: 4.826020048 | CX10: 0.3302030631 | CY10: 4.628850608 | CZ10: 0.317078627 | DA10: 4.638814575 | DB10: 0.3175102754 | DC10: 4.608598916 | DD10: 0.3155761647 | DE10: 4.697149946 | DF10: 0.3236148276 | DG10: 4.678175739 | DH10: 0.3190402025 | DI10: 4.603091833 | DJ10: 0.3144353215 | DK10: 4.793796242 | DL10: 0.3289318088 | DM10: 4.599464571 | DN10: 0.3169747697 | DO10: 4.582926393 | DP10: 0.3119783532 | DQ10: 4.705085769 | DR10: 0.3187849781 | DS10: 4.712034269 | DT10: 0.3213627758 | DU10: 4.708511568 | DV10: 0.3227553733 | DW10: 4.66212317 | DX10: 0.3193721696 | DY10: 4.68103396 | DZ10: 0.3198368592 | EA10: 4.698530827 | EB10: 0.3179906247 | EC10: 4.562218675 | ED10: 0.3103224624 | EE10: 4.785654832 | EF10: 0.3251955043 | EG10: 4.706489196 | EH10: 0.3202079623 | EI10: 4.677659935 | EJ10: 0.3196605853 | EK10: 4.76364436 | EL10: 0.3205827734 | EM10: 4.720286514 | EN10: 0.3200499944 | EO10: 4.731211689 | EP10: 0.3217541009 | EQ10: 4.753300419 | ER10: 0.3205538279 | ES10: 4.693001913 | ET10: 0.3169057218 | EU10: 4.686993912 | EV10: 0.3169921852 | EW10: 4.875097722 | EX10: 0.3272065888 | EY10: 4.96169947 | EZ10: 0.3347018224 | FA10: 4.887923625 | FB10: 0.3277355257 | FC10: 4.897985347 | FD10: 0.3285216007 | FE10: 4.924133743 | FF10: 0.3299721216 | FG10: 5.077606384 | FH10: 0.3360097014 | FI10: 4.994642711 | FJ10: 0.3310673858 | FK10: 5.233935475 | FL10: 0.3417011023 | FM10: 5.172097296 | FN10: 0.3353832233 | FO10: 5.329105853 | FP10: 0.3413293824 | FQ10: 5.365902088 | FR10: 0.3418053329 | FS10: 5.623136407 | FT10: 0.346698026 | FU10: 6.359379796 | FV10: 0.3793133541 | FW10: 8.209052109 | FX10: 0.4301157689 | FY10: 9.59459166 | FZ10: 0.4525455038 | GA10: 9.957838634 | GB10: 0.4651025952 | GC10: 9.747565818 | GD10: 0.4595661498 | GE10: 10.20409225 | GF10: 0.4729451923 | GG10: 10.41313597 | GH10: 0.4776537228 | GI10: 10.20265522 | GJ10: 0.4662979236 | GK10: 10.55500408 | GL10: 0.4761264151 | GM10: 10.84777165 | GN10: 0.4836385434 | GO10: 11.08120583 | GP10: 0.4853371014 | GQ10: 10.88525257 | GR10: 0.47894025 | GS10: 11.2610634 | GT10: 0.4869950733 | GU10: 11.82681146 | GV10: 0.5088999581 | GW10: 11.45120688 | GX10: 0.4938571364 | GY10: 11.81801238 | GZ10: 0.501546883 | HA10: 12.58965383 | HB10: 0.5148158581 | HC10: 13.91876326 | HD10: 0.5278532404 | HE10: 14.66273982 | HF10: 0.5594241776 | HG10: 14.45748046 | HH10: 0.5416811062 | HI10: 15.41401286 | HJ10: 0.5683800067 | HK10: 15.76921593 | HL10: 0.5687446459 | HM10: 17.44291769 | HN10: 0.5958835401 | HO10: 16.85804055 | HP10: 0.5764184106
A11: Linear | B11: FALSE | C11: 4.285591675 | D11: 0.3006 | E11: 2.54915648 | F11: 0.2208180029 | G11: 7.729167461 | H11: 0.4067400412 | I11: 1.586923624 | J11: 0.1768865766 | K11: 1.803604909 | L11: 0.1831206468 | M11: 1.826291851 | N11: 0.1849729752 | O11: 1.874568311 | P11: 0.1857062958 | Q11: 2.687686331 | R11: 0.2299534155 | S11: 2.604530699 | T11: 0.2315014849 | U11: 2.882978659 | V11: 0.245220874 | W11: 2.915416113 | X11: 0.2470680535 | Y11: 2.971250579 | Z11: 0.2489869742 | AA11: 3.064123323 | AB11: 0.2534138132 | AC11: 4.119184536 | AD11: 0.3005359294 | AE11: 4.315056471 | AF11: 0.3079934597 | AG11: 4.30442602 | AH11: 0.309612281 | AI11: 4.565184158 | AJ11: 0.3215491488 | AK11: 4.588133696 | AL11: 0.3214759841 | AM11: 4.215603151 | AN11: 0.2973106868 | AO11: 4.553364823 | AP11: 0.3181864655 | AQ11: 4.575263987 | AR11: 0.3171274828 | AS11: 4.553146419 | AT11: 0.3170139419 | AU11: 4.545052315 | AV11: 0.3150113239 | AW11: 4.585328581 | AX11: 0.3191833112 | AY11: 4.627156998 | AZ11: 0.3239895577 | BA11: 4.570688198 | BB11: 0.3180226816 | BC11: 4.456358286 | BD11: 0.308504161 | BE11: 4.720431705 | BF11: 0.3255896424 | BG11: 4.607445473 | BH11: 0.3196880726 | BI11: 4.347707089 | BJ11: 0.3006803097 | BK11: 4.705427394 | BL11: 0.3236458546 | BM11: 4.613354595 | BN11: 0.3186842997 | BO11: 4.544957991 | BP11: 0.3112592351 | BQ11: 4.814177892 | BR11: 0.3307579345 | BS11: 4.655280356 | BT11: 0.3215461628 | BU11: 4.604827254 | BV11: 0.3170223746 | BW11: 4.393084207 | BX11: 0.3067789797 | BY11: 4.612044048 | BZ11: 0.3183008438 | CA11: 4.617773638 | CB11: 0.3147541912 | CC11: 4.615410552 | CD11: 0.317812819 | CE11: 4.668107438 | CF11: 0.3210688112 | CG11: 4.617519466 | CH11: 0.31780067 | CI11: 4.738872889 | CJ11: 0.3246089717 | CK11: 4.602110482 | CL11: 0.3166263592 | CM11: 4.617909601 | CN11: 0.3159051862 | CO11: 4.756567513 | CP11: 0.3303965832 | CQ11: 4.83289606 | CR11: 0.3312354057 | CS11: 4.649563931 | CT11: 0.3176601033 | CU11: 4.656475325 | CV11: 0.3176523786 | CW11: 4.804513112 | CX11: 0.3280807942 | CY11: 4.607791681 | CZ11: 0.3150533663 | DA11: 4.61705388 | DB11: 0.3154625278 | DC11: 4.588348364 | DD11: 0.3135968894 | DE11: 4.672259474 | DF11: 0.3215497223 | DG11: 4.657683479 | DH11: 0.31697021 | DI11: 4.583388695 | DJ11: 0.3124413816 | DK11: 4.770540368 | DL11: 0.3268517992 | DM11: 4.574571145 | DN11: 0.3149992071 | DO11: 4.562365469 | DP11: 0.3099450276 | DQ11: 4.685255047 | DR11: 0.3167016956 | DS11: 4.689760905 | DT11: 0.3192855666 | DU11: 4.684233457 | DV11: 0.3206943288 | DW11: 4.638424524 | DX11: 0.3173610782 | DY11: 4.660866984 | DZ11: 0.317950068 | EA11: 4.679387038 | EB11: 0.3159333512 | EC11: 4.538787181 | ED11: 0.3082791091 | EE11: 4.762865085 | EF11: 0.323082177 | EG11: 4.68589409 | EH11: 0.3182233049 | EI11: 4.653687966 | EJ11: 0.3176673777 | EK11: 4.743397837 | EL11: 0.3184774882 | EM11: 4.69785846 | EN11: 0.3179835119 | EO11: 4.706866668 | EP11: 0.3196402973 | EQ11: 4.732987026 | ER11: 0.3184930756 | ES11: 4.670338142 | ET11: 0.3148348716 | EU11: 4.665423008 | EV11: 0.3149824988 | EW11: 4.853379066 | EX11: 0.3250668639 | EY11: 4.938059695 | EZ11: 0.3325127357 | FA11: 4.864857235 | FB11: 0.3255998367 | FC11: 4.874390743 | FD11: 0.3263896772 | FE11: 4.900142368 | FF11: 0.3278706088 | FG11: 5.054491965 | FH11: 0.3338302999 | FI11: 4.970913045 | FJ11: 0.3289329072 | FK11: 5.205760459 | FL11: 0.3394847271 | FM11: 5.146867467 | FN11: 0.3332510651 | FO11: 5.307705168 | FP11: 0.3391125941 | FQ11: 5.339584214 | FR11: 0.3395751032 | FS11: 5.594768886 | FT11: 0.3444387223 | FU11: 6.329021402 | FV11: 0.3768363233 | FW11: 8.173485393 | FX11: 0.4273125602 | FY11: 9.55380625 | FZ11: 0.4495970835 | GA11: 9.91767608 | GB11: 0.462135631 | GC11: 9.704781105 | GD11: 0.4565971105 | GE11: 10.15885972 | GF11: 0.4699090856 | GG11: 10.37176887 | GH11: 0.474595246 | GI11: 10.15350958 | GJ11: 0.46320925 | GK11: 10.50334566 | GL11: 0.4729809166 | GM11: 10.79977416 | GN11: 0.4804557805 | GO11: 11.03730975 | GP11: 0.4821762883 | GQ11: 10.8341354 | GR11: 0.4758242526 | GS11: 11.21274712 | GT11: 0.4838534681 | GU11: 11.77689008 | GV11: 0.5055758147 | GW11: 11.4030186 | GX11: 0.4906398186 | GY11: 11.7677946 | GZ11: 0.4982927449 | HA11: 12.52675097 | HB11: 0.5114172952 | HC11: 13.86215035 | HD11: 0.5243297743 | HE11: 14.58913641 | HF11: 0.5557606653 | HG11: 14.38958622 | HH11: 0.5382204068 | HI11: 15.34663838 | HJ11: 0.564724683 | HK11: 15.69890037 | HL11: 0.5650491598 | HM11: 17.32345388 | HN11: 0.5940777853 | HO11: 16.78462264 | HP11: 0.5727229787
A12: Data Range | B12: Q14:U121 | C12: 4.46550784 | D12: 0.3083 | E12: 2.91239294 | F12: 0.2396993708 | G12: 9.629572764 | H12: 0.4510682365 | I12: 1.582130298 | J12: 0.1756248302 | K12: 1.799108984 | L12: 0.1818971056 | M12: 1.822703981 | N12: 0.1837559875 | O12: 1.870412374 | P12: 0.1844838344 | Q12: 2.68129307 | R12: 0.2283839225 | S12: 2.598031533 | T12: 0.2299063451 | U12: 2.877210775 | V12: 0.2435920328 | W12: 2.908313045 | X12: 0.2453892815 | Y12: 2.965991249 | Z12: 0.2473525012 | AA12: 3.058575331 | AB12: 0.2517574457 | AC12: 4.112182086 | AD12: 0.2985788241 | AE12: 4.308733485 | AF12: 0.3060153953 | AG12: 4.297364827 | AH12: 0.3075930353 | AI12: 4.557442273 | AJ12: 0.3194474828 | AK12: 4.580799326 | AL12: 0.3193611296 | AM12: 4.207657536 | AN12: 0.2953407373 | AO12: 4.545330053 | AP12: 0.3161286426 | AQ12: 4.568708478 | AR12: 0.3150850375 | AS12: 4.545985217 | AT12: 0.314948992 | AU12: 4.538255066 | AV12: 0.3129753058 | AW12: 4.577644042 | AX12: 0.3171102778 | AY12: 4.618580186 | AZ12: 0.321837501 | BA12: 4.563019855 | BB12: 0.3159476959 | BC12: 4.449899608 | BD12: 0.306496877 | BE12: 4.712847601 | BF12: 0.3235594599 | BG12: 4.599013615 | BH12: 0.3175936054 | BI12: 4.339937305 | BJ12: 0.2987143994 | BK12: 4.698409283 | BL12: 0.3215502304 | BM12: 4.606122071 | BN12: 0.3166109653 | BO12: 4.538420058 | BP12: 0.3092961367 | BQ12: 4.806793379 | BR12: 0.3286302598 | BS12: 4.647666102 | BT12: 0.319438689 | BU12: 4.59782442 | BV12: 0.314950071 | BW12: 4.383884991 | BX12: 0.3047225626 | BY12: 4.604454516 | BZ12: 0.3162232435 | CA12: 4.611502037 | CB12: 0.3127894695 | CC12: 4.607657318 | CD12: 0.315747335 | CE12: 4.660666804 | CF12: 0.3189787515 | CG12: 4.609733 | CH12: 0.315736091 | CI12: 4.731370143 | CJ12: 0.322543679 | CK12: 4.59450206 | CL12: 0.314561245 | CM12: 4.610981649 | CN12: 0.3138698549 | CO12: 4.747990916 | CP12: 0.3282657297 | CQ12: 4.825017224 | CR12: 0.3290986696 | CS12: 4.642950064 | CT12: 0.315598307 | CU12: 4.649158778 | CV12: 0.3156151225 | CW12: 4.797160933 | CX12: 0.3259519799 | CY12: 4.600590808 | CZ12: 0.3130075794 | DA12: 4.609614181 | DB12: 0.3134178158 | DC12: 4.581420771 | DD12: 0.3115530549 | DE12: 4.663741646 | DF12: 0.3194238789 | DG12: 4.650682563 | DH12: 0.3149431379 | DI12: 4.576650856 | DJ12: 0.3104035822 | DK12: 4.762583343 | DL12: 0.3247108833 | DM12: 4.566048827 | DN12: 0.3129264919 | DO12: 4.555341589 | DP12: 0.3079728654 | DQ12: 4.678486533 | DR12: 0.3147316954 | DS12: 4.682146089 | DT12: 0.317217628 | DU12: 4.675926492 | DV12: 0.3185851354 | DW12: 4.630314197 | DX12: 0.3152802274 | DY12: 4.653957347 | DZ12: 0.3158890911 | EA12: 4.672848827 | EB12: 0.3139138829 | EC12: 4.530777436 | ED12: 0.3062941581 | EE12: 4.755074115 | EF12: 0.3209864965 | EG12: 4.678846148 | EH12: 0.316147644 | EI12: 4.645481912 | EJ12: 0.3155795962 | EK12: 4.736489411 | EL12: 0.3165279534 | EM12: 4.690189832 | EN12: 0.3159183652 | EO12: 4.698540474 | EP12: 0.3175232291 | EQ12: 4.726044866 | ER12: 0.3164409857 | ES12: 4.662590584 | ET12: 0.3127936018 | EU12: 4.65804357 | EV12: 0.3129175205 | EW12: 4.845961837 | EX12: 0.3230270403 | EY12: 4.929978424 | EZ12: 0.3303469215 | FA12: 4.856972626 | FB12: 0.3234965666 | FC12: 4.86632371 | FD12: 0.3242747927 | FE12: 4.891934381 | FF12: 0.3257228686 | FG12: 5.046590819 | FH12: 0.3316727479 | FI12: 4.962797791 | FJ12: 0.3267876612 | FK12: 5.196120264 | FL12: 0.3372452849 | FM12: 5.138234562 | FN12: 0.3310661614 | FO12: 5.300395649 | FP12: 0.3369514953 | FQ12: 5.330582923 | FR12: 0.3373468905 | FS12: 5.585065371 | FT12: 0.3421924842 | FU12: 6.318639053 | FV12: 0.3743968567 | FW12: 8.161328519 | FX12: 0.4247108691 | FY12: 9.539855804 | FZ12: 0.4467542177 | GA12: 9.903948677 | GB12: 0.4594898364 | GC12: 9.690140585 | GD12: 0.4536445081 | GE12: 10.14337912 | GF12: 0.4668641414 | GG12: 10.35761381 | GH12: 0.4715209515 | GI12: 10.1366873 | GJ12: 0.4601036243 | GK12: 10.48566612 | GL12: 0.4699017753 | GM12: 10.78335394 | GN12: 0.4774143239 | GO12: 11.02229712 | GP12: 0.4791713229 | GQ12: 10.81663885 | GR12: 0.4727224931 | GS12: 11.19621115 | GT12: 0.480723734 | GU12: 11.75981119 | GV12: 0.5023832533 | GW12: 11.38652488 | GX12: 0.4873868692 | GY12: 11.75060951 | GZ12: 0.4950878031 | HA12: 12.50521913 | HB12: 0.5081064467 | HC12: 13.84277661 | HD12: 0.5208930115 | HE12: 14.5639359 | HF12: 0.5521165424 | HG12: 14.36633806 | HH12: 0.5347013444 | HI12: 15.32357156 | HJ12: 0.5610511569 | HK12: 15.67482755 | HL12: 0.5613820966 | HM12: 17.21766281 | HN12: 0.5918578058 | HO12: 16.75948358 | HP12: 0.5689851781
A13: Filled Symbols | B13: FALSE | C13: 4.471884101 | D13: 0.3083 | E13: 3.312804636 | F13: 0.2588727611 | G13: 11.94371057 | H13: 0.4967932704 | I13: 1.586935648 | J13: 0.1744096807 | K13: 1.803602761 | L13: 0.1806656975 | M13: 1.826301184 | N13: 0.1825668697 | O13: 1.874566307 | P13: 0.1832545813 | Q13: 2.687694512 | R13: 0.2268481376 | S13: 2.604542315 | T13: 0.2283592997 | U13: 2.88300966 | V13: 0.2420772567 | W13: 2.915418227 | X13: 0.2437194792 | Y13: 2.971276205 | Z13: 0.2458028903 | AA13: 3.064133901 | AB13: 0.2501369312 | AC13: 4.119228249 | AD13: 0.2967854625 | AE13: 4.315111424 | AF13: 0.304222416 | AG13: 4.304442147 | AH13: 0.3056310637 | AI13: 4.565223345 | AJ13: 0.3174958968 | AK13: 4.588170686 | AL13: 0.3173790467 | AM13: 4.215622016 | AN13: 0.2934485016 | AO13: 4.553413459 | AP13: 0.3142710344 | AQ13: 4.575319501 | AR13: 0.3132301367 | AS13: 4.553183642 | AT13: 0.313017797 | AU13: 4.545103717 | AV13: 0.3111195192 | AW13: 4.585374254 | AX13: 0.3152146427 | AY13: 4.627178138 | AZ13: 0.3197715217 | BA13: 4.570725208 | BB13: 0.3140146715 | BC13: 4.45639488 | BD13: 0.3046113672 | BE13: 4.720500881 | BF13: 0.3218080095 | BG13: 4.607484194 | BH13: 0.3156616845 | BI13: 4.347757105 | BJ13: 0.2969579591 | BK13: 4.705481447 | BL13: 0.3196449705 | BM13: 4.613388093 | BN13: 0.3146582637 | BO13: 4.545024062 | BP13: 0.3075682919 | BQ13: 4.814232628 | BR13: 0.3267026688 | BS13: 4.655305772 | BT13: 0.3174252979 | BU13: 4.604858693 | BV13: 0.3129871307 | BW13: 4.393101551 | BX13: 0.3027453317 | BY13: 4.61207579 | BZ13: 0.3142652812 | CA13: 4.617847089 | CB13: 0.3110767444 | CC13: 4.615454924 | CD13: 0.3138562472 | CE13: 4.668143088 | CF13: 0.3170200357 | CG13: 4.61756189 | CH13: 0.3138387176 | CI13: 4.73893278 | CJ13: 0.3207097885 | CK13: 4.602151382 | CL13: 0.3126531973 | CM13: 4.617962288 | CN13: 0.3120232982 | CO13: 4.756560097 | CP13: 0.3261052469 | CQ13: 4.832948237 | CR13: 0.3271645764 | CS13: 4.649605341 | CT13: 0.3136743718 | CU13: 4.65653043 | CV13: 0.3137872778 | CW13: 4.804559138 | CX13: 0.323989084 | CY13: 4.607831362 | CZ13: 0.3111070038 | DA13: 4.617098197 | DB13: 0.3115417902 | DC13: 4.58837737 | DD13: 0.3096102405 | DE13: 4.672286525 | DF13: 0.3174095206 | DG13: 4.657740162 | DH13: 0.3131232075 | DI13: 4.583424176 | DJ13: 0.3084870137 | DK13: 4.770569798 | DL13: 0.3226825053 | DM13: 4.574588045 | DN13: 0.3109245431 | DO13: 4.562423786 | DP13: 0.3062216394 | DQ13: 4.68532857 | DR13: 0.3130345752 | DS13: 4.689806729 | DT13: 0.3153264924 | DU13: 4.684263656 | DV13: 0.3165986673 | DW13: 4.638449238 | DX13: 0.3132981952 | DY13: 4.660864827 | DZ13: 0.3138208966 | EA13: 4.679445881 | EB13: 0.3120958249 | EC13: 4.538838342 | ED13: 0.3045284183 | EE13: 4.762913098 | EF13: 0.3190782423 | EG13: 4.685916354 | EH13: 0.3141491373 | EI13: 4.653706577 | EJ13: 0.3135663803 | EK13: 4.743478763 | EL13: 0.3148921088 | EM13: 4.697901897 | EN13: 0.3140218602 | EO13: 4.706907647 | EP13: 0.3155744085 | EQ13: 4.733036351 | ER13: 0.3145638063 | ES13: 4.670386901 | ET13: 0.3109472843 | EU13: 4.665453436 | EV13: 0.3109645424 | EW13: 4.853446937 | EX13: 0.3212523725 | EY13: 4.938110354 | EZ13: 0.3283798411 | FA13: 4.864908562 | FB13: 0.3215961098 | FC13: 4.874437792 | FD13: 0.3223482828 | FE13: 4.900174743 | FF13: 0.3237028983 | FG13: 5.054543049 | FH13: 0.3297118374 | FI13: 4.970954398 | FJ13: 0.3248054429 | FK13: 5.205795881 | FL13: 0.3351642022 | FM13: 5.146897968 | FN13: 0.3290055202 | FO13: 5.30776947 | FP13: 0.3350211654 | FQ13: 5.339627445 | FR13: 0.3353012113 | FS13: 5.59481198 | FT13: 0.3401412889 | FU13: 6.329073867 | FV13: 0.3721925856 | FW13: 8.173566366 | FX13: 0.4225214691 | FY13: 9.553870503 | FZ13: 0.4442472186 | GA13: 9.917768538 | GB13: 0.4573795579 | GC13: 9.704830346 | GD13: 0.4509475448 | GE13: 10.15890461 | GF13: 0.464057043 | GG13: 10.37181753 | GH13: 0.4686799004 | GI13: 10.15355121 | GJ13: 0.4572326457 | GK13: 10.50339776 | GL13: 0.467138445 | GM13: 10.79984126 | GN13: 0.4747605744 | GO13: 11.03738418 | GP13: 0.4765656495 | GQ13: 10.8341804 | GR13: 0.4698862578 | GS13: 11.21279515 | GT13: 0.4778594234 | GU13: 11.77695843 | GV13: 0.4995809159 | GW13: 11.40306192 | GX13: 0.484361823 | GY13: 11.76784934 | GZ13: 0.4921917028 | HA13: 12.52680269 | HB13: 0.5051515377 | HC13: 13.86221158 | HD13: 0.5178213782 | HE13: 14.5891799 | HF13: 0.5487870342 | HG13: 14.38961941 | HH13: 0.5314090124 | HI13: 15.34668114 | HJ13: 0.5576570356 | HK13: 15.69894771 | HL13: 0.5580405401 | HM13: 17.13016806 | HN13: 0.5893206254 | HO13: 16.78465999 | HP13: 0.5655078233
A14: ConcAge | B14: FALSE | C14: 4.749050477 | D14: 0.3213 | E14: 3.754196245 | F14: 0.27834269 | G14: 14.76165356 | H14: 0.5439591593 | I14: 1.600950374 | J14: 0.1733395722 | K14: 1.81672218 | L14: 0.1795261838 | M14: 1.836792038 | N14: 0.181501957 | O14: 1.886693586 | P14: 0.1821181232 | Q14: 2.706372049 | R14: 0.2254704809 | S14: 2.62353558 | T14: 0.2269856811 | U14: 2.899905525 | V14: 0.2407992639 | W14: 2.936156037 | X14: 0.2421939241 | Y14: 2.986677291 | Z14: 0.2444636818 | AA14: 3.080348708 | AB14: 0.2486835543 | AC14: 4.139752188 | AD14: 0.295301132 | AE14: 4.333673587 | AF14: 0.3027597783 | AG14: 4.325084619 | AH14: 0.3038853135 | AI14: 4.587896999 | AJ14: 0.3158524965 | AK14: 4.609650591 | AL14: 0.3156903118 | AM14: 4.238851355 | AN14: 0.2917872774 | AO14: 4.576960169 | AP14: 0.3127641333 | AQ14: 4.594561467 | AR14: 0.3117130535 | AS14: 4.574158522 | AT14: 0.3113768108 | AU14: 4.565043431 | AV14: 0.3095943088 | AW14: 4.607892961 | AX14: 0.3136499789 | AY14: 4.652254301 | AZ14: 0.317958993 | BA14: 4.593180015 | BB14: 0.3123802105 | BC14: 4.475317896 | BD14: 0.3030003842 | BE14: 4.74277152 | BF14: 0.3204771833 | BG14: 4.632170973 | BH14: 0.3140488225 | BI14: 4.370532975 | BJ14: 0.2955532852 | BK14: 4.726070942 | BL14: 0.3180844278 | BM14: 4.63456401 | BN14: 0.3129843911 | BO14: 4.564234986 | BP14: 0.3062156806 | BQ14: 4.835892954 | BR14: 0.3251313234 | BS14: 4.677580446 | BT14: 0.3156691022 | BU14: 4.625360197 | BV14: 0.3112925794 | BW14: 4.419987216 | BX14: 0.3010074704 | BY14: 4.634290439 | BZ14: 0.3125855794 | CA14: 4.636294755 | CB14: 0.3097547708 | CC14: 4.638171653 | CD14: 0.3122927601 | CE14: 4.689930607 | CF14: 0.3153513474 | CG14: 4.640371886 | CH14: 0.3122622638 | CI14: 4.760948119 | CJ14: 0.319255871 | CK14: 4.624438745 | CL14: 0.3110567946 | CM14: 4.638285988 | CN14: 0.310515113 | CO14: 4.781580832 | CP14: 0.3240901644 | CQ14: 4.856046575 | CR14: 0.3255898148 | CS14: 4.66899059 | CT14: 0.3120441633 | CU14: 4.677993072 | CV14: 0.3123169256 | CW14: 4.826108369 | CX14: 0.3223511286 | CY14: 4.628926757 | CZ14: 0.3095056127 | DA14: 4.638899619 | DB14: 0.3099864352 | DC14: 4.608654579 | DD14: 0.3079258414 | DE14: 4.697201858 | DF14: 0.3156698389 | DG14: 4.678284512 | DH14: 0.3116578589 | DI14: 4.603159921 | DJ14: 0.306846945 | DK14: 4.793852716 | DL14: 0.3209309925 | DM14: 4.599497003 | DN14: 0.3091555468 | DO14: 4.583038304 | DP14: 0.3048332235 | DQ14: 4.705226858 | DR14: 0.3117478256 | DS14: 4.712122204 | DT14: 0.3137653681 | DU14: 4.70856952 | DV14: 0.3148958563 | DW14: 4.662170596 | DX14: 0.3115755543 | DY14: 4.68102982 | DZ14: 0.3119130373 | EA14: 4.698643746 | EB14: 0.3106264657 | EC14: 4.562316853 | ED14: 0.3031249395 | EE14: 4.785746969 | EF14: 0.3175120097 | EG14: 4.706531922 | EH14: 0.312389692 | EI14: 4.67769565 | EJ14: 0.3117908288 | EK14: 4.763799657 | EL14: 0.3137024807 | EM14: 4.72036987 | EN14: 0.3124476404 | EO14: 4.731290326 | EP14: 0.3139517174 | EQ14: 4.753395072 | ER14: 0.3130136154 | ES14: 4.69309548 | ET14: 0.3094454964 | EU14: 4.687052304 | EV14: 0.3092817833 | EW14: 4.875227966 | EX14: 0.3198866334 | EY14: 4.961796684 | EZ14: 0.3267708557 | FA14: 4.888022119 | FB14: 0.32005243 | FC14: 4.898075633 | FD14: 0.3207662217 | FE14: 4.924195869 | FF14: 0.3219743438 | FG14: 5.077704414 | FH14: 0.3281064297 | FI14: 4.994722067 | FJ14: 0.3231468399 | FK14: 5.234003449 | FL14: 0.3334100758 | FM14: 5.172155828 | FN14: 0.3272360823 | FO14: 5.329229249 | FP14: 0.3334779883 | FQ14: 5.365985046 | FR14: 0.3336037944 | FS14: 5.623219103 | FT14: 0.3384513118 | FU14: 6.359480476 | FV14: 0.3704020868 | FW14: 8.209207496 | FX14: 0.4209217324 | FY14: 9.59471496 | FZ14: 0.4422791882 | GA14: 9.958016059 | GB14: 0.4559757578 | GC14: 9.74766031 | GD14: 0.4487247127 | GE14: 10.2041784 | GF14: 0.4617152048 | GG14: 10.41322933 | GH14: 0.4663022578 | GI14: 10.20273511 | GJ14: 0.4548289038 | GK14: 10.55510407 | GL14: 0.4649147943 | GM14: 10.84790041 | GN14: 0.4727095228 | GO14: 11.08134866 | GP14: 0.4745703644 | GQ14: 10.88533892 | GR14: 0.4675453215 | GS14: 11.26115558 | GT14: 0.4754925859 | GU14: 11.82694262 | GV14: 0.4973958315 | GW14: 11.45129 | GX14: 0.4818097512 | GY14: 11.81811741 | GZ14: 0.4898390688 | HA14: 12.58975309 | HB14: 0.5027919575 | HC14: 13.91888077 | HD14: 0.5153637196 | HE14: 14.66282329 | HF14: 0.5460418775 | HG14: 14.45754415 | HH14: 0.528610136 | HI14: 15.41409493 | HJ14: 0.5548172905 | HK14: 15.76930677 | HL14: 0.5552952033 | HM14: 17.06479358 | HN14: 0.5865771309 | HO14: 16.85811222 | HP14: 0.5625726289
A15: ConcSwap | B15: FALSE | C15: 4.762320048 | D15: 0.321 | E15: 4.240761834 | F15: 0.298113744 | G15: 18.19308389 | H15: 0.5926113062 | I15: 1.623039085 | J15: 0.1725011986 | K15: 1.837404384 | L15: 0.1785708812 | M15: 1.853326635 | N15: 0.1806475223 | O15: 1.90581173 | P15: 0.1811665292 | Q15: 2.73581254 | R15: 0.2243625621 | S15: 2.653472606 | T15: 0.2258967718 | U15: 2.926529567 | V15: 0.2398615897 | W15: 2.968846422 | X15: 0.2409362076 | Y15: 3.010946803 | Z15: 0.2434433704 | AA15: 3.105906127 | AB15: 0.247515059 | AC15: 4.172091175 | AD15: 0.2942460843 | AE15: 4.362916178 | AF15: 0.3017459765 | AG15: 4.357619912 | AH15: 0.3024972149 | AI15: 4.623626349 | AJ15: 0.3146504206 | AK15: 4.643498867 | AL15: 0.3144317363 | AM15: 4.275463651 | AN15: 0.2904916471 | AO15: 4.61406257 | AP15: 0.3117300193 | AQ15: 4.624875509 | AR15: 0.3106566928 | AS15: 4.607210597 | AT15: 0.3101589763 | AU15: 4.59645881 | AV15: 0.3085232383 | AW15: 4.643375831 | AX15: 0.3125430462 | AY15: 4.691777152 | AZ15: 0.3165467554 | BA15: 4.628565121 | BB15: 0.3111767272 | BC15: 4.505135625 | BD15: 0.3017944403 | BE15: 4.777855285 | BF15: 0.3196747969 | BG15: 4.671073977 | BH15: 0.3128856838 | BI15: 4.40641975 | BJ15: 0.2946141759 | BK15: 4.758509728 | BL15: 0.3169950282 | BM15: 4.667934277 | BN15: 0.3117249547 | BO15: 4.594496476 | BP15: 0.3053478833 | BQ15: 4.870019567 | BR15: 0.3240435247 | BS15: 4.712685561 | BT15: 0.3143123785 | BU15: 4.657668023 | BV15: 0.3100036994 | BW15: 4.462363869 | BX15: 0.2996497699 | BY15: 4.669298766 | BZ15: 0.3113202176 | CA15: 4.665350514 | CB15: 0.3089306471 | CC15: 4.673967133 | CD15: 0.3111835383 | CE15: 4.724264265 | CF15: 0.3141078736 | CG15: 4.676315058 | CH15: 0.3111344444 | CI15: 4.79563261 | CJ15: 0.3182997143 | CK15: 4.65955856 | CL15: 0.3099013681 | CM15: 4.670306244 | CN15: 0.3094674835 | CO15: 4.821026088 | CP15: 0.3223837321 | CQ15: 4.892440948 | CR15: 0.3245019627 | CS15: 4.699535332 | CT15: 0.3108397516 | CU15: 4.711807929 | CV15: 0.3113231851 | CW15: 4.860062837 | CX15: 0.3211708112 | CY15: 4.662167968 | CZ15: 0.3083331415 | DA15: 4.673252225 | DB15: 0.3088777563 | DC15: 4.640609658 | DD15: 0.3066363177 | DE15: 4.73646915 | DF15: 0.3143457723 | DG15: 4.710651233 | DH15: 0.3106658058 | DI15: 4.634259217 | DJ15: 0.3056162447 | DK15: 4.830545856 | DL15: 0.3195982419 | DM15: 4.638757724 | DN15: 0.3077628164 | DO15: 4.615515076 | DP15: 0.303920099 | DQ15: 4.736569357 | DR15: 0.3109756914 | DS15: 4.747284647 | DT15: 0.3126607281 | DU15: 4.746874969 | DV15: 0.3136146542 | DW15: 4.699556505 | DX15: 0.3102518626 | DY15: 4.71281868 | DZ15: 0.3103200765 | EA15: 4.728887125 | EB15: 0.3096248438 | EC15: 4.599310878 | ED15: 0.3021974231 | EE15: 4.821725861 | EF15: 0.3164146857 | EG15: 4.739022699 | EH15: 0.3110118478 | EI15: 4.715505676 | EJ15: 0.3103967864 | EK15: 4.795805814 | EL15: 0.3130554459 | EM15: 4.755773528 | EN15: 0.3113232397 | EO15: 4.769713174 | EP15: 0.3127866165 | EQ15: 4.785471686 | ER15: 0.3119160001 | ES15: 4.728876608 | ET15: 0.3084099042 | EU15: 4.72109036 | EV15: 0.3080055702 | EW15: 4.909540355 | EX15: 0.3190404671 | EY15: 4.999118488 | EZ15: 0.3256503157 | FA15: 4.924440776 | FB15: 0.3189905869 | FC15: 4.935322236 | FD15: 0.3196567786 | FE15: 4.962051711 | FF15: 0.3206772422 | FG15: 5.114198518 | FH15: 0.3269865855 | FI15: 5.032175282 | FJ15: 0.3219462223 | FK15: 5.278457758 | FL15: 0.3321250146 | FM15: 5.2119619 | FN15: 0.3259011972 | FO15: 5.36303644 | FP15: 0.3324469829 | FQ15: 5.407520391 | FR15: 0.3323921544 | FS15: 5.667985363 | FT15: 0.3372594648 | FU15: 6.407395519 | FV15: 0.3691704159 | FW15: 8.265364477 | FX15: 0.4200412601 | FY15: 9.659080201 | FZ15: 0.4410095647 | GA15: 10.02143063 | GB15: 0.4553921636 | GC15: 9.81516065 | GD15: 0.4471560923 | GE15: 10.27553268 | GF15: 0.4600283486 | GG15: 10.47849428 | GH15: 0.464580646 | GI15: 10.2802544 | GJ15: 0.4530871356 | GK15: 10.63659612 | GL15: 0.4634109701 | GM15: 10.92363793 | GN15: 0.4714273333 | GO15: 11.15062883 | GP15: 0.4733471138 | GQ15: 10.96596986 | GR15: 0.465889333 | GS15: 11.33737457 | GT15: 0.4738149685 | GU15: 11.90571434 | GV15: 0.4960050225 | GW15: 11.52730196 | GX15: 0.4799374074 | GY15: 11.89734131 | GZ15: 0.4882204976 | HA15: 12.68897046 | HB15: 0.5012188651 | HC15: 14.00819316 | HD15: 0.5137191409 | HE15: 14.77889992 | HF15: 0.5441034688 | HG15: 14.56460943 | HH15: 0.5265314635 | HI15: 15.52035144 | HJ15: 0.552761981 | HK15: 15.88020466 | HL15: 0.553368497 | HM15: 17.02439654 | HN15: 0.5837472264 | HO15: 16.9738896 | HP15: 0.5604173868
A16: 1st Symbol-row | B16: 1 | C16: 4.404044383 | D16: 0.2963 | E16: 4.777124711 | F16: 0.3181905803 | G16: IsoLine | H16: IsoLine | I16: 1.651412286 | J16: 0.1719624798 | K16: 1.863973823 | L16: 0.1778771826 | M16: 1.874565441 | N16: 0.1800727868 | O16: 1.930371899 | P16: 0.1804768918 | Q16: 2.773630889 | R16: 0.2236141382 | S16: 2.691928075 | T16: 0.2251807886 | U16: 2.960724863 | V16: 0.239340199 | W16: 3.010841002 | X16: 0.2400482224 | Y16: 3.042118569 | Z16: 0.2428246156 | AA16: 3.138735647 | AB16: 0.2467261097 | AC16: 4.213625297 | AD16: 0.2937057931 | AE16: 4.400470134 | AF16: 0.3012631426 | AG16: 4.39941221 | AH16: 0.3015792234 | AI16: 4.669516815 | AJ16: 0.3139870541 | AK16: 4.686973329 | AL16: 0.3137052824 | AM16: 4.322492794 | AN16: 0.289666575 | AO16: 4.661714845 | AP16: 0.3112524704 | AQ16: 4.663805762 | AR16: 0.3101466347 | AS16: 4.649662183 | AT16: 0.3094629552 | AU16: 4.636804768 | AV16: 0.3079930792 | AW16: 4.688948253 | AX16: 0.3119835218 | AY16: 4.742544785 | AZ16: 0.3156492198 | BA16: 4.674013835 | BB16: 0.3105017206 | BC16: 4.543432411 | BD16: 0.301091234 | BE16: 4.822909897 | BF16: 0.3194658549 | BG16: 4.721041516 | BH16: 0.3122664991 | BI16: 4.452510097 | BJ16: 0.2942167123 | BK16: 4.800169809 | BL16: 0.3164650283 | BM16: 4.710795432 | BN16: 0.3109819866 | BO16: 4.633356924 | BP16: 0.3050352037 | BQ16: 4.913847731 | BR16: 0.3235273996 | BS16: 4.75777711 | BT16: 0.3134650405 | BU16: 4.699164784 | BV16: 0.3092249084 | BW16: 4.516798406 | BX16: 0.2987822231 | BY16: 4.714264604 | BZ16: 0.3105717078 | CA16: 4.702660443 | CB16: 0.3086711389 | CC16: 4.719941426 | CD16: 0.3106184443 | CE16: 4.768362553 | CF16: 0.3133903533 | CG16: 4.722479503 | CH16: 0.3105466286 | CI16: 4.84017632 | CJ16: 0.3179187806 | CK16: 4.704665628 | CL16: 0.3092805235 | CM16: 4.711428965 | CN16: 0.3089652825 | CO16: 4.871700247 | CP16: 0.321124195 | CQ16: 4.939182899 | CR16: 0.3239891514 | CS16: 4.738765016 | CT16: 0.3101587107 | CU16: 4.755235523 | CV16: 0.3108865632 | CW16: 4.903671751 | CX16: 0.3205437541 | CY16: 4.704861991 | CZ16: 0.3076845766 | DA16: 4.71737297 | DB16: 0.3083055723 | DC16: 4.681653797 | DD16: 0.3058461388 | DE16: 4.786907201 | DF16: 0.3135445888 | DG16: 4.752218164 | DH16: 0.3102274185 | DI16: 4.674202586 | DJ16: 0.304894617 | DK16: 4.877676557 | DL16: 0.3187922251 | DM16: 4.689189539 | DN16: 0.3068591828 | DO16: 4.657223027 | DP16: 0.3035562418 | DQ16: 4.776816882 | DR16: 0.3107807263 | DS16: 4.792445408 | DT16: 0.3121020639 | DU16: 4.796076722 | DV16: 0.3128588561 | DW16: 4.747578184 | DX16: 0.3094343579 | DY16: 4.75365606 | DZ16: 0.3091710666 | EA16: 4.767725879 | EB16: 0.3091721048 | EC16: 4.646823383 | ED16: 0.3018210111 | EE16: 4.86793498 | EF16: 0.3158751689 | EG16: 4.780756478 | EH16: 0.3101272295 | EI16: 4.764073514 | EJ16: 0.30949719 | EK16: 4.836904286 | EL16: 0.3130034232 | EM16: 4.801244678 | EN16: 0.3107397504 | EO16: 4.819063398 | EP16: 0.3121734955 | EQ16: 4.826667538 | ER16: 0.3113598827 | ES16: 4.774831511 | ET16: 0.3079244052 | EU16: 4.764810045 | EV16: 0.3072392944 | EW16: 4.953604318 | EX16: 0.3187824251 | EY16: 5.047052177 | EZ16: 0.3251090006 | FA16: 4.97121411 | FB16: 0.3184966048 | FC16: 4.983160103 | FD16: 0.319109834 | FE16: 5.010675413 | FF16: 0.3199166771 | FG16: 5.161068824 | FH16: 0.3264430278 | FI16: 5.080279807 | FJ16: 0.321300857 | FK16: 5.335557386 | FL16: 0.3314131267 | FM16: 5.263091333 | FN16: 0.3251090093 | FO16: 5.406452187 | FP16: 0.3320116753 | FQ16: 5.460868533 | FR16: 0.3317644513 | FS16: 5.725484064 | FT16: 0.3366623044 | FU16: 6.468937202 | FV16: 0.3685973555 | FW16: 8.337487803 | FX16: 0.4199513829 | FY16: 9.741751735 | FZ16: 0.4405412055 | GA16: 10.10287477 | GB16: 0.4556760546 | GC16: 9.901862888 | GD16: 0.446368764 | GE16: 10.36718675 | GF16: 0.4591331335 | GG16: 10.56232499 | GH16: 0.46365454 | GI16: 10.37982894 | GJ16: 0.4521484487 | GK16: 10.74127189 | GL16: 0.4627488033 | GM16: 11.02091801 | GN16: 0.4710178811 | GO16: 11.23961201 | GP16: 0.472994998 | GQ16: 11.06954098 | GR16: 0.4650524505 | GS16: 11.43527729 | GT16: 0.4729624817 | GU16: 12.00689198 | GV16: 0.4955211639 | GW16: 11.62493977 | GX16: 0.4788964778 | GY16: 11.9991028 | GZ16: 0.4874671162 | HA16: 12.81641679 | HB16: 0.5005597031 | HC16: 14.12291321 | HD16: 0.5130208759 | HE16: 14.92800595 | HF16: 0.5431288462 | HG16: 14.70214145 | HH16: 0.5253413966 | HI16: 15.65684243 | HJ16: 0.551657616 | HK16: 16.0226571 | HL16: 0.5524165115 | HM16: 17.01074248 | HN16: 0.5809545922 | HO16: 17.12261255 | HP16: 0.5592167019
C17: 4.744285344 | D17: 0.3186 | E17: 5.368381349 | F17: 0.3385779282 | I17: 1.683771349 | J17: 0.1717670598 | K17: 1.894278001 | L17: 0.1775012873 | M17: 1.898787814 | N17: 0.1798243122 | O17: 1.958384377 | P17: 0.1801050812 | Q17: 2.81676328 | R17: 0.2232858419 | S17: 2.735786551 | T17: 0.2248957362 | U17: 2.999721116 | V17: 0.2392773317 | W17: 3.058737624 | X17: 0.2396019079 | Y17: 3.077667238 | Z17: 0.2426575454 | AA17: 3.176177615 | AB17: 0.2463806224 | AC17: 4.260989708 | AD17: 0.2937240295 | AE17: 4.443293059 | AF17: 0.301350393 | AG17: 4.447075749 | AH17: 0.3012057093 | AI17: 4.721850626 | AJ17: 0.313916139 | AK17: 4.736551934 | AL17: 0.3135698032 | AM17: 4.376128761 | AN17: 0.2893789035 | AO17: 4.716056492 | AP17: 0.3113701746 | AQ17: 4.708198328 | AR17: 0.3102242012 | AS17: 4.698074106 | AT17: 0.3093451351 | AU17: 4.682812714 | AV17: 0.308046782 | AW17: 4.740918221 | AX17: 0.3120167349 | AY17: 4.800444309 | AZ17: 0.3153390994 | BA17: 4.725844173 | BB17: 0.3104098759 | BC17: 4.587105677 | BD17: 0.3009477348 | BE17: 4.8742853 | BF17: 0.3198672845 | BG17: 4.778025517 | BH17: 0.3122414311 | BI17: 4.505070049 | BJ17: 0.2943930945 | BK17: 4.847676132 | BL17: 0.3165373656 | BM17: 4.75967512 | BN17: 0.3108156775 | BO17: 4.67766809 | BP17: 0.3053029733 | BQ17: 4.96382675 | BR17: 0.3236247616 | BS17: 4.809202043 | BT17: 0.3131957345 | BU17: 4.746488657 | BV17: 0.3090192991 | BW17: 4.578880865 | BX17: 0.2984751135 | BY17: 4.765545088 | BZ17: 0.3104006898 | CA17: 4.745201912 | CB17: 0.3089972701 | CC17: 4.772369968 | CD17: 0.3106432586 | CE17: 4.818652892 | CF17: 0.3132569157 | CG17: 4.775125254 | CH17: 0.3105464379 | CI17: 4.890970584 | CJ17: 0.3181439307 | CK17: 4.756105642 | CL17: 0.3092445579 | CM17: 4.758322632 | CN17: 0.3090491953 | CO17: 4.929497989 | CP17: 0.3204135933 | CQ17: 4.992485675 | CR17: 0.3240929257 | CS17: 4.783501486 | CT17: 0.3100562146 | CU17: 4.804757608 | CV17: 0.3110424325 | CW17: 4.953402178 | CX17: 0.3205207576 | CY17: 4.753550009 | CZ17: 0.307612461 | DA17: 4.767687456 | DB17: 0.308316238 | DC17: 4.728461845 | DD17: 0.3056193204 | DE17: 4.844429819 | DF17: 0.3133311956 | DG17: 4.7996178 | DH17: 0.3103782124 | DI17: 4.719754053 | DJ17: 0.3047405237 | DK17: 4.931426569 | DL17: 0.3185782407 | DM17: 4.746706762 | DN17: 0.3065178528 | DO17: 4.704783228 | DP17: 0.3037711293 | DQ17: 4.82270882 | DR17: 0.3111787252 | DS17: 4.843945828 | DT17: 0.312134635 | DU17: 4.852188747 | DV17: 0.3126896925 | DW17: 4.8023452 | DX17: 0.3091892695 | DY17: 4.80023356 | DZ17: 0.3085590935 | EA17: 4.812013523 | EB17: 0.3093049269 | EC17: 4.701005186 | ED17: 0.302026198 | EE17: 4.920630738 | EF17: 0.3159371678 | EG17: 4.828352235 | EH17: 0.3098075036 | EI17: 4.819464486 | EJ17: 0.3091649197 | EK17: 4.88376552 | EL17: 0.3135506271 | EM17: 4.853099518 | EN17: 0.3107444434 | EO17: 4.875342938 | EP17: 0.3121620257 | EQ17: 4.873645184 | ER17: 0.3113903165 | ES17: 4.827237196 | ET17: 0.3080283316 | EU17: 4.814669449 | EV17: 0.307045035 | EW17: 5.003850055 | EX17: 0.3191334122 | EY17: 5.101714447 | EZ17: 0.3251907645 | FA17: 5.024552822 | FB17: 0.3186105031 | FC17: 5.037713694 | FD17: 0.3191696982 | FE17: 5.066127773 | FF17: 0.3197542649 | FG17: 5.21451818 | FH17: 0.3265197925 | FI17: 5.135138498 | FJ17: 0.3212630277 | FK17: 5.40067646 | FL17: 0.3313320849 | FM17: 5.321401924 | FN17: 0.3249236968 | FO17: 5.455959204 | FP17: 0.3322073315 | FQ17: 5.521707522 | FR17: 0.3317715376 | FS17: 5.791057003 | FT17: 0.3367082088 | FU17: 6.539119785 | FV17: 0.3687293317 | FW17: 8.419734472 | FX17: 0.4206593821 | FY17: 9.836032007 | FZ17: 0.4409120542 | GA17: 10.19575037 | GB17: 0.4568044317 | GC17: 10.00074292 | GD17: 0.4464265124 | GE17: 10.47171534 | GF17: 0.4591020845 | GG17: 10.65793001 | GH17: 0.4635989671 | GI17: 10.49339178 | GJ17: 0.4520888899 | GK17: 10.86065118 | GL17: 0.4629819388 | GM17: 11.1318596 | GN17: 0.4715143378 | GO17: 11.34108933 | GP17: 0.4735425434 | GQ17: 11.18766157 | GR17: 0.4651024735 | GS17: 11.54693227 | GT17: 0.4730041891 | GU17: 12.12227873 | GV17: 0.4959834553 | GW17: 11.73629339 | GX17: 0.4787712924 | GY17: 12.11515775 | GZ17: 0.487639959 | HA17: 12.96176714 | HB17: 0.5008678731 | HC17: 14.25374697 | HD17: 0.5133254938 | HE17: 15.09806169 | HF17: 0.5431969679 | HG17: 14.85899818 | HH17: 0.5251363474 | HI17: 15.81251019 | HJ17: 0.5515936645 | HK17: 16.18512343 | HL17: 0.552516371 | HM17: 17.02442816 | HN17: 0.5783212797 | HO17: 17.29223242 | HP17: 0.5590678467
C18: 4.731230038 | D18: 0.3174 | E18: 6.020149822 | F18: 0.3592805901 | I18: 1.717494735 | J18: 0.1719307702 | K18: 1.925861853 | L18: 0.1774736482 | M18: 1.924031401 | N18: 0.1799222284 | O18: 1.987579757 | P18: 0.1800812195 | Q18: 2.861715383 | R18: 0.2234042699 | S18: 2.781494883 | T18: 0.225064708 | U18: 3.04035908 | V18: 0.2396780809 | W18: 3.108655991 | X18: 0.2396334216 | Y18: 3.114712869 | Z18: 0.2429556946 | AA18: 3.215198706 | AB18: 0.2465065865 | AC18: 4.310347223 | AD18: 0.2942993161 | AE18: 4.487915693 | AF18: 0.3020006593 | AG18: 4.496749114 | AH18: 0.3014069324 | AI18: 4.776388007 | AJ18: 0.3144434203 | AK18: 4.788218118 | AL18: 0.3140362744 | AM18: 4.432026285 | AN18: 0.2896519382 | AO18: 4.772685072 | AP18: 0.3120735962 | AQ18: 4.754456787 | AR18: 0.3108831082 | AS18: 4.748524321 | AT18: 0.309815061 | AU18: 4.73075536 | AV18: 0.308679996 | AW18: 4.795075437 | AX18: 0.3126399948 | AY18: 4.860785048 | AZ18: 0.3156415181 | BA18: 4.779857148 | BB18: 0.3109086336 | BC18: 4.632617275 | BD18: 0.3013755682 | BE18: 4.927819363 | BF18: 0.3208465644 | BG18: 4.837409475 | BH18: 0.3128125105 | BI18: 4.559841513 | BJ18: 0.2951290332 | BK18: 4.897180018 | BL18: 0.3172061798 | BM18: 4.810613399 | BN18: 0.311239501 | BO18: 4.723840145 | BP18: 0.306129499 | BQ18: 5.01590762 | BR18: 0.324327723 | BS18: 4.86279422 | BT18: 0.3135262781 | BU18: 4.795805745 | BV18: 0.309403529 | BW18: 4.643581693 | BX18: 0.2987533212 | BY18: 4.818985778 | BZ18: 0.3108210185 | CA18: 4.789528465 | CB18: 0.3098826194 | CC18: 4.827005311 | CD18: 0.3112559709 | CE18: 4.871061055 | CF18: 0.3137183712 | CG18: 4.829987264 | CH18: 0.3111338877 | CI18: 4.943900352 | CJ18: 0.3189569244 | CK18: 4.809711239 | CL18: 0.3097963851 | CM18: 4.807188201 | CN18: 0.3097124237 | CO18: 4.989736885 | CP18: 0.3203094957 | CQ18: 5.048031001 | CR18: 0.3248048786 | CS18: 4.830120458 | CT18: 0.3105405669 | CU18: 4.856362199 | CV18: 0.3117781653 | CW18: 5.005225253 | CX18: 0.321103685 | CY18: 4.80428761 | CZ18: 0.3081226371 | DA18: 4.820119501 | DB18: 0.3089088893 | DC18: 4.77724169 | DD18: 0.305974238 | DE18: 4.904376864 | DF18: 0.3137228805 | DG18: 4.849010105 | DH18: 0.3111059713 | DI18: 4.767223308 | DJ18: 0.3051664486 | DK18: 4.987441387 | DL18: 0.3189736246 | DM18: 4.80664969 | DN18: 0.3067664792 | DO18: 4.754342634 | DP18: 0.3045473528 | DQ18: 4.870527278 | DR18: 0.3121374447 | DS18: 4.897613652 | DT18: 0.3127558028 | DU18: 4.910665179 | DV18: 0.3131208679 | DW18: 4.859420656 | DX18: 0.309536453 | DY18: 4.848777748 | DZ18: 0.3085337355 | EA18: 4.858162137 | EB18: 0.3100125496 | EC18: 4.7574668 | ED18: 0.3027963609 | EE18: 4.975544037 | EF18: 0.3165956596 | EG18: 4.877954045 | EH18: 0.3100785723 | EI18: 4.877191145 | EJ18: 0.3094268939 | EK18: 4.932593097 | EL18: 0.3146527265 | EM18: 4.907137077 | EN18: 0.3113369385 | EO18: 4.93399236 | EP18: 0.3127531363 | EQ18: 4.922598774 | ER18: 0.3120048361 | ES18: 4.881848066 | ET18: 0.3087132639 | EU18: 4.866629261 | EV18: 0.3074385297 | EW18: 5.056206956 | EX18: 0.3200649936 | EY18: 5.158676886 | EZ18: 0.3258889834 | FA18: 5.080135728 | FB18: 0.3193230545 | FC18: 5.094563403 | FD18: 0.3198315211 | FE18: 5.123916369 | FF18: 0.3202031633 | FG18: 5.270216437 | FH18: 0.3272106605 | FI18: 5.192307032 | FJ18: 0.321835799 | FK18: 5.468539419 | FL18: 0.3318884548 | FM18: 5.382169697 | FN18: 0.3253602728 | FO18: 5.507546728 | FP18: 0.3330181004 | FQ18: 5.585108546 | FR18: 0.3324128395 | FS18: 5.85939185 | FT18: 0.3373934592 | FU18: 6.612257492 | FV18: 0.3695556524 | FW18: 8.505441349 | FX18: 0.4221078998 | FY18: 9.934282991 | FZ18: 0.4420920669 | GA18: 10.29253319 | GB18: 0.4586858804 | GC18: 10.10379009 | GD18: 0.447324659 | GE18: 10.58065017 | GF18: 0.459937717 | GG18: 10.75756398 | GH18: 0.4644184298 | GI18: 10.61174275 | GJ18: 0.4529132844 | GK18: 10.9850626 | GL18: 0.4640914892 | GM18: 11.24747488 | GN18: 0.4728764832 | GO18: 11.44683968 | GP18: 0.4749453912 | GQ18: 11.31076219 | GR18: 0.4660353492 | GS18: 11.66329387 | GT18: 0.4739367116 | GU18: 12.24252663 | GV18: 0.4973544443 | GW18: 11.85234162 | GX18: 0.4795719929 | GY18: 12.23610408 | GZ18: 0.4887250234 | HA18: 13.11324609 | HB18: 0.5021184087 | HC18: 14.39009507 | HD18: 0.5146083165 | HE18: 15.27529025 | HF18: 0.5443023152 | HG18: 15.02247203 | HH18: 0.5259329279 | HI18: 15.97474345 | HJ18: 0.5525753076 | HK18: 16.3544416 | HL18: 0.5536599856 | HM18: 17.06485544 | HN18: 0.5759623775 | HO18: 17.4690076 | HP18: 0.5599828804
C19: 4.723233826 | D19: 0.3166 | E19: 6.73862318 | F19: 0.3803034427 | I19: 1.749850376 | J19: 0.1724403481 | K19: 1.956166642 | L19: 0.1777965043 | M19: 1.948251117 | N19: 0.1803586027 | O19: 2.015592805 | P19: 0.1804072396 | Q19: 2.904845445 | R19: 0.2239598279 | S19: 2.825350054 | T19: 0.2256740149 | U19: 3.079346509 | V19: 0.2405099804 | W19: 3.156552012 | X19: 0.2401402107 | Y19: 3.150254244 | Z19: 0.2436949091 | AA19: 3.252637664 | AB19: 0.2470937971 | AC19: 4.357699191 | AD19: 0.2953850467 | AE19: 4.530722976 | AF19: 0.3031612607 | AG19: 4.544408063 | AH19: 0.3021665909 | AI19: 4.828710664 | AJ19: 0.315526181 | AK19: 4.837786195 | AL19: 0.3150669052 | AM19: 4.485656883 | AN19: 0.2904635592 | AO19: 4.827012875 | AP19: 0.3133057483 | AQ19: 4.798833553 | AR19: 0.3120699751 | AS19: 4.796925649 | AT19: 0.3108346622 | AU19: 4.776748676 | AV19: 0.309841422 | AW19: 4.847032405 | AX19: 0.3138028087 | AY19: 4.918678554 | AZ19: 0.3165319759 | BA19: 4.831676952 | BB19: 0.3119575875 | BC19: 4.676280125 | BD19: 0.3023400737 | BE19: 4.979175076 | BF19: 0.322324359 | BG19: 4.894382455 | BH19: 0.3139334719 | BI19: 4.61238723 | BJ19: 0.2963649069 | BK19: 4.944670956 | BL19: 0.3184172875 | BM19: 4.859483552 | BN19: 0.3122191213 | BO19: 4.768132504 | BP19: 0.3074478206 | BQ19: 5.06587106 | BR19: 0.3255793339 | BS19: 4.914211919 | BT19: 0.3144298925 | BU19: 4.84312067 | BV19: 0.3103464699 | BW19: 4.705659214 | BX19: 0.2995943075 | BY19: 4.870257227 | BZ19: 0.3117986414 | CA19: 4.832049028 | CB19: 0.3112554611 | CC19: 4.879421224 | CD19: 0.312406943 | CE19: 4.921341246 | CF19: 0.3147373352 | CG19: 4.882620939 | CH19: 0.3122613862 | CI19: 4.994677568 | CJ19: 0.3202918978 | CK19: 4.861139612 | CL19: 0.3108912993 | CM19: 4.854066872 | CN19: 0.310901237 | CO19: 5.047536738 | CP19: 0.3208203357 | CQ19: 5.101318925 | CR19: 0.3260673318 | CS19: 4.874845141 | CT19: 0.3115725283 | CU19: 4.905868599 | CV19: 0.313034157 | CW19: 5.054942579 | CX19: 0.3222453107 | CY19: 4.852964334 | CZ19: 0.3091737734 | DA19: 4.870421372 | DB19: 0.3100355133 | DC19: 4.824041482 | DD19: 0.3068821382 | DE19: 4.961891782 | DF19: 0.3146879115 | DG19: 4.896393608 | DH19: 0.3123517363 | DI19: 4.812764675 | DJ19: 0.3061378858 | DK19: 5.041183023 | DL19: 0.319946345 | DM19: 4.864162103 | DN19: 0.3075849195 | DO19: 4.801886236 | DP19: 0.3058220271 | DQ19: 4.916398289 | DR19: 0.3135792149 | DS19: 4.94910103 | DT19: 0.313915244 | DU19: 4.966768608 | DV19: 0.3141174511 | DW19: 4.914180638 | DX19: 0.3104477817 | DY19: 4.895355862 | DZ19: 0.309097047 | EA19: 4.902433033 | EB19: 0.3112376456 | EC19: 4.811634042 | ED19: 0.3040691057 | EE19: 5.028226128 | EF19: 0.3177972971 | EG19: 4.925543465 | EH19: 0.3109184754 | EI19: 4.932576819 | EJ19: 0.3102618892 | EK19: 4.979431296 | EL19: 0.3162204358 | EM19: 4.958979553 | EN19: 0.3124692351 | EO19: 4.990260235 | EP19: 0.3138989392 | EQ19: 4.969562381 | ER19: 0.3131536565 | ES19: 4.934239873 | ET19: 0.309923713 | EU19: 4.916480004 | EV19: 0.3083878999 | EW19: 5.106433376 | EX19: 0.3215016982 | EY19: 5.213324737 | EZ19: 0.3271470918 | FA19: 5.133459832 | FB19: 0.3205765324 | FC19: 5.149103603 | FD19: 0.321041686 | FE19: 5.179359514 | FF19: 0.3212270052 | FG19: 5.323651253 | FH19: 0.3284596618 | FI19: 5.247153954 | FJ19: 0.3229727685 | FK19: 5.53364841 | FL19: 0.3330371627 | FM19: 5.440471606 | FN19: 0.3263833684 | FO19: 5.557035443 | FP19: 0.3343782986 | FQ19: 5.645935231 | FR19: 0.3336364023 | FS19: 5.924952523 | FT19: 0.3386625407 | FU19: 6.682425142 | FV19: 0.3710093741 | FW19: 8.587664971 | FX19: 0.4241795857 | FY19: 10.02854497 | FZ19: 0.4439856459 | GA19: 10.38538247 | GB19: 0.461167977 | GC19: 10.20265611 | GD19: 0.4489904414 | GE19: 10.68516599 | GF19: 0.461572333 | GG19: 10.85315515 | GH19: 0.4660465399 | GI19: 10.72529374 | GJ19: 0.4545548446 | GK19: 11.10442706 | GL19: 0.4659875654 | GM19: 11.35839737 | GN19: 0.4749939645 | GO19: 11.54829581 | GP19: 0.477089891 | GQ19: 11.42886997 | GR19: 0.4677755017 | GS19: 11.77493518 | GT19: 0.4756845019 | GU19: 12.35789392 | GV19: 0.4995230618 | GW19: 11.96368291 | GX19: 0.4812337114 | GY19: 12.35214346 | GZ19: 0.4906344038 | HA19: 13.25858172 | HB19: 0.5042099992 | HC19: 14.5209114 | HD19: 0.5167654172 | HE19: 15.44533362 | HF19: 0.5463553393 | HG19: 15.17931932 | HH19: 0.5276666037 | HI19: 16.13039903 | HJ19: 0.5545230183 | HK19: 16.51689446 | HL19: 0.5557547062 | HM19: 17.13025745 | HN19: 0.5739809809 | HO19: 17.63861683 | HP19: 0.5618876725
C20: 4.706693741 | D20: 0.3152 | E20: 7.530628296 | F20: 0.4016514382 | I20: 1.77821701 | J20: 0.1732545108 | K20: 1.982737255 | L20: 0.1784436999 | M20: 1.969484826 | N20: 0.1810980829 | O20: 2.04015407 | P20: 0.1810567295 | Q20: 2.942659326 | R20: 0.2249075078 | S20: 2.863799177 | T20: 0.2266742943 | U20: 3.113524873 | V20: 0.2417056346 | W20: 3.198545437 | X20: 0.241081218 | Y20: 3.181412013 | Z20: 0.2448153021 | AA20: 3.285461406 | AB20: 0.2480946819 | AC20: 4.399209437 | AD20: 0.2968932617 | AE20: 4.568246917 | AF20: 0.3047381722 | AG20: 4.586191552 | AH20: 0.3034231417 | AI20: 4.874579727 | AJ20: 0.3170767021 | AK20: 4.881240453 | AL20: 0.3165782 | AM20: 4.532675721 | AN20: 0.291748014 | AO20: 4.874638585 | AP20: 0.3149668092 | AQ20: 4.837733485 | AR20: 0.3136886488 | AS20: 4.839356905 | AT20: 0.3123213369 | AU20: 4.817066558 | AV20: 0.311436968 | AW20: 4.892579881 | AX20: 0.3154109724 | AY20: 4.969434641 | AZ20: 0.3179383331 | BA20: 4.877105451 | BB20: 0.3134717574 | BC20: 4.714556924 | BD20: 0.3037631127 | BE20: 5.024191904 | BF20: 0.3241809462 | BG20: 4.944328845 | BH20: 0.3155135018 | BI20: 4.658450258 | BJ20: 0.2980005924 | BK20: 4.986301512 | BL20: 0.3200725719 | BM20: 4.902326411 | BN20: 0.3136751754 | BO20: 4.806956864 | BP20: 0.3091511354 | BQ20: 5.109669328 | BR20: 0.3272781964 | BS20: 4.959289586 | BT20: 0.3158333723 | BU20: 4.884600258 | BV20: 0.3117717304 | BW20: 4.760084278 | BX20: 0.3009299407 | BY20: 4.915205728 | BZ20: 0.3132543573 | CA20: 4.869318837 | CB20: 0.3130045757 | CC20: 4.925371281 | CD20: 0.3140029298 | CE20: 4.965420063 | CF20: 0.3162312575 | CG20: 4.928762213 | CH20: 0.3138375903 | CI20: 5.039188566 | CJ20: 0.3220406992 | CK20: 4.90622434 | CL20: 0.3124405971 | CM20: 4.895160816 | CN20: 0.3125193245 | CO20: 5.098214948 | CP20: 0.321904728 | CQ20: 5.148032377 | CR20: 0.3277780089 | CS20: 4.914052206 | CT20: 0.3130684954 | CU20: 4.949266094 | CV20: 0.3147086546 | CW20: 5.098526354 | CX20: 0.3238531471 | CY20: 4.895636683 | CZ20: 0.3106807131 | DA20: 4.914517912 | DB20: 0.3116048375 | DC20: 4.865069778 | DD20: 0.3082694684 | DE20: 5.012315057 | DF20: 0.3161481076 | DG20: 4.937929579 | DH20: 0.314014583 | DI20: 4.852688664 | DJ20: 0.3075761352 | DK20: 5.088297649 | DL20: 0.3214175979 | DM20: 4.914584687 | DN20: 0.3089068687 | DO20: 4.843562334 | DP20: 0.3074918858 | DQ20: 4.956605656 | DR20: 0.3153872323 | DS20: 4.994236761 | DT20: 0.3155190274 | DU20: 5.015953866 | DV20: 0.3155987049 | DW20: 4.962188818 | DX20: 0.311849425 | DY20: 4.936194421 | DZ20: 0.310203392 | EA20: 4.941239647 | EB20: 0.3128809648 | EC20: 4.859118602 | ED20: 0.3057413223 | EE20: 5.074409022 | EF20: 0.3194447309 | EG20: 4.967265082 | EH20: 0.3122591689 | EI20: 4.981134492 | EJ20: 0.311602259 | EK20: 5.020485566 | EL20: 0.3181267485 | EM20: 5.004426978 | EN20: 0.3140496015 | EO20: 5.039588077 | EP20: 0.315506608 | EQ20: 5.010731291 | ER20: 0.3147437074 | ES20: 4.980168145 | ET20: 0.3115616155 | EU20: 4.960183069 | EV20: 0.3098162333 | EW20: 5.150460268 | EX20: 0.3233271327 | EY20: 5.261230755 | EZ20: 0.3288631653 | FA20: 5.180205131 | FB20: 0.3222693873 | FC20: 5.196915772 | FD20: 0.3227021525 | FE20: 5.227965533 | FF20: 0.322742845 | FG20: 5.370493657 | FH20: 0.3301656097 | FI20: 5.295235891 | FJ20: 0.3245818256 | FK20: 5.590728691 | FL20: 0.3346851469 | FM20: 5.491584379 | FN20: 0.3279100986 | FO20: 5.600416068 | FP20: 0.3361777307 | FQ20: 5.699259761 | FR20: 0.3353431004 | FS20: 5.982427686 | FT20: 0.3404126399 | FU20: 6.743938168 | FV20: 0.372972725 | FW20: 8.65974407 | FX20: 0.4267066041 | FY20: 10.11118141 | FZ20: 0.4464393848 | GA20: 10.46677611 | GB20: 0.4640496368 | GC20: 10.28933145 | GD20: 0.4512889078 | GE20: 10.77679554 | GF20: 0.4638735057 | GG20: 10.93695929 | GH20: 0.4683513976 | GI20: 10.82484554 | GJ20: 0.456880581 | GK20: 11.20907437 | GL20: 0.4685165587 | GM20: 11.4556408 | GN20: 0.477695236 | GO20: 11.63723834 | GP20: 0.479802308 | GQ20: 11.53241651 | GR20: 0.4701819541 | GS20: 11.87281167 | GT20: 0.4781059644 | GU20: 12.45903423 | GV20: 0.5023136191 | GW20: 12.06129706 | GX20: 0.4836218252 | GY20: 12.45387504 | GZ20: 0.4932134137 | HA20: 13.3859998 | HB20: 0.5069731962 | HC20: 14.635598 | HD20: 0.5196220404 | HE20: 15.59441589 | HF20: 0.5491897165 | HG20: 15.31683321 | HH20: 0.5301969228 | HI20: 16.26686666 | HJ20: 0.5572790048 | HK20: 16.65932105 | HL20: 0.5586308313 | HM20: 17.21777583 | HN20: 0.5724636863 | HO20: 17.78731938 | HP20: 0.564627908
C21: 4.767916597 | D21: 0.3193 | E21: 8.403690739 | F21: 0.4233296051 | I21: 1.80029654 | J21: 0.1743072994 | K21: 2.003421099 | L21: 0.1793628029 | M21: 1.986012297 | N21: 0.1820807605 | O21: 2.059273743 | P21: 0.1819770712 | Q21: 2.97209357 | R21: 0.2261705343 | S21: 2.893727335 | T21: 0.2279845097 | U21: 3.140125245 | V21: 0.2431681786 | W21: 3.231234208 | X21: 0.2423802088 | Y21: 3.205661959 | Z21: 0.246226106 | AA21: 3.311010748 | AB21: 0.2494281551 | AC21: 4.431515048 | AD21: 0.2987017747 | AE21: 4.597447549 | AF21: 0.3066036418 | AG21: 4.618714531 | AH21: 0.3050747866 | AI21: 4.910279156 | AJ21: 0.3189693698 | AK21: 4.915060488 | AL21: 0.3184477228 | AM21: 4.569273613 | AN21: 0.2934012436 | AO21: 4.911703851 | AP21: 0.3169222096 | AQ21: 4.86800514 | AR21: 0.3156079942 | AS21: 4.872380559 | AT21: 0.3141546434 | AU21: 4.848442691 | AV21: 0.3133373726 | AW21: 4.928027879 | AX21: 0.317334202 | AY21: 5.008941351 | AZ21: 0.3197466551 | BA21: 4.912462299 | BB21: 0.3153284745 | BC21: 4.744346712 | BD21: 0.3055293992 | BE21: 5.059222852 | BF21: 0.3262659164 | BG21: 4.983202285 | BH21: 0.3174245954 | BI21: 4.694298845 | BJ21: 0.2999035764 | BK21: 5.018699028 | BL21: 0.3220379318 | BM21: 4.935671101 | BN21: 0.3154897024 | BO21: 4.837167906 | BP21: 0.3111014512 | BQ21: 5.143754148 | BR21: 0.3292866787 | BS21: 4.994375295 | BT21: 0.317623016 | BU21: 4.91688408 | BV21: 0.3135638444 | BW21: 4.802447688 | BX21: 0.3026520157 | BY21: 4.95018982 | BZ21: 0.3150702327 | CA21: 4.898318516 | CB21: 0.3149882604 | CC21: 4.961132882 | CD21: 0.3159146341 | CE21: 4.999726502 | CF21: 0.3180791094 | CG21: 4.964672993 | CH21: 0.3157348052 | CI21: 5.073827329 | CJ21: 0.3240616513 | CK21: 4.941312926 | CL21: 0.3143187636 | CM21: 4.927140844 | CN21: 0.3144355985 | CO21: 5.137665867 | CP21: 0.3234748216 | CQ21: 5.18438691 | CR21: 0.3297983209 | CS21: 4.944565332 | CT21: 0.3149072738 | CU21: 4.983038877 | CV21: 0.3166660002 | CW21: 5.13244568 | CX21: 0.3257969369 | CY21: 4.928847596 | CZ21: 0.312521373 | DA21: 4.948836681 | DB21: 0.3134897246 | DC21: 4.89700271 | DD21: 0.3100238353 | DE21: 5.051561695 | DF21: 0.3179851724 | DG21: 4.970253021 | DH21: 0.3159597975 | DI21: 4.88376087 | DJ21: 0.3093646785 | DK21: 5.124968319 | DL21: 0.3232681912 | DM21: 4.953832504 | DN21: 0.3106252303 | DO21: 4.875994579 | DP21: 0.3094216468 | DQ21: 4.987892019 | DR21: 0.3174150219 | DS21: 5.029364217 | DT21: 0.3174372242 | DU21: 5.054236257 | DV21: 0.3174446267 | DW21: 4.999555858 | DX21: 0.3136278304 | DY21: 4.967984927 | DZ21: 0.3117631408 | EA21: 4.971438098 | EB21: 0.3148093753 | EC21: 4.896073565 | ED21: 0.3076775376 | EE21: 5.110351256 | EF21: 0.3214044957 | EG21: 4.99973886 | EH21: 0.3139920377 | EI21: 5.018930309 | EJ21: 0.3133394147 | EK21: 5.052429935 | EL21: 0.3202172266 | EM21: 5.03979747 | EN21: 0.3159500056 | EO21: 5.077979636 | EP21: 0.3174458991 | EQ21: 5.042770245 | ER21: 0.3166461721 | ES21: 5.015912045 | ET21: 0.3134942782 | EU21: 4.994197893 | EV21: 0.3116078148 | EW21: 5.184720836 | EX21: 0.3253934112 | EY21: 5.298513881 | EZ21: 0.3308981776 | FA21: 5.216584599 | FB21: 0.3242644743 | FC21: 5.234126453 | FD21: 0.3246783993 | FE21: 5.265796656 | FF21: 0.3246278784 | FG21: 5.406948757 | FH21: 0.3321902986 | FI21: 5.332657532 | FJ21: 0.3265326142 | FK21: 5.635155955 | FL21: 0.3366988977 | FM21: 5.531367163 | FN21: 0.3298167767 | FO21: 5.634174163 | FP21: 0.3382706176 | FQ21: 5.740762098 | FR21: 0.3373946671 | FS21: 6.027161043 | FT21: 0.342501974 | FU21: 6.791813152 | FV21: 0.3752866459 | FW21: 8.715839225 | FX21: 0.4294842311 | FY21: 10.1754976 | FZ21: 0.4492544962 | GA21: 10.53012008 | GB21: 0.4670974048 | GC21: 10.3567942 | GD21: 0.4540338502 | GE21: 10.84811555 | GF21: 0.4666548077 | GG21: 11.00218709 | GH21: 0.4711462772 | GI21: 10.90233304 | GJ21: 0.4597020764 | GK21: 11.29052663 | GL21: 0.4714735849 | GM21: 11.53132709 | GN21: 0.4807614566 | GO21: 11.70646168 | GP21: 0.4828628986 | GQ21: 11.6130131 | GR21: 0.47305975 | GS21: 11.94899397 | GT21: 0.4810049267 | GU21: 12.53775377 | GV21: 0.5055000419 | GW21: 12.13727595 | GX21: 0.4865428636 | GY21: 12.53305715 | GZ21: 0.496253117 | HA21: 13.48517767 | HB21: 0.5101841419 | HC21: 14.72486364 | HD21: 0.5229467596 | HE21: 15.71045931 | HF21: 0.5525758224 | HG21: 15.42387314 | HH21: 0.5333188938 | HI21: 16.37309052 | HJ21: 0.5606199933 | HK21: 16.7701828 | HL21: 0.5620553541 | HM21: 17.32358558 | HN21: 0.5714768069 | HO21: 17.90306825 | HP21: 0.5679815894
C22: 4.830577542 | D22: 0.3229 | E22: 9.366106275 | F22: 0.4453430501 | I22: 1.814300216 | J22: 0.1755134234 | K22: 2.016542493 | L22: 0.1804793532 | M22: 1.996494574 | N22: 0.1832270248 | O22: 2.071402863 | P22: 0.1830937042 | Q22: 2.990763589 | R22: 0.2276465845 | S22: 2.912709925 | T22: 0.2294985151 | U22: 3.156992621 | V22: 0.244779126 | W22: 3.251970075 | X22: 0.2439319465 | Y22: 3.221039495 | Z22: 0.2478130258 | AA22: 3.327215834 | AB22: 0.2509861868 | AC22: 4.451998815 | AD22: 0.3006640706 | AE22: 4.61595921 | AF22: 0.3086065403 | AG22: 4.639342182 | AH22: 0.306987719 | AI22: 4.932916796 | AJ22: 0.3210508512 | AK22: 4.9365064 | AL22: 0.3205240159 | AM22: 4.592485615 | AN22: 0.2952893132 | AO22: 4.935205865 | AP22: 0.3190135345 | AQ22: 4.88719609 | AR22: 0.3176725172 | AS22: 4.893321232 | AT22: 0.3161860581 | AU22: 4.868335166 | AV22: 0.3153886761 | AW22: 4.950504614 | AX22: 0.3194166888 | AY22: 5.033998086 | AZ22: 0.3218104423 | BA22: 4.934883094 | BB22: 0.3173773184 | BC22: 4.763236098 | BD22: 0.307495839 | BE22: 5.081429919 | BF22: 0.3284103576 | BG22: 5.007853481 | BH22: 0.3195119274 | BI22: 4.717028751 | BJ22: 0.3019196903 | BK22: 5.039238848 | BL22: 0.3241541454 | BM22: 4.956816235 | BN22: 0.3175157003 | BO22: 4.856318112 | BP22: 0.3131407649 | BQ22: 5.165364173 | BR22: 0.3314420655 | BS22: 5.016626611 | BT22: 0.3196538372 | BU22: 4.937356693 | BV22: 0.3155776254 | BW22: 4.829317414 | BX22: 0.3046210203 | BY22: 4.9723753 | BZ22: 0.3170991562 | CA22: 4.916698681 | CB22: 0.3170458088 | CC22: 4.983808836 | CD22: 0.317987181 | CE22: 5.021481259 | CF22: 0.3201311888 | CG22: 4.987444002 | CH22: 0.31779933 | CI22: 5.09578763 | CJ22: 0.3261910283 | CK22: 4.963562702 | CL22: 0.3163736408 | CM22: 4.947416126 | CN22: 0.3164948138 | CO22: 5.162693416 | CP22: 0.3254034168 | CQ22: 5.207437297 | CR22: 0.3319645943 | CS22: 4.963912525 | CT22: 0.3169398967 | CU22: 5.004450878 | CV22: 0.3187476214 | CW22: 5.153952616 | CX22: 0.3279192058 | CY22: 4.949906524 | CZ22: 0.3145466337 | DA22: 4.970597376 | DB22: 0.3155374722 | DC22: 4.917253262 | DD22: 0.3120031106 | DE22: 5.076452168 | DF22: 0.3200502777 | DG22: 4.990745281 | DH22: 0.31802979 | DI22: 4.903464008 | DJ22: 0.3113586184 | DK22: 5.148224192 | DL22: 0.3253482008 | DM22: 4.978725931 | DN22: 0.3126007929 | DO22: 4.896555504 | DP22: 0.3114549724 | DQ22: 5.007722741 | DR22: 0.3194983044 | DS22: 5.051637581 | DT22: 0.3195144334 | DU22: 5.078514369 | DV22: 0.3195056712 | DW22: 5.023254504 | DX22: 0.3156389218 | DY22: 4.988151902 | DZ22: 0.313649932 | EA22: 4.990581887 | EB22: 0.3168666488 | EC22: 4.919505059 | ED22: 0.3097208909 | EE22: 5.133141003 | EF22: 0.323517823 | EG22: 5.020333966 | EH22: 0.3159766951 | EI22: 5.042902278 | EJ22: 0.3153326223 | EK22: 5.072676458 | EL22: 0.3223225118 | EM22: 5.062225524 | EN22: 0.3180164881 | EO22: 5.102324657 | EP22: 0.3195597027 | EQ22: 5.063083638 | ER22: 0.3187069244 | ES22: 5.038575816 | ET22: 0.3155651284 | EU22: 5.015768798 | EV22: 0.3136175012 | EW22: 5.206439493 | EX22: 0.3275331361 | EY22: 5.322153656 | EZ22: 0.3330872643 | FA22: 5.239650989 | FB22: 0.3264001633 | FC22: 5.257721057 | FD22: 0.3268103228 | FE22: 5.289788031 | FF22: 0.3267293912 | FG22: 5.430063176 | FH22: 0.3343697001 | FI22: 5.356387198 | FJ22: 0.3286670928 | FK22: 5.663330971 | FL22: 0.3389152729 | FM22: 5.556596992 | FN22: 0.3319489349 | FO22: 5.655574848 | FP22: 0.3404874059 | FQ22: 5.767079971 | FR22: 0.3396248968 | FS22: 6.055528563 | FT22: 0.3447612777 | FU22: 6.822171546 | FV22: 0.3777636767 | FW22: 8.751405942 | FX22: 0.4322874398 | FY22: 10.21628301 | FZ22: 0.4522029165 | GA22: 10.57028264 | GB22: 0.470064369 | GC22: 10.39957891 | GD22: 0.4570028895 | GE22: 10.89334808 | GF22: 0.4696909144 | GG22: 11.04355418 | GH22: 0.474204754 | GI22: 10.95147868 | GJ22: 0.46279075 | GK22: 11.34218506 | GL22: 0.4746190834 | GM22: 11.57932458 | GN22: 0.4839442195 | GO22: 11.75035776 | GP22: 0.4860237117 | GQ22: 11.66413027 | GR22: 0.4761757474 | GS22: 11.99731026 | GT22: 0.4841465319 | GU22: 12.58767514 | GV22: 0.5088241853 | GW22: 12.18546422 | GX22: 0.4897601814 | GY22: 12.58327493 | GZ22: 0.4995072551 | HA22: 13.54808053 | HB22: 0.5135827048 | HC22: 14.78147655 | HD22: 0.5264702257 | HE22: 15.78406273 | HF22: 0.5562393347 | HG22: 15.49176738 | HH22: 0.5367795932 | HI22: 16.44046501 | HJ22: 0.564275317 | HK22: 16.84049835 | HL22: 0.5657508402 | HM22: 17.44306233 | HN22: 0.5710634739 | HO22: 17.97648616 | HP22: 0.5716770213
C23: 4.752785646 | D23: 0.3177 | E23: 10.4270197 | F23: 0.4676969586 | I23: 1.819093542 | J23: 0.1767751698 | K23: 2.021038418 | L23: 0.1817028944 | M23: 2.000082444 | N23: 0.1844440125 | O23: 2.075558801 | P23: 0.1843161655 | Q23: 2.99715685 | R23: 0.2292160775 | S23: 2.919209091 | T23: 0.2310936549 | U23: 3.162760505 | V23: 0.2464079672 | W23: 3.259073143 | X23: 0.2456107185 | Y23: 3.226298825 | Z23: 0.2494474988 | AA23: 3.332763825 | AB23: 0.2526425543 | AC23: 4.459001265 | AD23: 0.3026211759 | AE23: 4.622282196 | AF23: 0.3105846047 | AG23: 4.646403375 | AH23: 0.3090069647 | AI23: 4.940658681 | AJ23: 0.3231525172 | AK23: 4.94384077 | AL23: 0.3226388704 | AM23: 4.60043123 | AN23: 0.2972592627 | AO23: 4.943240635 | AP23: 0.3210713574 | AQ23: 4.893751598 | AR23: 0.3197149625 | AS23: 4.900482435 | AT23: 0.318251008 | AU23: 4.875132415 | AV23: 0.3174246942 | AW23: 4.958189153 | AX23: 0.3214897222 | AY23: 5.042574898 | AZ23: 0.323962499 | BA23: 4.942551437 | BB23: 0.3194523041 | BC23: 4.769694776 | BD23: 0.309503123 | BE23: 5.089014023 | BF23: 0.3304405401 | BG23: 5.016285339 | BH23: 0.3216063944 | BI23: 4.724798536 | BJ23: 0.3038856006 | BK23: 5.046256959 | BL23: 0.3262497696 | BM23: 4.964048759 | BN23: 0.3195890347 | BO23: 4.862856045 | BP23: 0.3151038633 | BQ23: 5.172748686 | BR23: 0.3335697402 | BS23: 5.024240864 | BT23: 0.3217613108 | BU23: 4.944359527 | BV23: 0.317649929 | BW23: 4.83851663 | BX23: 0.3066774374 | BY23: 4.979964833 | BZ23: 0.3191767565 | CA23: 4.922970282 | CB23: 0.3190105305 | CC23: 4.99156207 | CD23: 0.320052665 | CE23: 5.028921894 | CF23: 0.3222212485 | CG23: 4.995230469 | CH23: 0.319863909 | CI23: 5.103290376 | CJ23: 0.328256321 | CK23: 4.971171124 | CL23: 0.318438755 | CM23: 4.954344078 | CN23: 0.3185301451 | CO23: 5.171270012 | CP23: 0.3275342703 | CQ23: 5.215316132 | CR23: 0.3341013304 | CS23: 4.970526391 | CT23: 0.319001693 | CU23: 5.011767425 | CV23: 0.3207848775 | CW23: 5.161304795 | CX23: 0.3300480201 | CY23: 4.957107397 | CZ23: 0.3165924206 | DA23: 4.978037075 | DB23: 0.317582184 | DC23: 4.924180854 | DD23: 0.3140469451 | DE23: 5.084969996 | DF23: 0.3221761211 | DG23: 4.997746197 | DH23: 0.3200568621 | DI23: 4.910201847 | DJ23: 0.3133964178 | DK23: 5.156181218 | DL23: 0.3274891167 | DM23: 4.987248248 | DN23: 0.3146735081 | DO23: 4.903579384 | DP23: 0.3134271346 | DQ23: 5.014491255 | DR23: 0.3214683046 | DS23: 5.059252397 | DT23: 0.3215823718 | DU23: 5.086821333 | DV23: 0.3216148646 | DW23: 5.031364831 | DX23: 0.3177197726 | DY23: 4.995061539 | DZ23: 0.3157109089 | EA23: 4.997120098 | EB23: 0.3188861171 | EC23: 4.927514804 | ED23: 0.3117058419 | EE23: 5.140931973 | EF23: 0.3256135035 | EG23: 5.027381908 | EH23: 0.318052356 | EI23: 5.051108332 | EJ23: 0.3174204038 | EK23: 5.079584883 | EL23: 0.3242720466 | EM23: 5.069894152 | EN23: 0.3200816348 | EO23: 5.11065085 | EP23: 0.3216767709 | EQ23: 5.070025798 | ER23: 0.3207590143 | ES23: 5.046323374 | ET23: 0.317606398 | EU23: 5.023148236 | EV23: 0.3156824795 | EW23: 5.213856721 | EX23: 0.3295729597 | EY23: 5.330234927 | EZ23: 0.3352530785 | FA23: 5.247535598 | FB23: 0.3285034334 | FC23: 5.26578809 | FD23: 0.3289252073 | FE23: 5.297996019 | FF23: 0.3288771314 | FG23: 5.437964322 | FH23: 0.3365272521 | FI23: 5.364502452 | FJ23: 0.3308123388 | FK23: 5.672971167 | FL23: 0.3411547151 | FM23: 5.565229897 | FN23: 0.3341338386 | FO23: 5.662884367 | FP23: 0.3426485047 | FQ23: 5.776081262 | FR23: 0.3418531095 | FS23: 6.065232079 | FT23: 0.3470075156 | FU23: 6.832553894 | FV23: 0.3802031433 | FW23: 8.763562815 | FX23: 0.4348891309 | FY23: 10.23023345 | FZ23: 0.4550457823 | GA23: 10.58401004 | GB23: 0.4727101636 | GC23: 10.41421943 | GD23: 0.4599554919 | GE23: 10.90882868 | GF23: 0.4727358586 | GG23: 11.05770924 | GH23: 0.4772790485 | GI23: 10.96830097 | GJ23: 0.4658963757 | GK23: 11.35986459 | GL23: 0.4776982247 | GM23: 11.5957448 | GN23: 0.4869856761 | GO23: 11.76537039 | GP23: 0.4890286771 | GQ23: 11.68162681 | GR23: 0.4792775069 | GS23: 12.01384622 | GT23: 0.487276266 | GU23: 12.60475403 | GV23: 0.5120167467 | GW23: 12.20195795 | GX23: 0.4930131308 | GY23: 12.60046002 | GZ23: 0.5027121969 | HA23: 13.56961237 | HB23: 0.5168935533 | HC23: 14.80085029 | HD23: 0.5299069885 | HE23: 15.80926324 | HF23: 0.5598834576 | HG23: 15.51501554 | HH23: 0.5402986556 | HI23: 16.46353182 | HJ23: 0.5679488431 | HK23: 16.86457117 | HL23: 0.5694179034 | HM23: 17.57098436 | HN23: 0.5712417522 | HO23: 18.00162522 | HP23: 0.5754148219
C24: 4.609797192 | D24: 0.308 | E24: 11.59651172 | F24: 0.4903965962 | I24: Black | J24: Black | K24: Black | L24: Black | M24: Black | N24: Black | O24: Black | P24: Black | Q24: Black | R24: Black | S24: Black | T24: Black | U24: Black | V24: Black | W24: Black | X24: Black | Y24: Black | Z24: Black | AA24: Black | AB24: Black | AC24: Black | AD24: Black | AE24: Black | AF24: Black | AG24: Black | AH24: Black | AI24: Black | AJ24: Black | AK24: Black | AL24: Black | AM24: Black | AN24: Black | AO24: Black | AP24: Black | AQ24: Black | AR24: Black | AS24: Black | AT24: Black | AU24: Black | AV24: Black | AW24: Black | AX24: Black | AY24: Black | AZ24: Black | BA24: Black | BB24: Black | BC24: Black | BD24: Black | BE24: Black | BF24: Black | BG24: Black | BH24: Black | BI24: Black | BJ24: Black | BK24: Black | BL24: Black | BM24: Black | BN24: Black | BO24: Black | BP24: Black | BQ24: Black | BR24: Black | BS24: Black | BT24: Black | BU24: Black | BV24: Black | BW24: Black | BX24: Black | BY24: Black | BZ24: Black | CA24: Black | CB24: Black | CC24: Black | CD24: Black | CE24: Black | CF24: Black | CG24: Black | CH24: Black | CI24: Black | CJ24: Black | CK24: Black | CL24: Black | CM24: Black | CN24: Black | CO24: Black | CP24: Black | CQ24: Black | CR24: Black | CS24: Black | CT24: Black | CU24: Black | CV24: Black | CW24: Black | CX24: Black | CY24: Black | CZ24: Black | DA24: Black | DB24: Black | DC24: Black | DD24: Black | DE24: Black | DF24: Black | DG24: Black | DH24: Black | DI24: Black | DJ24: Black | DK24: Black | DL24: Black | DM24: Black | DN24: Black | DO24: Black | DP24: Black | DQ24: Black | DR24: Black | DS24: Black | DT24: Black | DU24: Black | DV24: Black | DW24: Black | DX24: Black | DY24: Black | DZ24: Black | EA24: Black | EB24: Black | EC24: Black | ED24: Black | EE24: Black | EF24: Black | EG24: Black | EH24: Black | EI24: Black | EJ24: Black | EK24: Black | EL24: Black | EM24: Black | EN24: Black | EO24: Black | EP24: Black | EQ24: Black | ER24: Black | ES24: Black | ET24: Black | EU24: Black | EV24: Black | EW24: Black | EX24: Black | EY24: Black | EZ24: Black | FA24: Black | FB24: Black | FC24: Black | FD24: Black | FE24: Black | FF24: Black | FG24: Black | FH24: Black | FI24: Black | FJ24: Black | FK24: Black | FL24: Black | FM24: Black | FN24: Black | FO24: Black | FP24: Black | FQ24: Black | FR24: Black | FS24: Black | FT24: Black | FU24: Black | FV24: Black | FW24: Black | FX24: Black | FY24: Black | FZ24: Black | GA24: Black | GB24: Black | GC24: Black | GD24: Black | GE24: Black | GF24: Black | GG24: Black | GH24: Black | GI24: Black | GJ24: Black | GK24: Black | GL24: Black | GM24: Black | GN24: Black | GO24: Black | GP24: Black | GQ24: Black | GR24: Black | GS24: Black | GT24: Black | GU24: Black | GV24: Black | GW24: Black | GX24: Black | GY24: Black | GZ24: Black | HA24: Black | HB24: Black | HC24: Black | HD24: Black | HE24: Black | HF24: Black | HG24: Black | HH24: Black | HI24: Black | HJ24: Black | HK24: Black | HL24: Black | HM24: 17.70176086 | HN24: 0.5720038499 | HO24: Black | HP24: Black
C25: 4.900930812 | D25: 0.327 | E25: 12.88569476 | F25: 0.5134473101 | HM25: 17.82967627 | HN25: 0.5733164599
C26: 4.807649477 | D26: 0.3196 | E26: 14.30681852 | F26: 0.5368545301 | HM26: 17.94914009 | HN26: 0.5751222147
C27: 4.53236792 | D27: 0.3013 | E27: 15.87338641 | F27: 0.5606237699 | HM27: 18.05493116 | HN27: 0.5773421942
C28: 4.872333121 | D28: 0.3239 | E28: 17.60028383 | F28: 0.5847606285 | HM28: 18.1424259 | HN28: 0.5798793746
C29: 4.785085415 | D29: 0.3181 | E29: 19.5039196 | F29: 0.6092707917 | HM29: 18.20780039 | HN29: 0.5826228691
C30: 4.700638051 | D30: 0.3122 | E30: 21.60238193 | F30: 0.6341600331 | HM30: 18.24819743 | HN30: 0.5854527736
C31: 4.989771032 | D31: 0.3311 | E31: 22 | F31: 0.6385043823 | HM31: 18.26185149 | HN31: 0.5882454078
C32: 4.835953483 | D32: 0.3206 | E32: IsoLine | F32: IsoLine | HM32: Black | HN32: Black
C33: 4.771091974 | D33: 0.3163
C34: 4.61120081 | D34: 0.3057
C35: 4.792209674 | D35: 0.3177
C36: 4.767236159 | D36: 0.3159
C37: 4.799609694 | D37: 0.3179
C38: 4.844794349 | D38: 0.3206
C39: 4.802481734 | D39: 0.3178
C40: 4.917330259 | D40: 0.3254
C41: 4.782836592 | D41: 0.3165
C42: 4.782662863 | D42: 0.3162
C43: 4.959630464 | D43: 0.3279
C44: 5.020166678 | D44: 0.3316
C45: 4.806738228 | D45: 0.3173
C46: 4.830463102 | D46: 0.3182
C47: 4.979232864 | D47: 0.328
C48: 4.778849102 | D48: 0.3148
C49: 4.793825628 | D49: 0.3155
C50: 4.752800813 | D50: 0.3128
C51: 4.874355821 | D51: 0.3208
C52: 4.82421438 | D52: 0.3175
C53: 4.743426352 | D53: 0.3119
C54: 4.95938228 | D54: 0.3261
C55: 4.776648538 | D55: 0.3138
C56: 4.729460486 | D56: 0.3107
C57: 4.846488894 | D57: 0.3181
C58: 4.870699243 | D58: 0.3194
C59: 4.881373913 | D59: 0.3201
C60: 4.830839514 | D60: 0.3165
C61: 4.824509443 | D61: 0.3158
C62: 4.834984463 | D62: 0.3164
C63: 4.72914612 | D63: 0.309
C64: 4.948003044 | D64: 0.3233
C65: 4.853114028 | D65: 0.3171
C66: 4.848295122 | D66: 0.3165
C67: 4.908037147 | D67: 0.3204
C68: 4.880041992 | D68: 0.318
C69: 4.904595662 | D69: 0.3196
C70: 4.898035332 | D70: 0.3186
C71: 4.854456979 | D71: 0.3152
C72: 4.840595903 | D72: 0.3143
C73: 5.029909279 | D73: 0.3263
C74: 5.130106675 | D74: 0.3328
C75: 5.052254112 | D75: 0.326
C76: 5.0660559 | D76: 0.3266
C77: 5.0949652 | D77: 0.3273
C78: 5.24227757 | D78: 0.3341
C79: 5.163650122 | D79: 0.3288
C80: 5.434545715 | D80: 0.3392
C81: 5.35173223 | D81: 0.3326
C82: 5.481640008 | D82: 0.3398
C83: 5.553332093 | D83: 0.3396
C84: 5.825148725 | D84: 0.3446
C85: 6.575596474 | D85: 0.3773
C86: 8.462445667 | D86: 0.4298
C87: 9.885044628 | D87: 0.4509
C88: 10.24397936 | D88: 0.4661
C89: 10.05218001 | D89: 0.4568
C90: 10.5261039 | D90: 0.4698
C91: 10.70766153 | D91: 0.4744
C92: 10.55249413 | D92: 0.463
C93: 10.92276536 | D93: 0.4738
C94: 11.18954937 | D94: 0.4822
C95: 11.39383376 | D95: 0.4841
C96: 11.24913283 | D96: 0.476
C97: 11.60502869 | D97: 0.484
C98: 12.18228261 | D98: 0.5072
C99: 11.79424141 | D99: 0.4902
C100: 12.17553476 | D100: 0.4989
C101: 13.03741575 | D101: 0.5125
C102: 14.32181345 | D102: 0.5254
C103: 15.18659957 | D103: 0.556
C104: 14.9406768 | D104: 0.5375
C105: 15.89355169 | D105: 0.5645
C106: 16.26969936 | D106: 0.5654
C107: 17.63629698 | D107: 0.5846
C108: 17.3805544 | D108: 0.5722
C109: IsoLine | D109: IsoLine

Sheet Publication File
A1: Beauchamp, B., Alonso-Torres, D., Piepjohn, K., Thériault, P., and Grasby, S.E., 2018, Early Carboniferous syn-rift sedimentation in the Sverdrup Basin (Yelverton Pass area, northern Ellesmere Island, Arctic Canada): A solution to the Okse Bay problem, in Piepjohn, K., Strauss, J.V., Reinhardt, L., and McClelland, W.C., eds., Circum-Arctic Structural Events: Tectonic Evolution of the Arctic Margins and Trans-Arctic Links with Adjacent Orogens: Geological Society of America Special Paper 541, https://doi.org/10.1130/2018.2541(13).
A2: GSA Data Repository Item 2018410
A4: TABLE DR1: DETRITAL ZIRCON GEOCHRONOLOGY DATA
A5: 1999-36_01 | C5: f206c | D5: 207Pb CPS | E5: 206Pb CPS | F5: U (ppm)1 | G5: U/Th | H5: 206Pb/204Pb | I5: 1s % | J5: Data for Tera-Wasserburg plot2 | N5: 208Pb/206Pb | O5: 2sx (%) | P5: Data for Wetherill plot2 | U5: 208Pb/232Th | V5: 2sx (%) | W5: Dates | AF5: 208Pb/232Th | AG5: 2sx (ABS) | AH5: 2stotal (ABS) | AI5: Prob. Conc. (%) | AJ5: % conc3 | AK5: Comments | AL5: Accepted Ages4
A6: Sample | B6: Spot | J6: 238U/206Pb | K6: 2sx (%) | L6: 207Pb/206Pb | M6: 2sx (%) | P6: 207Pb/235Pb | Q6: 2sx (%) | R6: 206Pb/238U | S6: 2sx (%) | T6: Rho | W6: 207Pb/206Pb | X6: 2sx (ABS) | Y6: 2stotal (ABS) | Z6: 206Pb/238U | AA6: 2sx (ABS) | AB6: 2stotal (ABS) | AC6: 207Pb/235Pb | AD6: 2sx (ABS) | AE6: 2stotal (ABS) | AL6: Date (Ma) | AM6: 2sx (ABS) | AN6: 2sx (%) | AO6: 2stotal (ABS) | AP6: 2stotal (%)
A7: UK010 | B7: UK010_1 | C7: NA | D7: 929 | E7: 16980 | F7: 1486 | G7: 1.746180964 | H7: NA | I7: NA | J7: 17.6366843 | K7: 1.522975431 | L7: 0.0561 | M7: 4.407334838 | N7: NA | O7: NA | P7: 0.4385783556 | Q7: 4.663052062 | R7: 0.0567 | S7: 1.522975431 | T7: 0.076781 | U7: NA | V7: NA | W7: NA | X7: NA | Y7: NA | Z7: 355.5251859 | AA7: =IF(Z7="","",AVERAGE(([1]!AgePb6U8($R7)-[1]!AgePb6U8($R7-$R7*S7/100)),([1]!AgePb6U8($R7+$R7*S7/100)-[1]!AgePb6U8($R7)))) -> 5.267960999 | AB7: =IF(AA7="","",AVERAGE(([1]!AgePb6U8($R7)-[1]!AgePb6U8($R7-$R7*#REF!/100)),([1]!AgePb6U8($R7+$R7*#REF!/100)-[1]!AgePb6U8($R7)))) -> 7.042305072 | AC7: 369.2495028 | AD7: =IF(AC7="","",AVERAGE(([1]!AgePb7U5($P7)-[1]!AgePb7U5($P7-$P7*Q7/100)),([1]!AgePb7U5($P7+$P7*Q7/100)-[1]!AgePb7U5($P7)))) -> 14.43587483 | AE7: =IF(AD7="","",AVERAGE(([1]!AgePb7U5($P7)-[1]!AgePb7U5($P7-$P7*#REF!/100)),([1]!AgePb7U5($P7+$P7*#REF!/100)-[1]!AgePb7U5($P7)))) -> 15.31894455 | AF7: NA | AG7: NA | AH7: NA | AI7: 0.06843421994 | AJ7: 22.09004193 | AK7: DO | AL7: 355.5251859 | AM7: 5.267960999 | AN7: 1.481740593 | AO7: 7.042305072 | AP7: 1.973527947
A8: UK010 | B8: UK010_79 | C8: NA | D8: 109 | E8: 2100 | F8: 161.2 | G8: 0.7228699552 | H8: NA | I8: NA | J8: 17.54385965 | K8: 2.575239009 | L8: 0.0532 | M8: 10.94406543 | N8: NA | O8: NA | P8: 0.418107312 | Q8: 11.24297221 | R8: 0.057 | S8: 2.575239009 | T8: 0.096176 | U8: NA | V8: NA | W8: NA | X8: NA | Y8: NA | Z8: 357.3550807 | AA8: =IF(Z8="","",AVERAGE(([1]!AgePb6U8($R8)-[1]!AgePb6U8($R8-$R8*S8/100)),([1]!AgePb6U8($R8+$R8*S8/100)-[1]!AgePb6U8($R8)))) -> 8.952326139 | AB8: =IF(AA8="","",AVERAGE(([1]!AgePb6U8($R8)-[1]!AgePb6U8($R8-$R8*#REF!/100)),([1]!AgePb6U8($R8+$R8*#REF!/100)-[1]!AgePb6U8($R8)))) -> 10.10970079 | AC8: 354.6967596 | AD8: =IF(AC8="","",AVERAGE(([1]!AgePb7U5($P8)-[1]!AgePb7U5($P8-$P8*Q8/100)),([1]!AgePb7U5($P8+$P8*Q8/100)-[1]!AgePb7U5($P8)))) -> 33.67044515 | AE8: =IF(AD8="","",AVERAGE(([1]!AgePb7U5($P8)-[1]!AgePb7U5($P8-$P8*#REF!/100)),([1]!AgePb7U5($P8+$P8*#REF!/100)-[1]!AgePb7U5($P8)))) -> 34.03384538 | AF8: NA | AG8: NA | AH8: NA | AI8: 0.8755419895 | AJ8: -5.934381279 | AK8: DO | AL8: 357.3550807 | AM8: 8.952326139 | AN8: 2.505162686 | AO8: 10.10970079 | AP8: 2.82997236
A9: UK010 | B9: UK010_59 | C9: NA | D9: 837 | E9: 15380 | F9: 1133 | G9: 1.228850325 | H9: NA | I9: NA | J9: 17.36111111 | K9: 1.445479063 | L9: 0.0563 | M9: 3.606687723 | N9: NA | O9: NA | P9: 0.4471282944 | Q9: 3.885563801 | R9: 0.0576 | S9: 1.445479063 | T9: 0.28662 | U9: NA | V9: NA | W9: NA | X9: NA | Y9: NA | Z9: 361.0133126 | AA9: =IF(Z9="","",AVERAGE(([1]!AgePb6U8($R9)-[1]!AgePb6U8($R9-$R9*S9/100)),([1]!AgePb6U8($R9+$R9*S9/100)-[1]!AgePb6U8($R9)))) -> 5.074942688 | AB9: =IF(AA9="","",AVERAGE(([1]!AgePb6U8($R9)-[1]!AgePb6U8($R9-$R9*#REF!/100)),([1]!AgePb6U8($R9+$R9*#REF!/100)-[1]!AgePb6U8($R9)))) -> 6.946816663 | AC9: 375.2663919 | AD9: =IF(AC9="","",AVERAGE(([1]!AgePb7U5($P9)-[1]!AgePb7U5($P9-$P9*Q9/100)),([1]!AgePb7U5($P9+$P9*Q9/100)-[1]!AgePb7U5($P9)))) -> 12.19073637 | AE9: =IF(AD9="","",AVERAGE(([1]!AgePb7U5($P9)-[1]!AgePb7U5($P9-$P9*#REF!/100)),([1]!AgePb7U5($P9+$P9*#REF!/100)-[1]!AgePb7U5($P9)))) -> 13.25142479 | AF9: NA | AG9: NA | AH9: NA | AI9: 0.01622759028 | AJ9: 22.23207236 | AL9: 361.0133126 | AM9: 5.074942688 | AN9: 1.405749459 | AO9: 6.946816663 | AP9: 1.920085924
A10: UK010 | B10: UK010_80 | C10: NA | D10: 451 | E10: 7980 | F10: 647 | G10: 0.6602040816 | H10: NA | I10: NA | J10: 17.30103806 | K10: 1.780808883 | L10: 0.0561 | M10: 5.572165127 | N10: NA | O10: NA | P10: 0.4470869304 | Q10: 5.849812346 | R10: 0.0578 | S10: 1.780808883 | T10: 0.21616 | U10: NA | V10: NA | W10: NA | X10: NA | Y10: NA | Z10: 362.232262 | AA10: =IF(Z10="","",AVERAGE(([1]!AgePb6U8($R10)-[1]!AgePb6U8($R10-$R10*S10/100)),([1]!AgePb6U8($R10+$R10*S10/100)-[1]!AgePb6U8($R10)))) -> 6.272778201 | AB10: =IF(AA10="","",AVERAGE(([1]!AgePb6U8($R10)-[1]!AgePb6U8($R10-$R10*#REF!/100)),([1]!AgePb6U8($R10+$R10*#REF!/100)-[1]!AgePb6U8($R10)))) -> 7.873941235 | AC10: 375.2373683 | AD10: =IF(AC10="","",AVERAGE(([1]!AgePb7U5($P10)-[1]!AgePb7U5($P10-$P10*Q10/100)),([1]!AgePb7U5($P10+$P10*Q10/100)-[1]!AgePb7U5($P10)))) -> 18.35339842 | AE10: =IF(AD10="","",AVERAGE(([1]!AgePb7U5($P10)-[1]!AgePb7U5($P10-$P10*#REF!/100)),([1]!AgePb7U5($P10+$P10*#REF!/100)-[1]!AgePb7U5($P10)))) -> 19.07450019 | AF10: NA | AG10: NA | AH10: NA | AI10: 0.1523195367 | AJ10: 20.62025008 | AK10: DO | AL10: 362.232262 | AM10: 6.272778201 | AN10: 1.731700585 | AO10: 7.873941235 | AP10: 2.170406654
A11: UK010 | B11: UK010_167 | C11: NA | D11: 1533 | E11: 29800 | F11: 2040 | G11: 0.7472527473 | H11: NA | I11: NA | J11: 17.24137931 | K11: 1.266637201 | L11: 0.0532 | M11: 2.812665756 | N11: NA | O11: NA | P11: 0.425442528 | Q11: 3.084713675 | R11: 0.058 | S11: 1.266637201 | T11: 0.18182 | U11: NA | V11: NA | W11: NA | X11: NA | Y11: NA | Z11: 363.4509811 | AA11: =IF(Z11="","",AVERAGE(([1]!AgePb6U8($R11)-[1]!AgePb6U8($R11-$R11*S11/100)),([1]!AgePb6U8($R11+$R11*S11/100)-[1]!AgePb6U8($R11)))) -> 4.476234602 | AB11: =IF(AA11="","",AVERAGE(([1]!AgePb6U8($R11)-[1]!AgePb6U8($R11-$R11*#REF!/100)),([1]!AgePb6U8($R11+$R11*#REF!/100)-[1]!AgePb6U8($R11)))) -> 6.544942396 | AC11: 359.9353318 | AD11: =IF(AC11="","",AVERAGE(([1]!AgePb7U5($P11)-[1]!AgePb7U5($P11-$P11*Q11/100)),([1]!AgePb7U5($P11+$P11*Q11/100)-[1]!AgePb7U5($P11)))) -> 9.348635552 | AE11: =IF(AD11="","",AVERAGE(([1]!AgePb7U5($P11)-[1]!AgePb7U5($P11-$P11*#REF!/100)),([1]!AgePb7U5($P11+$P11*#REF!/100)-[1]!AgePb7U5($P11)))) -> 10.6101848 | AF11: NA | AG11: NA | AH11: NA | AI11: 0.4634575043 | AJ11: -7.741450692 | AL11: 363.4509811 | AM11: 4.476234602 | AN11: 1.231592384 | AO11: 6.544942396 | AP11: 1.80314179
A12: UK010 | B12: UK010_296 | C12: NA | D12: 548 | E12: 10720 | F12: 718 | G12: 1.578021978 | H12: NA | I12: NA | J12: 17.12328767 | K12: 1.768302609 | L12: 0.0521 | M12: 4.810616796 | N12: NA | O12: NA | P12: 0.4195192032 | Q12: 5.125322241 | R12: 0.0584 | S12: 1.768302609 | T12: 0.41011 | U12: NA | V12: NA | W12: NA | X12: NA | Y12: NA | Z12: 365.8877281 | AA12: =IF(Z12="","",AVERAGE(([1]!AgePb6U8($R12)-[1]!AgePb6U8($R12-$R12*S12/100)),([1]!AgePb6U8($R12+$R12*S12/100)-[1]!AgePb6U8($R12)))) -> 6.289816087 | AB12: =IF(AA12="","",AVERAGE(([1]!AgePb6U8($R12)-[1]!AgePb6U8($R12-$R12*#REF!/100)),([1]!AgePb6U8($R12+$R12*#REF!/100)-[1]!AgePb6U8($R12)))) -> 7.915774684 | AC12: 355.7071889 | AD12: =IF(AC12="","",AVERAGE(([1]!AgePb7U5($P12)-[1]!AgePb7U5($P12-$P12*Q12/100)),([1]!AgePb7U5($P12+$P12*Q12/100)-[1]!AgePb7U5($P12)))) -> 15.38136497 | AE12: =IF(AD12="","",AVERAGE(([1]!AgePb7U5($P12)-[1]!AgePb7U5($P12-$P12*#REF!/100)),([1]!AgePb7U5($P12+$P12*#REF!/100)-[1]!AgePb7U5($P12)))) -> 16.16411722 | AF12: NA | AG12: NA | AH12: NA | AI12: 0.144612711 | AJ12: -26.25470165 | AL12: 365.8877281 | AM12: 6.289816087 | AN12: 1.719056313 | AO12: 7.915774684 | AP12: 2.163531699
A13: UK010 | B13: UK010_260 | C13: NA | D13: 614 | E13: 12040 | F13: 796 | G13: 1.253543307 | H13: NA | I13: NA | J13: 17.06484642 | K13: 1.432670845 | L13: 0.0531 | M13: 4.701221336 | N13: NA | O13: NA | P13: 0.4290356808 | Q13: 4.91467474 | R13: 0.0586 | S13: 1.432670845 | T13: 0.11244 | U13: NA | V13: NA | W13: NA | X13: NA | Y13: NA | Z13: 367.1057563 | AA13: =IF(Z13="","",AVERAGE(([1]!AgePb6U8($R13)-[1]!AgePb6U8($R13-$R13*S13/100)),([1]!AgePb6U8($R13+$R13*S13/100)-[1]!AgePb6U8($R13)))) -> 5.112466153 | AB13: =IF(AA13="","",AVERAGE(([1]!AgePb6U8($R13)-[1]!AgePb6U8($R13-$R13*#REF!/100)),([1]!AgePb6U8($R13+$R13*#REF!/100)-[1]!AgePb6U8($R13)))) -> 7.027424158 | AC13: 362.4916157 | AD13: =IF(AC13="","",AVERAGE(([1]!AgePb7U5($P13)-[1]!AgePb7U5($P13-$P13*Q13/100)),([1]!AgePb7U5($P13+$P13*Q13/100)-[1]!AgePb7U5($P13)))) -> 14.98326813 | AE13: =IF(AD13="","",AVERAGE(([1]!AgePb7U5($P13)-[1]!AgePb7U5($P13-$P13*#REF!/100)),([1]!AgePb7U5($P13+$P13*#REF!/100)-[1]!AgePb7U5($P13)))) -> 15.81076784 | AF13: NA | AG13: NA | AH13: NA | AI13: 0.5450139657 | AJ13: -10.21808329 | AL13: 367.1057563 | AM13: 5.112466153 | AN13: 1.392641239 | AO13: 7.027424158 | AP13: 1.916100817
A14: UK010 | B14: UK010_217 | C14: NA | D14: 720 | E14: 14400 | F14: 980 | G14: 1.225 | H14: NA | I14: NA | J14: 17.00680272 | K14: 1.556567536 | L14: 0.0521 | M14: 4.205107844 | N14: NA | O14: NA | P14: 0.4223926224 | Q14: 4.483952996 | R14: 0.0588 | S14: 1.556567536 | T14: 0.15421 | U14: NA | V14: NA | W14: NA | X14: NA | Y14: NA | Z14: 368.3235544 | AA14: =IF(Z14="","",AVERAGE(([1]!AgePb6U8($R14)-[1]!AgePb6U8($R14-$R14*S14/100)),([1]!AgePb6U8($R14+$R14*S14/100)-[1]!AgePb6U8($R14)))) -> 5.572494848 | AB14: =IF(AA14="","",AVERAGE(([1]!AgePb6U8($R14)-[1]!AgePb6U8($R14-$R14*#REF!/100)),([1]!AgePb6U8($R14+$R14*#REF!/100)-[1]!AgePb6U8($R14)))) -> 7.37903767 | AC14: 357.7604702 | AD14: =IF(AC14="","",AVERAGE(([1]!AgePb7U5($P14)-[1]!AgePb7U5($P14-$P14*Q14/100)),([1]!AgePb7U5($P14+$P14*Q14/100)-[1]!AgePb7U5($P14)))) -> 13.52114482 | AE14: =IF(AD14="","",AVERAGE(([1]!AgePb7U5($P14)-[1]!AgePb7U5($P14-$P14*#REF!/100)),([1]!AgePb7U5($P14+$P14*#REF!/100)-[1]!AgePb7U5($P14)))) -> 14.41354577 | AF14: NA | AG14: NA | AH14: NA | AI14: 0.1243946979 | AJ14: -27.09521773 | AL14: 368.3235544 | AM14: 5.572494848 | AN14: 1.512934696 | AO14: 7.37903767 | AP14: 2.009396376
A15: UK010 | B15: UK010_113 | C15: NA | D15: 200 | E15: 3740 | F15: 271 | G15: 1.737179487 | H15: NA | I15: NA | J15: 16.92047377 | K15: 1.895841495 | L15: 0.0565 | M15: 7.881759304 | N15: NA | O15: NA | P15: 0.460402002 | Q15: 8.10656183 | R15: 0.0591 | S15: 1.895841495 | T15: 0.28912 | U15: NA | V15: NA | W15: NA | X15: NA | Y15: NA | Z15: 370.1498203 | AA15: =IF(Z15="","",AVERAGE(([1]!AgePb6U8($R15)-[1]!AgePb6U8($R15-$R15*S15/100)),([1]!AgePb6U8($R15+$R15*S15/100)-[1]!AgePb6U8($R15)))) -> 6.819788479 | AB15: =IF(AA15="","",AVERAGE(([1]!AgePb6U8($R15)-[1]!AgePb6U8($R15-$R15*#REF!/100)),([1]!AgePb6U8($R15+$R15*#REF!/100)-[1]!AgePb6U8($R15)))) -> 8.374544466 | AC15: 384.5374845 | AD15: =IF(AC15="","",AVERAGE(([1]!AgePb7U5($P15)-[1]!AgePb7U5($P15-$P15*Q15/100)),([1]!AgePb7U5($P15+$P15*Q15/100)-[1]!AgePb7U5($P15)))) -> 25.95529515 | AE15: =IF(AD15="","",AVERAGE(([1]!AgePb7U5($P15)-[1]!AgePb7U5($P15-$P15*#REF!/100)),([1]!AgePb7U5($P15+$P15*#REF!/100)-[1]!AgePb7U5($P15)))) -> 26.49133703 | AF15: NA | AG15: NA | AH15: NA | AI15: 0.2502971266 | AJ15: 21.59015007 | AL15: 370.1498203 | AM15: 6.819788479 | AN15: 1.842440035 | AO15: 8.374544466 | AP15: 2.26322595
A16: UK010 | B16: UK010_58 | C16: NA | D16: 355 | E16: 6800 | F16: 506 | G16: 1.065263158 | H16: NA | I16: NA | J16: 16.75041876 | K16: 1.607655419 | L16: 0.0535 | M16: 5.992356147 | N16: NA | O16: NA | P16: 0.440381826 | Q16: 6.204263706 | R16: 0.0597 | S16: 1.607655419 | T16: 0.056576 | U16: NA | V16: NA | W16: NA | X16: NA | Y16: NA | Z16: 373.8008006 | AA16: =IF(Z16="","",AVERAGE(([1]!AgePb6U8($R16)-[1]!AgePb6U8($R16-$R16*S16/100)),([1]!AgePb6U8($R16+$R16*S16/100)-[1]!AgePb6U8($R16)))) -> 5.838518891 | AB16: =IF(AA16="","",AVERAGE(([1]!AgePb6U8($R16)-[1]!AgePb6U8($R16-$R16*#REF!/100)),([1]!AgePb6U8($R16+$R16*#REF!/100)-[1]!AgePb6U8($R16)))) -> 7.626702014 | AC16: 370.5216382 | AD16: =IF(AC16="","",AVERAGE(([1]!AgePb7U5($P16)-[1]!AgePb7U5($P16-$P16*Q16/100)),([1]!AgePb7U5($P16+$P16*Q16/100)-[1]!AgePb7U5($P16)))) -> 19.26300386 | AE16: =IF(AD16="","",AVERAGE(([1]!AgePb7U5($P16)-[1]!AgePb7U5($P16-$P16*#REF!/100)),([1]!AgePb7U5($P16+$P16*#REF!/100)-[1]!AgePb7U5($P16)))) -> 19.93726911 | AF16: NA | AG16: NA | AH16: NA | AI16: 0.7402183627 | AJ16: -6.7814895 | AL16: 373.8008006 | AM16: 5.838518891 | AN16: 1.561933222 | AO16: 7.626702014 | AP16: 2.04158376
A17: UK010 | B17: UK010_46 | C17: NA | D17: 228 | E17: 4470 | F17: 343 | G17: 1.294339623 | H17: NA | I17: NA | J17: 16.72240803 | K17: 1.951300812 | L17: 0.051 | M17: 7.844289302 | N17: NA | O17: NA | P17: 0.420506424 | Q17: 8.083343957 | R17: 0.0598 | S17: 1.951300812 | T17: 0.06814 | U17: NA | V17: NA | W17: NA | X17: NA | Y17: NA | Z17: 374.4090964 | AA17: =IF(Z17="","",AVERAGE(([1]!AgePb6U8($R17)-[1]!AgePb6U8($R17-$R17*S17/100)),([1]!AgePb6U8($R17+$R17*S17/100)-[1]!AgePb6U8($R17)))) -> 7.097736545 | AB17: =IF(AA17="","",AVERAGE(([1]!AgePb6U8($R17)-[1]!AgePb6U8($R17-$R17*#REF!/100)),([1]!AgePb6U8($R17+$R17*#REF!/100)-[1]!AgePb6U8($R17)))) -> 8.633210895 | AC17: 356.4131032 | AD17: =IF(AC17="","",AVERAGE(([1]!AgePb7U5($P17)-[1]!AgePb7U5($P17-$P17*Q17/100)),([1]!AgePb7U5($P17+$P17*Q17/100)-[1]!AgePb7U5($P17)))) -> 24.301513 | AE17: =IF(AD17="","",AVERAGE(([1]!AgePb7U5($P17)-[1]!AgePb7U5($P17-$P17*#REF!/100)),([1]!AgePb7U5($P17+$P17*#REF!/100)-[1]!AgePb7U5($P17)))) -> 24.80623013 | AF17: NA | AG17: NA | AH17: NA | AI17: 0.1442791888 | AJ17: -55.46621298 | AL17: 374.4090964 | AM17: 7.097736545 | AN17: 1.895716908 | AO17: 8.633210895 | AP17: 2.312982373
A18: UK010 | B18: UK010_292 | C18: NA | D18: 394 | E18: 7480 | F18: 463 | G18: 1.322857143 | H18: NA | I18: NA | J18: 16.58374793 | K18: 1.663482185 | L18: 0.0547 | M18: 5.832733113 | N18: NA | O18: NA | P18: 0.4547847708 | Q18: 6.065306962 | R18: 0.0603 | S18: 1.663482185 | T18: 0.26633 | U18: NA | V18: NA | W18: NA | X18: NA | Y18: NA | Z18: 377.4497144 | AA18: =IF(Z18="","",AVERAGE(([1]!AgePb6U8($R18)-[1]!AgePb6U8($R18-$R18*S18/100)),([1]!AgePb6U8($R18+$R18*S18/100)-[1]!AgePb6U8($R18)))) -> 6.09852825 | AB18: =IF(AA18="","",AVERAGE(([1]!AgePb6U8($R18)-[1]!AgePb6U8($R18-$R18*#REF!/100)),([1]!AgePb6U8($R18+$R18*#REF!/100)-[1]!AgePb6U8($R18)))) -> 7.856777615 | AC18: 380.6244259 | AD18: =IF(AC18="","",AVERAGE(([1]!AgePb7U5($P18)-[1]!AgePb7U5($P18-$P18*Q18/100)),([1]!AgePb7U5($P18+$P18*Q18/100)-[1]!AgePb7U5($P18)))) -> 19.25492878 | AE18: =IF(AD18="","",AVERAGE(([1]!AgePb7U5($P18)-[1]!AgePb7U5($P18-$P18*#REF!/100)),([1]!AgePb7U5($P18+$P18*#REF!/100)-[1]!AgePb7U5($P18)))) -> 19.95959573 | AF18: NA | AG18: NA | AH18: NA | AI18: 0.7329755151 | AJ18: 5.633149805 | AL18: 377.4497144 | AM18: 6.09852825 | AN18: 1.615719397 | AO18: 7.856777615 | AP18: 2.081248918
A19: UK010 | B19: UK010_251 | C19: NA | D19: 233 | E19: 4160 | F19: 252 | G19: 2.423076923 | H19: NA | I19: NA | J19: 15.43209877 | K19: 2.040129293 | L19: 0.057 | M19: 8.080288851 | N19: NA | O19: NA | P19: 0.509273568 | Q19: 8.333858377 | R19: 0.0648 | S19: 2.040129293 | T19: 0.16962 | U19: NA | V19: NA | W19: NA | X19: NA | Y19: NA | Z19: 404.7509305 | AA19: =IF(Z19="","",AVERAGE(([1]!AgePb6U8($R19)-[1]!AgePb6U8($R19-$R19*S19/100)),([1]!AgePb6U8($R19+$R19*S19/100)-[1]!AgePb6U8($R19)))) -> 8.003557766 | AB19: =IF(AA19="","",AVERAGE(([1]!AgePb6U8($R19)-[1]!AgePb6U8($R19-$R19*#REF!/100)),([1]!AgePb6U8($R19+$R19*#REF!/100)-[1]!AgePb6U8($R19)))) -> 9.599674443 | AC19: 417.9605567 | AD19: =IF(AC19="","",AVERAGE(([1]!AgePb7U5($P19)-[1]!AgePb7U5($P19-$P19*Q19/100)),([1]!AgePb7U5($P19+$P19*Q19/100)-[1]!AgePb7U5($P19)))) -> 28.56102003 | AE19: =IF(AD19="","",AVERAGE(([1]!AgePb7U5($P19)-[1]!AgePb7U5($P19-$P19*#REF!/100)),([1]!AgePb7U5($P19+$P19*#REF!/100)-[1]!AgePb7U5($P19)))) -> 29.11949649 | AF19: NA | AG19: NA | AH19: NA | AI19: 0.353761231 | AJ19: 17.65542897 | AL19: 404.7509305 | AM19: 8.003557766 | AN19: 1.977403179 | AO19: 9.599674443 | AP19: 2.369400588
A20: UK010 | B20: UK010_282 | C20: NA | D20: 273 | E20: 4850 | F20: 288 | G20: 1.11627907 | H20: NA | I20: NA | J20: 14.70588235 | K20: 2.095859116 | L20: 0.0566 | M20: 7.007095059 | N20: NA | O20: NA | P20: 0.530672544 | Q20: 7.313822981 | R20: 0.068 | S20: 2.095859116 | T20: 0.098479 | U20: NA | V20: NA | W20: NA | X20: NA | Y20: NA | Z20: 424.0950236 | AA20: =IF(Z20="","",AVERAGE(([1]!AgePb6U8($R20)-[1]!AgePb6U8($R20-$R20*S20/100)),([1]!AgePb6U8($R20+$R20*S20/100)-[1]!AgePb6U8($R20)))) -> 8.602371801 | AB20: =IF(AA20="","",AVERAGE(([1]!AgePb6U8($R20)-[1]!AgePb6U8($R20-$R20*#REF!/100)),([1]!AgePb6U8($R20+$R20*#REF!/100)-[1]!AgePb6U8($R20)))) -> 10.23503806 | AC20: 432.2558867 | AD20: =IF(AC20="","",AVERAGE(([1]!AgePb7U5($P20)-[1]!AgePb7U5($P20-$P20*Q20/100)),([1]!AgePb7U5($P20+$P20*Q20/100)-[1]!AgePb7U5($P20)))) -> 25.75204867 | AE20: =IF(AD20="","",AVERAGE(([1]!AgePb7U5($P20)-[1]!AgePb7U5($P20-$P20*#REF!/100)),([1]!AgePb7U5($P20+$P20*#REF!/100)-[1]!AgePb7U5($P20)))) -> 26.40392781 | AF20: NA | AG20: NA | AH20: NA | AI20: 0.5367280806 | AJ20: 10.90105153 | AK20: DO | AL20: 424.0950236 | AM20: 8.602371801 | AN20: 2.028406683 | AO20: 10.23503806 | AP20: 2.409939308
A21: UK010 | B21: UK010_69 | C21: NA | D21: 844 | E21: 15790 | F21: 1043 | G21: 0.4740909091 | H21: NA | I21: NA | J21: 14.30615165 | K21: 1.46828168 | L21: 0.0573 | M21: 5.053819127 | N21: NA | O21: NA | P21: 0.5522466276 | Q21: 5.262788127 | R21: 0.0699 | S21: 1.46828168 | T21: 0.40693 | U21: NA | V21: NA | W21: NA | X21: NA | Y21: NA | Z21: 435.5531743 | AA21: =IF(Z21="","",AVERAGE(([1]!AgePb6U8($R21)-[1]!AgePb6U8($R21-$R21*S21/100)),([1]!AgePb6U8($R21+$R21*S21/100)-[1]!AgePb6U8($R21)))) -> 6.183889309 | AB21: =IF(AA21="","",AVERAGE(([1]!AgePb6U8($R21)-[1]!AgePb6U8($R21-$R21*#REF!/100)),([1]!AgePb6U8($R21+$R21*#REF!/100)-[1]!AgePb6U8($R21)))) -> 8.403750158 | AC21: 446.4672982 | AD21: =IF(AC21="","",AVERAGE(([1]!AgePb7U5($P21)-[1]!AgePb7U5($P21-$P21*Q21/100)),([1]!AgePb7U5($P21+$P21*Q21/100)-[1]!AgePb7U5($P21)))) -> 19.01379918 | AE21: =IF(AD21="","",AVERAGE(([1]!AgePb7U5($P21)-[1]!AgePb7U5($P21-$P21*#REF!/100)),([1]!AgePb7U5($P21+$P21*#REF!/100)-[1]!AgePb7U5($P21)))) -> 19.93274394 | AF21: NA | AG21: NA | AH21: NA | AI21: 0.2132056424 | AJ21: 13.42580971 | AK21: DO | AL21: 435.5531743 | AM21: 6.183889309 | AN21: 1.419778267 | AO21: 8.403750158 | AP21: 1.931028345
A22: UK010 | B22: UK010_186 | C22: NA | D22: 961 | E22: 17900 | F22: 955 | G22: 0.8526785714 | H22: NA | I22: NA | J22: 13.56852103 | K22: 1.334523883 | L22: 0.0563 | M22: 3.813301953 | N22: NA | O22: NA | P22: 0.5721068628 | Q22: 4.040077447 | R22: 0.0737 | S22: 1.334523883 | T22: 0.13772 | U22: NA | V22: NA | W22: NA | X22: NA | Y22: NA | Z22: 458.4085573 | AA22: =IF(Z22="","",AVERAGE(([1]!AgePb6U8($R22)-[1]!AgePb6U8($R22-$R22*S22/100)),([1]!AgePb6U8($R22+$R22*S22/100)-[1]!AgePb6U8($R22)))) -> 5.90512659 | AB22: =IF(AA22="","",AVERAGE(([1]!AgePb6U8($R22)-[1]!AgePb6U8($R22-$R22*#REF!/100)),([1]!AgePb6U8($R22+$R22*#REF!/100)-[1]!AgePb6U8($R22)))) -> 8.403287175 | AC22: 459.3762203 | AD22: =IF(AC22="","",AVERAGE(([1]!AgePb7U5($P22)-[1]!AgePb7U5($P22-$P22*Q22/100)),([1]!AgePb7U5($P22+$P22*Q22/100)-[1]!AgePb7U5($P22)))) -> 14.92952499 | AE22: =IF(AD22="","",AVERAGE(([1]!AgePb7U5($P22)-[1]!AgePb7U5($P22-$P22*#REF!/100)),([1]!AgePb7U5($P22+$P22*#REF!/100)-[1]!AgePb7U5($P22)))) -> 16.13474217 | AF22: NA | AG22: NA | AH22: NA | AI22: 0.8992438109 | AJ22: 1.251609642 | AL22: 458.4085573 | AM22: 5.90512659 | AN22: 1.288179833 | AO22: 8.403287175 | AP22: 1.83276754
A23: UK010 | B23: UK010_99 | C23: NA | D23: 1229 | E23: 22220 | F23: 1400 | G23: 0.9549795362 | H23: NA | I23: NA | J23: 13.4589502 | K23: 1.572618868 | L23: 0.0565 | M23: 3.656598205 | N23: NA | O23: NA | P23: 0.578813346 | Q23: 3.980432205 | R23: 0.0743 | S23: 1.572618868 | T23: 0.39899 | U23: NA | V23: NA | W23: NA | X23: NA | Y23: NA | Z23: 462.0099061 | AA23: =IF(Z23="","",AVERAGE(([1]!AgePb6U8($R23)-[1]!AgePb6U8($R23-$R23*S23/100)),([1]!AgePb6U8($R23+$R23*S23/100)-[1]!AgePb6U8($R23)))) -> 7.011405688 | AB23: =IF(AA23="","",AVERAGE(([1]!AgePb6U8($R23)-[1]!AgePb6U8($R23-$R23*#REF!/100)),([1]!AgePb6U8($R23+$R23*#REF!/100)-[1]!AgePb6U8($R23)))) -> 9.243827458 | AC23: 463.6985511 | AD23: =IF(AC23="","",AVERAGE(([1]!AgePb7U5($P23)-[1]!AgePb7U5($P23-$P23*Q23/100)),([1]!AgePb7U5($P23+$P23*Q23/100)-[1]!AgePb7U5($P23)))) -> 14.8183115 | AE23: =IF(AD23="","",AVERAGE(([1]!AgePb7U5($P23)-[1]!AgePb7U5($P23-$P23*#REF!/100)),([1]!AgePb7U5($P23+$P23*#REF!/100)-[1]!AgePb7U5($P23)))) -> 16.04928095 | AF23: NA | AG23: NA | AH23: NA | AI23: 0.8044648517 | AJ23: 2.13117655 | AK23: DO | AL23: 462.0099061 | AM23: 7.011405688 | AN23: 1.517587739 | AO23: 9.243827458 | AP23: 2.00048552
A24: UK010 | B24: UK010_141 | C24: NA | D24: 250 | E24: 4350 | F24: 237 | G24: 0.9556451613 | H24: NA | I24: NA | J24: 13.22751323 | K24: 1.660322181 | L24: 0.0586 | M24: 6.89901717 | N24: NA | O24: NA | P24: 0.6108304608 | Q24: 7.095992366 | R24: 0.0756 | S24: 1.660322181 | T24: 0.14413 | U24: NA | V24: NA | W24: NA | X24: NA | Y24: NA | Z24: 469.8059334 | AA24: =IF(Z24="","",AVERAGE(([1]!AgePb6U8($R24)-[1]!AgePb6U8($R24-$R24*S24/100)),([1]!AgePb6U8($R24+$R24*S24/100)-[1]!AgePb6U8($R24)))) -> 7.522839125 | AB24: =IF(AA24="","",AVERAGE(([1]!AgePb6U8($R24)-[1]!AgePb6U8($R24-$R24*#REF!/100)),([1]!AgePb6U8($R24+$R24*#REF!/100)-[1]!AgePb6U8($R24)))) -> 9.699064799 | AC24: 484.0837287 | AD24: =IF(AC24="","",AVERAGE(([1]!AgePb7U5($P24)-[1]!AgePb7U5($P24-$P24*Q24/100)),([1]!AgePb7U5($P24+$P24*Q24/100)-[1]!AgePb7U5($P24)))) -> 27.32868613 | AE24: =IF(AD24="","",AVERAGE(([1]!AgePb7U5($P24)-[1]!AgePb7U5($P24-$P24*#REF!/100)),([1]!AgePb7U5($P24+$P24*#REF!/100)-[1]!AgePb7U5($P24)))) -> 28.06307805 | AF24: NA | AG24: NA | AH24: NA | AI24: 0.2982491155 | AJ24: 14.93140494 | AL24: 469.8059334 | AM24: 7.522839125 | AN24: 1.601265244 | AO24: 9.699064799 | AP24: 2.062288944
A25: UK010 | B25: UK010_56 | C25: NA | D25: 439 | E25: 8160 | F25: 462 | G25: 1.026666667 | H25: NA | I25: NA | J25: 13.05483029 | K25: 1.495416991 | L25: 0.0551 | M25: 5.247768264 | N25: NA | O25: NA | P25: 0.5819446008 | Q25: 5.456678819 | R25: 0.0766 | S25: 1.495416991 | T25: 0.16966 | U25: NA | V25: NA | W25: NA | X25: NA | Y25: NA | Z25: 475.7964683 | AA25: =IF(Z25="","",AVERAGE(([1]!AgePb6U8($R25)-[1]!AgePb6U8($R25-$R25*S25/100)),([1]!AgePb6U8($R25+$R25*S25/100)-[1]!AgePb6U8($R25)))) -> 6.858909527 | AB25: =IF(AA25="","",AVERAGE(([1]!AgePb6U8($R25)-[1]!AgePb6U8($R25-$R25*#REF!/100)),([1]!AgePb6U8($R25+$R25*#REF!/100)-[1]!AgePb6U8($R25)))) -> 9.243916479 | AC25: 465.7103623 | AD25: =IF(AC25="","",AVERAGE(([1]!AgePb7U5($P25)-[1]!AgePb7U5($P25-$P25*Q25/100)),([1]!AgePb7U5($P25+$P25*Q25/100)-[1]!AgePb7U5($P25)))) -> 20.38482637 | AE25: =IF(AD25="","",AVERAGE(([1]!AgePb7U5($P25)-[1]!AgePb7U5($P25-$P25*#REF!/100)),([1]!AgePb7U5($P25+$P25*#REF!/100)-[1]!AgePb7U5($P25)))) -> 21.30277525 | AF25: NA | AG25: NA | AH25: NA | AI25: 0.3199529119 | AJ25: -14.29637025 | AL25: 475.7964683 | AM25: 6.858909527 | AN25: 1.441563775 | AO25: 9.243916479 | AP25: 1.9452012
A26: UK010 | B26: UK010_132 | C26: NA | D26: 154 | E26: 2700 | F26: 146 | G26: 0.6606334842 | H26: NA | I26: NA | J26: 12.88659794 | K26: 2.122609281 | L26: 0.0544 | M26: 9.109792373 | N26: NA | O26: NA | P26: 0.5820521472 | Q26: 9.353811375 | R26: 0.0776 | S26: 2.122609281 | T26: 0.28744 | U26: NA | V26: NA | W26: NA | X26: NA | Y26: NA | Z26: 481.7814415 | AA26: =IF(Z26="","",AVERAGE(([1]!AgePb6U8($R26)-[1]!AgePb6U8($R26-$R26*S26/100)),([1]!AgePb6U8($R26+$R26*S26/100)-[1]!AgePb6U8($R26)))) -> 9.853550374 | AB26: =IF(AA26="","",AVERAGE(([1]!AgePb6U8($R26)-[1]!AgePb6U8($R26-$R26*#REF!/100)),([1]!AgePb6U8($R26+$R26*#REF!/100)-[1]!AgePb6U8($R26)))) -> 11.68049862 | AC26: 465.7793894 | AD26: =IF(AC26="","",AVERAGE(([1]!AgePb7U5($P26)-[1]!AgePb7U5($P26-$P26*Q26/100)),([1]!AgePb7U5($P26+$P26*Q26/100)-[1]!AgePb7U5($P26)))) -> 34.95675832 | AE26: =IF(AD26="","",AVERAGE(([1]!AgePb7U5($P26)-[1]!AgePb7U5($P26-$P26*#REF!/100)),([1]!AgePb7U5($P26+$P26*#REF!/100)-[1]!AgePb7U5($P26)))) -> 35.50057617 | AF26: NA | AG26: NA | AH26: NA | AI26: 0.3351335814 | AJ26: -24.28401055 | AL26: 481.7814415 | AM26: 9.853550374 | AN26: 2.045232449 | AO26: 11.68049862 | AP26: 2.424415098
A27: UK010 | B27: UK010_82 | C27: NA | D27: 182 | E27: 3360 | F27: 180 | G27: 0.6545454545 | H27: NA | I27: NA | J27: 12.5 | K27: 1.652134037 | L27: 0.0563 | M27: 8.512544354 | N27: NA | O27: NA | P27: 0.62101152 | Q27: 8.671387331 | R27: 0.08 | S27: 1.652134037 | T27: 0.1417 | U27: NA | V27: NA | W27: NA | X27: NA | Y27: NA | Z27: 496.122747 | AA27: =IF(Z27="","",AVERAGE(([1]!AgePb6U8($R27)-[1]!AgePb6U8($R27-$R27*S27/100)),([1]!AgePb6U8($R27+$R27*S27/100)-[1]!AgePb6U8($R27)))) -> 7.88914489 | AB27: =IF(AA27="","",AVERAGE(([1]!AgePb6U8($R27)-[1]!AgePb6U8($R27-$R27*#REF!/100)),([1]!AgePb6U8($R27+$R27*#REF!/100)-[1]!AgePb6U8($R27)))) -> 10.19145031 | AC27: 490.4811387 | AD27: =IF(AC27="","",AVERAGE(([1]!AgePb7U5($P27)-[1]!AgePb7U5($P27-$P27*Q27/100)),([1]!AgePb7U5($P27+$P27*Q27/100)-[1]!AgePb7U5($P27)))) -> 33.7436368 | AE27: =IF(AD27="","",AVERAGE(([1]!AgePb7U5($P27)-[1]!AgePb7U5($P27-$P27*#REF!/100)),([1]!AgePb7U5($P27+$P27*#REF!/100)-[1]!AgePb7U5($P27)))) -> 34.35366344 | AF27: NA | AG27: NA | AH27: NA | AI27: 0.735850674 | AJ27: -6.872618118 | AL27: 496.122747 | AM27: 7.88914489 | AN27: 1.590159882 | AO27: 10.19145031 | AP27: 2.05473756
A28: UK010 | B28: UK010_283 | C28: NA | D28: 222 | E28: 3800 | F28: 177 | G28: 0.7137096774 | H28: NA | I28: NA | J28: 12.33045623 | K28: 1.997975701 | L28: 0.0612 | M28: 7.494726995 | N28: NA | O28: NA | P28: 0.6843425616 | Q28: 7.756470824 | R28: 0.0811 | S28: 1.997975701 | T28: 0.16209 | U28: NA | V28: NA | W28: 646.2706964 | X28: =IF(W28="","",AVERAGE(([1]!AgePb76(L28)-[1]!AgePb76(L28-L28*M28/100)),([1]!AgePb76(L28+L28*M28/100)-[1]!AgePb76(L28)))) -> 161.5499843 | Y28: =IF(X28="","",AVERAGE(([1]!AgePb76($L28)-[1]!AgePb76($L28-$L28*#REF!/100)),([1]!AgePb76($L28+$L28*#REF!/100)-[1]!AgePb76($L28)))) -> 162.8700739 | Z28: 502.6851979 | AA28: =IF(Z28="","",AVERAGE(([1]!AgePb6U8($R28)-[1]!AgePb6U8($R28-$R28*S28/100)),([1]!AgePb6U8($R28+$R28*S28/100)-[1]!AgePb6U8($R28)))) -> 9.661926285 | AB28: =IF(AA28="","",AVERAGE(([1]!AgePb6U8($R28)-[1]!AgePb6U8($R28-$R28*#REF!/100)),([1]!AgePb6U8($R28+$R28*#REF!/100)-[1]!AgePb6U8($R28)))) -> 11.66385521 | AC28: 529.3956608 | AD28: =IF(AC28="","",AVERAGE(([1]!AgePb7U5($P28)-[1]!AgePb7U5($P28-$P28*Q28/100)),([1]!AgePb7U5($P28+$P28*Q28/100)-[1]!AgePb7U5($P28)))) -> 32.00965823 | AE28: =IF(AD28="","",AVERAGE(([1]!AgePb7U5($P28)-[1]!AgePb7U5($P28-$P28*#REF!/100)),([1]!AgePb7U5($P28+$P28*#REF!/100)-[1]!AgePb7U5($P28)))) -> 32.73125809 | AF28: NA | AG28: NA | AH28: NA | AI28: 0.09792582325 | AJ28: 22.21754744 | AL28: 502.6851979 | AM28: 9.661926285 | AN28: 1.922063018 | AO28: 11.66385521 | AP28: 2.315417733
A29: UK010 | B29: UK010_240 | C29: NA | D29: 99 | E29: 1744 | F29: 65.6 | G29: 0.6096654275 | H29: NA | I29: NA | J29: 9.970089731 | K29: 2.970579661 | L29: 0.0601 | M29: 11.90550739 | N29: NA | O29: NA | P29: 0.8311447764 | Q29: 12.27051138 | R29: 0.1003 | S29: 2.970579661 | T29: 0.12795 | U29: NA | V29: NA | W29: 607.1768115 | X29: =IF(W29="","",AVERAGE(([1]!AgePb76(L29)-[1]!AgePb76(L29-L29*M29/100)),([1]!AgePb76(L29+L29*M29/100)-[1]!AgePb76(L29)))) -> 259.6276649 | Y29: =IF(X29="","",AVERAGE(([1]!AgePb76($L29)-[1]!AgePb76($L29-$L29*#REF!/100)),([1]!AgePb76($L29+$L29*#REF!/100)-[1]!AgePb76($L29)))) -> 260.4791445 | Z29: 616.166768 | AA29: =IF(Z29="","",AVERAGE(([1]!AgePb6U8($R29)-[1]!AgePb6U8($R29-$R29*S29/100)),([1]!AgePb6U8($R29+$R29*S29/100)-[1]!AgePb6U8($R29)))) -> 17.45622336 | AB29: =IF(AA29="","",AVERAGE(([1]!AgePb6U8($R29)-[1]!AgePb6U8($R29-$R29*#REF!/100)),([1]!AgePb6U8($R29+$R29*#REF!/100)-[1]!AgePb6U8($R29)))) -> 19.17710115 | AC29: 614.2471769 | AD29: =IF(AC29="","",AVERAGE(([1]!AgePb7U5($P29)-[1]!AgePb7U5($P29-$P29*Q29/100)),([1]!AgePb7U5($P29+$P29*Q29/100)-[1]!AgePb7U5($P29)))) -> 56.61040048 | AE29: =IF(AD29="","",AVERAGE(([1]!AgePb7U5($P29)-[1]!AgePb7U5($P29-$P29*#REF!/100)),([1]!AgePb7U5($P29+$P29*#REF!/100)-[1]!AgePb7U5($P29)))) -> 57.12447985 | AF29: NA | AG29: NA | AH29: NA | AI29: 0.9462645334 | AJ29: -1.480615918 | AL29: 616.166768 | AM29: 17.45622336 | AN29: 2.833035513 | AO29: 19.17710115 | AP29: 3.112857545
A30: UK010 | B30: UK010_246 | C30: NA | D30: 618 | E30: 10090 | F30: 376 | G30: 1.918367347 | H30: NA | I30: NA | J30: 9.68054211 | K30: 1.498102285 | L30: 0.0617 | M30: 4.377483071 | N30: NA | O30: NA | P30: 0.8787933468 | Q30: 4.626734106 | R30: 0.1033 | S30: 1.498102285 | T30: 0.11489 | U30: NA | V30: NA | W30: 663.7267389 | X30: =IF(W30="","",AVERAGE(([1]!AgePb76(L30)-[1]!AgePb76(L30-L30*M30/100)),([1]!AgePb76(L30+L30*M30/100)-[1]!AgePb76(L30)))) -> 93.88085772 | Y30: =IF(X30="","",AVERAGE(([1]!AgePb76($L30)-[1]!AgePb76($L30-$L30*#REF!/100)),([1]!AgePb76($L30+$L30*#REF!/100)-[1]!AgePb76($L30)))) -> 96.1026831 | Z30: 633.7191864 | AA30: =IF(Z30="","",AVERAGE(([1]!AgePb6U8($R30)-[1]!AgePb6U8($R30-$R30*S30/100)),([1]!AgePb6U8($R30+$R30*S30/100)-[1]!AgePb6U8($R30)))) -> 9.042044916 | AB30: =IF(AA30="","",AVERAGE(([1]!AgePb6U8($R30)-[1]!AgePb6U8($R30-$R30*#REF!/100)),([1]!AgePb6U8($R30+$R30*#REF!/100)-[1]!AgePb6U8($R30)))) -> 12.17637045 | AC30: 640.3307448 | AD30: =IF(AC30="","",AVERAGE(([1]!AgePb7U5($P30)-[1]!AgePb7U5($P30-$P30*Q30/100)),([1]!AgePb7U5($P30+$P30*Q30/100)-[1]!AgePb7U5($P30)))) -> 21.97758724 | AE30: =IF(AD30="","",AVERAGE(([1]!AgePb7U5($P30)-[1]!AgePb7U5($P30-$P30*#REF!/100)),([1]!AgePb7U5($P30+$P30*#REF!/100)-[1]!AgePb7U5($P30)))) -> 23.34283271 | AF30: NA | AG30: NA | AH30: NA | AI30: 0.562610569 | AJ30: 4.521070317 | AL30: 633.7191864 | AM30: 9.042044916 | AN30: 1.426822023 | AO30: 12.17637045 | AP30: 1.919163486
A31: UK010 | B31: UK010_287 | C31: NA | D31: 446 | E31: 7410 | F31: 262 | G31: 1.541176471 | H31: NA | I31: NA | J31: 9.140767824 | K31: 1.590237744 | L31: 0.0602 | M31: 5.098818357 | N31: NA | O31: NA | P31: 0.9080611344 | Q31: 5.341049028 | R31: 0.1094 | S31: 1.590237744 | T31: 0.42388 | U31: NA | V31: NA | W31: 610.7708798 | X31: =IF(W31="","",AVERAGE(([1]!AgePb76(L31)-[1]!AgePb76(L31-L31*M31/100)),([1]!AgePb76(L31+L31*M31/100)-[1]!AgePb76(L31)))) -> 110.3633666 | Y31: =IF(X31="","",AVERAGE(([1]!AgePb76($L31)-[1]!AgePb76($L31-$L31*#REF!/100)),([1]!AgePb76($L31+$L31*#REF!/100)-[1]!AgePb76($L31)))) -> 112.2960061 | Z31: 669.2623925 | AA31: =IF(Z31="","",AVERAGE(([1]!AgePb6U8($R31)-[1]!AgePb6U8($R31-$R31*S31/100)),([1]!AgePb6U8($R31+$R31*S31/100)-[1]!AgePb6U8($R31)))) -> 10.10903684 | AB31: =IF(AA31="","",AVERAGE(([1]!AgePb6U8($R31)-[1]!AgePb6U8($R31-$R31*#REF!/100)),([1]!AgePb6U8($R31+$R31*#REF!/100)-[1]!AgePb6U8($R31)))) -> 13.26523464 | AC31: 656.0264138 | AD31: =IF(AC31="","",AVERAGE(([1]!AgePb7U5($P31)-[1]!AgePb7U5($P31-$P31*Q31/100)),([1]!AgePb7U5($P31+$P31*Q31/100)-[1]!AgePb7U5($P31)))) -> 25.81504203 | AE31: =IF(AD31="","",AVERAGE(([1]!AgePb7U5($P31)-[1]!AgePb7U5($P31-$P31*#REF!/100)),([1]!AgePb7U5($P31+$P31*#REF!/100)-[1]!AgePb7U5($P31)))) -> 27.02746722 | AF31: NA | AG31: NA | AH31: NA | AI31: 0.2545607347 | AJ31: -9.576670179 | AL31: 669.2623925 | AM31: 10.10903684 | AN31: 1.51047436 | AO31: 13.26523464 | AP31: 1.981559675
A32: UK010 | B32: UK010_153 | C32: NA | D32: 216 | E32: 3800 | F32: 138.1 | G32: 1.066409266 | H32: NA | I32: NA | J32: 9.132420091 | K32: 1.887955302 | L32: 0.0596 | M32: 7.716907505 | N32: NA | O32: NA | P32: 0.899832456 | Q32: 7.944497256 | R32: 0.1095 | S32: 1.887955302 | T32: 0.02522 | U32: NA | V32: NA | W32: 589.0834546 | X32: =IF(W32="","",AVERAGE(([1]!AgePb76(L32)-[1]!AgePb76(L32-L32*M32/100)),([1]!AgePb76(L32+L32*M32/100)-[1]!AgePb76(L32)))) -> 167.9749852 | Y32: =IF(X32="","",AVERAGE(([1]!AgePb76($L32)-[1]!AgePb76($L32-$L32*#REF!/100)),([1]!AgePb76($L32+$L32*#REF!/100)-[1]!AgePb76($L32)))) -> 169.2705897 | Z32: 669.8434385 | AA32: =IF(Z32="","",AVERAGE(([1]!AgePb6U8($R32)-[1]!AgePb6U8($R32-$R32*S32/100)),([1]!AgePb6U8($R32+$R32*S32/100)-[1]!AgePb6U8($R32)))) -> 12.01149953 | AB32: =IF(AA32="","",AVERAGE(([1]!AgePb6U8($R32)-[1]!AgePb6U8($R32-$R32*#REF!/100)),([1]!AgePb6U8($R32+$R32*#REF!/100)-[1]!AgePb6U8($R32)))) -> 14.77063487 | AC32: 651.6380172 | AD32: =IF(AC32="","",AVERAGE(([1]!AgePb7U5($P32)-[1]!AgePb7U5($P32-$P32*Q32/100)),([1]!AgePb7U5($P32+$P32*Q32/100)-[1]!AgePb7U5($P32)))) -> 38.22502483 | AE32: =IF(AD32="","",AVERAGE(([1]!AgePb7U5($P32)-[1]!AgePb7U5($P32-$P32*#REF!/100)),([1]!AgePb7U5($P32+$P32*#REF!/100)-[1]!AgePb7U5($P32)))) -> 39.04709462 | AF32: NA | AG32: NA | AH32: NA | AI32: 0.3561894979 | AJ32: -13.70943001 | AL32: 669.8434385 | AM32: 12.01149953 | AN32: 1.793180143 | AO32: 14.77063487 | AP32: 2.210253991
A33: UK010 | B33: UK010_238 | C33: NA | D33: 511 | E33: 8910 | F33: 304 | G33: 2.068027211 | H33: NA | I33: NA | J33: 8.992805755 | K33: 1.540188052 | L33: 0.0593 | M33: 4.683844403 | N33: NA | O33: NA | P33: 0.9092027808 | Q33: 4.93057579 | R33: 0.1112 | S33: 1.540188052 | T33: 0.14439 | U33: NA | V33: NA | W33: 578.1277393 | X33: =IF(W33="","",AVERAGE(([1]!AgePb76(L33)-[1]!AgePb76(L33-L33*M33/100)),([1]!AgePb76(L33+L33*M33/100)-[1]!AgePb76(L33)))) -> 101.9148016 | Y33: =IF(X33="","",AVERAGE(([1]!AgePb76($L33)-[1]!AgePb76($L33-$L33*#REF!/100)),([1]!AgePb76($L33+$L33*#REF!/100)-[1]!AgePb76($L33)))) -> 104.0254175 | Z33: 679.7132149 | AA33: =IF(Z33="","",AVERAGE(([1]!AgePb6U8($R33)-[1]!AgePb6U8($R33-$R33*S33/100)),([1]!AgePb6U8($R33+$R33*S33/100)-[1]!AgePb6U8($R33)))) -> 9.935846053 | AB33: =IF(AA33="","",AVERAGE(([1]!AgePb6U8($R33)-[1]!AgePb6U8($R33-$R33*#REF!/100)),([1]!AgePb6U8($R33+$R33*#REF!/100)-[1]!AgePb6U8($R33)))) -> 13.21725187 | AC33: 656.6337642 | AD33: =IF(AC33="","",AVERAGE(([1]!AgePb7U5($P33)-[1]!AgePb7U5($P33-$P33*Q33/100)),([1]!AgePb7U5($P33+$P33*Q33/100)-[1]!AgePb7U5($P33)))) -> 23.84602963 | AE33: =IF(AD33="","",AVERAGE(([1]!AgePb7U5($P33)-[1]!AgePb7U5($P33-$P33*#REF!/100)),([1]!AgePb7U5($P33+$P33*#REF!/100)-[1]!AgePb7U5($P33)))) -> 25.15505949 | AF33: NA | AG33: NA | AH33: NA | AI33: 0.05698080558 | AJ33: -17.57145847 | AL33: 679.7132149 | AM33: 9.935846053 | AN33: 1.461770323 | AO33: 13.21725187 | AP33: 1.951953862
A34: UK010 | B34: UK010_158 | C34: NA | D34: 397 | E34: 6530 | F34: 226 | G34: 0.8188405797 | H34: NA | I34: NA | J34: 8.517887564 | K34: 1.624501182 | L34: 0.0622 | M34: 5.385137637 | N34: NA | O34: NA | P34: 1.006838366 | Q34: 5.624829905 | R34: 0.1174 | S34: 1.624501182 | T34: 0.27092 | U34: NA | V34: NA | W34: 680.9922962 | X34: =IF(W34="","",AVERAGE(([1]!AgePb76(L34)-[1]!AgePb76(L34-L34*M34/100)),([1]!AgePb76(L34+L34*M34/100)-[1]!AgePb76(L34)))) -> 115.2284168 | Y34: =IF(X34="","",AVERAGE(([1]!AgePb76($L34)-[1]!AgePb76($L34-$L34*#REF!/100)),([1]!AgePb76($L34+$L34*#REF!/100)-[1]!AgePb76($L34)))) -> 117.0395497 | Z34: 715.5813572 | AA34: =IF(Z34="","",AVERAGE(([1]!AgePb6U8($R34)-[1]!AgePb6U8($R34-$R34*S34/100)),([1]!AgePb6U8($R34+$R34*S34/100)-[1]!AgePb6U8($R34)))) -> 11.00267003 | AB34: =IF(AA34="","",AVERAGE(([1]!AgePb6U8($R34)-[1]!AgePb6U8($R34-$R34*#REF!/100)),([1]!AgePb6U8($R34+$R34*#REF!/100)-[1]!AgePb6U8($R34)))) -> 14.31099484 | AC34: 707.2757594 | AD34: =IF(AC34="","",AVERAGE(([1]!AgePb7U5($P34)-[1]!AgePb7U5($P34-$P34*Q34/100)),([1]!AgePb7U5($P34+$P34*Q34/100)-[1]!AgePb7U5($P34)))) -> 28.66170301 | AE34: =IF(AD34="","",AVERAGE(([1]!AgePb7U5($P34)-[1]!AgePb7U5($P34-$P34*#REF!/100)),([1]!AgePb7U5($P34+$P34*#REF!/100)-[1]!AgePb7U5($P34)))) -> 29.87823717 | AF34: NA | AG34: NA | AH34: NA | AI34: 0.5482715643 | AJ34: -5.079214736 | AL34: 715.5813572 | AM34: 11.00267003 | AN34: 1.537584779 | AO34: 14.31099484 | AP34: 2.001017465
A35: UK010 | B35: UK010_137 | C35: NA | D35: 408 | E35: 6720 | F35: 239 | G35: 1 | H35: NA | I35: NA | J35: 8.319467554 | K35: 2.162415749 | L35: 0.0604 | M35: 5.40473541 | N35: NA | O35: NA | P35: 1.00101983 | Q35: 5.821271917 | R35: 0.1202 | S35: 2.162415749 | T35: 0.18905 | U35: NA | V35: NA | W35: 617.9346947 | X35: =IF(W35="","",AVERAGE(([1]!AgePb76(L35)-[1]!AgePb76(L35-L35*M35/100)),([1]!AgePb76(L35+L35*M35/100)-[1]!AgePb76(L35)))) -> 116.8667983 | Y35: =IF(X35="","",AVERAGE(([1]!AgePb76($L35)-[1]!AgePb76($L35-$L35*#REF!/100)),([1]!AgePb76($L35+$L35*#REF!/100)-[1]!AgePb76($L35)))) -> 118.6906103 | Z35: 731.7146868 | AA35: =IF(Z35="","",AVERAGE(([1]!AgePb6U8($R35)-[1]!AgePb6U8($R35-$R35*S35/100)),([1]!AgePb6U8($R35+$R35*S35/100)-[1]!AgePb6U8($R35)))) -> 14.95777789 | AB35: =IF(AA35="","",AVERAGE(([1]!AgePb6U8($R35)-[1]!AgePb6U8($R35-$R35*#REF!/100)),([1]!AgePb6U8($R35+$R35*#REF!/100)-[1]!AgePb6U8($R35)))) -> 17.63760899 | AC35: 704.3275278 | AD35: =IF(AC35="","",AVERAGE(([1]!AgePb7U5($P35)-[1]!AgePb7U5($P35-$P35*Q35/100)),([1]!AgePb7U5($P35+$P35*Q35/100)-[1]!AgePb7U5($P35)))) -> 29.57752958 | AE35: =IF(AD35="","",AVERAGE(([1]!AgePb7U5($P35)-[1]!AgePb7U5($P35-$P35*#REF!/100)),([1]!AgePb7U5($P35+$P35*#REF!/100)-[1]!AgePb7U5($P35)))) -> 30.75126343 | AF35: NA | AG35: NA | AH35: NA | AI35: 0.06988531083 | AJ35: -18.4129477 | AL35: 731.7146868 | AM35: 14.95777789 | AN35: 2.044209055 | AO35: 17.63760899 | AP35: 2.424716684
A36: UK010 | B36: UK010_27 | C36: NA | D36: 666 | E36: 9200 | F36: 259 | G36: 2.483221477 | H36: NA | I36: NA | J36: 6.414368185 | K36: 1.603359958 | L36: 0.0724 | M36: 4.374201646 | N36: NA | O36: NA | P36: 1.556273621 | Q36: 4.658798471 | R36: 0.1559 | S36: 1.603359958 | T36: 0.17618 | U36: NA | V36: NA | W36: 997.2061959 | X36: =IF(W36="","",AVERAGE(([1]!AgePb76(L36)-[1]!AgePb76(L36-L36*M36/100)),([1]!AgePb76(L36+L36*M36/100)-[1]!AgePb76(L36)))) -> 88.96373607 | Y36: =IF(X36="","",AVERAGE(([1]!AgePb76($L36)-[1]!AgePb76($L36-$L36*#REF!/100)),([1]!AgePb76($L36+$L36*#REF!/100)-[1]!AgePb76($L36)))) -> 91.07201607 | Z36: 933.9517249 | AA36: =IF(Z36="","",AVERAGE(([1]!AgePb6U8($R36)-[1]!AgePb6U8($R36-$R36*S36/100)),([1]!AgePb6U8($R36+$R36*S36/100)-[1]!AgePb6U8($R36)))) -> 13.94041707 | AB36: =IF(AA36="","",AVERAGE(([1]!AgePb6U8($R36)-[1]!AgePb6U8($R36-$R36*#REF!/100)),([1]!AgePb6U8($R36+$R36*#REF!/100)-[1]!AgePb6U8($R36)))) -> 18.23022355 | AC36: 952.9883548 | AD36: =IF(AC36="","",AVERAGE(([1]!AgePb7U5($P36)-[1]!AgePb7U5($P36-$P36*Q36/100)),([1]!AgePb7U5($P36+$P36*Q36/100)-[1]!AgePb7U5($P36)))) -> 28.80706092 | AE36: =IF(AD36="","",AVERAGE(([1]!AgePb7U5($P36)-[1]!AgePb7U5($P36-$P36*#REF!/100)),([1]!AgePb7U5($P36+$P36*#REF!/100)-[1]!AgePb7U5($P36)))) -> 30.57314562 | AF36: NA | AG36: NA | AH36: NA | AI36: 0.2030395473 | AJ36: 6.343168679 | AL36: 933.9517249 | AM36: 13.94041707 | AN36: 1.492627156 | AO36: 18.23022355 | AP36: 1.946556549
A37: UK010 | B37: UK010_185 | C37: NA | D37: 636 | E37: 9320 | F37: 233 | G37: 1.18877551 | H37: NA | I37: NA | J37: 6.333122229 | K37: 1.518127603 | L37: 0.0725 | M37: 4.332959301 | N37: NA | O37: NA | P37: 1.57841577 | Q37: 4.591214188 | R37: 0.1579 | S37: 1.518127603 | T37: 0.1646 | U37: NA | V37: NA | W37: 1000.009876 | X37: =IF(W37="","",AVERAGE(([1]!AgePb76(L37)-[1]!AgePb76(L37-L37*M37/100)),([1]!AgePb76(L37+L37*M37/100)-[1]!AgePb76(L37)))) -> 88.08549745 | Y37: =IF(X37="","",AVERAGE(([1]!AgePb76($L37)-[1]!AgePb76($L37-$L37*#REF!/100)),([1]!AgePb76($L37+$L37*#REF!/100)-[1]!AgePb76($L37)))) -> 90.21233638 | Z37: 945.096017 | AA37: =IF(Z37="","",AVERAGE(([1]!AgePb6U8($R37)-[1]!AgePb6U8($R37-$R37*S37/100)),([1]!AgePb6U8($R37+$R37*S37/100)-[1]!AgePb6U8($R37)))) -> 13.3456023 | AB37: =IF(AA37="","",AVERAGE(([1]!AgePb6U8($R37)-[1]!AgePb6U8($R37-$R37*#REF!/100)),([1]!AgePb6U8($R37+$R37*#REF!/100)-[1]!AgePb6U8($R37)))) -> 17.86577221 | AC37: 961.7456137 | AD37: =IF(AC37="","",AVERAGE(([1]!AgePb7U5($P37)-[1]!AgePb7U5($P37-$P37*Q37/100)),([1]!AgePb7U5($P37+$P37*Q37/100)-[1]!AgePb7U5($P37)))) -> 28.54567529 | AE37: =IF(AD37="","",AVERAGE(([1]!AgePb7U5($P37)-[1]!AgePb7U5($P37-$P37*#REF!/100)),([1]!AgePb7U5($P37+$P37*#REF!/100)-[1]!AgePb7U5($P37)))) -> 30.34608077 | AF37: NA | AG37: NA | AH37: NA | AI37: 0.2610741387 | AJ37: 5.491331682 | AL37: 945.096017 | AM37: 13.3456023 | AN37: 1.412089572 | AO37: 17.86577221 | AP37: 1.886061512
A38: UK010 | B38: UK010_90 | C38: NA | D38: 1019 | E38: 14970 | F38: 391 | G38: 3.103174603 | H38: NA | I38: NA | J38: 6.289308176 | K38: 1.535968296 | L38: 0.0692 | M38: 3.432828015 | N38: NA | O38: NA | P38: 1.517066064 | Q38: 3.760785395 | R38: 0.159 | S38: 1.535968296 | T38: 0.35865 | U38: NA | V38: NA | W38: 904.7079141 | X38: =IF(W38="","",AVERAGE(([1]!AgePb76(L38)-[1]!AgePb76(L38-L38*M38/100)),([1]!AgePb76(L38+L38*M38/100)-[1]!AgePb76(L38)))) -> 70.79357669 | Y38: =IF(X38="","",AVERAGE(([1]!AgePb76($L38)-[1]!AgePb76($L38-$L38*#REF!/100)),([1]!AgePb76($L38+$L38*#REF!/100)-[1]!AgePb76($L38)))) -> 73.49608806 | Z38: 951.2171756 | AA38: =IF(Z38="","",AVERAGE(([1]!AgePb6U8($R38)-[1]!AgePb6U8($R38-$R38*S38/100)),([1]!AgePb6U8($R38+$R38*S38/100)-[1]!AgePb6U8($R38)))) -> 13.583597 | AB38: =IF(AA38="","",AVERAGE(([1]!AgePb6U8($R38)-[1]!AgePb6U8($R38-$R38*#REF!/100)),([1]!AgePb6U8($R38+$R38*#REF!/100)-[1]!AgePb6U8($R38)))) -> 18.09132249 | AC38: 937.2939665 | AD38: =IF(AC38="","",AVERAGE(([1]!AgePb7U5($P38)-[1]!AgePb7U5($P38-$P38*Q38/100)),([1]!AgePb7U5($P38+$P38*Q38/100)-[1]!AgePb7U5($P38)))) -> 23.01933299 | AE38: =IF(AD38="","",AVERAGE(([1]!AgePb7U5($P38)-[1]!AgePb7U5($P38-$P38*#REF!/100)),([1]!AgePb7U5($P38+$P38*#REF!/100)-[1]!AgePb7U5($P38)))) -> 25.15216467 | AF38: NA | AG38: NA | AH38: NA | AI38: 0.2061491005 | AJ38: -5.140804089 | AL38: 951.2171756 | AM38: 13.583597 | AN38: 1.428022679 | AO38: 18.09132249 | AP38: 1.906175357
A39: UK010 | B39: UK010_121 | C39: NA | D39: 1316 | E39: 19500 | F39: 507 | G39: 5.709459459 | H39: NA | I39: NA | J39: 6.289308176 | K39: 1.37606556 | L39: 0.0695 | M39: 3.264386986 | N39: NA | O39: NA | P39: 1.52364294 | Q39: 3.542566699 | R39: 0.159 | S39: 1.37606556 | T39: 0.090906 | U39: NA | V39: NA | W39: 913.6169572 | X39: =IF(W39="","",AVERAGE(([1]!AgePb76(L39)-[1]!AgePb76(L39-L39*M39/100)),([1]!AgePb76(L39+L39*M39/100)-[1]!AgePb76(L39)))) -> 67.22219557 | Y39: =IF(X39="","",AVERAGE(([1]!AgePb76($L39)-[1]!AgePb76($L39-$L39*#REF!/100)),([1]!AgePb76($L39+$L39*#REF!/100)-[1]!AgePb76($L39)))) -> 70.0541746 | Z39: 951.2171756 | AA39: =IF(Z39="","",AVERAGE(([1]!AgePb6U8($R39)-[1]!AgePb6U8($R39-$R39*S39/100)),([1]!AgePb6U8($R39+$R39*S39/100)-[1]!AgePb6U8($R39)))) -> 12.16946638 | AB39: =IF(AA39="","",AVERAGE(([1]!AgePb6U8($R39)-[1]!AgePb6U8($R39-$R39*#REF!/100)),([1]!AgePb6U8($R39+$R39*#REF!/100)-[1]!AgePb6U8($R39)))) -> 17.05513375 | AC39: 939.9436145 | AD39: =IF(AC39="","",AVERAGE(([1]!AgePb7U5($P39)-[1]!AgePb7U5($P39-$P39*Q39/100)),([1]!AgePb7U5($P39+$P39*Q39/100)-[1]!AgePb7U5($P39)))) -> 21.72048299 | AE39: =IF(AD39="","",AVERAGE(([1]!AgePb7U5($P39)-[1]!AgePb7U5($P39-$P39*#REF!/100)),([1]!AgePb7U5($P39+$P39*#REF!/100)-[1]!AgePb7U5($P39)))) -> 23.9763769 | AF39: NA | AG39: NA | AH39: NA | AI39: 0.3440615431 | AJ39: -4.115534199 | AL39: 951.2171756 | AM39: 12.16946638 | AN39: 1.279357301 | AO39: 17.05513375 | AP39: 1.797661331
A40: UK010 | B40: UK010_89 | C40: NA | D40: 578 | E40: 8150 | F40: 223 | G40: 2.826362484 | H40: NA | I40: NA | J40: 6.281407035 | K40: 1.632413578 | L40: 0.0739 | M40: 4.509270606 | N40: NA | O40: NA | P40: 1.622141654 | Q40: 4.795653812 | R40: 0.1592 | S40: 1.632413578 | T40: 0.44244 | U40: NA | V40: NA | W40: 1038.737951 | X40: =IF(W40="","",AVERAGE(([1]!AgePb76(L40)-[1]!AgePb76(L40-L40*M40/100)),([1]!AgePb76(L40+L40*M40/100)-[1]!AgePb76(L40)))) -> 91.13993537 | Y40: =IF(X40="","",AVERAGE(([1]!AgePb76($L40)-[1]!AgePb76($L40-$L40*#REF!/100)),([1]!AgePb76($L40+$L40*#REF!/100)-[1]!AgePb76($L40)))) -> 93.17395495 | Z40: 952.3294893 | AA40: =IF(Z40="","",AVERAGE(([1]!AgePb6U8($R40)-[1]!AgePb6U8($R40-$R40*S40/100)),([1]!AgePb6U8($R40+$R40*S40/100)-[1]!AgePb6U8($R40)))) -> 14.45219533 | AB40: =IF(AA40="","",AVERAGE(([1]!AgePb6U8($R40)-[1]!AgePb6U8($R40-$R40*#REF!/100)),([1]!AgePb6U8($R40+$R40*#REF!/100)-[1]!AgePb6U8($R40)))) -> 18.76054213 | AC40: 978.8205404 | AD40: =IF(AC40="","",AVERAGE(([1]!AgePb7U5($P40)-[1]!AgePb7U5($P40-$P40*Q40/100)),([1]!AgePb7U5($P40+$P40*Q40/100)-[1]!AgePb7U5($P40)))) -> 30.13268469 | AE40: =IF(AD40="","",AVERAGE(([1]!AgePb7U5($P40)-[1]!AgePb7U5($P40-$P40*#REF!/100)),([1]!AgePb7U5($P40+$P40*#REF!/100)-[1]!AgePb7U5($P40)))) -> 31.87903867 | AF40: NA | AG40: NA | AH40: NA | AI40: 0.05297883594 | AJ40: 8.318600658 | AL40: 952.3294893 | AM40: 14.45219533 | AN40: 1.517562513 | AO40: 18.76054213 | AP40: 1.969153978
A41: UK010 | B41: UK010_289 | C41: NA | D41: 1480 | E41: 21200 | F41: 511 | G41: 6.41959799 | H41: NA | I41: NA | J41: 6.161429452 | K41: 1.405612209 | L41: 0.0732 | M41: 3.080685571 | N41: NA | O41: NA | P41: 1.638064037 | Q41: 3.38620278 | R41: 0.1623 | S41: 1.405612209 | T41: 0.1033 | U41: NA | V41: NA | W41: 1019.494939 | X41: =IF(W41="","",AVERAGE(([1]!AgePb76(L41)-[1]!AgePb76(L41-L41*M41/100)),([1]!AgePb76(L41+L41*M41/100)-[1]!AgePb76(L41)))) -> 62.41071758 | Y41: =IF(X41="","",AVERAGE(([1]!AgePb76($L41)-[1]!AgePb76($L41-$L41*#REF!/100)),([1]!AgePb76($L41+$L41*#REF!/100)-[1]!AgePb76($L41)))) -> 65.35518469 | Z41: 969.5458544 | AA41: =IF(Z41="","",AVERAGE(([1]!AgePb6U8($R41)-[1]!AgePb6U8($R41-$R41*S41/100)),([1]!AgePb6U8($R41+$R41*S41/100)-[1]!AgePb6U8($R41)))) -> 12.65273948 | AB41: =IF(AA41="","",AVERAGE(([1]!AgePb6U8($R41)-[1]!AgePb6U8($R41-$R41*#REF!/100)),([1]!AgePb6U8($R41+$R41*#REF!/100)-[1]!AgePb6U8($R41)))) -> 17.55044946 | AC41: 984.9675877 | AD41: =IF(AC41="","",AVERAGE(([1]!AgePb7U5($P41)-[1]!AgePb7U5($P41-$P41*Q41/100)),([1]!AgePb7U5($P41+$P41*Q41/100)-[1]!AgePb7U5($P41)))) -> 21.35268175 | AE41: =IF(AD41="","",AVERAGE(([1]!AgePb7U5($P41)-[1]!AgePb7U5($P41-$P41*#REF!/100)),([1]!AgePb7U5($P41+$P41*#REF!/100)-[1]!AgePb7U5($P41)))) -> 23.76920536 | AF41: NA | AG41: NA | AH41: NA | AI41: 0.1944357534 | AJ41: 4.89939504 | AK41: Z | AL41: 969.5458544 | AM41: 12.65273948 | AN41: 1.30501713 | AO41: 17.55044946 | AP41: 1.803513382
A42: UK010 | B42: UK010_284 | C42: NA | D42: 725 | E42: 9940 | F42: 263 | G42: 2.410632447 | H42: NA | I42: NA | J42: 6.12745098 | K42: 2.122888443 | L42: 0.0743 | M42: 4.910291886 | N42: NA | O42: NA | P42: 1.671899789 | Q42: 5.349544069 | R42: 0.1632 | S42: 2.122888443 | T42: 0.26277 | U42: NA | V42: NA | W42: 1049.627478 | X42: =IF(W42="","",AVERAGE(([1]!AgePb76(L42)-[1]!AgePb76(L42-L42*M42/100)),([1]!AgePb76(L42+L42*M42/100)-[1]!AgePb76(L42)))) -> 99.10258607 | Y42: =IF(X42="","",AVERAGE(([1]!AgePb76($L42)-[1]!AgePb76($L42-$L42*#REF!/100)),([1]!AgePb76($L42+$L42*#REF!/100)-[1]!AgePb76($L42)))) -> 100.9717552 | Z42: 974.5355539 | AA42: =IF(Z42="","",AVERAGE(([1]!AgePb6U8($R42)-[1]!AgePb6U8($R42-$R42*S42/100)),([1]!AgePb6U8($R42+$R42*S42/100)-[1]!AgePb6U8($R42)))) -> 19.20049492 | AB42: =IF(AA42="","",AVERAGE(([1]!AgePb6U8($R42)-[1]!AgePb6U8($R42-$R42*#REF!/100)),([1]!AgePb6U8($R42+$R42*#REF!/100)-[1]!AgePb6U8($R42)))) -> 22.75961862 | AC42: 997.9080579 | AD42: =IF(AC42="","",AVERAGE(([1]!AgePb7U5($P42)-[1]!AgePb7U5($P42-$P42*Q42/100)),([1]!AgePb7U5($P42+$P42*Q42/100)-[1]!AgePb7U5($P42)))) -> 34.00157589 | AE42: =IF(AD42="","",AVERAGE(([1]!AgePb7U5($P42)-[1]!AgePb7U5($P42-$P42*#REF!/100)),([1]!AgePb7U5($P42+$P42*#REF!/100)-[1]!AgePb7U5($P42)))) -> 35.59407393 | AF42: NA | AG42: NA | AH42: NA | AI42: 0.1772004772 | AJ42: 7.154149996 | AK42: Z | AL42: 974.5355539 | AM42: 19.20049492 | AN42: 1.970220055 | AO42: 22.75961862 | AP42: 2.326504917
A43: UK010 | B43: UK010_16 | C43: NA | D43: 887 | E43: 12680 | F43: 318 | G43: 5.264900662 | H43: NA | I43: NA | J43: 5.757052389 | K43: 1.707838009 | L43: 0.0708 | M43: 3.789047957 | N43: NA | O43: NA | P43: 1.695642725 | Q43: 4.156151476 | R43: 0.1737 | S43: 1.707838009 | T43: 0.32639 | U43: NA | V43: NA | W43: 951.6446475 | X43: =IF(W43="","",AVERAGE(([1]!AgePb76(L43)-[1]!AgePb76(L43-L43*M43/100)),([1]!AgePb76(L43+L43*M43/100)-[1]!AgePb76(L43)))) -> 77.58336314 | Y43: =IF(X43="","",AVERAGE(([1]!AgePb76($L43)-[1]!AgePb76($L43-$L43*#REF!/100)),([1]!AgePb76($L43+$L43*#REF!/100)-[1]!AgePb76($L43)))) -> 80.02308493 | Z43: 1032.465122 | AA43: =IF(Z43="","",AVERAGE(([1]!AgePb6U8($R43)-[1]!AgePb6U8($R43-$R43*S43/100)),([1]!AgePb6U8($R43+$R43*S43/100)-[1]!AgePb6U8($R43)))) -> 16.29327993 | AB43: =IF(AA43="","",AVERAGE(([1]!AgePb6U8($R43)-[1]!AgePb6U8($R43-$R43*#REF!/100)),([1]!AgePb6U8($R43+$R43*#REF!/100)-[1]!AgePb6U8($R43)))) -> 20.7757841 | AC43: 1006.891063 | AD43: =IF(AC43="","",AVERAGE(([1]!AgePb7U5($P43)-[1]!AgePb7U5($P43-$P43*Q43/100)),([1]!AgePb7U5($P43+$P43*Q43/100)-[1]!AgePb7U5($P43)))) -> 26.55169627 | AE43: =IF(AD43="","",AVERAGE(([1]!AgePb7U5($P43)-[1]!AgePb7U5($P43-$P43*#REF!/100)),([1]!AgePb7U5($P43+$P43*#REF!/100)-[1]!AgePb7U5($P43)))) -> 28.58197202 | AF43: NA | AG43: NA | AH43: NA | AI43: 0.04923755418 | AJ43: -8.492715759 | AL43: 1032.465122 | AM43: 16.29327993 | AN43: 1.578094947 | AO43: 20.7757841 | AP43: 2.021759021
A44: UK010 | B44: UK010_83 | C44: NA | D44: 556 | E44: 7740 | F44: 191 | G44: 1.91 | H44: NA | I44: NA | J44: 5.688282139 | K44: 1.671537687 | L44: 0.0718 | M44: 4.923317872 | N44: NA | O44: NA | P44: 1.740382027 | Q44: 5.199336218 | R44: 0.1758 | S44: 1.671537687 | T44: -0.012788 | U44: NA | V44: NA | W44: 980.276877 | X44: =IF(W44="","",AVERAGE(([1]!AgePb76(L44)-[1]!AgePb76(L44-L44*M44/100)),([1]!AgePb76(L44+L44*M44/100)-[1]!AgePb76(L44)))) -> 100.4197302 | Y44: =IF(X44="","",AVERAGE(([1]!AgePb76($L44)-[1]!AgePb76($L44-$L44*#REF!/100)),([1]!AgePb76($L44+$L44*#REF!/100)-[1]!AgePb76($L44)))) -> 102.3039138 | Z44: 1043.988828 | AA44: =IF(Z44="","",AVERAGE(([1]!AgePb6U8($R44)-[1]!AgePb6U8($R44-$R44*S44/100)),([1]!AgePb6U8($R44+$R44*S44/100)-[1]!AgePb6U8($R44)))) -> 16.11093322 | AB44: =IF(AA44="","",AVERAGE(([1]!AgePb6U8($R44)-[1]!AgePb6U8($R44-$R44*#REF!/100)),([1]!AgePb6U8($R44+$R44*#REF!/100)-[1]!AgePb6U8($R44)))) -> 20.71615249 | AC44: 1023.604952 | AD44: =IF(AC44="","",AVERAGE(([1]!AgePb7U5($P44)-[1]!AgePb7U5($P44-$P44*Q44/100)),([1]!AgePb7U5($P44+$P44*Q44/100)-[1]!AgePb7U5($P44)))) -> 33.54047509 | AE44: =IF(AD44="","",AVERAGE(([1]!AgePb7U5($P44)-[1]!AgePb7U5($P44-$P44*#REF!/100)),([1]!AgePb7U5($P44+$P44*#REF!/100)-[1]!AgePb7U5($P44)))) -> 35.2012502 | AF44: NA | AG44: NA | AH44: NA | AI44: 0.2723668658 | AJ44: -6.499383261 | AL44: 1043.988828 | AM44: 16.11093322 | AN44: 1.543209351 | AO44: 20.71615249 | AP44: 1.991891689
A45: UK010 | B45: UK010_18 | C45: NA | D45: 215 | E45: 2940 | F45: 76.8 | G45: 0.8084210526 | H45: NA | I45: NA | J45: 5.53709856 | K45: 2.741074972 | L45: 0.0779 | M45: 8.86388154 | N45: NA | O45: NA | P45: 1.939797871 | Q45: 9.278032548 | R45: 0.1806 | S45: 2.741074972 | T45: 0.18894 | U45: NA | V45: NA | W45: 1144.324073 | X45: =IF(W45="","",AVERAGE(([1]!AgePb76(L45)-[1]!AgePb76(L45-L45*M45/100)),([1]!AgePb76(L45+L45*M45/100)-[1]!AgePb76(L45)))) -> 176.9061024 | Y45: =IF(X45="","",AVERAGE(([1]!AgePb76($L45)-[1]!AgePb76($L45-$L45*#REF!/100)),([1]!AgePb76($L45+$L45*#REF!/100)-[1]!AgePb76($L45)))) -> 177.9426687 | Z45: 1070.251628 | AA45: =IF(Z45="","",AVERAGE(([1]!AgePb6U8($R45)-[1]!AgePb6U8($R45-$R45*S45/100)),([1]!AgePb6U8($R45+$R45*S45/100)-[1]!AgePb6U8($R45)))) -> 27.03065889 | AB45: =IF(AA45="","",AVERAGE(([1]!AgePb6U8($R45)-[1]!AgePb6U8($R45-$R45*#REF!/100)),([1]!AgePb6U8($R45+$R45*#REF!/100)-[1]!AgePb6U8($R45)))) -> 30.13621206 | AC45: 1094.929002 | AD45: =IF(AC45="","",AVERAGE(([1]!AgePb7U5($P45)-[1]!AgePb7U5($P45-$P45*Q45/100)),([1]!AgePb7U5($P45+$P45*Q45/100)-[1]!AgePb7U5($P45)))) -> 62.23981016 | AE45: =IF(AD45="","",AVERAGE(([1]!AgePb7U5($P45)-[1]!AgePb7U5($P45-$P45*#REF!/100)),([1]!AgePb7U5($P45+$P45*#REF!/100)-[1]!AgePb7U5($P45)))) -> 63.22555293 | AF45: NA | AG45: NA | AH45: NA | AI45: 0.4373406484 | AJ45: 6.473030403 | AL45: 1070.251628 | AM45: 27.03065889 | AN45: 2.525635858 | AO45: 30.13621206 | AP45: 2.809360264
A46: UK010 | B46: UK010_197 | C46: NA | D46: 1094 | E46: 13840 | F46: 280 | G46: 3.894297636 | H46: NA | I46: NA | J46: 5.115089514 | K46: 1.432044654 | L46: 0.0808 | M46: 3.439602546 | N46: NA | O46: NA | P46: 2.178007632 | Q46: 3.725804285 | R46: 0.1955 | S46: 1.432044654 | T46: 0.072187 | U46: NA | V46: NA | W46: 1216.584188 | X46: =IF(W46="","",AVERAGE(([1]!AgePb76(L46)-[1]!AgePb76(L46-L46*M46/100)),([1]!AgePb76(L46+L46*M46/100)-[1]!AgePb76(L46)))) -> 67.68660082 | Y46: =IF(X46="","",AVERAGE(([1]!AgePb76($L46)-[1]!AgePb76($L46-$L46*#REF!/100)),([1]!AgePb76($L46+$L46*#REF!/100)-[1]!AgePb76($L46)))) -> 70.26034651 | Z46: 1151.100776 | AA46: =IF(Z46="","",AVERAGE(([1]!AgePb6U8($R46)-[1]!AgePb6U8($R46-$R46*S46/100)),([1]!AgePb6U8($R46+$R46*S46/100)-[1]!AgePb6U8($R46)))) -> 15.09637729 | AB46: =IF(AA46="","",AVERAGE(([1]!AgePb6U8($R46)-[1]!AgePb6U8($R46-$R46*#REF!/100)),([1]!AgePb6U8($R46+$R46*#REF!/100)-[1]!AgePb6U8($R46)))) -> 20.75527466 | AC46: 1174.041194 | AD46: =IF(AC46="","",AVERAGE(([1]!AgePb7U5($P46)-[1]!AgePb7U5($P46-$P46*Q46/100)),([1]!AgePb7U5($P46+$P46*Q46/100)-[1]!AgePb7U5($P46)))) -> 25.93276494 | AE46: =IF(AD46="","",AVERAGE(([1]!AgePb7U5($P46)-[1]!AgePb7U5($P46-$P46*#REF!/100)),([1]!AgePb7U5($P46+$P46*#REF!/100)-[1]!AgePb7U5($P46)))) -> 28.37917429 | AF46: NA | AG46: NA | AH46: NA | AI46: 0.1165619118 | AJ46: 5.382563141 | AL46: 1151.100776 | AM46: 15.09637729 | AN46: 1.311473122 | AO46: 20.75527466 | AP46: 1.794812182
A47: UK010 | B47: UK010_124 | C47: NA | D47: 900 | E47: 11630 | F47: 264 | G47: 3.815028902 | H47: NA | I47: NA | J47: 4.987531172 | K47: 1.600292338 | L47: 0.0784 | M47: 4.521165884 | N47: NA | O47: NA | P47: 2.167363296 | Q47: 4.79602716 | R47: 0.2005 | S47: 1.600292338 | T47: 0.34085 | U47: NA | V47: NA | W47: 1157.027776 | X47: =IF(W47="","",AVERAGE(([1]!AgePb76(L47)-[1]!AgePb76(L47-L47*M47/100)),([1]!AgePb76(L47+L47*M47/100)-[1]!AgePb76(L47)))) -> 89.78550362 | Y47: =IF(X47="","",AVERAGE(([1]!AgePb76($L47)-[1]!AgePb76($L47-$L47*#REF!/100)),([1]!AgePb76($L47+$L47*#REF!/100)-[1]!AgePb76($L47)))) -> 91.77881046 | Z47: 1178.005716 | AA47: =IF(Z47="","",AVERAGE(([1]!AgePb6U8($R47)-[1]!AgePb6U8($R47-$R47*S47/100)),([1]!AgePb6U8($R47+$R47*S47/100)-[1]!AgePb6U8($R47)))) -> 17.22942477 | AB47: =IF(AA47="","",AVERAGE(([1]!AgePb6U8($R47)-[1]!AgePb6U8($R47-$R47*#REF!/100)),([1]!AgePb6U8($R47+$R47*#REF!/100)-[1]!AgePb6U8($R47)))) -> 22.54929752 | AC47: 1170.634588 | AD47: =IF(AC47="","",AVERAGE(([1]!AgePb7U5($P47)-[1]!AgePb7U5($P47-$P47*Q47/100)),([1]!AgePb7U5($P47+$P47*Q47/100)-[1]!AgePb7U5($P47)))) -> 33.33506983 | AE47: =IF(AD47="","",AVERAGE(([1]!AgePb7U5($P47)-[1]!AgePb7U5($P47-$P47*#REF!/100)),([1]!AgePb7U5($P47+$P47*#REF!/100)-[1]!AgePb7U5($P47)))) -> 35.26700332 | AF47: NA | AG47: NA | AH47: NA | AI47: 0.6427279719 | AJ47: -1.813088705 | AK47: DO | AL47: 1178.005716 | AM47: 17.22942477 | AN47: 1.462592629 | AO47: 22.54929752 | AP47: 1.915412121
A48: UK010 | B48: UK010_147 | C48: NA | D48: 253 | E48: 3290 | F48: 66 | G48: 1.281553398 | H48: NA | I48: NA | J48: 4.823926676 | K48: 2.112589052 | L48: 0.0793 | M48: 7.132545276 | N48: NA | O48: NA | P48: 2.266594153 | Q48: 7.43883288 | R48: 0.2073 | S48: 2.112589052 | T48: 0.3127 | U48: NA | V48: NA | W48: 1179.63312 | X48: =IF(W48="","",AVERAGE(([1]!AgePb76(L48)-[1]!AgePb76(L48-L48*M48/100)),([1]!AgePb76(L48+L48*M48/100)-[1]!AgePb76(L48)))) -> 141.4058852 | Y48: =IF(X48="","",AVERAGE(([1]!AgePb76($L48)-[1]!AgePb76($L48-$L48*#REF!/100)),([1]!AgePb76($L48+$L48*#REF!/100)-[1]!AgePb76($L48)))) -> 142.6796594 | Z48: 1214.417156 | AA48: =IF(Z48="","",AVERAGE(([1]!AgePb6U8($R48)-[1]!AgePb6U8($R48-$R48*S48/100)),([1]!AgePb6U8($R48+$R48*S48/100)-[1]!AgePb6U8($R48)))) -> 23.38402338 | AB48: =IF(AA48="","",AVERAGE(([1]!AgePb6U8($R48)-[1]!AgePb6U8($R48-$R48*#REF!/100)),([1]!AgePb6U8($R48+$R48*#REF!/100)-[1]!AgePb6U8($R48)))) -> 27.7576758 | AC48: 1201.957556 | AD48: =IF(AC48="","",AVERAGE(([1]!AgePb7U5($P48)-[1]!AgePb7U5($P48-$P48*Q48/100)),([1]!AgePb7U5($P48+$P48*Q48/100)-[1]!AgePb7U5($P48)))) -> 52.45651385 | AE48: =IF(AD48="","",AVERAGE(([1]!AgePb7U5($P48)-[1]!AgePb7U5($P48-$P48*#REF!/100)),([1]!AgePb7U5($P48+$P48*#REF!/100)-[1]!AgePb7U5($P48)))) -> 53.7424531 | AF48: NA | AG48: NA | AH48: NA | AI48: 0.6182308141 | AJ48: -2.948716468 | AL48: 1214.417156 | AM48: 23.38402338 | AN48: 1.92553467 | AO48: 27.7576758 | AP48: 2.287264248
A49: UK010 | B49: UK010_62 | C49: NA | D49: 1060 | E49: 13780 | F49: 276 | G49: 2.782258065 | H49: NA | I49: NA | J49: 4.752851711 | K49: 1.500833325 | L49: 0.081 | M49: 3.238835183 | N49: NA | O49: NA | P49: 2.349806112 | Q49: 3.569671415 | R49: 0.2104 | S49: 1.500833325 | T49: 0.44233 | U49: NA | V49: NA | W49: 1221.44438 | X49: =IF(W49="","",AVERAGE(([1]!AgePb76(L49)-[1]!AgePb76(L49-L49*M49/100)),([1]!AgePb76(L49+L49*M49/100)-[1]!AgePb76(L49)))) -> 63.68661604 | Y49: =IF(X49="","",AVERAGE(([1]!AgePb76($L49)-[1]!AgePb76($L49-$L49*#REF!/100)),([1]!AgePb76($L49+$L49*#REF!/100)-[1]!AgePb76($L49)))) -> 66.41104938 | Z49: 1230.948483 | AA49: =IF(Z49="","",AVERAGE(([1]!AgePb6U8($R49)-[1]!AgePb6U8($R49-$R49*S49/100)),([1]!AgePb6U8($R49+$R49*S49/100)-[1]!AgePb6U8($R49)))) -> 16.81777259 | AB49: =IF(AA49="","",AVERAGE(([1]!AgePb6U8($R49)-[1]!AgePb6U8($R49-$R49*#REF!/100)),([1]!AgePb6U8($R49+$R49*#REF!/100)-[1]!AgePb6U8($R49)))) -> 22.6290218 | AC49: 1227.499078 | AD49: =IF(AC49="","",AVERAGE(([1]!AgePb7U5($P49)-[1]!AgePb7U5($P49-$P49*Q49/100)),([1]!AgePb7U5($P49+$P49*Q49/100)-[1]!AgePb7U5($P49)))) -> 25.43087515 | AE49: =IF(AD49="","",AVERAGE(([1]!AgePb7U5($P49)-[1]!AgePb7U5($P49-$P49*#REF!/100)),([1]!AgePb7U5($P49+$P49*#REF!/100)-[1]!AgePb7U5($P49)))) -> 28.0343657 | AF49: NA | AG49: NA | AH49: NA | AI49: 0.768577181 | AJ49: -0.7781036317 | AL49: 1230.948483 | AM49: 16.81777259 | AN49: 1.366245039 | AO49: 22.6290218 | AP49: 1.839224994
A50: UK010 | B50: UK010_157 | C50: NA | D50: 3510 | E50: 41200 | F50: 734 | G50: 1.649438202 | H50: NA | I50: NA | J50: 4.385964912 | K50: 1.406325983 | L50: 0.0865 | M50: 1.85362294 | N50: NA | O50: NA | P50: 2.71926936 | Q50: 2.326729631 | R50: 0.228 | S50: 1.406325983 | T50: 0.50741 | U50: NA | V50: NA | W50: 1349.37967 | X50: =IF(W50="","",AVERAGE(([1]!AgePb76(L50)-[1]!AgePb76(L50-L50*M50/100)),([1]!AgePb76(L50+L50*M50/100)-[1]!AgePb76(L50)))) -> 35.78058284 | Y50: =IF(X50="","",AVERAGE(([1]!AgePb76($L50)-[1]!AgePb76($L50-$L50*#REF!/100)),([1]!AgePb76($L50+$L50*#REF!/100)-[1]!AgePb76($L50)))) -> 40.26863336 | Z50: 1324.008572 | AA50: =IF(Z50="","",AVERAGE(([1]!AgePb6U8($R50)-[1]!AgePb6U8($R50-$R50*S50/100)),([1]!AgePb6U8($R50+$R50*S50/100)-[1]!AgePb6U8($R50)))) -> 16.83223064 | AB50: =IF(AA50="","",AVERAGE(([1]!AgePb6U8($R50)-[1]!AgePb6U8($R50-$R50*#REF!/100)),([1]!AgePb6U8($R50+$R50*#REF!/100)-[1]!AgePb6U8($R50)))) -> 23.34209801 | AC50: 1333.7333 | AD50: =IF(AC50="","",AVERAGE(([1]!AgePb7U5($P50)-[1]!AgePb7U5($P50-$P50*Q50/100)),([1]!AgePb7U5($P50+$P50*Q50/100)-[1]!AgePb7U5($P50)))) -> 17.27477211 | AE50: =IF(AD50="","",AVERAGE(([1]!AgePb7U5($P50)-[1]!AgePb7U5($P50-$P50*#REF!/100)),([1]!AgePb7U5($P50+$P50*#REF!/100)-[1]!AgePb7U5($P50)))) -> 21.20294404 | AF50: NA | AG50: NA | AH50: NA | AI50: 0.2511913372 | AJ50: 1.880204566 | AL50: 1324.008572 | AM50: 16.83223064 | AN50: 1.271308283 | AO50: 23.34209801 | AP50: 1.756939606
A51: UK010 | B51: UK010_101 | C51: NA | D51: 1151 | E51: 13660 | F51: 243 | G51: 2.131578947 | H51: NA | I51: NA | J51: 4.286326618 | K51: 1.451628853 | L51: 0.0858 | M51: 3.344453762 | N51: NA | O51: NA | P51: 2.759963263 | Q51: 3.645901437 | R51: 0.2333 | S51: 1.451628853 | T51: 0.36735 | U51: NA | V51: NA | W51: 1333.680755 | X51: =IF(W51="","",AVERAGE(([1]!AgePb76(L51)-[1]!AgePb76(L51-L51*M51/100)),([1]!AgePb76(L51+L51*M51/100)-[1]!AgePb76(L51)))) -> 64.72570397 | Y51: =IF(X51="","",AVERAGE(([1]!AgePb76($L51)-[1]!AgePb76($L51-$L51*#REF!/100)),([1]!AgePb76($L51+$L51*#REF!/100)-[1]!AgePb76($L51)))) -> 67.32591273 | Z51: 1351.771175 | AA51: =IF(Z51="","",AVERAGE(([1]!AgePb6U8($R51)-[1]!AgePb6U8($R51-$R51*S51/100)),([1]!AgePb6U8($R51+$R51*S51/100)-[1]!AgePb6U8($R51)))) -> 17.7019413 | AB51: =IF(AA51="","",AVERAGE(([1]!AgePb6U8($R51)-[1]!AgePb6U8($R51-$R51*#REF!/100)),([1]!AgePb6U8($R51+$R51*#REF!/100)-[1]!AgePb6U8($R51)))) -> 24.183471 | AC51: 1344.782644 | AD51: =IF(AC51="","",AVERAGE(([1]!AgePb7U5($P51)-[1]!AgePb7U5($P51-$P51*Q51/100)),([1]!AgePb7U5($P51+$P51*Q51/100)-[1]!AgePb7U5($P51)))) -> 27.18055064 | AE51: =IF(AD51="","",AVERAGE(([1]!AgePb7U5($P51)-[1]!AgePb7U5($P51-$P51*#REF!/100)),([1]!AgePb7U5($P51+$P51*#REF!/100)-[1]!AgePb7U5($P51)))) -> 29.85333934 | AF51: NA | AG51: NA | AH51: NA | AI51: 0.5960686769 | AJ51: -1.356428112 | AL51: 1351.771175 | AM51: 17.7019413 | AN51: 1.309536823 | AO51: 24.183471 | AP51: 1.790858714
A52: UK010 | B52: UK010_227 | C52: NA | D52: 1369 | E52: 15730 | F52: 255 | G52: 1.103896104 | H52: NA | I52: NA | J52: 4.08496732 | K52: 1.445479063 | L52: 0.0888 | M52: 3.259609333 | N52: NA | O52: NA | P52: 2.997268531 | Q52: 3.565734529 | R52: 0.2448 | S52: 1.445479063 | T52: 0.14898 | U52: NA | V52: NA | W52: 1399.849252 | X52: =IF(W52="","",AVERAGE(([1]!AgePb76(L52)-[1]!AgePb76(L52-L52*M52/100)),([1]!AgePb76(L52+L52*M52/100)-[1]!AgePb76(L52)))) -> 62.50554661 | Y52: =IF(X52="","",AVERAGE(([1]!AgePb76($L52)-[1]!AgePb76($L52-$L52*#REF!/100)),([1]!AgePb76($L52+$L52*#REF!/100)-[1]!AgePb76($L52)))) -> 65.14611667 | Z52: 1411.602736 | AA52: =IF(Z52="","",AVERAGE(([1]!AgePb6U8($R52)-[1]!AgePb6U8($R52-$R52*S52/100)),([1]!AgePb6U8($R52+$R52*S52/100)-[1]!AgePb6U8($R52)))) -> 18.32495913 | AB52: =IF(AA52="","",AVERAGE(([1]!AgePb6U8($R52)-[1]!AgePb6U8($R52-$R52*#REF!/100)),([1]!AgePb6U8($R52+$R52*#REF!/100)-[1]!AgePb6U8($R52)))) -> 25.08410752 | AC52: 1406.926192 | AD52: =IF(AC52="","",AVERAGE(([1]!AgePb7U5($P52)-[1]!AgePb7U5($P52-$P52*Q52/100)),([1]!AgePb7U5($P52+$P52*Q52/100)-[1]!AgePb7U5($P52)))) -> 27.15468478 | AE52: =IF(AD52="","",AVERAGE(([1]!AgePb7U5($P52)-[1]!AgePb7U5($P52-$P52*#REF!/100)),([1]!AgePb7U5($P52+$P52*#REF!/100)-[1]!AgePb7U5($P52)))) -> 29.94069671 | AF52: NA | AG52: NA | AH52: NA | AI52: 0.7581207996 | AJ52: -0.8396250046 | AK52: DO | AL52: 1411.602736 | AM52: 18.32495913 | AN52: 1.298166875 | AO52: 25.08410752 | AP52: 1.778670542
A53: UK010 | B53: UK010_8 | C53: NA | D53: 454 | E53: 5110 | F53: 89.5 | G53: 1.267705382 | H53: NA | I53: NA | J53: 3.88048118 | K53: 1.720273329 | L53: 0.0931 | M53: 5.189231136 | N53: NA | O53: NA | P53: 3.307999036 | Q53: 5.466942483 | R53: 0.2577 | S53: 1.720273329 | T53: 0.36332 | U53: NA | V53: NA | W53: 1489.922436 | X53: =IF(W53="","",AVERAGE(([1]!AgePb76(L53)-[1]!AgePb76(L53-L53*M53/100)),([1]!AgePb76(L53+L53*M53/100)-[1]!AgePb76(L53)))) -> 98.37857135 | Y53: =IF(X53="","",AVERAGE(([1]!AgePb76($L53)-[1]!AgePb76($L53-$L53*#REF!/100)),([1]!AgePb76($L53+$L53*#REF!/100)-[1]!AgePb76($L53)))) -> 100.0417347 | Z53: 1478.063859 | AA53: =IF(Z53="","",AVERAGE(([1]!AgePb6U8($R53)-[1]!AgePb6U8($R53-$R53*S53/100)),([1]!AgePb6U8($R53+$R53*S53/100)-[1]!AgePb6U8($R53)))) -> 22.72243229 | AB53: =IF(AA53="","",AVERAGE(([1]!AgePb6U8($R53)-[1]!AgePb6U8($R53-$R53*#REF!/100)),([1]!AgePb6U8($R53+$R53*#REF!/100)-[1]!AgePb6U8($R53)))) -> 28.89327255 | AC53: 1482.940078 | AD53: =IF(AC53="","",AVERAGE(([1]!AgePb7U5($P53)-[1]!AgePb7U5($P53-$P53*Q53/100)),([1]!AgePb7U5($P53+$P53*Q53/100)-[1]!AgePb7U5($P53)))) -> 42.6500456 | AE53: =IF(AD53="","",AVERAGE(([1]!AgePb7U5($P53)-[1]!AgePb7U5($P53-$P53*#REF!/100)),([1]!AgePb7U5($P53+$P53*#REF!/100)-[1]!AgePb7U5($P53)))) -> 44.56542481 | AF53: NA | AG53: NA | AH53: NA | AI53: 0.8094528064 | AJ53: 0.7959191363 | AL53: 1478.063859 | AM53: 22.72243229 | AN53: 1.537310594 | AO53: 28.89327255 | AP53: 1.954164867
A54: UK010 | B54: UK010_107 | C54: NA | D54: 1386 | E54: 13960 | F54: 201.6 | G54: 2.414371257 | H54: NA | I54: NA | J54: 3.50140056 | K54: 1.41413788 | L54: 0.1011 | M54: 2.964656592 | N54: NA | O54: NA | P54: 3.981169181 | Q54: 3.284657464 | R54: 0.2856 | S54: 1.41413788 | T54: 0.35411 | U54: NA | V54: NA | W54: 1644.405986 | X54: =IF(W54="","",AVERAGE(([1]!AgePb76(L54)-[1]!AgePb76(L54-L54*M54/100)),([1]!AgePb76(L54+L54*M54/100)-[1]!AgePb76(L54)))) -> 55.02546653 | Y54: =IF(X54="","",AVERAGE(([1]!AgePb76($L54)-[1]!AgePb76($L54-$L54*#REF!/100)),([1]!AgePb76($L54+$L54*#REF!/100)-[1]!AgePb76($L54)))) -> 57.82317963 | Z54: 1619.503855 | AA54: =IF(Z54="","",AVERAGE(([1]!AgePb6U8($R54)-[1]!AgePb6U8($R54-$R54*S54/100)),([1]!AgePb6U8($R54+$R54*S54/100)-[1]!AgePb6U8($R54)))) -> 20.25180464 | AB54: =IF(AA54="","",AVERAGE(([1]!AgePb6U8($R54)-[1]!AgePb6U8($R54-$R54*#REF!/100)),([1]!AgePb6U8($R54+$R54*#REF!/100)-[1]!AgePb6U8($R54)))) -> 28.00985798 | AC54: 1630.364663 | AD54: =IF(AC54="","",AVERAGE(([1]!AgePb7U5($P54)-[1]!AgePb7U5($P54-$P54*Q54/100)),([1]!AgePb7U5($P54+$P54*Q54/100)-[1]!AgePb7U5($P54)))) -> 26.66239379 | AE54: =IF(AD54="","",AVERAGE(([1]!AgePb7U5($P54)-[1]!AgePb7U5($P54-$P54*#REF!/100)),([1]!AgePb7U5($P54+$P54*#REF!/100)-[1]!AgePb7U5($P54)))) -> 29.85974672 | AF54: NA | AG54: NA | AH54: NA | AI54: 0.4252671183 | AJ54: 1.514354243 | AL54: 1644.405986 | AM54: 55.02546653 | AN54: 3.346221492 | AO54: 57.82317963 | AP54: 3.563448391
A55: UK010 | B55: UK010_55 | C55: NA | D55: 3640 | E55: 34900 | F55: 515 | G55: 0.799689441 | H55: NA | I55: NA | J55: 3.347840643 | K55: 1.516849257 | L55: 0.1041 | M55: 1.989158933 | N55: NA | O55: NA | P55: 4.2873331 | Q55: 2.501516526 | R55: 0.2987 | S55: 1.516849257 | T55: 0.50072 | U55: NA | V55: NA | W55: 1698.469587 | X55: =IF(W55="","",AVERAGE(([1]!AgePb76(L55)-[1]!AgePb76(L55-L55*M55/100)),([1]!AgePb76(L55+L55*M55/100)-[1]!AgePb76(L55)))) -> 36.65739185 | Y55: =IF(X55="","",AVERAGE(([1]!AgePb76($L55)-[1]!AgePb76($L55-$L55*#REF!/100)),([1]!AgePb76($L55+$L55*#REF!/100)-[1]!AgePb76($L55)))) -> 40.67999454 | Z55: 1684.859076 | AA55: =IF(Z55="","",AVERAGE(([1]!AgePb6U8($R55)-[1]!AgePb6U8($R55-$R55*S55/100)),([1]!AgePb6U8($R55+$R55*S55/100)-[1]!AgePb6U8($R55)))) -> 22.48996465 | AB55: =IF(AA55="","",AVERAGE(([1]!AgePb6U8($R55)-[1]!AgePb6U8($R55-$R55*#REF!/100)),([1]!AgePb6U8($R55+$R55*#REF!/100)-[1]!AgePb6U8($R55)))) -> 30.11862052 | AC55: 1690.931592 | AD55: =IF(AC55="","",AVERAGE(([1]!AgePb7U5($P55)-[1]!AgePb7U5($P55-$P55*Q55/100)),([1]!AgePb7U5($P55+$P55*Q55/100)-[1]!AgePb7U5($P55)))) -> 20.59887087 | AE55: =IF(AD55="","",AVERAGE(([1]!AgePb7U5($P55)-[1]!AgePb7U5($P55-$P55*#REF!/100)),([1]!AgePb7U5($P55+$P55*#REF!/100)-[1]!AgePb7U5($P55)))) -> 24.70347666 | AF55: NA | AG55: NA | AH55: NA | AI55: 0.5738863338 | AJ55: 0.8013396855 | AL55: 1698.469587 | AM55: 36.65739185 | AN55: 2.158260127 | AO55: 40.67999454 | AP55: 2.409365674
A56: UK010 | B56: UK010_7 | C56: NA | D56: 227 | E56: 2220 | F56: 30.2 | G56: 3.199152542 | H56: NA | I56: NA | J56: 2.941176471 | K56: 3.533563734 | L56: 0.108 | M56: 8.151168759 | N56: NA | O56: NA | P56: 5.0629536 | Q56: 8.884122061 | R56: 0.34 | S56: 3.533563734 | T56: 0.43408 | U56: NA | V56: NA | W56: 1765.948446 | X56: =IF(W56="","",AVERAGE(([1]!AgePb76(L56)-[1]!AgePb76(L56-L56*M56/100)),([1]!AgePb76(L56+L56*M56/100)-[1]!AgePb76(L56)))) -> 149.4019668 | Y56: =IF(X56="","",AVERAGE(([1]!AgePb76($L56)-[1]!AgePb76($L56-$L56*#REF!/100)),([1]!AgePb76($L56+$L56*#REF!/100)-[1]!AgePb76($L56)))) -> 150.4345746 | Z56: 1886.66955 | AA56: =IF(Z56="","",AVERAGE(([1]!AgePb6U8($R56)-[1]!AgePb6U8($R56-$R56*S56/100)),([1]!AgePb6U8($R56+$R56*S56/100)-[1]!AgePb6U8($R56)))) -> 57.79854296 | AB56: =IF(AA56="","",AVERAGE(([1]!AgePb6U8($R56)-[1]!AgePb6U8($R56-$R56*#REF!/100)),([1]!AgePb6U8($R56+$R56*#REF!/100)-[1]!AgePb6U8($R56)))) -> 61.88007912 | AC56: 1829.920368 | AD56: =IF(AC56="","",AVERAGE(([1]!AgePb7U5($P56)-[1]!AgePb7U5($P56-$P56*Q56/100)),([1]!AgePb7U5($P56+$P56*Q56/100)-[1]!AgePb7U5($P56)))) -> 75.46799365 | AE56: =IF(AD56="","",AVERAGE(([1]!AgePb7U5($P56)-[1]!AgePb7U5($P56-$P56*#REF!/100)),([1]!AgePb7U5($P56+$P56*#REF!/100)-[1]!AgePb7U5($P56)))) -> 76.77224626 | AF56: NA | AG56: NA | AH56: NA | AI56: 0.1117828178 | AJ56: -6.836049144 | AK56: DO | AL56: 1765.948446 | AM56: 149.4019668 | AN56: 8.460154493 | AO56: 150.4345746 | AP56: 8.047380661
A57: UK010 | B57: UK010_142 | C57: NA | D57: 176 | E57: 1638 | F57: 20.9 | G57: 0.6720257235 | H57: NA | I57: NA | J57: 3.086419753 | K57: 2.812482112 | L57: 0.108 | M57: 8.884464902 | N57: NA | O57: NA | P57: 4.82469696 | Q57: 9.319000602 | R57: 0.324 | S57: 2.812482112 | T57: 0.28847 | U57: NA | V57: NA | W57: 1765.948446 | X57: =IF(W57="","",AVERAGE(([1]!AgePb76(L57)-[1]!AgePb76(L57-L57*M57/100)),([1]!AgePb76(L57+L57*M57/100)-[1]!AgePb76(L57)))) -> 162.9416859 | Y57: =IF(X57="","",AVERAGE(([1]!AgePb76($L57)-[1]!AgePb76($L57-$L57*#REF!/100)),([1]!AgePb76($L57+$L57*#REF!/100)-[1]!AgePb76($L57)))) -> 163.8913121 | Z57: 1809.234214 | AA57: =IF(Z57="","",AVERAGE(([1]!AgePb6U8($R57)-[1]!AgePb6U8($R57-$R57*S57/100)),([1]!AgePb6U8($R57+$R57*S57/100)-[1]!AgePb6U8($R57)))) -> 44.36820481 | AB57: =IF(AA57="","",AVERAGE(([1]!AgePb6U8($R57)-[1]!AgePb6U8($R57-$R57*#REF!/100)),([1]!AgePb6U8($R57+$R57*#REF!/100)-[1]!AgePb6U8($R57)))) -> 49.22279525 | AC57: 1789.213559 | AD57: =IF(AC57="","",AVERAGE(([1]!AgePb7U5($P57)-[1]!AgePb7U5($P57-$P57*Q57/100)),([1]!AgePb7U5($P57+$P57*Q57/100)-[1]!AgePb7U5($P57)))) -> 78.53455053 | AE57: =IF(AD57="","",AVERAGE(([1]!AgePb7U5($P57)-[1]!AgePb7U5($P57-$P57*#REF!/100)),([1]!AgePb7U5($P57+$P57*#REF!/100)-[1]!AgePb7U5($P57)))) -> 79.76940908 | AF57: NA | AG57: NA | AH57: NA | AI57: 0.6058546098 | AJ57: -2.451134293 | AL57: 1765.948446 | AM57: 162.9416859 | AN57: 9.226865384 | AO57: 163.8913121 | AP57: 9.075106735
A58: UK010 | B58: UK010_144 | C58: NA | D58: 1470 | E58: 13930 | F58: 173 | G58: 1.116129032 | H58: NA | I58: NA | J58: 3.04414003 | K58: 1.295473303 | L58: 0.1086 | M58: 2.889499962 | N58: NA | O58: NA | P58: 4.918882788 | Q58: 3.166616666 | R58: 0.3285 | S58: 1.295473303 | T58: 0.46555 | U58: NA | V58: NA | W58: 1776.063947 | X58: =IF(W58="","",AVERAGE(([1]!AgePb76(L58)-[1]!AgePb76(L58-L58*M58/100)),([1]!AgePb76(L58+L58*M58/100)-[1]!AgePb76(L58)))) -> 52.74597192 | Y58: =IF(X58="","",AVERAGE(([1]!AgePb76($L58)-[1]!AgePb76($L58-$L58*#REF!/100)),([1]!AgePb76($L58+$L58*#REF!/100)-[1]!AgePb76($L58)))) -> 55.56535404 | Z58: 1831.107083 | AA58: =IF(Z58="","",AVERAGE(([1]!AgePb6U8($R58)-[1]!AgePb6U8($R58-$R58*S58/100)),([1]!AgePb6U8($R58+$R58*S58/100)-[1]!AgePb6U8($R58)))) -> 20.65009118 | AB58: =IF(AA58="","",AVERAGE(([1]!AgePb6U8($R58)-[1]!AgePb6U8($R58-$R58*#REF!/100)),([1]!AgePb6U8($R58+$R58*#REF!/100)-[1]!AgePb6U8($R58)))) -> 29.83787854 | AC58: 1805.501054 | AD58: =IF(AC58="","",AVERAGE(([1]!AgePb7U5($P58)-[1]!AgePb7U5($P58-$P58*Q58/100)),([1]!AgePb7U5($P58+$P58*Q58/100)-[1]!AgePb7U5($P58)))) -> 26.72713599 | AE58: =IF(AD58="","",AVERAGE(([1]!AgePb7U5($P58)-[1]!AgePb7U5($P58-$P58*#REF!/100)),([1]!AgePb7U5($P58+$P58*#REF!/100)-[1]!AgePb7U5($P58)))) -> 30.16178474 | AF58: NA | AG58: NA | AH58: NA | AI58: 0.03949776488 | AJ58: -3.099164051 | AL58: 1776.063947 | AM58: 52.74597192 | AN58: 2.969823919 | AO58: 55.56535404 | AP58: 3.046629917
A59: UK010 | B59: UK010_266 | C59: NA | D59: 722 | E59: 6710 | F59: 81 | G59: 1.824324324 | H59: NA | I59: NA | J59: 3.067484663 | K59: 2.097845562 | L59: 0.1096 | M59: 3.966391419 | N59: NA | O59: NA | P59: 4.926397248 | Q59: 4.487005336 | R59: 0.326 | S59: 2.097845562 | T59: 0.38349 | U59: NA | V59: NA | W59: 1792.771829 | X59: =IF(W59="","",AVERAGE(([1]!AgePb76(L59)-[1]!AgePb76(L59-L59*M59/100)),([1]!AgePb76(L59+L59*M59/100)-[1]!AgePb76(L59)))) -> 72.28041431 | Y59: =IF(X59="","",AVERAGE(([1]!AgePb76($L59)-[1]!AgePb76($L59-$L59*#REF!/100)),([1]!AgePb76($L59+$L59*#REF!/100)-[1]!AgePb76($L59)))) -> 74.35727636 | Z59: 1818.964653 | AA59: =IF(Z59="","",AVERAGE(([1]!AgePb6U8($R59)-[1]!AgePb6U8($R59-$R59*S59/100)),([1]!AgePb6U8($R59+$R59*S59/100)-[1]!AgePb6U8($R59)))) -> 33.2483154 | AB59: =IF(AA59="","",AVERAGE(([1]!AgePb6U8($R59)-[1]!AgePb6U8($R59-$R59*#REF!/100)),([1]!AgePb6U8($R59+$R59*#REF!/100)-[1]!AgePb6U8($R59)))) -> 39.5477408 | AC59: 1806.78934 | AD59: =IF(AC59="","",AVERAGE(([1]!AgePb7U5($P59)-[1]!AgePb7U5($P59-$P59*Q59/100)),([1]!AgePb7U5($P59+$P59*Q59/100)-[1]!AgePb7U5($P59)))) -> 37.89018149 | AE59: =IF(AD59="","",AVERAGE(([1]!AgePb7U5($P59)-[1]!AgePb7U5($P59-$P59*#REF!/100)),([1]!AgePb7U5($P59+$P59*#REF!/100)-[1]!AgePb7U5($P59)))) -> 40.38988082 | AF59: NA | AG59: NA | AH59: NA | AI59: 0.5385439318 | AJ59: -1.461023857 | AL59: 1792.771829 | AM59: 72.28041431 | AN59: 4.031768748 | AO59: 74.35727636 | AP59: 4.098886842
A60: UK010 | B60: UK010_239 | C60: NA | D60: 1366 | E60: 12640 | F60: 152 | G60: 1.160305344 | H60: NA | I60: NA | J60: 3.135779241 | K60: 1.451872934 | L60: 0.11 | M60: 2.954843157 | N60: NA | O60: NA | P60: 4.83669252 | Q60: 3.292268686 | R60: 0.3189 | S60: 1.451872934 | T60: 0.40814 | U60: NA | V60: NA | W60: 1799.40279 | X60: =IF(W60="","",AVERAGE(([1]!AgePb76(L60)-[1]!AgePb76(L60-L60*M60/100)),([1]!AgePb76(L60+L60*M60/100)-[1]!AgePb76(L60)))) -> 53.7846453 | Y60: =IF(X60="","",AVERAGE(([1]!AgePb76($L60)-[1]!AgePb76($L60-$L60*#REF!/100)),([1]!AgePb76($L60+$L60*#REF!/100)-[1]!AgePb76($L60)))) -> 56.53695013 | Z60: 1784.354913 | AA60: =IF(Z60="","",AVERAGE(([1]!AgePb6U8($R60)-[1]!AgePb6U8($R60-$R60*S60/100)),([1]!AgePb6U8($R60+$R60*S60/100)-[1]!AgePb6U8($R60)))) -> 22.6303489 | AB60: =IF(AA60="","",AVERAGE(([1]!AgePb6U8($R60)-[1]!AgePb6U8($R60-$R60*#REF!/100)),([1]!AgePb6U8($R60+$R60*#REF!/100)-[1]!AgePb6U8($R60)))) -> 30.91403512 | AC60: 1791.30252 | AD60: =IF(AC60="","",AVERAGE(([1]!AgePb7U5($P60)-[1]!AgePb7U5($P60-$P60*Q60/100)),([1]!AgePb7U5($P60+$P60*Q60/100)-[1]!AgePb7U5($P60)))) -> 27.70860303 | AE60: =IF(AD60="","",AVERAGE(([1]!AgePb7U5($P60)-[1]!AgePb7U5($P60-$P60*#REF!/100)),([1]!AgePb7U5($P60+$P60*#REF!/100)-[1]!AgePb7U5($P60)))) -> 31.01703225 | AF60: NA | AG60: NA | AH60: NA | AI60: 0.6165584683 | AJ60: 0.8362706533 | AL60: 1799.40279 | AM60: 53.7846453 | AN60: 2.989027559 | AO60: 56.53695013 | AP60: 3.164409306
A61: UK010 | B61: UK010_123 | C61: NA | D61: 3480 | E61: 32200 | F61: 430 | G61: 2.484113229 | H61: NA | I61: NA | J61: 3.196930946 | K61: 1.214218363 | L61: 0.1102 | M61: 1.776710687 | N61: NA | O61: NA | P61: 4.752800813 | Q61: 2.151982132 | R61: 0.3128 | S61: 1.214218363 | T61: 0.29883 | U61: NA | V61: NA | W61: 1802.707215 | X61: =IF(W61="","",AVERAGE(([1]!AgePb76(L61)-[1]!AgePb76(L61-L61*M61/100)),([1]!AgePb76(L61+L61*M61/100)-[1]!AgePb76(L61)))) -> 32.31823497 | Y61: =IF(X61="","",AVERAGE(([1]!AgePb76($L61)-[1]!AgePb76($L61-$L61*#REF!/100)),([1]!AgePb76($L61+$L61*#REF!/100)-[1]!AgePb76($L61)))) -> 36.7087829 | Z61: 1754.470658 | AA61: =IF(Z61="","",AVERAGE(([1]!AgePb6U8($R61)-[1]!AgePb6U8($R61-$R61*S61/100)),([1]!AgePb6U8($R61+$R61*S61/100)-[1]!AgePb6U8($R61)))) -> 18.6502385 | AB61: =IF(AA61="","",AVERAGE(([1]!AgePb6U8($R61)-[1]!AgePb6U8($R61-$R61*#REF!/100)),([1]!AgePb6U8($R61+$R61*#REF!/100)-[1]!AgePb6U8($R61)))) -> 27.90237748 | AC61: 1776.60236 | AD61: =IF(AC61="","",AVERAGE(([1]!AgePb7U5($P61)-[1]!AgePb7U5($P61-$P61*Q61/100)),([1]!AgePb7U5($P61+$P61*Q61/100)-[1]!AgePb7U5($P61)))) -> 18.0544646 | AE61: =IF(AD61="","",AVERAGE(([1]!AgePb7U5($P61)-[1]!AgePb7U5($P61-$P61*#REF!/100)),([1]!AgePb7U5($P61+$P61*#REF!/100)-[1]!AgePb7U5($P61)))) -> 22.78097991 | AF61: NA | AG61: NA | AH61: NA | AI61: 0.04214079116 | AJ61: 2.675784345 | AL61: 1802.707215 | AM61: 32.31823497 | AN61: 1.79276117 | AO61: 36.7087829 | AP61: 2.078769445
A62: UK010 | B62: UK010_249 | C62: NA | D62: 3300 | E62: 30700 | F62: 356 | G62: 0.4617380026 | H62: NA | I62: NA | J62: 2.997601918 | K62: 1.429297836 | L62: 0.1103 | M62: 1.914294141 | N62: NA | O62: NA | P62: 5.07344351 | Q62: 2.38901954 | R62: 0.3336 | S62: 1.429297836 | T62: 0.34806 | U62: NA | V62: NA | W62: 1804.356678 | X62: =IF(W62="","",AVERAGE(([1]!AgePb76(L62)-[1]!AgePb76(L62-L62*M62/100)),([1]!AgePb76(L62+L62*M62/100)-[1]!AgePb76(L62)))) -> 34.81466593 | Y62: =IF(X62="","",AVERAGE(([1]!AgePb76($L62)-[1]!AgePb76($L62-$L62*#REF!/100)),([1]!AgePb76($L62+$L62*#REF!/100)-[1]!AgePb76($L62)))) -> 38.9234406 | Z62: 1855.806946 | AA62: =IF(Z62="","",AVERAGE(([1]!AgePb6U8($R62)-[1]!AgePb6U8($R62-$R62*S62/100)),([1]!AgePb6U8($R62+$R62*S62/100)-[1]!AgePb6U8($R62)))) -> 23.04853082 | AB62: =IF(AA62="","",AVERAGE(([1]!AgePb6U8($R62)-[1]!AgePb6U8($R62-$R62*#REF!/100)),([1]!AgePb6U8($R62+$R62*#REF!/100)-[1]!AgePb6U8($R62)))) -> 31.71706803 | AC62: 1831.67563 | AD62: =IF(AC62="","",AVERAGE(([1]!AgePb7U5($P62)-[1]!AgePb7U5($P62-$P62*Q62/100)),([1]!AgePb7U5($P62+$P62*Q62/100)-[1]!AgePb7U5($P62)))) -> 20.26633002 | AE62: =IF(AD62="","",AVERAGE(([1]!AgePb7U5($P62)-[1]!AgePb7U5($P62-$P62*#REF!/100)),([1]!AgePb7U5($P62+$P62*#REF!/100)-[1]!AgePb7U5($P62)))) -> 24.6590224 | AF62: NA | AG62: NA | AH62: NA | AI62: 0.05168338872 | AJ62: -2.851446654 | AL62: 1804.356678 | AM62: 34.81466593 | AN62: 1.929478044 | AO62: 38.9234406 | AP62: 2.114018335
A63: UK010 | B63: UK010_75 | C63: NA | D63: 2509 | E63: 23010 | F63: 333 | G63: 7.585421412 | H63: NA | I63: NA | J63: 3.22684737 | K63: 1.486103913 | L63: 0.1104 | M63: 2.576108183 | N63: NA | O63: NA | P63: 4.717282925 | Q63: 2.974027271 | R63: 0.3099 | S63: 1.486103913 | T63: 0.24076 | U63: NA | V63: NA | W63: 1806.004312 | X63: =IF(W63="","",AVERAGE(([1]!AgePb76(L63)-[1]!AgePb76(L63-L63*M63/100)),([1]!AgePb76(L63+L63*M63/100)-[1]!AgePb76(L63)))) -> 46.84809382 | Y63: =IF(X63="","",AVERAGE(([1]!AgePb76($L63)-[1]!AgePb76($L63-$L63*#REF!/100)),([1]!AgePb76($L63+$L63*#REF!/100)-[1]!AgePb76($L63)))) -> 49.97767386 | Z63: 1740.214655 | AA63: =IF(Z63="","",AVERAGE(([1]!AgePb6U8($R63)-[1]!AgePb6U8($R63-$R63*S63/100)),([1]!AgePb6U8($R63+$R63*S63/100)-[1]!AgePb6U8($R63)))) -> 22.66483735 | AB63: =IF(AA63="","",AVERAGE(([1]!AgePb6U8($R63)-[1]!AgePb6U8($R63-$R63*#REF!/100)),([1]!AgePb6U8($R63+$R63*#REF!/100)-[1]!AgePb6U8($R63)))) -> 30.63222185 | AC63: 1770.313936 | AD63: =IF(AC63="","",AVERAGE(([1]!AgePb7U5($P63)-[1]!AgePb7U5($P63-$P63*Q63/100)),([1]!AgePb7U5($P63+$P63*Q63/100)-[1]!AgePb7U5($P63)))) -> 24.92093247 | AE63: =IF(AD63="","",AVERAGE(([1]!AgePb7U5($P63)-[1]!AgePb7U5($P63-$P63*#REF!/100)),([1]!AgePb7U5($P63+$P63*#REF!/100)-[1]!AgePb7U5($P63)))) -> 28.52422486 | AF63: NA | AG63: NA | AH63: NA | AI63: 0.04126789238 | AJ63: 3.642829416 | AK63: DO | AL63: 1806.004312 | AM63: 46.84809382 | AN63: 2.594018935 | AO63: 49.97767386 | AP63: 2.850824273
A64: UK010 | B64: UK010_17 | C64: NA | D64: 1180 | E64: 10810 | F64: 140 | G64: 1.210025929 | H64: NA | I64: NA | J64: 2.923976608 | K64: 2.150969887 | L64: 0.1106 | M64: 4.206280601 | N64: NA | O64: NA | P64: 5.215338576 | Q64: 4.724348416 | R64: 0.342 | S64: 2.150969887 | T64: 0.025242 | U64: NA | V64: NA | W64: 1809.294111 | X64: =IF(W64="","",AVERAGE(([1]!AgePb76(L64)-[1]!AgePb76(L64-L64*M64/100)),([1]!AgePb76(L64+L64*M64/100)-[1]!AgePb76(L64)))) -> 76.50360467 | Y64: =IF(X64="","",AVERAGE(([1]!AgePb76($L64)-[1]!AgePb76($L64-$L64*#REF!/100)),([1]!AgePb76($L64+$L64*#REF!/100)-[1]!AgePb76($L64)))) -> 78.46162241 | Z64: 1896.283891 | AA64: =IF(Z64="","",AVERAGE(([1]!AgePb6U8($R64)-[1]!AgePb6U8($R64-$R64*S64/100)),([1]!AgePb6U8($R64+$R64*S64/100)-[1]!AgePb6U8($R64)))) -> 35.33706506 | AB64: =IF(AA64="","",AVERAGE(([1]!AgePb6U8($R64)-[1]!AgePb6U8($R64-$R64*#REF!/100)),([1]!AgePb6U8($R64+$R64*#REF!/100)-[1]!AgePb6U8($R64)))) -> 41.7305566 | AC64: 1855.12535 | AD64: =IF(AC64="","",AVERAGE(([1]!AgePb7U5($P64)-[1]!AgePb7U5($P64-$P64*Q64/100)),([1]!AgePb7U5($P64+$P64*Q64/100)-[1]!AgePb7U5($P64)))) -> 40.27329854 | AE64: =IF(AD64="","",AVERAGE(([1]!AgePb7U5($P64)-[1]!AgePb7U5($P64-$P64*#REF!/100)),([1]!AgePb7U5($P64+$P64*#REF!/100)-[1]!AgePb7U5($P64)))) -> 42.67756033 | AF64: NA | AG64: NA | AH64: NA | AI64: 0.1174763263 | AJ64: -4.807940247 | AK64: DO | AL64: 1809.294111 | AM64: 76.50360467 | AN64: 4.228367528 | AO64: 78.46162241 | AP64: 4.177849264
A65: UK010 | B65: UK010_68 | C65: NA | D65: 441 | E65: 4000 | F65: 55.3 | G65: 0.4562706271 | H65: NA | I65: NA | J65: 3.194888179 | K65: 2.453892512 | L65: 0.1107 | M65: 5.642026844 | N65: NA | O65: NA | P65: 4.777417908 | Q65: 6.152564942 | R65: 0.313 | S65: 2.453892512 | T65: 0.23351 | U65: NA | V65: NA | W65: 1810.936284 | X65: =IF(W65="","",AVERAGE(([1]!AgePb76(L65)-[1]!AgePb76(L65-L65*M65/100)),([1]!AgePb76(L65+L65*M65/100)-[1]!AgePb76(L65)))) -> 102.6661374 | Y65: =IF(X65="","",AVERAGE(([1]!AgePb76($L65)-[1]!AgePb76($L65-$L65*#REF!/100)),([1]!AgePb76($L65+$L65*#REF!/100)-[1]!AgePb76($L65)))) -> 104.1367659 | Z65: 1755.452669 | AA65: =IF(Z65="","",AVERAGE(([1]!AgePb6U8($R65)-[1]!AgePb6U8($R65-$R65*S65/100)),([1]!AgePb6U8($R65+$R65*S65/100)-[1]!AgePb6U8($R65)))) -> 37.71015402 | AB65: =IF(AA65="","",AVERAGE(([1]!AgePb6U8($R65)-[1]!AgePb6U8($R65-$R65*#REF!/100)),([1]!AgePb6U8($R65+$R65*#REF!/100)-[1]!AgePb6U8($R65)))) -> 43.0488262 | AC65: 1780.938066 | AD65: =IF(AC65="","",AVERAGE(([1]!AgePb7U5($P65)-[1]!AgePb7U5($P65-$P65*Q65/100)),([1]!AgePb7U5($P65+$P65*Q65/100)-[1]!AgePb7U5($P65)))) -> 51.70358979 | AE65: =IF(AD65="","",AVERAGE(([1]!AgePb7U5($P65)-[1]!AgePb7U5($P65-$P65*#REF!/100)),([1]!AgePb7U5($P65+$P65*#REF!/100)-[1]!AgePb7U5($P65)))) -> 53.54628281 | AF65: NA | AG65: NA | AH65: NA | AI65: 0.3689927969 | AJ65: 3.063808213 | AL65: 1810.936284 | AM65: 102.6661374 | AN65: 5.669229685 | AO65: 104.1367659 | AP65: 5.906854932
A66: UK010 | B66: UK010_122 | C66: NA | D66: 5150 | E66: 48300 | F66: 617 | G66: 0.8690140845 | H66: NA | I66: NA | J66: 2.995805872 | K66: 1.182105822 | L66: 0.1108 | M66: 1.724269622 | N66: NA | O66: NA | P66: 5.099497315 | Q66: 2.090569278 | R66: 0.3338 | S66: 1.182105822 | T66: 0.10683 | U66: NA | V66: NA | W66: 1812.576644 | X66: =IF(W66="","",AVERAGE(([1]!AgePb76(L66)-[1]!AgePb76(L66-L66*M66/100)),([1]!AgePb76(L66+L66*M66/100)-[1]!AgePb76(L66)))) -> 31.32611436 | Y66: =IF(X66="","",AVERAGE(([1]!AgePb76($L66)-[1]!AgePb76($L66-$L66*#REF!/100)),([1]!AgePb76($L66+$L66*#REF!/100)-[1]!AgePb76($L66)))) -> 35.82803609 | Z66: 1856.773642 | AA66: =IF(Z66="","",AVERAGE(([1]!AgePb6U8($R66)-[1]!AgePb6U8($R66-$R66*S66/100)),([1]!AgePb6U8($R66+$R66*S66/100)-[1]!AgePb6U8($R66)))) -> 19.07091137 | AB66: =IF(AA66="","",AVERAGE(([1]!AgePb6U8($R66)-[1]!AgePb6U8($R66-$R66*#REF!/100)),([1]!AgePb6U8($R66+$R66*#REF!/100)-[1]!AgePb6U8($R66)))) -> 28.96310773 | AC66: 1836.022095 | AD66: =IF(AC66="","",AVERAGE(([1]!AgePb7U5($P66)-[1]!AgePb7U5($P66-$P66*Q66/100)),([1]!AgePb7U5($P66+$P66*Q66/100)-[1]!AgePb7U5($P66)))) -> 17.74892391 | AE66: =IF(AD66="","",AVERAGE(([1]!AgePb7U5($P66)-[1]!AgePb7U5($P66-$P66*#REF!/100)),([1]!AgePb7U5($P66+$P66*#REF!/100)-[1]!AgePb7U5($P66)))) -> 22.64234021 | AF66: NA | AG66: NA | AH66: NA | AI66: 0.09135872548 | AJ66: -2.438351948 | AK66: Z | AL66: 1812.576644 | AM66: 31.32611436 | AN66: 1.728264262 | AO66: 35.82803609 | AP66: 1.941409923
A67: UK010 | B67: UK010_259 | C67: NA | D67: 1357 | E67: 12600 | F67: 146 | G67: 2.931726908 | H67: NA | I67: NA | J67: 3.012048193 | K67: 1.614552236 | L67: 0.1109 | M67: 3.031380717 | N67: NA | O67: NA | P67: 5.076576144 | Q67: 3.43453752 | R67: 0.332 | S67: 1.614552236 | T67: 0.008243 | U67: NA | V67: NA | W67: 1814.215196 | X67: =IF(W67="","",AVERAGE(([1]!AgePb76(L67)-[1]!AgePb76(L67-L67*M67/100)),([1]!AgePb76(L67+L67*M67/100)-[1]!AgePb76(L67)))) -> 55.0787979 | Y67: =IF(X67="","",AVERAGE(([1]!AgePb76($L67)-[1]!AgePb76($L67-$L67*#REF!/100)),([1]!AgePb76($L67+$L67*#REF!/100)-[1]!AgePb76($L67)))) -> 57.76016621 | Z67: 1848.068152 | AA67: =IF(Z67="","",AVERAGE(([1]!AgePb6U8($R67)-[1]!AgePb6U8($R67-$R67*S67/100)),([1]!AgePb6U8($R67+$R67*S67/100)-[1]!AgePb6U8($R67)))) -> 25.94218244 | AB67: =IF(AA67="","",AVERAGE(([1]!AgePb6U8($R67)-[1]!AgePb6U8($R67-$R67*#REF!/100)),([1]!AgePb6U8($R67+$R67*#REF!/100)-[1]!AgePb6U8($R67)))) -> 33.8278574 | AC67: 1832.199221 | AD67: =IF(AC67="","",AVERAGE(([1]!AgePb7U5($P67)-[1]!AgePb7U5($P67-$P67*Q67/100)),([1]!AgePb7U5($P67+$P67*Q67/100)-[1]!AgePb7U5($P67)))) -> 29.14267172 | AE67: =IF(AD67="","",AVERAGE(([1]!AgePb7U5($P67)-[1]!AgePb7U5($P67-$P67*#REF!/100)),([1]!AgePb7U5($P67+$P67*#REF!/100)-[1]!AgePb7U5($P67)))) -> 32.35414423 | AF67: NA | AG67: NA | AH67: NA | AI67: 0.4129557705 | AJ67: -1.865983529 | AL67: 1814.215196 | AM67: 55.0787979 | AN67: 3.035957258 | AO67: 57.76016621 | AP67: 3.137434289
A68: UK010 | B68: UK010_150 | C68: NA | D68: 3470 | E68: 32000 | F68: 422 | G68: 1.159340659 | H68: NA | I68: NA | J68: 3.13283208 | K68: 1.242650946 | L68: 0.1111 | M68: 2.050918687 | N68: NA | O68: NA | P68: 4.889654986 | Q68: 2.398009348 | R68: 0.3192 | S68: 1.242650946 | T68: 0.22944 | U68: NA | V68: NA | W68: 1817.486887 | X68: =IF(W68="","",AVERAGE(([1]!AgePb76(L68)-[1]!AgePb76(L68-L68*M68/100)),([1]!AgePb76(L68+L68*M68/100)-[1]!AgePb76(L68)))) -> 37.24041484 | Y68: =IF(X68="","",AVERAGE(([1]!AgePb76($L68)-[1]!AgePb76($L68-$L68*#REF!/100)),([1]!AgePb76($L68+$L68*#REF!/100)-[1]!AgePb76($L68)))) -> 41.09597955 | Z68: 1785.821062 | AA68: =IF(Z68="","",AVERAGE(([1]!AgePb6U8($R68)-[1]!AgePb6U8($R68-$R68*S68/100)),([1]!AgePb6U8($R68+$R68*S68/100)-[1]!AgePb6U8($R68)))) -> 19.38299613 | AB68: =IF(AA68="","",AVERAGE(([1]!AgePb6U8($R68)-[1]!AgePb6U8($R68-$R68*#REF!/100)),([1]!AgePb6U8($R68+$R68*#REF!/100)-[1]!AgePb6U8($R68)))) -> 28.63348202 | AC68: 1800.47461 | AD68: =IF(AC68="","",AVERAGE(([1]!AgePb7U5($P68)-[1]!AgePb7U5($P68-$P68*Q68/100)),([1]!AgePb7U5($P68+$P68*Q68/100)-[1]!AgePb7U5($P68)))) -> 20.21745716 | AE68: =IF(AD68="","",AVERAGE(([1]!AgePb7U5($P68)-[1]!AgePb7U5($P68-$P68*#REF!/100)),([1]!AgePb7U5($P68+$P68*#REF!/100)-[1]!AgePb7U5($P68)))) -> 24.56965373 | AF68: NA | AG68: NA | AH68: NA | AI68: 0.2341060176 | AJ68: 1.742286307 | AL68: 1817.486887 | AM68: 37.24041484 | AN68: 2.049005971 | AO68: 41.09597955 | AP68: 2.292430322
A69: UK010 | B69: UK010_209 | C69: NA | D69: 1608 | E69: 14870 | F69: 187 | G69: 0.9689119171 | H69: NA | I69: NA | J69: 2.989536622 | K69: 1.666401475 | L69: 0.1112 | M69: 2.858630971 | N69: NA | O69: NA | P69: 5.128639632 | Q69: 3.308876683 | R69: 0.3345 | S69: 1.666401475 | T69: 0.36495 | U69: NA | V69: NA | W69: 1819.120035 | X69: =IF(W69="","",AVERAGE(([1]!AgePb76(L69)-[1]!AgePb76(L69-L69*M69/100)),([1]!AgePb76(L69+L69*M69/100)-[1]!AgePb76(L69)))) -> 51.90630909 | Y69: =IF(X69="","",AVERAGE(([1]!AgePb76($L69)-[1]!AgePb76($L69-$L69*#REF!/100)),([1]!AgePb76($L69+$L69*#REF!/100)-[1]!AgePb76($L69)))) -> 54.73943225 | Z69: 1860.155938 | AA69: =IF(Z69="","",AVERAGE(([1]!AgePb6U8($R69)-[1]!AgePb6U8($R69-$R69*S69/100)),([1]!AgePb6U8($R69+$R69*S69/100)-[1]!AgePb6U8($R69)))) -> 26.92637665 | AB69: =IF(AA69="","",AVERAGE(([1]!AgePb6U8($R69)-[1]!AgePb6U8($R69-$R69*#REF!/100)),([1]!AgePb6U8($R69+$R69*#REF!/100)-[1]!AgePb6U8($R69)))) -> 34.6654263 | AC69: 1840.861863 | AD69: =IF(AC69="","",AVERAGE(([1]!AgePb7U5($P69)-[1]!AgePb7U5($P69-$P69*Q69/100)),([1]!AgePb7U5($P69+$P69*Q69/100)-[1]!AgePb7U5($P69)))) -> 28.12286892 | AE69: =IF(AD69="","",AVERAGE(([1]!AgePb7U5($P69)-[1]!AgePb7U5($P69-$P69*#REF!/100)),([1]!AgePb7U5($P69+$P69*#REF!/100)-[1]!AgePb7U5($P69)))) -> 31.44897043 | AF69: NA | AG69: NA | AH69: NA | AI69: 0.2126049077 | AJ69: -2.255810599 | AL69: 1819.120035 | AM69: 51.90630909 | AN69: 2.853374603 | AO69: 54.73943225 | AP69: 2.957258995
A70: UK010 | B70: UK010_264 | C70: NA | D70: 2210 | E70: 20600 | F70: 228 | G70: 1.425 | H70: NA | I70: NA | J70: 2.981514609 | K70: 1.479537564 | L70: 0.1112 | M70: 2.336200572 | N70: NA | O70: NA | P70: 5.142438662 | Q70: 2.765296461 | R70: 0.3354 | S70: 1.479537564 | T70: 0.3062 | U70: NA | V70: NA | W70: 1819.120035 | X70: =IF(W70="","",AVERAGE(([1]!AgePb76(L70)-[1]!AgePb76(L70-L70*M70/100)),([1]!AgePb76(L70+L70*M70/100)-[1]!AgePb76(L70)))) -> 42.41461829 | Y70: =IF(X70="","",AVERAGE(([1]!AgePb76($L70)-[1]!AgePb76($L70-$L70*#REF!/100)),([1]!AgePb76($L70+$L70*#REF!/100)-[1]!AgePb76($L70)))) -> 45.8364793 | Z70: 1864.501998 | AA70: =IF(Z70="","",AVERAGE(([1]!AgePb6U8($R70)-[1]!AgePb6U8($R70-$R70*S70/100)),([1]!AgePb6U8($R70+$R70*S70/100)-[1]!AgePb6U8($R70)))) -> 23.95509442 | AB70: =IF(AA70="","",AVERAGE(([1]!AgePb6U8($R70)-[1]!AgePb6U8($R70-$R70*#REF!/100)),([1]!AgePb6U8($R70+$R70*#REF!/100)-[1]!AgePb6U8($R70)))) -> 32.44116164 | AC70: 1843.145494 | AD70: =IF(AC70="","",AVERAGE(([1]!AgePb7U5($P70)-[1]!AgePb7U5($P70-$P70*Q70/100)),([1]!AgePb7U5($P70+$P70*Q70/100)-[1]!AgePb7U5($P70)))) -> 23.51134683 | AE70: =IF(AD70="","",AVERAGE(([1]!AgePb7U5($P70)-[1]!AgePb7U5($P70-$P70*#REF!/100)),([1]!AgePb7U5($P70+$P70*#REF!/100)-[1]!AgePb7U5($P70)))) -> 27.40507269 | AF70: NA | AG70: NA | AH70: NA | AI70: 0.1257948367 | AJ70: -2.494720625 | AL70: 1819.120035 | AM70: 42.41461829 | AN70: 2.331600855 | AO70: 45.8364793 | AP70: 2.473124721
A71: UK010 | B71: UK010_120 | C71: NA | D71: 1050 | E71: 9720 | F71: 122.9 | G71: 0.4975708502 | H71: NA | I71: NA | J71: 3.020235578 | K71: 1.581831798 | L71: 0.1113 | M71: 3.192205768 | N71: NA | O71: NA | P71: 5.081075168 | Q71: 3.562635191 | R71: 0.3311 | S71: 1.581831798 | T71: 0.58031 | U71: NA | V71: NA | W71: 1820.75139 | X71: =IF(W71="","",AVERAGE(([1]!AgePb76(L71)-[1]!AgePb76(L71-L71*M71/100)),([1]!AgePb76(L71+L71*M71/100)-[1]!AgePb76(L71)))) -> 57.95733705 | Y71: =IF(X71="","",AVERAGE(([1]!AgePb76($L71)-[1]!AgePb76($L71-$L71*#REF!/100)),([1]!AgePb76($L71+$L71*#REF!/100)-[1]!AgePb76($L71)))) -> 60.50776854 | Z71: 1843.710995 | AA71: =IF(Z71="","",AVERAGE(([1]!AgePb6U8($R71)-[1]!AgePb6U8($R71-$R71*S71/100)),([1]!AgePb6U8($R71+$R71*S71/100)-[1]!AgePb6U8($R71)))) -> 25.3646717 | AB71: =IF(AA71="","",AVERAGE(([1]!AgePb6U8($R71)-[1]!AgePb6U8($R71-$R71*#REF!/100)),([1]!AgePb6U8($R71+$R71*#REF!/100)-[1]!AgePb6U8($R71)))) -> 33.35828854 | AC71: 1832.950721 | AD71: =IF(AC71="","",AVERAGE(([1]!AgePb7U5($P71)-[1]!AgePb7U5($P71-$P71*Q71/100)),([1]!AgePb7U5($P71+$P71*Q71/100)-[1]!AgePb7U5($P71)))) -> 30.2346427 | AE71: =IF(AD71="","",AVERAGE(([1]!AgePb7U5($P71)-[1]!AgePb7U5($P71-$P71*#REF!/100)),([1]!AgePb7U5($P71+$P71*#REF!/100)-[1]!AgePb7U5($P71)))) -> 33.34221186 | AF71: NA | AG71: NA | AH71: NA | AI71: 0.4035606762 | AJ71: -1.260996155 | AL71: 1820.75139 | AM71: 57.95733705 | AN71: 3.183154898 | AO71: 60.50776854 | AP71: 3.287703055
A72: UK010 | B72: UK010_175 | C72: NA | D72: 1287 | E72: 11680 | F72: 149 | G72: 0.7563451777 | H72: NA | I72: NA | J72: 3.075976623 | K72: 1.587424516 | L72: 0.1118 | M72: 3.080656771 | N72: NA | O72: NA | P72: 5.011411298 | Q72: 3.465597024 | R72: 0.3251 | S72: 1.587424516 | T72: 0.48765 | U72: NA | V72: NA | W72: 1828.881392 | X72: =IF(W72="","",AVERAGE(([1]!AgePb76(L72)-[1]!AgePb76(L72-L72*M72/100)),([1]!AgePb76(L72+L72*M72/100)-[1]!AgePb76(L72)))) -> 55.87469547 | Y72: =IF(X72="","",AVERAGE(([1]!AgePb76($L72)-[1]!AgePb76($L72-$L72*#REF!/100)),([1]!AgePb76($L72+$L72*#REF!/100)-[1]!AgePb76($L72)))) -> 58.51050008 | Z72: 1814.587773 | AA72: =IF(Z72="","",AVERAGE(([1]!AgePb6U8($R72)-[1]!AgePb6U8($R72-$R72*S72/100)),([1]!AgePb6U8($R72+$R72*S72/100)-[1]!AgePb6U8($R72)))) -> 25.10624716 | AB72: =IF(AA72="","",AVERAGE(([1]!AgePb6U8($R72)-[1]!AgePb6U8($R72-$R72*#REF!/100)),([1]!AgePb6U8($R72+$R72*#REF!/100)-[1]!AgePb6U8($R72)))) -> 32.96939774 | AC72: 1821.251506 | AD72: =IF(AC72="","",AVERAGE(([1]!AgePb7U5($P72)-[1]!AgePb7U5($P72-$P72*Q72/100)),([1]!AgePb7U5($P72+$P72*Q72/100)-[1]!AgePb7U5($P72)))) -> 29.34353651 | AE72: =IF(AD72="","",AVERAGE(([1]!AgePb7U5($P72)-[1]!AgePb7U5($P72-$P72*#REF!/100)),([1]!AgePb7U5($P72+$P72*#REF!/100)-[1]!AgePb7U5($P72)))) -> 32.52228178 | AF72: NA | AG72: NA | AH72: NA | AI72: 0.6320443576 | AJ72: 0.7815498158 | AK72: DO | AL72: 1828.881392 | AM72: 55.87469547 | AN72: 3.055129529 | AO72: 58.51050008 | AP72: 3.22034477
A73: UK010 | B73: UK010_205 | C73: NA | D73: 2140 | E73: 19670 | F73: 249 | G73: 1.414772727 | H73: NA | I73: NA | J73: 3.07503075 | K73: 1.504921871 | L73: 0.1119 | M73: 2.549713258 | N73: NA | O73: NA | P73: 5.017436654 | Q73: 2.960714025 | R73: 0.3252 | S73: 1.504921871 | T73: 0.45471 | U73: NA | V73: NA | W73: 1830.502065 | X73: =IF(W73="","",AVERAGE(([1]!AgePb76(L73)-[1]!AgePb76(L73-L73*M73/100)),([1]!AgePb76(L73+L73*M73/100)-[1]!AgePb76(L73)))) -> 46.22906485 | Y73: =IF(X73="","",AVERAGE(([1]!AgePb76($L73)-[1]!AgePb76($L73-$L73*#REF!/100)),([1]!AgePb76($L73+$L73*#REF!/100)-[1]!AgePb76($L73)))) -> 49.37946375 | Z73: 1815.07424 | AA73: =IF(Z73="","",AVERAGE(([1]!AgePb6U8($R73)-[1]!AgePb6U8($R73-$R73*S73/100)),([1]!AgePb6U8($R73+$R73*S73/100)-[1]!AgePb6U8($R73)))) -> 23.8069217 | AB73: =IF(AA73="","",AVERAGE(([1]!AgePb6U8($R73)-[1]!AgePb6U8($R73-$R73*#REF!/100)),([1]!AgePb6U8($R73+$R73*#REF!/100)-[1]!AgePb6U8($R73)))) -> 31.99434559 | AC73: 1822.268735 | AD73: =IF(AC73="","",AVERAGE(([1]!AgePb7U5($P73)-[1]!AgePb7U5($P73-$P73*Q73/100)),([1]!AgePb7U5($P73+$P73*Q73/100)-[1]!AgePb7U5($P73)))) -> 25.07176983 | AE73: =IF(AD73="","",AVERAGE(([1]!AgePb7U5($P73)-[1]!AgePb7U5($P73-$P73*#REF!/100)),([1]!AgePb7U5($P73+$P73*#REF!/100)-[1]!AgePb7U5($P73)))) -> 28.72749209 | AF73: NA | AG73: NA | AH73: NA | AI73: 0.5735665625 | AJ73: 0.8428193257 | AK73: DO | AL73: 1830.502065 | AM73: 46.22906485 | AN73: 2.525485534 | AO73: 49.37946375 | AP73: 2.715683478
A74: UK010 | B74: UK010_169 | C74: NA | D74: 3320 | E74: 30000 | F74: 364 | G74: 1.201320132 | H74: NA | I74: NA | J74: 3.054367746 | K74: 1.197065366 | L74: 0.112 | M74: 1.900139532 | N74: NA | O74: NA | P74: 5.055894144 | Q74: 2.245772859 | R74: 0.3274 | S74: 1.197065366 | T74: 0.41637 | U74: NA | V74: NA | W74: 1832.120971 | X74: =IF(W74="","",AVERAGE(([1]!AgePb76(L74)-[1]!AgePb76(L74-L74*M74/100)),([1]!AgePb76(L74+L74*M74/100)-[1]!AgePb76(L74)))) -> 34.44002135 | Y74: =IF(X74="","",AVERAGE(([1]!AgePb76($L74)-[1]!AgePb76($L74-$L74*#REF!/100)),([1]!AgePb76($L74+$L74*#REF!/100)-[1]!AgePb76($L74)))) -> 38.56208455 | Z74: 1825.767231 | AA74: =IF(Z74="","",AVERAGE(([1]!AgePb6U8($R74)-[1]!AgePb6U8($R74-$R74*S74/100)),([1]!AgePb6U8($R74+$R74*S74/100)-[1]!AgePb6U8($R74)))) -> 19.03330448 | AB74: =IF(AA74="","",AVERAGE(([1]!AgePb6U8($R74)-[1]!AgePb6U8($R74-$R74*#REF!/100)),([1]!AgePb6U8($R74+$R74*#REF!/100)-[1]!AgePb6U8($R74)))) -> 28.70193417 | AC74: 1828.737408 | AD74: =IF(AC74="","",AVERAGE(([1]!AgePb7U5($P74)-[1]!AgePb7U5($P74-$P74*Q74/100)),([1]!AgePb7U5($P74+$P74*Q74/100)-[1]!AgePb7U5($P74)))) -> 19.03997329 | AE74: =IF(AD74="","",AVERAGE(([1]!AgePb7U5($P74)-[1]!AgePb7U5($P74-$P74*#REF!/100)),([1]!AgePb7U5($P74+$P74*#REF!/100)-[1]!AgePb7U5($P74)))) -> 23.65641866 | AF74: NA | AG74: NA | AH74: NA | AI74: 0.7727686597 | AJ74: 0.346796935 | AL74: 1832.120971 | AM74: 34.44002135 | AN74: 1.879789703 | AO74: 38.56208455 | AP74: 2.110391358
A75: UK010 | B75: UK010_208 | C75: NA | D75: 3290 | E75: 29800 | F75: 375 | G75: 2.016129032 | H75: NA | I75: NA | J75: 3.015681544 | K75: 1.26242805 | L75: 0.112 | M75: 1.932709928 | N75: NA | O75: NA | P75: 5.120752896 | Q75: 2.308482672 | R75: 0.3316 | S75: 1.26242805 | T75: 0.74769 | U75: NA | V75: NA | W75: 1832.120971 | X75: =IF(W75="","",AVERAGE(([1]!AgePb76(L75)-[1]!AgePb76(L75-L75*M75/100)),([1]!AgePb76(L75+L75*M75/100)-[1]!AgePb76(L75)))) -> 35.03056926 | Y75: =IF(X75="","",AVERAGE(([1]!AgePb76($L75)-[1]!AgePb76($L75-$L75*#REF!/100)),([1]!AgePb76($L75+$L75*#REF!/100)-[1]!AgePb76($L75)))) -> 39.09050115 | Z75: 1846.132001 | AA75: =IF(Z75="","",AVERAGE(([1]!AgePb6U8($R75)-[1]!AgePb6U8($R75-$R75*S75/100)),([1]!AgePb6U8($R75+$R75*S75/100)-[1]!AgePb6U8($R75)))) -> 20.26595188 | AB75: =IF(AA75="","",AVERAGE(([1]!AgePb6U8($R75)-[1]!AgePb6U8($R75-$R75*#REF!/100)),([1]!AgePb6U8($R75+$R75*#REF!/100)-[1]!AgePb6U8($R75)))) -> 29.68466654 | AC75: 1839.55436 | AD75: =IF(AC75="","",AVERAGE(([1]!AgePb7U5($P75)-[1]!AgePb7U5($P75-$P75*Q75/100)),([1]!AgePb7U5($P75+$P75*Q75/100)-[1]!AgePb7U5($P75)))) -> 19.61279589 | AE75: =IF(AD75="","",AVERAGE(([1]!AgePb7U5($P75)-[1]!AgePb7U5($P75-$P75*#REF!/100)),([1]!AgePb7U5($P75+$P75*#REF!/100)-[1]!AgePb7U5($P75)))) -> 24.1371121 | AF75: NA | AG75: NA | AH75: NA | AI75: 0.3532186785 | AJ75: -0.7647437658 | AL75: 1832.120971 | AM75: 35.03056926 | AN75: 1.912022722 | AO75: 39.09050115 | AP75: 2.121745576
A76: UK010 | B76: UK010_10 | C76: NA | D76: 2144 | E76: 19310 | F76: 276 | G76: 1.126530612 | H76: NA | I76: NA | J76: 3.057169061 | K76: 1.641622672 | L76: 0.1123 | M76: 2.57359171 | N76: NA | O76: NA | P76: 5.06479154 | Q76: 3.052588948 | R76: 0.3271 | S76: 1.641622672 | T76: 0.56721 | U76: NA | V76: NA | W76: 1836.967121 | X76: =IF(W76="","",AVERAGE(([1]!AgePb76(L76)-[1]!AgePb76(L76-L76*M76/100)),([1]!AgePb76(L76+L76*M76/100)-[1]!AgePb76(L76)))) -> 46.62556303 | Y76: =IF(X76="","",AVERAGE(([1]!AgePb76($L76)-[1]!AgePb76($L76-$L76*#REF!/100)),([1]!AgePb76($L76+$L76*#REF!/100)-[1]!AgePb76($L76)))) -> 49.74616725 | Z76: 1824.31014 | AA76: =IF(Z76="","",AVERAGE(([1]!AgePb6U8($R76)-[1]!AgePb6U8($R76-$R76*S76/100)),([1]!AgePb6U8($R76+$R76*S76/100)-[1]!AgePb6U8($R76)))) -> 26.08379702 | AB76: =IF(AA76="","",AVERAGE(([1]!AgePb6U8($R76)-[1]!AgePb6U8($R76-$R76*#REF!/100)),([1]!AgePb6U8($R76+$R76*#REF!/100)-[1]!AgePb6U8($R76)))) -> 33.78263443 | AC76: 1830.228127 | AD76: =IF(AC76="","",AVERAGE(([1]!AgePb7U5($P76)-[1]!AgePb7U5($P76-$P76*Q76/100)),([1]!AgePb7U5($P76+$P76*Q76/100)-[1]!AgePb7U5($P76)))) -> 25.89035711 | AE76: =IF(AD76="","",AVERAGE(([1]!AgePb7U5($P76)-[1]!AgePb7U5($P76-$P76*#REF!/100)),([1]!AgePb7U5($P76+$P76*#REF!/100)-[1]!AgePb7U5($P76)))) -> 29.45520466 | AF76: NA | AG76: NA | AH76: NA | AI76: 0.6246308891 | AJ76: 0.689015123 | AK76: CL | AL76: 1836.967121 | AM76: 46.62556303 | AN76: 2.538181685 | AO76: 49.74616725 | AP76: 2.722384848
A77: UK010 | B77: UK010_226 | C77: NA | D77: 2270 | E77: 20780 | F77: 270.8 | G77: 0.3830268741 | H77: NA | I77: NA | J77: 3.173595684 | K77: 1.556277448 | L77: 0.1124 | M77: 2.748197314 | N77: NA | O77: NA | P77: 4.883329051 | Q77: 3.158257109 | R77: 0.3151 | S77: 1.556277448 | T77: 0.19803 | U77: NA | V77: NA | W77: 1838.578995 | X77: =IF(W77="","",AVERAGE(([1]!AgePb76(L77)-[1]!AgePb76(L77-L77*M77/100)),([1]!AgePb76(L77+L77*M77/100)-[1]!AgePb76(L77)))) -> 49.78133595 | Y77: =IF(X77="","",AVERAGE(([1]!AgePb76($L77)-[1]!AgePb76($L77-$L77*#REF!/100)),([1]!AgePb76($L77+$L77*#REF!/100)-[1]!AgePb76($L77)))) -> 52.71484651 | Z77: 1765.754768 | AA77: =IF(Z77="","",AVERAGE(([1]!AgePb6U8($R77)-[1]!AgePb6U8($R77-$R77*S77/100)),([1]!AgePb6U8($R77+$R77*S77/100)-[1]!AgePb6U8($R77)))) -> 24.03791902 | AB77: =IF(AA77="","",AVERAGE(([1]!AgePb6U8($R77)-[1]!AgePb6U8($R77-$R77*#REF!/100)),([1]!AgePb6U8($R77+$R77*#REF!/100)-[1]!AgePb6U8($R77)))) -> 31.83340842 | AC77: 1799.383426 | AD77: =IF(AC77="","",AVERAGE(([1]!AgePb7U5($P77)-[1]!AgePb7U5($P77-$P77*Q77/100)),([1]!AgePb7U5($P77+$P77*Q77/100)-[1]!AgePb7U5($P77)))) -> 26.62378239 | AE77: =IF(AD77="","",AVERAGE(([1]!AgePb7U5($P77)-[1]!AgePb7U5($P77-$P77*#REF!/100)),([1]!AgePb7U5($P77+$P77*#REF!/100)-[1]!AgePb7U5($P77)))) -> 30.06223526 | AF77: NA | AG77: NA | AH77: NA | AI77: 0.0372928918 | AJ77: 3.960897379 | AK77: Z | AL77: 1838.578995 | AM77: 49.78133595 | AN77: 2.707598427 | AO77: 52.71484651 | AP77: 2.961355613
A78: UK010 | B78: UK010_63 | C78: NA | D78: 2260 | E78: 20400 | F78: 277 | G78: 0.4261538462 | H78: NA | I78: NA | J78: 3.00932892 | K78: 1.520830669 | L78: 0.1126 | M78: 2.472175597 | N78: NA | O78: NA | P78: 5.159053202 | Q78: 2.902512378 | R78: 0.3323 | S78: 1.520830669 | T78: 0.74502 | U78: NA | V78: NA | W78: 1841.7975 | X78: =IF(W78="","",AVERAGE(([1]!AgePb76(L78)-[1]!AgePb76(L78-L78*M78/100)),([1]!AgePb76(L78+L78*M78/100)-[1]!AgePb76(L78)))) -> 44.76082664 | Y78: =IF(X78="","",AVERAGE(([1]!AgePb76($L78)-[1]!AgePb76($L78-$L78*#REF!/100)),([1]!AgePb76($L78+$L78*#REF!/100)-[1]!AgePb76($L78)))) -> 47.99882359 | Z78: 1849.519884 | AA78: =IF(Z78="","",AVERAGE(([1]!AgePb6U8($R78)-[1]!AgePb6U8($R78-$R78*S78/100)),([1]!AgePb6U8($R78+$R78*S78/100)-[1]!AgePb6U8($R78)))) -> 24.45284887 | AB78: =IF(AA78="","",AVERAGE(([1]!AgePb6U8($R78)-[1]!AgePb6U8($R78-$R78*#REF!/100)),([1]!AgePb6U8($R78+$R78*#REF!/100)-[1]!AgePb6U8($R78)))) -> 32.70943827 | AC78: 1845.888272 | AD78: =IF(AC78="","",AVERAGE(([1]!AgePb7U5($P78)-[1]!AgePb7U5($P78-$P78*Q78/100)),([1]!AgePb7U5($P78+$P78*Q78/100)-[1]!AgePb7U5($P78)))) -> 24.69139542 | AE78: =IF(AD78="","",AVERAGE(([1]!AgePb7U5($P78)-[1]!AgePb7U5($P78-$P78*#REF!/100)),([1]!AgePb7U5($P78+$P78*#REF!/100)-[1]!AgePb7U5($P78)))) -> 28.42784312 | AF78: NA | AG78: NA | AH78: NA | AI78: 0.6787990501 | AJ78: -0.4192851574 | AL78: 1841.7975 | AM78: 44.76082664 | AN78: 2.430279476 | AO78: 47.99882359 | AP78: 2.597679481
A79: UK010 | B79: UK010_104 | C79: NA | D79: 1295 | E79: 11770 | F79: 163.6 | G79: 0.7720622935 | H79: NA | I79: NA | J79: 3.039513678 | K79: 1.8217847 | L79: 0.1126 | M79: 3.909070147 | N79: NA | O79: NA | P79: 5.107819752 | Q79: 4.312740302 | R79: 0.329 | S79: 1.8217847 | T79: -0.062788 | U79: NA | V79: NA | W79: 1841.7975 | X79: =IF(W79="","",AVERAGE(([1]!AgePb76(L79)-[1]!AgePb76(L79-L79*M79/100)),([1]!AgePb76(L79+L79*M79/100)-[1]!AgePb76(L79)))) -> 70.80811187 | Y79: =IF(X79="","",AVERAGE(([1]!AgePb76($L79)-[1]!AgePb76($L79-$L79*#REF!/100)),([1]!AgePb76($L79+$L79*#REF!/100)-[1]!AgePb76($L79)))) -> 72.90179997 | Z79: 1833.532827 | AA79: =IF(Z79="","",AVERAGE(([1]!AgePb6U8($R79)-[1]!AgePb6U8($R79-$R79*S79/100)),([1]!AgePb6U8($R79+$R79*S79/100)-[1]!AgePb6U8($R79)))) -> 29.07295107 | AB79: =IF(AA79="","",AVERAGE(([1]!AgePb6U8($R79)-[1]!AgePb6U8($R79-$R79*#REF!/100)),([1]!AgePb6U8($R79+$R79*#REF!/100)-[1]!AgePb6U8($R79)))) -> 36.19638934 | AC79: 1837.406587 | AD79: =IF(AC79="","",AVERAGE(([1]!AgePb7U5($P79)-[1]!AgePb7U5($P79-$P79*Q79/100)),([1]!AgePb7U5($P79+$P79*Q79/100)-[1]!AgePb7U5($P79)))) -> 36.63709099 | AE79: =IF(AD79="","",AVERAGE(([1]!AgePb7U5($P79)-[1]!AgePb7U5($P79-$P79*#REF!/100)),([1]!AgePb7U5($P79+$P79*#REF!/100)-[1]!AgePb7U5($P79)))) -> 39.24660746 | AF79: NA | AG79: NA | AH79: NA | AI79: 0.8722964359 | AJ79: 0.4487286839 | AK79: DO | AL79: 1841.7975 | AM79: 70.80811187 | AN79: 3.844511237 | AO79: 72.90179997 | AP79: 3.972736557
A80: UK010 | B80: UK010_34 | C80: NA | D80: 947 | E80: 8490 | F80: 117.6 | G80: 3.510447761 | H80: NA | I80: NA | J80: 3.130870382 | K80: 1.807621403 | L80: 0.1127 | M80: 3.694671825 | N80: NA | O80: NA | P80: 4.963180874 | Q80: 4.113161197 | R80: 0.3194 | S80: 1.807621403 | T80: 0.42114 | U80: NA | V80: NA | W80: 1843.404139 | X80: =IF(W80="","",AVERAGE(([1]!AgePb76(L80)-[1]!AgePb76(L80-L80*M80/100)),([1]!AgePb76(L80+L80*M80/100)-[1]!AgePb76(L80)))) -> 66.90625366 | Y80: =IF(X80="","",AVERAGE(([1]!AgePb76($L80)-[1]!AgePb76($L80-$L80*#REF!/100)),([1]!AgePb76($L80+$L80*#REF!/100)-[1]!AgePb76($L80)))) -> 69.11670551 | Z80: 1786.79831 | AA80: =IF(Z80="","",AVERAGE(([1]!AgePb6U8($R80)-[1]!AgePb6U8($R80-$R80*S80/100)),([1]!AgePb6U8($R80+$R80*S80/100)-[1]!AgePb6U8($R80)))) -> 28.20894762 | AB80: =IF(AA80="","",AVERAGE(([1]!AgePb6U8($R80)-[1]!AgePb6U8($R80-$R80*#REF!/100)),([1]!AgePb6U8($R80+$R80*#REF!/100)-[1]!AgePb6U8($R80)))) -> 35.21858091 | AC80: 1813.072085 | AD80: =IF(AC80="","",AVERAGE(([1]!AgePb7U5($P80)-[1]!AgePb7U5($P80-$P80*Q80/100)),([1]!AgePb7U5($P80+$P80*Q80/100)-[1]!AgePb7U5($P80)))) -> 34.77422876 | AE80: =IF(AD80="","",AVERAGE(([1]!AgePb7U5($P80)-[1]!AgePb7U5($P80-$P80*#REF!/100)),([1]!AgePb7U5($P80+$P80*#REF!/100)-[1]!AgePb7U5($P80)))) -> 37.48808593 | AF80: NA | AG80: NA | AH80: NA | AI80: 0.1279915925 | AJ80: 3.07072269 | AL80: 1843.404139 | AM80: 66.90625366 | AN80: 3.629494599 | AO80: 69.11670551 | AP80: 3.850520559
A81: UK010 | B81: UK010_267 | C81: NA | D81: 2810 | E81: 25200 | F81: 291 | G81: 0.4483821263 | H81: NA | I81: NA | J81: 3.038590094 | K81: 1.344142266 | L81: 0.1127 | M81: 2.063084333 | N81: NA | O81: NA | P81: 5.113909912 | Q81: 2.462323171 | R81: 0.3291 | S81: 1.344142266 | T81: 0.40429 | U81: NA | V81: NA | W81: 1843.404139 | X81: =IF(W81="","",AVERAGE(([1]!AgePb76(L81)-[1]!AgePb76(L81-L81*M81/100)),([1]!AgePb76(L81+L81*M81/100)-[1]!AgePb76(L81)))) -> 37.34327956 | Y81: =IF(X81="","",AVERAGE(([1]!AgePb76($L81)-[1]!AgePb76($L81-$L81*#REF!/100)),([1]!AgePb76($L81+$L81*#REF!/100)-[1]!AgePb76($L81)))) -> 41.16615255 | Z81: 1834.017866 | AA81: =IF(Z81="","",AVERAGE(([1]!AgePb6U8($R81)-[1]!AgePb6U8($R81-$R81*S81/100)),([1]!AgePb6U8($R81+$R81*S81/100)-[1]!AgePb6U8($R81)))) -> 21.45533357 | AB81: =IF(AA81="","",AVERAGE(([1]!AgePb6U8($R81)-[1]!AgePb6U8($R81-$R81*#REF!/100)),([1]!AgePb6U8($R81+$R81*#REF!/100)-[1]!AgePb6U8($R81)))) -> 30.42170923 | AC81: 1838.418529 | AD81: =IF(AC81="","",AVERAGE(([1]!AgePb7U5($P81)-[1]!AgePb7U5($P81-$P81*Q81/100)),([1]!AgePb7U5($P81+$P81*Q81/100)-[1]!AgePb7U5($P81)))) -> 20.91560442 | AE81: =IF(AD81="","",AVERAGE(([1]!AgePb7U5($P81)-[1]!AgePb7U5($P81-$P81*#REF!/100)),([1]!AgePb7U5($P81+$P81*#REF!/100)-[1]!AgePb7U5($P81)))) -> 25.2057118 | AF81: NA | AG81: NA | AH81: NA | AI81: 0.7036432058 | AJ81: 0.5091815125 | AL81: 1843.404139 | AM81: 37.34327956 | AN81: 2.025778221 | AO81: 41.16615255 | AP81: 2.241792614
A82: UK010 | B82: UK010_218 | C82: NA | D82: 2490 | E82: 22700 | F82: 279 | G82: 1.125 | H82: NA | I82: NA | J82: 3.072196621 | K82: 1.469975456 | L82: 0.1129 | M82: 2.203691461 | N82: NA | O82: NA | P82: 5.066945226 | Q82: 2.648977896 | R82: 0.3255 | S82: 1.469975456 | T82: 0.5139 | U82: NA | V82: NA | W82: 1846.612207 | X82: =IF(W82="","",AVERAGE(([1]!AgePb76(L82)-[1]!AgePb76(L82-L82*M82/100)),([1]!AgePb76(L82+L82*M82/100)-[1]!AgePb76(L82)))) -> 39.87398657 | Y82: =IF(X82="","",AVERAGE(([1]!AgePb76($L82)-[1]!AgePb76($L82-$L82*#REF!/100)),([1]!AgePb76($L82+$L82*#REF!/100)-[1]!AgePb76($L82)))) -> 43.47260255 | Z82: 1816.53342 | AA82: =IF(Z82="","",AVERAGE(([1]!AgePb6U8($R82)-[1]!AgePb6U8($R82-$R82*S82/100)),([1]!AgePb6U8($R82+$R82*S82/100)-[1]!AgePb6U8($R82)))) -> 23.27027074 | AB82: =IF(AA82="","",AVERAGE(([1]!AgePb6U8($R82)-[1]!AgePb6U8($R82-$R82*#REF!/100)),([1]!AgePb6U8($R82+$R82*#REF!/100)-[1]!AgePb6U8($R82)))) -> 31.60711817 | AC82: 1830.588639 | AD82: =IF(AC82="","",AVERAGE(([1]!AgePb7U5($P82)-[1]!AgePb7U5($P82-$P82*Q82/100)),([1]!AgePb7U5($P82+$P82*Q82/100)-[1]!AgePb7U5($P82)))) -> 22.4675259 | AE82: =IF(AD82="","",AVERAGE(([1]!AgePb7U5($P82)-[1]!AgePb7U5($P82-$P82*#REF!/100)),([1]!AgePb7U5($P82+$P82*#REF!/100)-[1]!AgePb7U5($P82)))) -> 26.49667228 | AF82: NA | AG82: NA | AH82: NA | AI82: 0.2132595707 | AJ82: 1.628863201 | AL82: 1846.612207 | AM82: 39.87398657 | AN82: 2.15930483 | AO82: 43.47260255 | AP82: 2.383401454
A83: UK010 | B83: UK010_274 | C83: NA | D83: 926 | E83: 8320 | F83: 97.5 | G83: 6.770833333 | H83: NA | I83: NA | J83: 3.100775194 | K83: 1.7063376 | L83: 0.1129 | M83: 3.800583209 | N83: NA | O83: NA | P83: 5.02024527 | Q83: 4.166055777 | R83: 0.3225 | S83: 1.7063376 | T83: 0.20805 | U83: NA | V83: NA | W83: 1846.612207 | X83: =IF(W83="","",AVERAGE(([1]!AgePb76(L83)-[1]!AgePb76(L83-L83*M83/100)),([1]!AgePb76(L83+L83*M83/100)-[1]!AgePb76(L83)))) -> 68.80000088 | Y83: =IF(X83="","",AVERAGE(([1]!AgePb76($L83)-[1]!AgePb76($L83-$L83*#REF!/100)),([1]!AgePb76($L83+$L83*#REF!/100)-[1]!AgePb76($L83)))) -> 70.95014944 | Z83: 1801.926735 | AA83: =IF(Z83="","",AVERAGE(([1]!AgePb6U8($R83)-[1]!AgePb6U8($R83-$R83*S83/100)),([1]!AgePb6U8($R83+$R83*S83/100)-[1]!AgePb6U8($R83)))) -> 26.82376348 | AB83: =IF(AA83="","",AVERAGE(([1]!AgePb6U8($R83)-[1]!AgePb6U8($R83-$R83*#REF!/100)),([1]!AgePb6U8($R83+$R83*#REF!/100)-[1]!AgePb6U8($R83)))) -> 34.21500693 | AC83: 1822.742551 | AD83: =IF(AC83="","",AVERAGE(([1]!AgePb7U5($P83)-[1]!AgePb7U5($P83-$P83*Q83/100)),([1]!AgePb7U5($P83+$P83*Q83/100)-[1]!AgePb7U5($P83)))) -> 35.28909734 | AE83: =IF(AD83="","",AVERAGE(([1]!AgePb7U5($P83)-[1]!AgePb7U5($P83-$P83*#REF!/100)),([1]!AgePb7U5($P83+$P83*#REF!/100)-[1]!AgePb7U5($P83)))) -> 37.97616421 | AF83: NA | AG83: NA | AH83: NA | AI83: 0.2955598921 | AJ83: 2.419862246 | AL83: 1846.612207 | AM83: 68.80000088 | AN83: 3.725741693 | AO83: 70.95014944 | AP83: 3.922683759
A84: UK010 | B84: UK010_139 | C84: NA | D84: 1137 | E84: 10200 | F84: 127.7 | G84: 0.3508241758 | H84: NA | I84: NA | J84: 3.04136253 | K84: 1.541605856 | L84: 0.113 | M84: 3.312544943 | N84: NA | O84: NA | P84: 5.122848672 | Q84: 3.653697116 | R84: 0.3288 | S84: 1.541605856 | T84: 0.39761 | U84: NA | V84: NA | W84: 1848.213643 | X84: =IF(W84="","",AVERAGE(([1]!AgePb76(L84)-[1]!AgePb76(L84-L84*M84/100)),([1]!AgePb76(L84+L84*M84/100)-[1]!AgePb76(L84)))) -> 59.9436818 | Y84: =IF(X84="","",AVERAGE(([1]!AgePb76($L84)-[1]!AgePb76($L84-$L84*#REF!/100)),([1]!AgePb76($L84+$L84*#REF!/100)-[1]!AgePb76($L84)))) -> 62.39721216 | Z84: 1832.562639 | AA84: =IF(Z84="","",AVERAGE(([1]!AgePb6U8($R84)-[1]!AgePb6U8($R84-$R84*S84/100)),([1]!AgePb6U8($R84+$R84*S84/100)-[1]!AgePb6U8($R84)))) -> 24.5904147 | AB84: =IF(AA84="","",AVERAGE(([1]!AgePb6U8($R84)-[1]!AgePb6U8($R84-$R84*#REF!/100)),([1]!AgePb6U8($R84+$R84*#REF!/100)-[1]!AgePb6U8($R84)))) -> 32.69865006 | AC84: 1839.901972 | AD84: =IF(AC84="","",AVERAGE(([1]!AgePb7U5($P84)-[1]!AgePb7U5($P84-$P84*Q84/100)),([1]!AgePb7U5($P84+$P84*Q84/100)-[1]!AgePb7U5($P84)))) -> 31.04958447 | AE84: =IF(AD84="","",AVERAGE(([1]!AgePb7U5($P84)-[1]!AgePb7U5($P84-$P84*#REF!/100)),([1]!AgePb7U5($P84+$P84*#REF!/100)-[1]!AgePb7U5($P84)))) -> 34.09090719 | AF84: NA | AG84: NA | AH84: NA | AI84: 0.6364440272 | AJ84: 0.8468179026 | AK84: DO | AL84: 1848.213643 | AM84: 59.9436818 | AN84: 3.243330772 | AO84: 62.39721216 | AP84: 3.400694188
A85: UK010 | B85: UK010_253 | C85: NA | D85: 2110 | E85: 18950 | F85: 225 | G85: 0.5022321429 | H85: NA | I85: NA | J85: 3.049710278 | K85: 1.388004564 | L85: 0.1131 | M85: 2.387278999 | N85: NA | O85: NA | P85: 5.113347361 | Q85: 2.761459341 | R85: 0.3279 | S85: 1.388004564 | T85: 0.41334 | U85: NA | V85: NA | W85: 1849.813352 | X85: =IF(W85="","",AVERAGE(([1]!AgePb76(L85)-[1]!AgePb76(L85-L85*M85/100)),([1]!AgePb76(L85+L85*M85/100)-[1]!AgePb76(L85)))) -> 43.1808312 | Y85: =IF(X85="","",AVERAGE(([1]!AgePb76($L85)-[1]!AgePb76($L85-$L85*#REF!/100)),([1]!AgePb76($L85+$L85*#REF!/100)-[1]!AgePb76($L85)))) -> 46.52238261 | Z85: 1828.194985 | AA85: =IF(Z85="","",AVERAGE(([1]!AgePb6U8($R85)-[1]!AgePb6U8($R85-$R85*S85/100)),([1]!AgePb6U8($R85+$R85*S85/100)-[1]!AgePb6U8($R85)))) -> 22.09463574 | AB85: =IF(AA85="","",AVERAGE(([1]!AgePb6U8($R85)-[1]!AgePb6U8($R85-$R85*#REF!/100)),([1]!AgePb6U8($R85+$R85*#REF!/100)-[1]!AgePb6U8($R85)))) -> 30.83458057 | AC85: 1838.325098 | AD85: =IF(AC85="","",AVERAGE(([1]!AgePb7U5($P85)-[1]!AgePb7U5($P85-$P85*Q85/100)),([1]!AgePb7U5($P85+$P85*Q85/100)-[1]!AgePb7U5($P85)))) -> 23.45697668 | AE85: =IF(AD85="","",AVERAGE(([1]!AgePb7U5($P85)-[1]!AgePb7U5($P85-$P85*#REF!/100)),([1]!AgePb7U5($P85+$P85*#REF!/100)-[1]!AgePb7U5($P85)))) -> 27.35172548 | AF85: NA | AG85: NA | AH85: NA | AI85: 0.412614436 | AJ85: 1.168678289 | AL85: 1849.813352 | AM85: 43.1808312 | AN85: 2.334334497 | AO85: 46.52238261 | AP85: 2.538460612
A86: UK010 | B86: UK010_160 | C86: NA | D86: 1432 | E86: 12940 | F86: 154.6 | G86: 1.066206897 | H86: NA | I86: NA | J86: 3.017501509 | K86: 1.60450478 | L86: 0.1132 | M86: 2.807372146 | N86: NA | O86: NA | P86: 5.172496502 | Q86: 3.233538921 | R86: 0.3314 | S86: 1.60450478 | T86: 0.31619 | U86: NA | V86: NA | W86: 1851.411338 | X86: =IF(W86="","",AVERAGE(([1]!AgePb76(L86)-[1]!AgePb76(L86-L86*M86/100)),([1]!AgePb76(L86+L86*M86/100)-[1]!AgePb76(L86)))) -> 50.77489601 | Y86: =IF(X86="","",AVERAGE(([1]!AgePb76($L86)-[1]!AgePb76($L86-$L86*#REF!/100)),([1]!AgePb76($L86+$L86*#REF!/100)-[1]!AgePb76($L86)))) -> 53.64556822 | Z86: 1845.163708 | AA86: =IF(Z86="","",AVERAGE(([1]!AgePb6U8($R86)-[1]!AgePb6U8($R86-$R86*S86/100)),([1]!AgePb6U8($R86+$R86*S86/100)-[1]!AgePb6U8($R86)))) -> 25.74574606 | AB86: =IF(AA86="","",AVERAGE(([1]!AgePb6U8($R86)-[1]!AgePb6U8($R86-$R86*#REF!/100)),([1]!AgePb6U8($R86+$R86*#REF!/100)-[1]!AgePb6U8($R86)))) -> 33.65845663 | AC86: 1848.102123 | AD86: =IF(AC86="","",AVERAGE(([1]!AgePb7U5($P86)-[1]!AgePb7U5($P86-$P86*Q86/100)),([1]!AgePb7U5($P86+$P86*Q86/100)-[1]!AgePb7U5($P86)))) -> 27.52033282 | AE86: =IF(AD86="","",AVERAGE(([1]!AgePb7U5($P86)-[1]!AgePb7U5($P86-$P86*#REF!/100)),([1]!AgePb7U5($P86+$P86*#REF!/100)-[1]!AgePb7U5($P86)))) -> 30.92008331 | AF86: NA | AG86: NA | AH86: NA | AI86: 0.8505340447 | AJ86: 0.3374522783 | AL86: 1851.411338 | AM86: 50.77489601 | AN86: 2.742496763 | AO86: 53.64556822 | AP86: 2.905276709
A87: UK010 | B87: UK010_278 | C87: NA | D87: 512 | E87: 4580 | F87: 54.1 | G87: 0.7513888889 | H87: NA | I87: NA | J87: 3.058103976 | K87: 2.092889594 | L87: 0.1133 | M87: 5.033787184 | N87: NA | O87: NA | P87: 5.108329908 | Q87: 5.451531919 | R87: 0.327 | S87: 2.092889594 | T87: 0.42385 | U87: NA | V87: NA | W87: 1853.007604 | X87: =IF(W87="","",AVERAGE(([1]!AgePb76(L87)-[1]!AgePb76(L87-L87*M87/100)),([1]!AgePb76(L87+L87*M87/100)-[1]!AgePb76(L87)))) -> 91.10093391 | Y87: =IF(X87="","",AVERAGE(([1]!AgePb76($L87)-[1]!AgePb76($L87-$L87*#REF!/100)),([1]!AgePb76($L87+$L87*#REF!/100)-[1]!AgePb76($L87)))) -> 92.73631703 | Z87: 1823.82437 | AA87: =IF(Z87="","",AVERAGE(([1]!AgePb6U8($R87)-[1]!AgePb6U8($R87-$R87*S87/100)),([1]!AgePb6U8($R87+$R87*S87/100)-[1]!AgePb6U8($R87)))) -> 33.2464443 | AB87: =IF(AA87="","",AVERAGE(([1]!AgePb6U8($R87)-[1]!AgePb6U8($R87-$R87*#REF!/100)),([1]!AgePb6U8($R87+$R87*#REF!/100)-[1]!AgePb6U8($R87)))) -> 39.57299481 | AC87: 1837.491393 | AD87: =IF(AC87="","",AVERAGE(([1]!AgePb7U5($P87)-[1]!AgePb7U5($P87-$P87*Q87/100)),([1]!AgePb7U5($P87+$P87*Q87/100)-[1]!AgePb7U5($P87)))) -> 46.32400366 | AE87: =IF(AD87="","",AVERAGE(([1]!AgePb7U5($P87)-[1]!AgePb7U5($P87-$P87*#REF!/100)),([1]!AgePb7U5($P87+$P87*#REF!/100)-[1]!AgePb7U5($P87)))) -> 48.4163749 | AF87: NA | AG87: NA | AH87: NA | AI87: 0.5368553047 | AJ87: 1.574911721 | AL87: 1853.007604 | AM87: 91.10093391 | AN87: 4.916382088 | AO87: 92.73631703 | AP87: 5.076100879
A88: UK010 | B88: UK010_66 | C88: NA | D88: 2380 | E88: 21570 | F88: 293 | G88: 0.3997271487 | H88: NA | I88: NA | J88: 3.075976623 | K88: 1.599422394 | L88: 0.1134 | M88: 2.369244443 | N88: NA | O88: NA | P88: 5.083130959 | Q88: 2.858578533 | R88: 0.3251 | S88: 1.599422394 | T88: 0.64124 | U88: NA | V88: NA | W88: 1854.602153 | X88: =IF(W88="","",AVERAGE(([1]!AgePb76(L88)-[1]!AgePb76(L88-L88*M88/100)),([1]!AgePb76(L88+L88*M88/100)-[1]!AgePb76(L88)))) -> 42.82960194 | Y88: =IF(X88="","",AVERAGE(([1]!AgePb76($L88)-[1]!AgePb76($L88-$L88*#REF!/100)),([1]!AgePb76($L88+$L88*#REF!/100)-[1]!AgePb76($L88)))) -> 46.19275037 | Z88: 1814.587773 | AA88: =IF(Z88="","",AVERAGE(([1]!AgePb6U8($R88)-[1]!AgePb6U8($R88-$R88*S88/100)),([1]!AgePb6U8($R88+$R88*S88/100)-[1]!AgePb6U8($R88)))) -> 25.29600408 | AB88: =IF(AA88="","",AVERAGE(([1]!AgePb6U8($R88)-[1]!AgePb6U8($R88-$R88*#REF!/100)),([1]!AgePb6U8($R88+$R88*#REF!/100)-[1]!AgePb6U8($R88)))) -> 33.11412846 | AC88: 1833.293927 | AD88: =IF(AC88="","",AVERAGE(([1]!AgePb7U5($P88)-[1]!AgePb7U5($P88-$P88*Q88/100)),([1]!AgePb7U5($P88+$P88*Q88/100)-[1]!AgePb7U5($P88)))) -> 24.25865902 | AE88: =IF(AD88="","",AVERAGE(([1]!AgePb7U5($P88)-[1]!AgePb7U5($P88-$P88*#REF!/100)),([1]!AgePb7U5($P88+$P88*#REF!/100)-[1]!AgePb7U5($P88)))) -> 28.03560434 | AF88: NA | AG88: NA | AH88: NA | AI88: 0.07533431096 | AJ88: 2.157572197 | AL88: 1854.602153 | AM88: 42.82960194 | AN88: 2.309368716 | AO88: 46.19275037 | AP88: 2.531387093
A89: UK010 | B89: UK010_190 | C89: NA | D89: 5850 | E89: 53100 | F89: 658 | G89: 2.05625 | H89: NA | I89: NA | J89: 3.047851265 | K89: 1.286451445 | L89: 0.1134 | M89: 1.468424047 | N89: NA | O89: NA | P89: 5.130037735 | Q89: 1.952236282 | R89: 0.3281 | S89: 1.286451445 | T89: 0.48186 | U89: NA | V89: NA | W89: 1854.602153 | X89: =IF(W89="","",AVERAGE(([1]!AgePb76(L89)-[1]!AgePb76(L89-L89*M89/100)),([1]!AgePb76(L89+L89*M89/100)-[1]!AgePb76(L89)))) -> 26.54079399 | Y89: =IF(X89="","",AVERAGE(([1]!AgePb76($L89)-[1]!AgePb76($L89-$L89*#REF!/100)),([1]!AgePb76($L89+$L89*#REF!/100)-[1]!AgePb76($L89)))) -> 31.67982547 | Z89: 1829.16583 | AA89: =IF(Z89="","",AVERAGE(([1]!AgePb6U8($R89)-[1]!AgePb6U8($R89-$R89*S89/100)),([1]!AgePb6U8($R89+$R89*S89/100)-[1]!AgePb6U8($R89)))) -> 20.48747895 | AB89: =IF(AA89="","",AVERAGE(([1]!AgePb6U8($R89)-[1]!AgePb6U8($R89-$R89*#REF!/100)),([1]!AgePb6U8($R89+$R89*#REF!/100)-[1]!AgePb6U8($R89)))) -> 29.71126408 | AC89: 1841.093472 | AD89: =IF(AC89="","",AVERAGE(([1]!AgePb7U5($P89)-[1]!AgePb7U5($P89-$P89*Q89/100)),([1]!AgePb7U5($P89+$P89*Q89/100)-[1]!AgePb7U5($P89)))) -> 16.59045692 | AE89: =IF(AD89="","",AVERAGE(([1]!AgePb7U5($P89)-[1]!AgePb7U5($P89-$P89*#REF!/100)),([1]!AgePb7U5($P89+$P89*#REF!/100)-[1]!AgePb7U5($P89)))) -> 21.75478758 | AF89: NA | AG89: NA | AH89: NA | AI89: 0.2133363349 | AJ89: 1.371524513 | AL89: 1854.602153 | AM89: 26.54079399 | AN89: 1.431077492 | AO89: 31.67982547 | AP89: 1.724136538
A90: UK010 | B90: UK010_286 | C90: NA | D90: 1080 | E90: 10400 | F90: 112 | G90: 0.7567567568 | H90: NA | I90: NA | J90: 2.941176471 | K90: 1.904533837 | L90: 0.1134 | M90: 3.874519187 | N90: NA | O90: NA | P90: 5.31610128 | Q90: 4.317307965 | R90: 0.34 | S90: 1.904533837 | T90: 0.28563 | U90: NA | V90: NA | W90: 1854.602153 | X90: =IF(W90="","",AVERAGE(([1]!AgePb76(L90)-[1]!AgePb76(L90-L90*M90/100)),([1]!AgePb76(L90+L90*M90/100)-[1]!AgePb76(L90)))) -> 70.07242877 | Y90: =IF(X90="","",AVERAGE(([1]!AgePb76($L90)-[1]!AgePb76($L90-$L90*#REF!/100)),([1]!AgePb76($L90+$L90*#REF!/100)-[1]!AgePb76($L90)))) -> 72.18088008 | Z90: 1886.66955 | AA90: =IF(Z90="","",AVERAGE(([1]!AgePb6U8($R90)-[1]!AgePb6U8($R90-$R90*S90/100)),([1]!AgePb6U8($R90+$R90*S90/100)-[1]!AgePb6U8($R90)))) -> 31.15188979 | AB90: =IF(AA90="","",AVERAGE(([1]!AgePb6U8($R90)-[1]!AgePb6U8($R90-$R90*#REF!/100)),([1]!AgePb6U8($R90+$R90*#REF!/100)-[1]!AgePb6U8($R90)))) -> 38.19523156 | AC90: 1871.45467 | AD90: =IF(AC90="","",AVERAGE(([1]!AgePb7U5($P90)-[1]!AgePb7U5($P90-$P90*Q90/100)),([1]!AgePb7U5($P90+$P90*Q90/100)-[1]!AgePb7U5($P90)))) -> 36.91291662 | AE90: =IF(AD90="","",AVERAGE(([1]!AgePb7U5($P90)-[1]!AgePb7U5($P90-$P90*#REF!/100)),([1]!AgePb7U5($P90+$P90*#REF!/100)-[1]!AgePb7U5($P90)))) -> 39.53674073 | AF90: NA | AG90: NA | AH90: NA | AI90: 0.4560019738 | AJ90: -1.729071468 | AL90: 1854.602153 | AM90: 70.07242877 | AN90: 3.778299763 | AO90: 72.18088008 | AP90: 3.837871575
A91: UK010 | B91: UK010_4 | C91: NA | D91: 788 | E91: 7120 | F91: 95.4 | G91: 2.073913043 | H91: NA | I91: NA | J91: 2.793296089 | K91: 1.954516999 | L91: 0.1137 | M91: 4.853610493 | N91: NA | O91: NA | P91: 5.612350248 | Q91: 5.232367678 | R91: 0.358 | S91: 1.954516999 | T91: 0.21666 | U91: NA | V91: NA | W91: 1859.375541 | X91: =IF(W91="","",AVERAGE(([1]!AgePb76(L91)-[1]!AgePb76(L91-L91*M91/100)),([1]!AgePb76(L91+L91*M91/100)-[1]!AgePb76(L91)))) -> 87.76492151 | Y91: =IF(X91="","",AVERAGE(([1]!AgePb76($L91)-[1]!AgePb76($L91-$L91*#REF!/100)),([1]!AgePb76($L91+$L91*#REF!/100)-[1]!AgePb76($L91)))) -> 89.45814341 | Z91: 1972.686731 | AA91: =IF(Z91="","",AVERAGE(([1]!AgePb6U8($R91)-[1]!AgePb6U8($R91-$R91*S91/100)),([1]!AgePb6U8($R91+$R91*S91/100)-[1]!AgePb6U8($R91)))) -> 33.21580311 | AB91: =IF(AA91="","",AVERAGE(([1]!AgePb6U8($R91)-[1]!AgePb6U8($R91-$R91*#REF!/100)),([1]!AgePb6U8($R91+$R91*#REF!/100)-[1]!AgePb6U8($R91)))) -> 40.38010579 | AC91: 1917.996802 | AD91: =IF(AC91="","",AVERAGE(([1]!AgePb7U5($P91)-[1]!AgePb7U5($P91-$P91*Q91/100)),([1]!AgePb7U5($P91+$P91*Q91/100)-[1]!AgePb7U5($P91)))) -> 45.12350708 | AE91: =IF(AD91="","",AVERAGE(([1]!AgePb7U5($P91)-[1]!AgePb7U5($P91-$P91*#REF!/100)),([1]!AgePb7U5($P91+$P91*#REF!/100)-[1]!AgePb7U5($P91)))) -> 47.3317519 | AF91: NA | AG91: NA | AH91: NA | AI91: 0.02646384096 | AJ91: -6.094045412 | AK91: CL, E | AL91: 1859.375541 | AM91: 87.76492151 | AN91: 4.720128859 | AO91: 89.45814341 | AP91: 4.57681904
A92: UK010 | B92: UK010_87 | C92: NA | D92: 1678 | E92: 14900 | F92: 189 | G92: 3.519553073 | H92: NA | I92: NA | J92: 2.968239834 | K92: 1.554126867 | L92: 0.1137 | M92: 2.593441763 | N92: NA | O92: NA | P92: 5.281566476 | Q92: 3.023450099 | R92: 0.3369 | S92: 1.554126867 | T92: 0.66729 | U92: NA | V92: NA | W92: 1859.375541 | X92: =IF(W92="","",AVERAGE(([1]!AgePb76(L92)-[1]!AgePb76(L92-L92*M92/100)),([1]!AgePb76(L92+L92*M92/100)-[1]!AgePb76(L92)))) -> 46.85792305 | Y92: =IF(X92="","",AVERAGE(([1]!AgePb76($L92)-[1]!AgePb76($L92-$L92*#REF!/100)),([1]!AgePb76($L92+$L92*#REF!/100)-[1]!AgePb76($L92)))) -> 49.94775596 | Z92: 1871.738927 | AA92: =IF(Z92="","",AVERAGE(([1]!AgePb6U8($R92)-[1]!AgePb6U8($R92-$R92*S92/100)),([1]!AgePb6U8($R92+$R92*S92/100)-[1]!AgePb6U8($R92)))) -> 25.24695362 | AB92: =IF(AA92="","",AVERAGE(([1]!AgePb6U8($R92)-[1]!AgePb6U8($R92-$R92*#REF!/100)),([1]!AgePb6U8($R92+$R92*#REF!/100)-[1]!AgePb6U8($R92)))) -> 33.45443783 | AC92: 1865.887585 | AD92: =IF(AC92="","",AVERAGE(([1]!AgePb7U5($P92)-[1]!AgePb7U5($P92-$P92*Q92/100)),([1]!AgePb7U5($P92+$P92*Q92/100)-[1]!AgePb7U5($P92)))) -> 25.81791017 | AE92: =IF(AD92="","",AVERAGE(([1]!AgePb7U5($P92)-[1]!AgePb7U5($P92-$P92*#REF!/100)),([1]!AgePb7U5($P92+$P92*#REF!/100)-[1]!AgePb7U5($P92)))) -> 29.4373939 | AF92: NA | AG92: NA | AH92: NA | AI92: 0.5739985727 | AJ92: -0.6649213871 | AK92: CL | AL92: 1859.375541 | AM92: 46.85792305 | AN92: 2.520089246 | AO92: 49.94775596 | AP92: 2.672460756
A93: UK010 | B93: UK010_110 | C93: NA | D93: 3540 | E93: 31400 | F93: 407 | G93: 1.423076923 | H93: NA | I93: NA | J93: 3.04414003 | K93: 1.365829848 | L93: 0.1137 | M93: 1.875486243 | N93: NA | O93: NA | P93: 5.149880046 | Q93: 2.320116338 | R93: 0.3285 | S93: 1.365829848 | T93: 0.67861 | U93: NA | V93: NA | W93: 1859.375541 | X93: =IF(W93="","",AVERAGE(([1]!AgePb76(L93)-[1]!AgePb76(L93-L93*M93/100)),([1]!AgePb76(L93+L93*M93/100)-[1]!AgePb76(L93)))) -> 33.88081637 | Y93: =IF(X93="","",AVERAGE(([1]!AgePb76($L93)-[1]!AgePb76($L93-$L93*#REF!/100)),([1]!AgePb76($L93+$L93*#REF!/100)-[1]!AgePb76($L93)))) -> 38.03734724 | Z93: 1831.107083 | AA93: =IF(Z93="","",AVERAGE(([1]!AgePb6U8($R93)-[1]!AgePb6U8($R93-$R93*S93/100)),([1]!AgePb6U8($R93+$R93*S93/100)-[1]!AgePb6U8($R93)))) -> 21.77159622 | AB93: =IF(AA93="","",AVERAGE(([1]!AgePb6U8($R93)-[1]!AgePb6U8($R93-$R93*#REF!/100)),([1]!AgePb6U8($R93+$R93*#REF!/100)-[1]!AgePb6U8($R93)))) -> 30.62475862 | AC93: 1844.374856 | AD93: =IF(AC93="","",AVERAGE(([1]!AgePb7U5($P93)-[1]!AgePb7U5($P93-$P93*Q93/100)),([1]!AgePb7U5($P93+$P93*Q93/100)-[1]!AgePb7U5($P93)))) -> 19.72989594 | AE93: =IF(AD93="","",AVERAGE(([1]!AgePb7U5($P93)-[1]!AgePb7U5($P93-$P93*#REF!/100)),([1]!AgePb7U5($P93+$P93*#REF!/100)-[1]!AgePb7U5($P93)))) -> 24.23994138 | AF93: NA | AG93: NA | AH93: NA | AI93: 0.1130823595 | AJ93: 1.520320003 | AL93: 1859.375541 | AM93: 33.88081637 | AN93: 1.822161022 | AO93: 38.03734724 | AP93: 2.06765269
A94: UK010 | B94: UK010_152 | C94: NA | D94: 380 | E94: 3400 | F94: 41.1 | G94: 2.601265823 | H94: NA | I94: NA | J94: 3.021148036 | K94: 2.207198321 | L94: 0.1137 | M94: 5.786328908 | N94: NA | O94: NA | P94: 5.189072436 | Q94: 6.19300627 | R94: 0.331 | S94: 2.207198321 | T94: 0.15577 | U94: NA | V94: NA | W94: 1859.375541 | X94: =IF(W94="","",AVERAGE(([1]!AgePb76(L94)-[1]!AgePb76(L94-L94*M94/100)),([1]!AgePb76(L94+L94*M94/100)-[1]!AgePb76(L94)))) -> 104.6804417 | Y94: =IF(X94="","",AVERAGE(([1]!AgePb76($L94)-[1]!AgePb76($L94-$L94*#REF!/100)),([1]!AgePb76($L94+$L94*#REF!/100)-[1]!AgePb76($L94)))) -> 106.1067573 | Z94: 1843.226684 | AA94: =IF(Z94="","",AVERAGE(([1]!AgePb6U8($R94)-[1]!AgePb6U8($R94-$R94*S94/100)),([1]!AgePb6U8($R94+$R94*S94/100)-[1]!AgePb6U8($R94)))) -> 35.38456513 | AB94: =IF(AA94="","",AVERAGE(([1]!AgePb6U8($R94)-[1]!AgePb6U8($R94-$R94*#REF!/100)),([1]!AgePb6U8($R94+$R94*#REF!/100)-[1]!AgePb6U8($R94)))) -> 41.48822059 | AC94: 1850.825229 | AD94: =IF(AC94="","",AVERAGE(([1]!AgePb7U5($P94)-[1]!AgePb7U5($P94-$P94*Q94/100)),([1]!AgePb7U5($P94+$P94*Q94/100)-[1]!AgePb7U5($P94)))) -> 52.76990971 | AE94: =IF(AD94="","",AVERAGE(([1]!AgePb7U5($P94)-[1]!AgePb7U5($P94-$P94*#REF!/100)),([1]!AgePb7U5($P94+$P94*#REF!/100)-[1]!AgePb7U5($P94)))) -> 54.62667737 | AF94: NA | AG94: NA | AH94: NA | AI94: 0.7962368666 | AJ94: 0.8685096878 | AL94: 1859.375541 | AM94: 104.6804417 | AN94: 5.629870856 | AO94: 106.1067573 | AP94: 5.750024187
A95: UK010 | B95: UK010_76 | C95: NA | D95: 1493 | E95: 13240 | F95: 177 | G95: 1.65575304 | H95: NA | I95: NA | J95: 2.982403817 | K95: 1.712003679 | L95: 0.1138 | M95: 2.73579595 | N95: NA | O95: NA | P95: 5.261106463 | Q95: 3.227310966 | R95: 0.3353 | S95: 1.712003679 | T95: 0.74949 | U95: NA | V95: NA | W95: 1860.963261 | X95: =IF(W95="","",AVERAGE(([1]!AgePb76(L95)-[1]!AgePb76(L95-L95*M95/100)),([1]!AgePb76(L95+L95*M95/100)-[1]!AgePb76(L95)))) -> 49.42226585 | Y95: =IF(X95="","",AVERAGE(([1]!AgePb76($L95)-[1]!AgePb76($L95-$L95*#REF!/100)),([1]!AgePb76($L95+$L95*#REF!/100)-[1]!AgePb76($L95)))) -> 52.36031207 | Z95: 1864.019247 | AA95: =IF(Z95="","",AVERAGE(([1]!AgePb6U8($R95)-[1]!AgePb6U8($R95-$R95*S95/100)),([1]!AgePb6U8($R95+$R95*S95/100)-[1]!AgePb6U8($R95)))) -> 27.71279179 | AB95: =IF(AA95="","",AVERAGE(([1]!AgePb6U8($R95)-[1]!AgePb6U8($R95-$R95*#REF!/100)),([1]!AgePb6U8($R95+$R95*#REF!/100)-[1]!AgePb6U8($R95)))) -> 35.3039733 | AC95: 1862.574931 | AD95: =IF(AC95="","",AVERAGE(([1]!AgePb7U5($P95)-[1]!AgePb7U5($P95-$P95*Q95/100)),([1]!AgePb7U5($P95+$P95*Q95/100)-[1]!AgePb7U5($P95)))) -> 27.54249141 | AE95: =IF(AD95="","",AVERAGE(([1]!AgePb7U5($P95)-[1]!AgePb7U5($P95-$P95*#REF!/100)),([1]!AgePb7U5($P95+$P95*#REF!/100)-[1]!AgePb7U5($P95)))) -> 30.95740363 | AF95: NA | AG95: NA | AH95: NA | AI95: 0.8825420696 | AJ95: -0.1642152587 | AL95: 1860.963261 | AM95: 49.42226585 | AN95: 2.655735708 | AO95: 52.36031207 | AP95: 2.810120418
A96: UK010 | B96: UK010_14 | C96: NA | D96: 328 | E96: 2940 | F96: 40.3 | G96: 0.3585409253 | H96: NA | I96: NA | J96: 2.949852507 | K96: 2.980710283 | L96: 0.114 | M96: 7.122765268 | N96: NA | O96: NA | P96: 5.32851048 | Q96: 7.721296449 | R96: 0.339 | S96: 2.980710283 | T96: 0.086201 | U96: NA | V96: NA | W96: 1864.13361 | X96: =IF(W96="","",AVERAGE(([1]!AgePb76(L96)-[1]!AgePb76(L96-L96*M96/100)),([1]!AgePb76(L96+L96*M96/100)-[1]!AgePb76(L96)))) -> 128.890292 | Y96: =IF(X96="","",AVERAGE(([1]!AgePb76($L96)-[1]!AgePb76($L96-$L96*#REF!/100)),([1]!AgePb76($L96+$L96*#REF!/100)-[1]!AgePb76($L96)))) -> 130.0538548 | Z96: 1881.856997 | AA96: =IF(Z96="","",AVERAGE(([1]!AgePb6U8($R96)-[1]!AgePb6U8($R96-$R96*S96/100)),([1]!AgePb6U8($R96+$R96*S96/100)-[1]!AgePb6U8($R96)))) -> 48.6480388 | AB96: =IF(AA96="","",AVERAGE(([1]!AgePb6U8($R96)-[1]!AgePb6U8($R96-$R96*#REF!/100)),([1]!AgePb6U8($R96+$R96*#REF!/100)-[1]!AgePb6U8($R96)))) -> 53.41297162 | AC96: 1873.447629 | AD96: =IF(AC96="","",AVERAGE(([1]!AgePb7U5($P96)-[1]!AgePb7U5($P96-$P96*Q96/100)),([1]!AgePb7U5($P96+$P96*Q96/100)-[1]!AgePb7U5($P96)))) -> 66.1054768 | AE96: =IF(AD96="","",AVERAGE(([1]!AgePb7U5($P96)-[1]!AgePb7U5($P96-$P96*#REF!/100)),([1]!AgePb7U5($P96+$P96*#REF!/100)-[1]!AgePb7U5($P96)))) -> 67.61252884 | AF96: NA | AG96: NA | AH96: NA | AI96: 0.8301740173 | AJ96: -0.9507573421 | AL96: 1864.13361 | AM96: 128.890292 | AN96: 6.914219627 | AO96: 130.0538548 | AP96: 6.921476227
A97: UK010 | B97: UK010_184 | C97: NA | D97: 4620 | E97: 41300 | F97: 519 | G97: 2.171548117 | H97: NA | I97: NA | J97: 3.021148036 | K97: 1.424223467 | L97: 0.1141 | M97: 1.875123339 | N97: NA | O97: NA | P97: 5.207327748 | Q97: 2.354676203 | R97: 0.331 | S97: 1.424223467 | T97: 0.25854 | U97: NA | V97: NA | W97: 1865.716245 | X97: =IF(W97="","",AVERAGE(([1]!AgePb76(L97)-[1]!AgePb76(L97-L97*M97/100)),([1]!AgePb76(L97+L97*M97/100)-[1]!AgePb76(L97)))) -> 33.8483368 | Y97: =IF(X97="","",AVERAGE(([1]!AgePb76($L97)-[1]!AgePb76($L97-$L97*#REF!/100)),([1]!AgePb76($L97+$L97*#REF!/100)-[1]!AgePb76($L97)))) -> 38.00240073 | Z97: 1843.226684 | AA97: =IF(Z97="","",AVERAGE(([1]!AgePb6U8($R97)-[1]!AgePb6U8($R97-$R97*S97/100)),([1]!AgePb6U8($R97+$R97*S97/100)-[1]!AgePb6U8($R97)))) -> 22.83221772 | AB97: =IF(AA97="","",AVERAGE(([1]!AgePb6U8($R97)-[1]!AgePb6U8($R97-$R97*#REF!/100)),([1]!AgePb6U8($R97+$R97*#REF!/100)-[1]!AgePb6U8($R97)))) -> 31.47227611 | AC97: 1853.815798 | AD97: =IF(AC97="","",AVERAGE(([1]!AgePb7U5($P97)-[1]!AgePb7U5($P97-$P97*Q97/100)),([1]!AgePb7U5($P97+$P97*Q97/100)-[1]!AgePb7U5($P97)))) -> 20.05985723 | AE97: =IF(AD97="","",AVERAGE(([1]!AgePb7U5($P97)-[1]!AgePb7U5($P97-$P97*#REF!/100)),([1]!AgePb7U5($P97+$P97*#REF!/100)-[1]!AgePb7U5($P97)))) -> 24.52388014 | AF97: NA | AG97: NA | AH97: NA | AI97: 0.4193104581 | AJ97: 1.205411654 | AK97: DO | AL97: 1865.716245 | AM97: 33.8483368 | AN97: 1.814227479 | AO97: 38.00240073 | AP97: 2.054840706
A98: UK010 | B98: UK010_100 | C98: NA | D98: 3152 | E98: 28300 | F98: 379 | G98: 0.5293296089 | H98: NA | I98: NA | J98: 2.92997363 | K98: 1.53127158 | L98: 0.1145 | M98: 2.13968019 | N98: NA | O98: NA | P98: 5.388191838 | Q98: 2.631163995 | R98: 0.3413 | S98: 1.53127158 | T98: 0.65674 | U98: NA | V98: NA | W98: 1872.029941 | X98: =IF(W98="","",AVERAGE(([1]!AgePb76(L98)-[1]!AgePb76(L98-L98*M98/100)),([1]!AgePb76(L98+L98*M98/100)-[1]!AgePb76(L98)))) -> 38.59649898 | Y98: =IF(X98="","",AVERAGE(([1]!AgePb76($L98)-[1]!AgePb76($L98-$L98*#REF!/100)),([1]!AgePb76($L98+$L98*#REF!/100)-[1]!AgePb76($L98)))) -> 42.28201398 | Z98: 1892.920502 | AA98: =IF(Z98="","",AVERAGE(([1]!AgePb6U8($R98)-[1]!AgePb6U8($R98-$R98*S98/100)),([1]!AgePb6U8($R98+$R98*S98/100)-[1]!AgePb6U8($R98)))) -> 25.11788046 | AB98: =IF(AA98="","",AVERAGE(([1]!AgePb6U8($R98)-[1]!AgePb6U8($R98-$R98*#REF!/100)),([1]!AgePb6U8($R98+$R98*#REF!/100)-[1]!AgePb6U8($R98)))) -> 33.49815992 | AC98: 1882.978383 | AD98: =IF(AC98="","",AVERAGE(([1]!AgePb7U5($P98)-[1]!AgePb7U5($P98-$P98*Q98/100)),([1]!AgePb7U5($P98+$P98*Q98/100)-[1]!AgePb7U5($P98)))) -> 22.53794131 | AE98: =IF(AD98="","",AVERAGE(([1]!AgePb7U5($P98)-[1]!AgePb7U5($P98-$P98*#REF!/100)),([1]!AgePb7U5($P98+$P98*#REF!/100)-[1]!AgePb7U5($P98)))) -> 26.63042301 | AF98: NA | AG98: NA | AH98: NA | AI98: 0.3171157054 | AJ98: -1.115930964 | AK98: DO | AL98: 1872.029941 | AM98: 38.59649898 | AN98: 2.061745816 | AO98: 42.28201398 | AP98: 2.241477091
A99: UK010 | B99: UK010_161 | C99: NA | D99: 2600 | E99: 23300 | F99: 284 | G99: 109.2307692 | H99: NA | I99: NA | J99: 3.003905077 | K99: 1.496746791 | L99: 0.1146 | M99: 2.134335633 | N99: NA | O99: NA | P99: 5.260168879 | Q99: 2.60684475 | R99: 0.3329 | S99: 1.496746791 | T99: 0.52382 | U99: NA | V99: NA | W99: 1873.60417 | X99: =IF(W99="","",AVERAGE(([1]!AgePb76(L99)-[1]!AgePb76(L99-L99*M99/100)),([1]!AgePb76(L99+L99*M99/100)-[1]!AgePb76(L99)))) -> 38.49275436 | Y99: =IF(X99="","",AVERAGE(([1]!AgePb76($L99)-[1]!AgePb76($L99-$L99*#REF!/100)),([1]!AgePb76($L99+$L99*#REF!/100)-[1]!AgePb76($L99)))) -> 42.18597903 | Z99: 1852.422367 | AA99: =IF(Z99="","",AVERAGE(([1]!AgePb6U8($R99)-[1]!AgePb6U8($R99-$R99*S99/100)),([1]!AgePb6U8($R99+$R99*S99/100)-[1]!AgePb6U8($R99)))) -> 24.09821037 | AB99: =IF(AA99="","",AVERAGE(([1]!AgePb6U8($R99)-[1]!AgePb6U8($R99-$R99*#REF!/100)),([1]!AgePb6U8($R99+$R99*#REF!/100)-[1]!AgePb6U8($R99)))) -> 32.46488221 | AC99: 1862.422869 | AD99: =IF(AC99="","",AVERAGE(([1]!AgePb7U5($P99)-[1]!AgePb7U5($P99-$P99*Q99/100)),([1]!AgePb7U5($P99+$P99*Q99/100)-[1]!AgePb7U5($P99)))) -> 22.24478379 | AE99: =IF(AD99="","",AVERAGE(([1]!AgePb7U5($P99)-[1]!AgePb7U5($P99-$P99*#REF!/100)),([1]!AgePb7U5($P99+$P99*#REF!/100)-[1]!AgePb7U5($P99)))) -> 26.35380274 | AF99: NA | AG99: NA | AH99: NA | AI99: 0.3778987158 | AJ99: 1.130537807 | AL99: 1873.60417 | AM99: 38.49275436 | AN99: 2.054476339 | AO99: 42.18597903 | AP99: 2.270243453
A100: UK010 | B100: UK010_162 | C100: NA | D100: 1840 | E100: 16390 | F100: 204 | G100: 1.03030303 | H100: NA | I100: NA | J100: 3.100775194 | K100: 1.465939968 | L100: 0.1146 | M100: 2.732431812 | N100: NA | O100: NA | P100: 5.09583798 | Q100: 3.100832726 | R100: 0.3225 | S100: 1.465939968 | T100: 0.35307 | U100: NA | V100: NA | W100: 1873.60417 | X100: =IF(W100="","",AVERAGE(([1]!AgePb76(L100)-[1]!AgePb76(L100-L100*M100/100)),([1]!AgePb76(L100+L100*M100/100)-[1]!AgePb76(L100)))) -> 49.28626086 | Y100: =IF(X100="","",AVERAGE(([1]!AgePb76($L100)-[1]!AgePb76($L100-$L100*#REF!/100)),([1]!AgePb76($L100+$L100*#REF!/100)-[1]!AgePb76($L100)))) -> 52.22322903 | Z100: 1801.926735 | AA100: =IF(Z100="","",AVERAGE(([1]!AgePb6U8($R100)-[1]!AgePb6U8($R100-$R100*S100/100)),([1]!AgePb6U8($R100+$R100*S100/100)-[1]!AgePb6U8($R100)))) -> 23.04465865 | AB100: =IF(AA100="","",AVERAGE(([1]!AgePb6U8($R100)-[1]!AgePb6U8($R100-$R100*#REF!/100)),([1]!AgePb6U8($R100+$R100*#REF!/100)-[1]!AgePb6U8($R100)))) -> 31.34016555 | AC100: 1835.412743 | AD100: =IF(AC100="","",AVERAGE(([1]!AgePb7U5($P100)-[1]!AgePb7U5($P100-$P100*Q100/100)),([1]!AgePb7U5($P100+$P100*Q100/100)-[1]!AgePb7U5($P100)))) -> 26.32617386 | AE100: =IF(AD100="","",AVERAGE(([1]!AgePb7U5($P100)-[1]!AgePb7U5($P100-$P100*#REF!/100)),([1]!AgePb7U5($P100+$P100*#REF!/100)-[1]!AgePb7U5($P100)))) -> 29.8457499 | AF100: NA | AG100: NA | AH100: NA | AI100: 0.01822736033 | AJ100: 3.82564452 | AL100: 1873.60417 | AM100: 49.28626086 | AN100: 2.630558879 | AO100: 52.22322903 | AP100: 2.877631709
A101: UK010 | B101: UK010_214 | C101: NA | D101: 578 | E101: 5140 | F101: 63.3 | G101: 1.229126214 | H101: NA | I101: NA | J101: 3.086419753 | K101: 1.841472973 | L101: 0.115 | M101: 4.904741214 | N101: NA | O101: NA | P101: 5.1374088 | Q101: 5.239037038 | R101: 0.324 | S101: 1.841472973 | T101: 0.18557 | U101: NA | V101: NA | W101: 1879.884415 | X101: =IF(W101="","",AVERAGE(([1]!AgePb76(L101)-[1]!AgePb76(L101-L101*M101/100)),([1]!AgePb76(L101+L101*M101/100)-[1]!AgePb76(L101)))) -> 88.47247806 | Y101: =IF(X101="","",AVERAGE(([1]!AgePb76($L101)-[1]!AgePb76($L101-$L101*#REF!/100)),([1]!AgePb76($L101+$L101*#REF!/100)-[1]!AgePb76($L101)))) -> 90.14434497 | Z101: 1809.234214 | AA101: =IF(Z101="","",AVERAGE(([1]!AgePb6U8($R101)-[1]!AgePb6U8($R101-$R101*S101/100)),([1]!AgePb6U8($R101+$R101*S101/100)-[1]!AgePb6U8($R101)))) -> 29.04982493 | AB101: =IF(AA101="","",AVERAGE(([1]!AgePb6U8($R101)-[1]!AgePb6U8($R101-$R101*#REF!/100)),([1]!AgePb6U8($R101+$R101*#REF!/100)-[1]!AgePb6U8($R101)))) -> 36.03084662 | AC101: 1842.313686 | AD101: =IF(AC101="","",AVERAGE(([1]!AgePb7U5($P101)-[1]!AgePb7U5($P101-$P101*Q101/100)),([1]!AgePb7U5($P101+$P101*Q101/100)-[1]!AgePb7U5($P101)))) -> 44.55732345 | AE101: =IF(AD101="","",AVERAGE(([1]!AgePb7U5($P101)-[1]!AgePb7U5($P101-$P101*#REF!/100)),([1]!AgePb7U5($P101+$P101*#REF!/100)-[1]!AgePb7U5($P101)))) -> 46.73236403 | AF101: NA | AG101: NA | AH101: NA | AI101: 0.1758676953 | AJ101: 3.758220427 | AL101: 1879.884415 | AM101: 88.47247806 | AN101: 4.706272225 | AO101: 90.14434497 | AP101: 4.960022337
A102: UK010 | B102: UK010_265 | C102: NA | D102: 6560 | E102: 58200 | F102: 720 | G102: 2.345276873 | H102: NA | I102: NA | J102: 2.942041777 | K102: 1.708704862 | L102: 0.115 | M102: 1.623426277 | N102: NA | O102: NA | P102: 5.38952238 | Q102: 2.356944035 | R102: 0.3399 | S102: 1.708704862 | T102: 0.66865 | U102: NA | V102: NA | W102: 1879.884415 | X102: =IF(W102="","",AVERAGE(([1]!AgePb76(L102)-[1]!AgePb76(L102-L102*M102/100)),([1]!AgePb76(L102+L102*M102/100)-[1]!AgePb76(L102)))) -> 29.2537256 | Y102: =IF(X102="","",AVERAGE(([1]!AgePb76($L102)-[1]!AgePb76($L102-$L102*#REF!/100)),([1]!AgePb76($L102+$L102*#REF!/100)-[1]!AgePb76($L102)))) -> 33.9586006 | Z102: 1886.188456 | AA102: =IF(Z102="","",AVERAGE(([1]!AgePb6U8($R102)-[1]!AgePb6U8($R102-$R102*S102/100)),([1]!AgePb6U8($R102+$R102*S102/100)-[1]!AgePb6U8($R102)))) -> 27.94259641 | AB102: =IF(AA102="","",AVERAGE(([1]!AgePb6U8($R102)-[1]!AgePb6U8($R102-$R102*#REF!/100)),([1]!AgePb6U8($R102+$R102*#REF!/100)-[1]!AgePb6U8($R102)))) -> 35.62312159 | AC102: 1883.189847 | AD102: =IF(AC102="","",AVERAGE(([1]!AgePb7U5($P102)-[1]!AgePb7U5($P102-$P102*Q102/100)),([1]!AgePb7U5($P102+$P102*Q102/100)-[1]!AgePb7U5($P102)))) -> 20.18916196 | AE102: =IF(AD102="","",AVERAGE(([1]!AgePb7U5($P102)-[1]!AgePb7U5($P102-$P102*#REF!/100)),([1]!AgePb7U5($P102+$P102*#REF!/100)-[1]!AgePb7U5($P102)))) -> 24.67412275 | AF102: NA | AG102: NA | AH102: NA | AI102: 0.77347365 | AJ102: -0.3353419992 | AK102: DO | AL102: 1879.884415 | AM102: 29.2537256 | AN102: 1.556144909 | AO102: 33.9586006 | AP102: 1.803049989
A103: UK010 | B103: UK010_173 | C103: NA | D103: 2020 | E103: 17810 | F103: 207 | G103: 1.900826446 | H103: NA | I103: NA | J103: 2.972651605 | K103: 1.488145616 | L103: 0.1151 | M103: 2.411275467 | N103: NA | O103: NA | P103: 5.338663963 | Q103: 2.83351844 | R103: 0.3364 | S103: 1.488145616 | T103: 0.5769 | U103: NA | V103: NA | W103: 1881.450324 | X103: =IF(W103="","",AVERAGE(([1]!AgePb76(L103)-[1]!AgePb76(L103-L103*M103/100)),([1]!AgePb76(L103+L103*M103/100)-[1]!AgePb76(L103)))) -> 43.4489713 | Y103: =IF(X103="","",AVERAGE(([1]!AgePb76($L103)-[1]!AgePb76($L103-$L103*#REF!/100)),([1]!AgePb76($L103+$L103*#REF!/100)-[1]!AgePb76($L103)))) -> 46.74705758 | Z103: 1869.32752 | AA103: =IF(Z103="","",AVERAGE(([1]!AgePb6U8($R103)-[1]!AgePb6U8($R103-$R103*S103/100)),([1]!AgePb6U8($R103+$R103*S103/100)-[1]!AgePb6U8($R103)))) -> 24.14822348 | AB103: =IF(AA103="","",AVERAGE(([1]!AgePb6U8($R103)-[1]!AgePb6U8($R103-$R103*#REF!/100)),([1]!AgePb6U8($R103+$R103*#REF!/100)-[1]!AgePb6U8($R103)))) -> 32.61682232 | AC103: 1875.075407 | AD103: =IF(AC103="","",AVERAGE(([1]!AgePb7U5($P103)-[1]!AgePb7U5($P103-$P103*Q103/100)),([1]!AgePb7U5($P103+$P103*Q103/100)-[1]!AgePb7U5($P103)))) -> 24.23668844 | AE103: =IF(AD103="","",AVERAGE(([1]!AgePb7U5($P103)-[1]!AgePb7U5($P103-$P103*#REF!/100)),([1]!AgePb7U5($P103+$P103*#REF!/100)-[1]!AgePb7U5($P103)))) -> 28.07267473 | AF103: NA | AG103: NA | AH103: NA | AI103: 0.6056513593 | AJ103: 0.6443329504 | AL103: 1881.450324 | AM103: 43.4489713 | AN103: 2.309333961 | AO103: 46.74705758 | AP103: 2.496961448
A104: UK010 | B104: UK010_285 | C104: NA | D104: 2680 | E104: 24100 | F104: 274 | G104: 1.72652804 | H104: NA | I104: NA | J104: 2.918004085 | K104: 1.561106796 | L104: 0.1153 | M104: 2.476754132 | N104: NA | O104: NA | P104: 5.448095183 | Q104: 2.927689441 | R104: 0.3427 | S104: 1.561106796 | T104: 0.30731 | U104: NA | V104: NA | W104: 1884.577185 | X104: =IF(W104="","",AVERAGE(([1]!AgePb76(L104)-[1]!AgePb76(L104-L104*M104/100)),([1]!AgePb76(L104+L104*M104/100)-[1]!AgePb76(L104)))) -> 44.61276947 | Y104: =IF(X104="","",AVERAGE(([1]!AgePb76($L104)-[1]!AgePb76($L104-$L104*#REF!/100)),([1]!AgePb76($L104+$L104*#REF!/100)-[1]!AgePb76($L104)))) -> 47.82853028 | Z104: 1899.645525 | AA104: =IF(Z104="","",AVERAGE(([1]!AgePb6U8($R104)-[1]!AgePb6U8($R104-$R104*S104/100)),([1]!AgePb6U8($R104+$R104*S104/100)-[1]!AgePb6U8($R104)))) -> 25.68551239 | AB104: =IF(AA104="","",AVERAGE(([1]!AgePb6U8($R104)-[1]!AgePb6U8($R104-$R104*#REF!/100)),([1]!AgePb6U8($R104+$R104*#REF!/100)-[1]!AgePb6U8($R104)))) -> 33.97014526 | AC104: 1892.455467 | AD104: =IF(AC104="","",AVERAGE(([1]!AgePb7U5($P104)-[1]!AgePb7U5($P104-$P104*Q104/100)),([1]!AgePb7U5($P104+$P104*Q104/100)-[1]!AgePb7U5($P104)))) -> 25.12214791 | AE104: =IF(AD104="","",AVERAGE(([1]!AgePb7U5($P104)-[1]!AgePb7U5($P104-$P104*#REF!/100)),([1]!AgePb7U5($P104+$P104*#REF!/100)-[1]!AgePb7U5($P104)))) -> 28.86294627 | AF104: NA | AG104: NA | AH104: NA | AI104: 0.6303427918 | AJ104: -0.7995607728 | AK104: Z | AL104: 1884.577185 | AM104: 44.61276947 | AN104: 2.367256158 | AO104: 47.82853028 | AP104: 2.522711845
A105: UK010 | B105: UK010_290 | C105: NA | D105: 2330 | E105: 20700 | F105: 227 | G105: 2.664319249 | H105: NA | I105: NA | J105: 2.901073397 | K105: 1.40598986 | L105: 0.1154 | M105: 2.19255535 | N105: NA | O105: NA | P105: 5.484643034 | Q105: 2.60463173 | R105: 0.3447 | S105: 1.40598986 | T105: 0.53832 | U105: NA | V105: NA | W105: 1886.138144 | X105: =IF(W105="","",AVERAGE(([1]!AgePb76(L105)-[1]!AgePb76(L105-L105*M105/100)),([1]!AgePb76(L105+L105*M105/100)-[1]!AgePb76(L105)))) -> 39.48372428 | Y105: =IF(X105="","",AVERAGE(([1]!AgePb76($L105)-[1]!AgePb76($L105-$L105*#REF!/100)),([1]!AgePb76($L105+$L105*#REF!/100)-[1]!AgePb76($L105)))) -> 43.08186613 | Z105: 1909.240547 | AA105: =IF(Z105="","",AVERAGE(([1]!AgePb6U8($R105)-[1]!AgePb6U8($R105-$R105*S105/100)),([1]!AgePb6U8($R105+$R105*S105/100)-[1]!AgePb6U8($R105)))) -> 23.23368801 | AB105: =IF(AA105="","",AVERAGE(([1]!AgePb6U8($R105)-[1]!AgePb6U8($R105-$R105*#REF!/100)),([1]!AgePb6U8($R105+$R105*#REF!/100)-[1]!AgePb6U8($R105)))) -> 32.2230785 | AC105: 1898.194417 | AD105: =IF(AC105="","",AVERAGE(([1]!AgePb7U5($P105)-[1]!AgePb7U5($P105-$P105*Q105/100)),([1]!AgePb7U5($P105+$P105*Q105/100)-[1]!AgePb7U5($P105)))) -> 22.37220555 | AE105: =IF(AD105="","",AVERAGE(([1]!AgePb7U5($P105)-[1]!AgePb7U5($P105-$P105*#REF!/100)),([1]!AgePb7U5($P105+$P105*#REF!/100)-[1]!AgePb7U5($P105)))) -> 26.5112591 | AF105: NA | AG105: NA | AH105: NA | AI105: 0.3131651954 | AJ105: -1.224852139 | AL105: 1886.138144 | AM105: 39.48372428 | AN105: 2.093363332 | AO105: 43.08186613 | AP105: 2.263651424
A106: UK010 | B106: UK010_172 | C106: NA | D106: 2790 | E106: 24300 | F106: 293 | G106: 1.713450292 | H106: NA | I106: NA | J106: 2.927400468 | K106: 1.465012468 | L106: 0.1155 | M106: 2.102241436 | N106: NA | O106: NA | P106: 5.440027824 | Q106: 2.562358403 | R106: 0.3416 | S106: 1.465012468 | T106: 0.30185 | U106: NA | V106: NA | W106: 1887.697458 | X106: =IF(W106="","",AVERAGE(([1]!AgePb76(L106)-[1]!AgePb76(L106-L106*M106/100)),([1]!AgePb76(L106+L106*M106/100)-[1]!AgePb76(L106)))) -> 37.84956861 | Y106: =IF(X106="","",AVERAGE(([1]!AgePb76($L106)-[1]!AgePb76($L106-$L106*#REF!/100)),([1]!AgePb76($L106+$L106*#REF!/100)-[1]!AgePb76($L106)))) -> 41.58773304 | Z106: 1894.362169 | AA106: =IF(Z106="","",AVERAGE(([1]!AgePb6U8($R106)-[1]!AgePb6U8($R106-$R106*S106/100)),([1]!AgePb6U8($R106+$R106*S106/100)-[1]!AgePb6U8($R106)))) -> 24.04674805 | AB106: =IF(AA106="","",AVERAGE(([1]!AgePb6U8($R106)-[1]!AgePb6U8($R106-$R106*#REF!/100)),([1]!AgePb6U8($R106+$R106*#REF!/100)-[1]!AgePb6U8($R106)))) -> 32.71250451 | AC106: 1891.184303 | AD106: =IF(AC106="","",AVERAGE(([1]!AgePb7U5($P106)-[1]!AgePb7U5($P106-$P106*Q106/100)),([1]!AgePb7U5($P106+$P106*Q106/100)-[1]!AgePb7U5($P106)))) -> 21.98117982 | AE106: =IF(AD106="","",AVERAGE(([1]!AgePb7U5($P106)-[1]!AgePb7U5($P106-$P106*#REF!/100)),([1]!AgePb7U5($P106+$P106*#REF!/100)-[1]!AgePb7U5($P106)))) -> 26.17227797 | AF106: NA | AG106: NA | AH106: NA | AI106: 0.8154944318 | AJ106: -0.3530603525 | AL106: 1887.697458 | AM106: 37.84956861 | AN106: 2.005065401 | AO106: 41.58773304 | AP106: 2.197425368
A107: UK010 | B107: UK010_295 | C107: NA | D107: 2740 | E107: 24400 | F107: 277 | G107: 1.08203125 | H107: NA | I107: NA | J107: 3.01295571 | K107: 1.349177244 | L107: 0.1155 | M107: 2.115244411 | N107: NA | O107: NA | P107: 5.285553966 | Q107: 2.508891818 | R107: 0.3319 | S107: 1.349177244 | T107: 0.52043 | U107: NA | V107: NA | W107: 1887.697458 | X107: =IF(W107="","",AVERAGE(([1]!AgePb76(L107)-[1]!AgePb76(L107-L107*M107/100)),([1]!AgePb76(L107+L107*M107/100)-[1]!AgePb76(L107)))) -> 38.08377857 | Y107: =IF(X107="","",AVERAGE(([1]!AgePb76($L107)-[1]!AgePb76($L107-$L107*#REF!/100)),([1]!AgePb76($L107+$L107*#REF!/100)-[1]!AgePb76($L107)))) -> 41.80104047 | Z107: 1847.584169 | AA107: =IF(Z107="","",AVERAGE(([1]!AgePb6U8($R107)-[1]!AgePb6U8($R107-$R107*S107/100)),([1]!AgePb6U8($R107+$R107*S107/100)-[1]!AgePb6U8($R107)))) -> 21.67327206 | AB107: =IF(AA107="","",AVERAGE(([1]!AgePb6U8($R107)-[1]!AgePb6U8($R107-$R107*#REF!/100)),([1]!AgePb6U8($R107+$R107*#REF!/100)-[1]!AgePb6U8($R107)))) -> 30.67314135 | AC107: 1866.531938 | AD107: =IF(AC107="","",AVERAGE(([1]!AgePb7U5($P107)-[1]!AgePb7U5($P107-$P107*Q107/100)),([1]!AgePb7U5($P107+$P107*Q107/100)-[1]!AgePb7U5($P107)))) -> 21.42511911 | AE107: =IF(AD107="","",AVERAGE(([1]!AgePb7U5($P107)-[1]!AgePb7U5($P107-$P107*#REF!/100)),([1]!AgePb7U5($P107+$P107*#REF!/100)-[1]!AgePb7U5($P107)))) -> 25.67149745 | AF107: NA | AG107: NA | AH107: NA | AI107: 0.07308869797 | AJ107: 2.124985064 | AL107: 1887.697458 | AM107: 38.08377857 | AN107: 2.017472578 | AO107: 41.80104047 | AP107: 2.250875665
A108: UK010 | B108: UK010_288 | C108: NA | D108: 1591 | E108: 13920 | F108: 159 | G108: 3.680555556 | H108: NA | I108: NA | J108: 2.958579882 | K108: 1.78803018 | L108: 0.1156 | M108: 3.07724499 | N108: NA | O108: NA | P108: 5.387357664 | Q108: 3.559001075 | R108: 0.338 | S108: 1.78803018 | T108: 0.26722 | U108: NA | V108: NA | W108: 1889.255132 | X108: =IF(W108="","",AVERAGE(([1]!AgePb76(L108)-[1]!AgePb76(L108-L108*M108/100)),([1]!AgePb76(L108+L108*M108/100)-[1]!AgePb76(L108)))) -> 55.40687993 | Y108: =IF(X108="","",AVERAGE(([1]!AgePb76($L108)-[1]!AgePb76($L108-$L108*#REF!/100)),([1]!AgePb76($L108+$L108*#REF!/100)-[1]!AgePb76($L108)))) -> 58.02625799 | Z108: 1877.040849 | AA108: =IF(Z108="","",AVERAGE(([1]!AgePb6U8($R108)-[1]!AgePb6U8($R108-$R108*S108/100)),([1]!AgePb6U8($R108+$R108*S108/100)-[1]!AgePb6U8($R108)))) -> 29.11766806 | AB108: =IF(AA108="","",AVERAGE(([1]!AgePb6U8($R108)-[1]!AgePb6U8($R108-$R108*#REF!/100)),([1]!AgePb6U8($R108+$R108*#REF!/100)-[1]!AgePb6U8($R108)))) -> 36.49639543 | AC108: 1882.845785 | AD108: =IF(AC108="","",AVERAGE(([1]!AgePb7U5($P108)-[1]!AgePb7U5($P108-$P108*Q108/100)),([1]!AgePb7U5($P108+$P108*Q108/100)-[1]!AgePb7U5($P108)))) -> 30.48899435 | AE108: =IF(AD108="","",AVERAGE(([1]!AgePb7U5($P108)-[1]!AgePb7U5($P108-$P108*#REF!/100)),([1]!AgePb7U5($P108+$P108*#REF!/100)-[1]!AgePb7U5($P108)))) -> 33.62884738 | AF108: NA | AG108: NA | AH108: NA | AI108: 0.7478634127 | AJ108: 0.646513167 | AK108: DO | AL108: 1889.255132 | AM108: 55.40687993 | AN108: 2.932736769 | AO108: 58.02625799 | AP108: 3.086911593
A109: UK010 | B109: UK010_117 | C109: NA | D109: 2680 | E109: 23350 | F109: 303 | G109: 2.831775701 | H109: NA | I109: NA | J109: 3.005710851 | K109: 1.431272956 | L109: 0.1157 | M109: 2.321749178 | N109: NA | O109: NA | P109: 5.307468613 | Q109: 2.727464302 | R109: 0.3327 | S109: 1.431272956 | T109: 0.36792 | U109: NA | V109: NA | W109: 1890.811169 | X109: =IF(W109="","",AVERAGE(([1]!AgePb76(L109)-[1]!AgePb76(L109-L109*M109/100)),([1]!AgePb76(L109+L109*M109/100)-[1]!AgePb76(L109)))) -> 41.78801008 | Y109: =IF(X109="","",AVERAGE(([1]!AgePb76($L109)-[1]!AgePb76($L109-$L109*#REF!/100)),([1]!AgePb76($L109+$L109*#REF!/100)-[1]!AgePb76($L109)))) -> 45.19978737 | Z109: 1851.455018 | AA109: =IF(Z109="","",AVERAGE(([1]!AgePb6U8($R109)-[1]!AgePb6U8($R109-$R109*S109/100)),([1]!AgePb6U8($R109+$R109*S109/100)-[1]!AgePb6U8($R109)))) -> 23.03365843 | AB109: =IF(AA109="","",AVERAGE(([1]!AgePb6U8($R109)-[1]!AgePb6U8($R109-$R109*#REF!/100)),([1]!AgePb6U8($R109+$R109*#REF!/100)-[1]!AgePb6U8($R109)))) -> 31.67596737 | AC109: 1870.065924 | AD109: =IF(AC109="","",AVERAGE(([1]!AgePb7U5($P109)-[1]!AgePb7U5($P109-$P109*Q109/100)),([1]!AgePb7U5($P109+$P109*Q109/100)-[1]!AgePb7U5($P109)))) -> 23.30760186 | AE109: =IF(AD109="","",AVERAGE(([1]!AgePb7U5($P109)-[1]!AgePb7U5($P109-$P109*#REF!/100)),([1]!AgePb7U5($P109+$P109*#REF!/100)-[1]!AgePb7U5($P109)))) -> 27.26754859 | AF109: NA | AG109: NA | AH109: NA | AI109: 0.1539026563 | AJ109: 2.081442733 | AL109: 1890.811169 | AM109: 41.78801008 | AN109: 2.21005729 | AO109: 45.19978737 | AP109: 2.429502582
A110: UK010 | B110: UK010_127 | C110: NA | D110: 459 | E110: 4110 | F110: 50.6 | G110: 0.3984251969 | H110: NA | I110: NA | J110: 2.941176471 | K110: 2.697220792 | L110: 0.1161 | M110: 5.319478027 | N110: NA | O110: NA | P110: 5.44267512 | Q110: 5.964213819 | R110: 0.34 | S110: 2.697220792 | T110: 0.44543 | U110: NA | V110: NA | W110: 1897.019013 | X110: =IF(W110="","",AVERAGE(([1]!AgePb76(L110)-[1]!AgePb76(L110-L110*M110/100)),([1]!AgePb76(L110+L110*M110/100)-[1]!AgePb76(L110)))) -> 95.7758794 | Y110: =IF(X110="","",AVERAGE(([1]!AgePb76($L110)-[1]!AgePb76($L110-$L110*#REF!/100)),([1]!AgePb76($L110+$L110*#REF!/100)-[1]!AgePb76($L110)))) -> 97.31729701 | Z110: 1886.66955 | AA110: =IF(Z110="","",AVERAGE(([1]!AgePb6U8($R110)-[1]!AgePb6U8($R110-$R110*S110/100)),([1]!AgePb6U8($R110+$R110*S110/100)-[1]!AgePb6U8($R110)))) -> 44.11797836 | AB110: =IF(AA110="","",AVERAGE(([1]!AgePb6U8($R110)-[1]!AgePb6U8($R110-$R110*#REF!/100)),([1]!AgePb6U8($R110+$R110*#REF!/100)-[1]!AgePb6U8($R110)))) -> 49.34416669 | AC110: 1891.60161 | AD110: =IF(AC110="","",AVERAGE(([1]!AgePb7U5($P110)-[1]!AgePb7U5($P110-$P110*Q110/100)),([1]!AgePb7U5($P110+$P110*Q110/100)-[1]!AgePb7U5($P110)))) -> 51.2032118 | AE110: =IF(AD110="","",AVERAGE(([1]!AgePb7U5($P110)-[1]!AgePb7U5($P110-$P110*#REF!/100)),([1]!AgePb7U5($P110+$P110*#REF!/100)-[1]!AgePb7U5($P110)))) -> 53.14295838 | AF110: NA | AG110: NA | AH110: NA | AI110: 0.8453572638 | AJ110: 0.5455645283 | AL110: 1897.019013 | AM110: 95.7758794 | AN110: 5.048756957 | AO110: 97.31729701 | AP110: 5.153220987
A111: UK010 | B111: UK010_244 | C111: NA | D111: 2540 | E111: 22600 | F111: 266 | G111: 1.796083727 | H111: NA | I111: NA | J111: 2.994908655 | K111: 1.439396565 | L111: 0.1161 | M111: 2.245069426 | N111: NA | O111: NA | P111: 5.345027125 | Q111: 2.666870675 | R111: 0.3339 | S111: 1.439396565 | T111: 0.43893 | U111: NA | V111: NA | W111: 1897.019013 | X111: =IF(W111="","",AVERAGE(([1]!AgePb76(L111)-[1]!AgePb76(L111-L111*M111/100)),([1]!AgePb76(L111+L111*M111/100)-[1]!AgePb76(L111)))) -> 40.37721523 | Y111: =IF(X111="","",AVERAGE(([1]!AgePb76($L111)-[1]!AgePb76($L111-$L111*#REF!/100)),([1]!AgePb76($L111+$L111*#REF!/100)-[1]!AgePb76($L111)))) -> 43.89353115 | Z111: 1857.256936 | AA111: =IF(Z111="","",AVERAGE(([1]!AgePb6U8($R111)-[1]!AgePb6U8($R111-$R111*S111/100)),([1]!AgePb6U8($R111+$R111*S111/100)-[1]!AgePb6U8($R111)))) -> 23.22703066 | AB111: =IF(AA111="","",AVERAGE(([1]!AgePb6U8($R111)-[1]!AgePb6U8($R111-$R111*#REF!/100)),([1]!AgePb6U8($R111+$R111*#REF!/100)-[1]!AgePb6U8($R111)))) -> 31.85707209 | AC111: 1876.094203 | AD111: =IF(AC111="","",AVERAGE(([1]!AgePb7U5($P111)-[1]!AgePb7U5($P111-$P111*Q111/100)),([1]!AgePb7U5($P111+$P111*Q111/100)-[1]!AgePb7U5($P111)))) -> 22.81504746 | AE111: =IF(AD111="","",AVERAGE(([1]!AgePb7U5($P111)-[1]!AgePb7U5($P111-$P111*#REF!/100)),([1]!AgePb7U5($P111+$P111*#REF!/100)-[1]!AgePb7U5($P111)))) -> 26.8559571 | AF111: NA | AG111: NA | AH111: NA | AI111: 0.1230621738 | AJ111: 2.096029449 | AL111: 1897.019013 | AM111: 40.37721523 | AN111: 2.128456012 | AO111: 43.89353115 | AP111: 2.351238992
A112: UK010 | B112: UK010_73 | C112: NA | D112: 768 | E112: 6590 | F112: 93.3 | G112: 0.723255814 | H112: NA | I112: NA | J112: 2.994011976 | K112: 2.462210355 | L112: 0.1166 | M112: 3.943363547 | N112: NA | O112: NA | P112: 5.369653872 | Q112: 4.648934921 | R112: 0.334 | S112: 2.462210355 | T112: 0.64683 | U112: NA | V112: NA | W112: 1904.742379 | X112: =IF(W112="","",AVERAGE(([1]!AgePb76(L112)-[1]!AgePb76(L112-L112*M112/100)),([1]!AgePb76(L112+L112*M112/100)-[1]!AgePb76(L112)))) -> 70.89076762 | Y112: =IF(X112="","",AVERAGE(([1]!AgePb76($L112)-[1]!AgePb76($L112-$L112*#REF!/100)),([1]!AgePb76($L112+$L112*#REF!/100)-[1]!AgePb76($L112)))) -> 72.95113786 | Z112: 1857.740193 | AA112: =IF(Z112="","",AVERAGE(([1]!AgePb6U8($R112)-[1]!AgePb6U8($R112-$R112*S112/100)),([1]!AgePb6U8($R112+$R112*S112/100)-[1]!AgePb6U8($R112)))) -> 39.74106468 | AB112: =IF(AA112="","",AVERAGE(([1]!AgePb6U8($R112)-[1]!AgePb6U8($R112-$R112*#REF!/100)),([1]!AgePb6U8($R112+$R112*#REF!/100)-[1]!AgePb6U8($R112)))) -> 45.33166283 | AC112: 1880.027548 | AD112: =IF(AC112="","",AVERAGE(([1]!AgePb7U5($P112)-[1]!AgePb7U5($P112-$P112*Q112/100)),([1]!AgePb7U5($P112+$P112*Q112/100)-[1]!AgePb7U5($P112)))) -> 39.81404757 | AE112: =IF(AD112="","",AVERAGE(([1]!AgePb7U5($P112)-[1]!AgePb7U5($P112-$P112*#REF!/100)),([1]!AgePb7U5($P112+$P112*#REF!/100)-[1]!AgePb7U5($P112)))) -> 42.26631996 | AF112: NA | AG112: NA | AH112: NA | AI112: 0.1833734675 | AJ112: 2.467640024 | AL112: 1904.742379 | AM112: 70.89076762 | AN112: 3.721803453 | AO112: 72.95113786 | AP112: 3.904332365
A113: UK010 | B113: UK010_126 | C113: NA | D113: 4730 | E113: 41000 | F113: 564 | G113: 1.435114504 | H113: NA | I113: NA | J113: 3.011141223 | K113: 1.567328394 | L113: 0.1167 | M113: 1.905107018 | N113: NA | O113: NA | P113: 5.343686932 | Q113: 2.46697204 | R113: 0.3321 | S113: 1.567328394 | T113: 0.18208 | U113: NA | V113: NA | W113: 1906.282226 | X113: =IF(W113="","",AVERAGE(([1]!AgePb76(L113)-[1]!AgePb76(L113-L113*M113/100)),([1]!AgePb76(L113+L113*M113/100)-[1]!AgePb76(L113)))) -> 34.22288649 | Y113: =IF(X113="","",AVERAGE(([1]!AgePb76($L113)-[1]!AgePb76($L113-$L113*#REF!/100)),([1]!AgePb76($L113+$L113*#REF!/100)-[1]!AgePb76($L113)))) -> 38.29875332 | Z113: 1848.552099 | AA113: =IF(Z113="","",AVERAGE(([1]!AgePb6U8($R113)-[1]!AgePb6U8($R113-$R113*S113/100)),([1]!AgePb6U8($R113+$R113*S113/100)-[1]!AgePb6U8($R113)))) -> 25.18908921 | AB113: =IF(AA113="","",AVERAGE(([1]!AgePb6U8($R113)-[1]!AgePb6U8($R113-$R113*#REF!/100)),([1]!AgePb6U8($R113+$R113*#REF!/100)-[1]!AgePb6U8($R113)))) -> 33.257028 | AC113: 1875.879712 | AD113: =IF(AC113="","",AVERAGE(([1]!AgePb7U5($P113)-[1]!AgePb7U5($P113-$P113*Q113/100)),([1]!AgePb7U5($P113+$P113*Q113/100)-[1]!AgePb7U5($P113)))) -> 21.10357004 | AE113: =IF(AD113="","",AVERAGE(([1]!AgePb7U5($P113)-[1]!AgePb7U5($P113-$P113*#REF!/100)),([1]!AgePb7U5($P113+$P113*#REF!/100)-[1]!AgePb7U5($P113)))) -> 25.41734318 | AF113: NA | AG113: NA | AH113: NA | AI113: 0.0667222182 | AJ113: 3.028414467 | AK113: DO | AL113: 1906.282226 | AM113: 34.22288649 | AN113: 1.795268614 | AO113: 38.29875332 | AP113: 2.05359221
A114: UK010 | B114: UK010_215 | C114: NA | D114: 3160 | E114: 27480 | F114: 328 | G114: 1.648241206 | H114: NA | I114: NA | J114: 2.952465309 | K114: 1.428879712 | L114: 0.1168 | M114: 1.883186248 | N114: NA | O114: NA | P114: 5.454554861 | Q114: 2.363913635 | R114: 0.3387 | S114: 1.428879712 | T114: 0.54337 | U114: NA | V114: NA | W114: 1907.820472 | X114: =IF(W114="","",AVERAGE(([1]!AgePb76(L114)-[1]!AgePb76(L114-L114*M114/100)),([1]!AgePb76(L114+L114*M114/100)-[1]!AgePb76(L114)))) -> 33.82277249 | Y114: =IF(X114="","",AVERAGE(([1]!AgePb76($L114)-[1]!AgePb76($L114-$L114*#REF!/100)),([1]!AgePb76($L114+$L114*#REF!/100)-[1]!AgePb76($L114)))) -> 37.94015606 | Z114: 1880.412531 | AA114: =IF(Z114="","",AVERAGE(([1]!AgePb6U8($R114)-[1]!AgePb6U8($R114-$R114*S114/100)),([1]!AgePb6U8($R114+$R114*S114/100)-[1]!AgePb6U8($R114)))) -> 23.30492452 | AB114: =IF(AA114="","",AVERAGE(([1]!AgePb6U8($R114)-[1]!AgePb6U8($R114-$R114*#REF!/100)),([1]!AgePb6U8($R114+$R114*#REF!/100)-[1]!AgePb6U8($R114)))) -> 32.07432301 | AC114: 1893.472165 | AD114: =IF(AC114="","",AVERAGE(([1]!AgePb7U5($P114)-[1]!AgePb7U5($P114-$P114*Q114/100)),([1]!AgePb7U5($P114+$P114*Q114/100)-[1]!AgePb7U5($P114)))) -> 20.28674244 | AE114: =IF(AD114="","",AVERAGE(([1]!AgePb7U5($P114)-[1]!AgePb7U5($P114-$P114*#REF!/100)),([1]!AgePb7U5($P114+$P114*#REF!/100)-[1]!AgePb7U5($P114)))) -> 24.76925774 | AF114: NA | AG114: NA | AH114: NA | AI114: 0.2136723199 | AJ114: 1.436610084 | AL114: 1907.820472 | AM114: 33.82277249 | AN114: 1.772848807 | AO114: 37.94015606 | AP114: 2.008668074
A115: UK010 | B115: UK010_298 | C115: NA | D115: 7980 | E115: 69600 | F115: 783 | G115: 1.014248705 | H115: NA | I115: NA | J115: 2.836074872 | K115: 1.471768096 | L115: 0.117 | M115: 1.349077625 | N115: NA | O115: NA | P115: 5.688129096 | Q115: 1.996524923 | R115: 0.3526 | S115: 1.471768096 | T115: 0.67454 | U115: NA | V115: NA | W115: 1910.892174 | X115: =IF(W115="","",AVERAGE(([1]!AgePb76(L115)-[1]!AgePb76(L115-L115*M115/100)),([1]!AgePb76(L115+L115*M115/100)-[1]!AgePb76(L115)))) -> 24.21912436 | Y115: =IF(X115="","",AVERAGE(([1]!AgePb76($L115)-[1]!AgePb76($L115-$L115*#REF!/100)),([1]!AgePb76($L115+$L115*#REF!/100)-[1]!AgePb76($L115)))) -> 29.69391612 | Z115: 1947.001877 | AA115: =IF(Z115="","",AVERAGE(([1]!AgePb6U8($R115)-[1]!AgePb6U8($R115-$R115*S115/100)),([1]!AgePb6U8($R115+$R115*S115/100)-[1]!AgePb6U8($R115)))) -> 24.73276355 | AB115: =IF(AA115="","",AVERAGE(([1]!AgePb6U8($R115)-[1]!AgePb6U8($R115-$R115*#REF!/100)),([1]!AgePb6U8($R115+$R115*#REF!/100)-[1]!AgePb6U8($R115)))) -> 33.57484965 | AC115: 1929.56712 | AD115: =IF(AC115="","",AVERAGE(([1]!AgePb7U5($P115)-[1]!AgePb7U5($P115-$P115*Q115/100)),([1]!AgePb7U5($P115+$P115*Q115/100)-[1]!AgePb7U5($P115)))) -> 17.24293487 | AE115: =IF(AD115="","",AVERAGE(([1]!AgePb7U5($P115)-[1]!AgePb7U5($P115-$P115*#REF!/100)),([1]!AgePb7U5($P115+$P115*#REF!/100)-[1]!AgePb7U5($P115)))) -> 22.40195613 | AF115: NA | AG115: NA | AH115: NA | AI115: 0.05659298612 | AJ115: -1.889677706 | AL115: 1910.892174 | AM115: 24.21912436 | AN115: 1.26742496 | AO115: 29.69391612 | AP115: 1.538527757
A116: UK010 | B116: UK010_2 | C116: NA | D116: 771 | E116: 6940 | F116: 103.5 | G116: 1.000967118 | H116: NA | I116: NA | J116: 3.048780488 | K116: 2.499877302 | L116: 0.1171 | M116: 4.960815566 | N116: NA | O116: NA | P116: 5.295805344 | Q116: 5.555094744 | R116: 0.328 | S116: 2.499877302 | T116: 0.096604 | U116: NA | V116: NA | W116: 1912.425635 | X116: =IF(W116="","",AVERAGE(([1]!AgePb76(L116)-[1]!AgePb76(L116-L116*M116/100)),([1]!AgePb76(L116+L116*M116/100)-[1]!AgePb76(L116)))) -> 89.13844652 | Y116: =IF(X116="","",AVERAGE(([1]!AgePb76($L116)-[1]!AgePb76($L116-$L116*#REF!/100)),([1]!AgePb76($L116+$L116*#REF!/100)-[1]!AgePb76($L116)))) -> 90.7854454 | Z116: 1828.680426 | AA116: =IF(Z116="","",AVERAGE(([1]!AgePb6U8($R116)-[1]!AgePb6U8($R116-$R116*S116/100)),([1]!AgePb6U8($R116+$R116*S116/100)-[1]!AgePb6U8($R116)))) -> 39.80321812 | AB116: =IF(AA116="","",AVERAGE(([1]!AgePb6U8($R116)-[1]!AgePb6U8($R116-$R116*#REF!/100)),([1]!AgePb6U8($R116+$R116*#REF!/100)-[1]!AgePb6U8($R116)))) -> 45.24514752 | AC116: 1868.186621 | AD116: =IF(AC116="","",AVERAGE(([1]!AgePb7U5($P116)-[1]!AgePb7U5($P116-$P116*Q116/100)),([1]!AgePb7U5($P116+$P116*Q116/100)-[1]!AgePb7U5($P116)))) -> 47.48085052 | AE116: =IF(AD116="","",AVERAGE(([1]!AgePb7U5($P116)-[1]!AgePb7U5($P116-$P116*#REF!/100)),([1]!AgePb7U5($P116+$P116*#REF!/100)-[1]!AgePb7U5($P116)))) -> 49.54805212 | AF116: NA | AG116: NA | AH116: NA | AI116: 0.1827134562 | AJ116: 4.379004764 | AL116: 1912.425635 | AM116: 89.13844652 | AN116: 4.661015041 | AO116: 90.7854454 | AP116: 4.922716265
A117: UK010 | B117: UK010_229 | C117: NA | D117: 2660 | E117: 22940 | F117: 269 | G117: 2.914409534 | H117: NA | I117: NA | J117: 2.939447384 | K117: 1.415210184 | L117: 0.1174 | M117: 2.030333919 | N117: NA | O117: NA | P117: 5.506855502 | Q117: 2.474889025 | R117: 0.3402 | S117: 1.415210184 | T117: 0.64881 | U117: NA | V117: NA | W117: 1917.016504 | X117: =IF(W117="","",AVERAGE(([1]!AgePb76(L117)-[1]!AgePb76(L117-L117*M117/100)),([1]!AgePb76(L117+L117*M117/100)-[1]!AgePb76(L117)))) -> 36.42671558 | Y117: =IF(X117="","",AVERAGE(([1]!AgePb76($L117)-[1]!AgePb76($L117-$L117*#REF!/100)),([1]!AgePb76($L117+$L117*#REF!/100)-[1]!AgePb76($L117)))) -> 40.27117067 | Z117: 1887.63163 | AA117: =IF(Z117="","",AVERAGE(([1]!AgePb6U8($R117)-[1]!AgePb6U8($R117-$R117*S117/100)),([1]!AgePb6U8($R117+$R117*S117/100)-[1]!AgePb6U8($R117)))) -> 23.15824875 | AB117: =IF(AA117="","",AVERAGE(([1]!AgePb6U8($R117)-[1]!AgePb6U8($R117-$R117*#REF!/100)),([1]!AgePb6U8($R117+$R117*#REF!/100)-[1]!AgePb6U8($R117)))) -> 32.01815133 | AC117: 1901.666562 | AD117: =IF(AC117="","",AVERAGE(([1]!AgePb7U5($P117)-[1]!AgePb7U5($P117-$P117*Q117/100)),([1]!AgePb7U5($P117+$P117*Q117/100)-[1]!AgePb7U5($P117)))) -> 21.27069502 | AE117: =IF(AD117="","",AVERAGE(([1]!AgePb7U5($P117)-[1]!AgePb7U5($P117-$P117*#REF!/100)),([1]!AgePb7U5($P117+$P117*#REF!/100)-[1]!AgePb7U5($P117)))) -> 25.59322428 | AF117: NA | AG117: NA | AH117: NA | AI117: 0.1334747416 | AJ117: 1.532844102 | AL117: 1917.016504 | AM117: 36.42671558 | AN117: 1.900177463 | AO117: 40.27117067 | AP117: 2.123764855
A118: UK010 | B118: UK010_277 | C118: NA | D118: 1476 | E118: 12860 | F118: 150 | G118: 0.5300353357 | H118: NA | I118: NA | J118: 3.040437823 | K118: 1.611974386 | L118: 0.1174 | M118: 3.124554939 | N118: NA | O118: NA | P118: 5.323941137 | Q118: 3.515864757 | R118: 0.3289 | S118: 1.611974386 | T118: 0.17153 | U118: NA | V118: NA | W118: 1917.016504 | X118: =IF(W118="","",AVERAGE(([1]!AgePb76(L118)-[1]!AgePb76(L118-L118*M118/100)),([1]!AgePb76(L118+L118*M118/100)-[1]!AgePb76(L118)))) -> 56.0733911 | Y118: =IF(X118="","",AVERAGE(([1]!AgePb76($L118)-[1]!AgePb76($L118-$L118*#REF!/100)),([1]!AgePb76($L118+$L118*#REF!/100)-[1]!AgePb76($L118)))) -> 58.64641765 | Z118: 1833.047751 | AA118: =IF(Z118="","",AVERAGE(([1]!AgePb6U8($R118)-[1]!AgePb6U8($R118-$R118*S118/100)),([1]!AgePb6U8($R118+$R118*S118/100)-[1]!AgePb6U8($R118)))) -> 25.71877141 | AB118: =IF(AA118="","",AVERAGE(([1]!AgePb6U8($R118)-[1]!AgePb6U8($R118-$R118*#REF!/100)),([1]!AgePb6U8($R118+$R118*#REF!/100)-[1]!AgePb6U8($R118)))) -> 33.558634 | AC118: 1872.714232 | AD118: =IF(AC118="","",AVERAGE(([1]!AgePb7U5($P118)-[1]!AgePb7U5($P118-$P118*Q118/100)),([1]!AgePb7U5($P118+$P118*Q118/100)-[1]!AgePb7U5($P118)))) -> 30.06314247 | AE118: =IF(AD118="","",AVERAGE(([1]!AgePb7U5($P118)-[1]!AgePb7U5($P118-$P118*#REF!/100)),([1]!AgePb7U5($P118+$P118*#REF!/100)-[1]!AgePb7U5($P118)))) -> 33.23187587 | AF118: NA | AG118: NA | AH118: NA | AI118: 0.02878752716 | AJ118: 4.380178942 | AL118: 1917.016504 | AM118: 56.0733911 | AN118: 2.925034343 | AO118: 58.64641765 | AP118: 3.17228387
A119: UK010 | B119: UK010_39 | C119: NA | D119: 1860 | E119: 16140 | F119: 210 | G119: 1.946246525 | H119: NA | I119: NA | J119: 2.960331557 | K119: 1.473837092 | L119: 0.1175 | M119: 2.591188462 | N119: NA | O119: NA | P119: 5.47266402 | Q119: 2.981015502 | R119: 0.3378 | S119: 1.473837092 | T119: 0.53824 | U119: NA | V119: NA | W119: 1918.543632 | X119: =IF(W119="","",AVERAGE(([1]!AgePb76(L119)-[1]!AgePb76(L119-L119*M119/100)),([1]!AgePb76(L119+L119*M119/100)-[1]!AgePb76(L119)))) -> 46.48641809 | Y119: =IF(X119="","",AVERAGE(([1]!AgePb76($L119)-[1]!AgePb76($L119-$L119*#REF!/100)),([1]!AgePb76($L119+$L119*#REF!/100)-[1]!AgePb76($L119)))) -> 49.55690147 | Z119: 1876.077187 | AA119: =IF(Z119="","",AVERAGE(([1]!AgePb6U8($R119)-[1]!AgePb6U8($R119-$R119*S119/100)),([1]!AgePb6U8($R119+$R119*S119/100)-[1]!AgePb6U8($R119)))) -> 23.9904363 | AB119: =IF(AA119="","",AVERAGE(([1]!AgePb6U8($R119)-[1]!AgePb6U8($R119-$R119*#REF!/100)),([1]!AgePb6U8($R119+$R119*#REF!/100)-[1]!AgePb6U8($R119)))) -> 32.54622716 | AC119: 1896.316976 | AD119: =IF(AC119="","",AVERAGE(([1]!AgePb7U5($P119)-[1]!AgePb7U5($P119-$P119*Q119/100)),([1]!AgePb7U5($P119+$P119*Q119/100)-[1]!AgePb7U5($P119)))) -> 25.5977538 | AE119: =IF(AD119="","",AVERAGE(([1]!AgePb7U5($P119)-[1]!AgePb7U5($P119-$P119*#REF!/100)),([1]!AgePb7U5($P119+$P119*#REF!/100)-[1]!AgePb7U5($P119)))) -> 29.28276276 | AF119: NA | AG119: NA | AH119: NA | AI119: 0.09083510073 | AJ119: 2.213472951 | AL119: 1918.543632 | AM119: 46.48641809 | AN119: 2.423005519 | AO119: 49.55690147 | AP119: 2.629657146
A120: UK010 | B120: UK010_268 | C120: NA | D120: 2650 | E120: 23210 | F120: 242 | G120: 2.228360958 | H120: NA | I120: NA | J120: 2.858776444 | K120: 1.478121894 | L120: 0.1176 | M120: 2.341071585 | N120: NA | O120: NA | P120: 5.671897862 | Q120: 2.768656804 | R120: 0.3498 | S120: 1.478121894 | T120: 0.27892 | U120: NA | V120: NA | W120: 1920.069184 | X120: =IF(W120="","",AVERAGE(([1]!AgePb76(L120)-[1]!AgePb76(L120-L120*M120/100)),([1]!AgePb76(L120+L120*M120/100)-[1]!AgePb76(L120)))) -> 41.98920979 | Y120: =IF(X120="","",AVERAGE(([1]!AgePb76($L120)-[1]!AgePb76($L120-$L120*#REF!/100)),([1]!AgePb76($L120+$L120*#REF!/100)-[1]!AgePb76($L120)))) -> 45.36317171 | Z120: 1933.643406 | AA120: =IF(Z120="","",AVERAGE(([1]!AgePb6U8($R120)-[1]!AgePb6U8($R120-$R120*S120/100)),([1]!AgePb6U8($R120+$R120*S120/100)-[1]!AgePb6U8($R120)))) -> 24.69340394 | AB120: =IF(AA120="","",AVERAGE(([1]!AgePb6U8($R120)-[1]!AgePb6U8($R120-$R120*#REF!/100)),([1]!AgePb6U8($R120+$R120*#REF!/100)-[1]!AgePb6U8($R120)))) -> 33.455593 | AC120: 1927.09992 | AD120: =IF(AC120="","",AVERAGE(([1]!AgePb7U5($P120)-[1]!AgePb7U5($P120-$P120*Q120/100)),([1]!AgePb7U5($P120+$P120*Q120/100)-[1]!AgePb7U5($P120)))) -> 23.90332215 | AE120: =IF(AD120="","",AVERAGE(([1]!AgePb7U5($P120)-[1]!AgePb7U5($P120-$P120*#REF!/100)),([1]!AgePb7U5($P120+$P120*#REF!/100)-[1]!AgePb7U5($P120)))) -> 27.85309933 | AF120: NA | AG120: NA | AH120: NA | AI120: 0.6536526249 | AJ120: -0.706965258 | AL120: 1920.069184 | AM120: 41.98920979 | AN120: 2.18685921 | AO120: 45.36317171 | AP120: 2.350167646
A121: UK010 | B121: UK010_96 | C121: NA | D121: 3910 | E121: 33500 | F121: 418 | G121: 1.446366782 | H121: NA | I121: NA | J121: 2.946375958 | K121: 1.37568297 | L121: 0.1178 | M121: 1.715085164 | N121: NA | O121: NA | P121: 5.512624402 | Q121: 2.198640661 | R121: 0.3394 | S121: 1.37568297 | T121: 0.73051 | U121: NA | V121: NA | W121: 1923.115573 | X121: =IF(W121="","",AVERAGE(([1]!AgePb76(L121)-[1]!AgePb76(L121-L121*M121/100)),([1]!AgePb76(L121+L121*M121/100)-[1]!AgePb76(L121)))) -> 30.74676734 | Y121: =IF(X121="","",AVERAGE(([1]!AgePb76($L121)-[1]!AgePb76($L121-$L121*#REF!/100)),([1]!AgePb76($L121+$L121*#REF!/100)-[1]!AgePb76($L121)))) -> 35.20983658 | Z121: 1883.78245 | AA121: =IF(Z121="","",AVERAGE(([1]!AgePb6U8($R121)-[1]!AgePb6U8($R121-$R121*S121/100)),([1]!AgePb6U8($R121+$R121*S121/100)-[1]!AgePb6U8($R121)))) -> 22.47190391 | AB121: =IF(AA121="","",AVERAGE(([1]!AgePb6U8($R121)-[1]!AgePb6U8($R121-$R121*#REF!/100)),([1]!AgePb6U8($R121+$R121*#REF!/100)-[1]!AgePb6U8($R121)))) -> 31.49807048 | AC121: 1902.56639 | AD121: =IF(AC121="","",AVERAGE(([1]!AgePb7U5($P121)-[1]!AgePb7U5($P121-$P121*Q121/100)),([1]!AgePb7U5($P121+$P121*Q121/100)-[1]!AgePb7U5($P121)))) -> 18.89890682 | AE121: =IF(AD121="","",AVERAGE(([1]!AgePb7U5($P121)-[1]!AgePb7U5($P121-$P121*#REF!/100)),([1]!AgePb7U5($P121+$P121*#REF!/100)-[1]!AgePb7U5($P121)))) -> 23.65966103 | AF121: NA | AG121: NA | AH121: NA | AI121: 0.0156037774 | AJ121: 2.045281321 | AL121: 1923.115573 | AM121: 30.74676734 | AN121: 1.598799769 | AO121: 35.20983658 | AP121: 1.854370937
A122: UK010 | B122: UK010_220 | C122: NA | D122: 2524 | E122: 21420 | F122: 243 | G122: 1.753246753 | H122: NA | I122: NA | J122: 2.930832356 | K122: 1.342482917 | L122: 0.1181 | M122: 2.287986112 | N122: NA | O122: NA | P122: 5.555973874 | Q122: 2.652760983 | R122: 0.3412 | S122: 1.342482917 | T122: 0.39218 | U122: NA | V122: NA | W122: 1927.673418 | X122: =IF(W122="","",AVERAGE(([1]!AgePb76(L122)-[1]!AgePb76(L122-L122*M122/100)),([1]!AgePb76(L122+L122*M122/100)-[1]!AgePb76(L122)))) -> 40.99960176 | Y122: =IF(X122="","",AVERAGE(([1]!AgePb76($L122)-[1]!AgePb76($L122-$L122*#REF!/100)),([1]!AgePb76($L122+$L122*#REF!/100)-[1]!AgePb76($L122)))) -> 44.44261384 | Z122: 1892.439875 | AA122: =IF(Z122="","",AVERAGE(([1]!AgePb6U8($R122)-[1]!AgePb6U8($R122-$R122*S122/100)),([1]!AgePb6U8($R122+$R122*S122/100)-[1]!AgePb6U8($R122)))) -> 22.01629014 | AB122: =IF(AA122="","",AVERAGE(([1]!AgePb6U8($R122)-[1]!AgePb6U8($R122-$R122*#REF!/100)),([1]!AgePb6U8($R122+$R122*#REF!/100)-[1]!AgePb6U8($R122)))) -> 31.23649991 | AC122: 1909.30261 | AD122: =IF(AC122="","",AVERAGE(([1]!AgePb7U5($P122)-[1]!AgePb7U5($P122-$P122*Q122/100)),([1]!AgePb7U5($P122+$P122*Q122/100)-[1]!AgePb7U5($P122)))) -> 22.8309611 | AE122: =IF(AD122="","",AVERAGE(([1]!AgePb7U5($P122)-[1]!AgePb7U5($P122-$P122*#REF!/100)),([1]!AgePb7U5($P122+$P122*#REF!/100)-[1]!AgePb7U5($P122)))) -> 26.91455313 | AF122: NA | AG122: NA | AH122: NA | AI122: 0.1735485466 | AJ122: 1.827775518 | AL122: 1927.673418 | AM122: 40.99960176 | AN122: 2.126895634 | AO122: 44.44261384 | AP122: 2.338775749
A123: UK010 | B123: UK010_36 | C123: NA | D123: 687 | E123: 5900 | F123: 73.3 | G123: 13.27898551 | H123: NA | I123: NA | J123: 2.849002849 | K123: 1.861493637 | L123: 0.1183 | M123: 4.282161929 | N123: NA | O123: NA | P123: 5.725232604 | Q123: 4.66926861 | R123: 0.351 | S123: 1.861493637 | T123: 0.4372 | U123: NA | V123: NA | W123: 1930.704191 | X123: =IF(W123="","",AVERAGE(([1]!AgePb76(L123)-[1]!AgePb76(L123-L123*M123/100)),([1]!AgePb76(L123+L123*M123/100)-[1]!AgePb76(L123)))) -> 76.75431853 | Y123: =IF(X123="","",AVERAGE(([1]!AgePb76($L123)-[1]!AgePb76($L123-$L123*#REF!/100)),([1]!AgePb76($L123+$L123*#REF!/100)-[1]!AgePb76($L123)))) -> 78.65063972 | Z123: 1939.371855 | AA123: =IF(Z123="","",AVERAGE(([1]!AgePb6U8($R123)-[1]!AgePb6U8($R123-$R123*S123/100)),([1]!AgePb6U8($R123+$R123*S123/100)-[1]!AgePb6U8($R123)))) -> 31.17704251 | AB123: =IF(AA123="","",AVERAGE(([1]!AgePb6U8($R123)-[1]!AgePb6U8($R123-$R123*#REF!/100)),([1]!AgePb6U8($R123+$R123*#REF!/100)-[1]!AgePb6U8($R123)))) -> 38.52424309 | AC123: 1935.184559 | AD123: =IF(AC123="","",AVERAGE(([1]!AgePb7U5($P123)-[1]!AgePb7U5($P123-$P123*Q123/100)),([1]!AgePb7U5($P123+$P123*Q123/100)-[1]!AgePb7U5($P123)))) -> 40.38252651 | AE123: =IF(AD123="","",AVERAGE(([1]!AgePb7U5($P123)-[1]!AgePb7U5($P123-$P123*#REF!/100)),([1]!AgePb7U5($P123+$P123*#REF!/100)-[1]!AgePb7U5($P123)))) -> 42.84889595 | AF123: NA | AG123: NA | AH123: NA | AI123: 0.8286742011 | AJ123: -0.4489379661 | AL123: 1930.704191 | AM123: 76.75431853 | AN123: 3.975457188 | AO123: 78.65063972 | AP123: 4.057951056
A124: UK010 | B124: UK010_272 | C124: NA | D124: 2110 | E124: 17830 | F124: 192 | G124: 3.096774194 | H124: NA | I124: NA | J124: 2.897710808 | K124: 1.577056606 | L124: 0.1186 | M124: 2.424093248 | N124: NA | O124: NA | P124: 5.643271217 | Q124: 2.891943224 | R124: 0.3451 | S124: 1.577056606 | T124: 0.51063 | U124: NA | V124: NA | W124: 1935.238726 | X124: =IF(W124="","",AVERAGE(([1]!AgePb76(L124)-[1]!AgePb76(L124-L124*M124/100)),([1]!AgePb76(L124+L124*M124/100)-[1]!AgePb76(L124)))) -> 43.40101776 | Y124: =IF(X124="","",AVERAGE(([1]!AgePb76($L124)-[1]!AgePb76($L124-$L124*#REF!/100)),([1]!AgePb76($L124+$L124*#REF!/100)-[1]!AgePb76($L124)))) -> 46.66193392 | Z124: 1911.157839 | AA124: =IF(Z124="","",AVERAGE(([1]!AgePb6U8($R124)-[1]!AgePb6U8($R124-$R124*S124/100)),([1]!AgePb6U8($R124+$R124*S124/100)-[1]!AgePb6U8($R124)))) -> 26.0830422 | AB124: =IF(AA124="","",AVERAGE(([1]!AgePb6U8($R124)-[1]!AgePb6U8($R124-$R124*#REF!/100)),([1]!AgePb6U8($R124+$R124*#REF!/100)-[1]!AgePb6U8($R124)))) -> 34.34691265 | AC124: 1922.733914 | AD124: =IF(AC124="","",AVERAGE(([1]!AgePb7U5($P124)-[1]!AgePb7U5($P124-$P124*Q124/100)),([1]!AgePb7U5($P124+$P124*Q124/100)-[1]!AgePb7U5($P124)))) -> 24.94916421 | AE124: =IF(AD124="","",AVERAGE(([1]!AgePb7U5($P124)-[1]!AgePb7U5($P124-$P124*#REF!/100)),([1]!AgePb7U5($P124+$P124*#REF!/100)-[1]!AgePb7U5($P124)))) -> 28.75047951 | AF124: NA | AG124: NA | AH124: NA | AI124: 0.3598270453 | AJ124: 1.244336795 | AL124: 1935.238726 | AM124: 43.40101776 | AN124: 2.24266997 | AO124: 46.66193392 | AP124: 2.433593507
A125: UK010 | B125: UK010_24 | C125: NA | D125: 589 | E125: 5020 | F125: 69.6 | G125: 0.4932671864 | H125: NA | I125: NA | J125: 3.021148036 | K125: 2.073399172 | L125: 0.1192 | M125: 4.63834092 | N125: NA | O125: NA | P125: 5.440082976 | Q125: 5.080668324 | R125: 0.331 | S125: 2.073399172 | T125: 0.32014 | U125: NA | V125: NA | W125: 1944.266254 | X125: =IF(W125="","",AVERAGE(([1]!AgePb76(L125)-[1]!AgePb76(L125-L125*M125/100)),([1]!AgePb76(L125+L125*M125/100)-[1]!AgePb76(L125)))) -> 83.01782647 | Y125: =IF(X125="","",AVERAGE(([1]!AgePb76($L125)-[1]!AgePb76($L125-$L125*#REF!/100)),([1]!AgePb76($L125+$L125*#REF!/100)-[1]!AgePb76($L125)))) -> 84.76962577 | Z125: 1843.226684 | AA125: =IF(Z125="","",AVERAGE(([1]!AgePb6U8($R125)-[1]!AgePb6U8($R125-$R125*S125/100)),([1]!AgePb6U8($R125+$R125*S125/100)-[1]!AgePb6U8($R125)))) -> 33.239533 | AB125: =IF(AA125="","",AVERAGE(([1]!AgePb6U8($R125)-[1]!AgePb6U8($R125-$R125*#REF!/100)),([1]!AgePb6U8($R125+$R125*#REF!/100)-[1]!AgePb6U8($R125)))) -> 39.67454268 | AC125: 1891.192998 | AD125: =IF(AC125="","",AVERAGE(([1]!AgePb7U5($P125)-[1]!AgePb7U5($P125-$P125*Q125/100)),([1]!AgePb7U5($P125+$P125*Q125/100)-[1]!AgePb7U5($P125)))) -> 43.60453642 | AE125: =IF(AD125="","",AVERAGE(([1]!AgePb7U5($P125)-[1]!AgePb7U5($P125-$P125*#REF!/100)),([1]!AgePb7U5($P125+$P125*#REF!/100)-[1]!AgePb7U5($P125)))) -> 45.86439206 | AF125: NA | AG125: NA | AH125: NA | AI125: 0.03737146253 | AJ125: 5.196796939 | AL125: 1944.266254 | AM125: 83.01782647 | AN125: 4.269879515 | AO125: 84.76962577 | AP125: 4.564580611
A126: UK010 | B126: UK010_203 | C126: NA | D126: 2800 | E126: 24400 | F126: 276 | G126: 0.4052863436 | H126: NA | I126: NA | J126: 2.895193978 | K126: 1.279232409 | L126: 0.1193 | M126: 1.982060263 | N126: NA | O126: NA | P126: 5.681513614 | Q126: 2.359024892 | R126: 0.3454 | S126: 1.279232409 | T126: 0.51282 | U126: NA | V126: NA | W126: 1945.765491 | X126: =IF(W126="","",AVERAGE(([1]!AgePb76(L126)-[1]!AgePb76(L126-L126*M126/100)),([1]!AgePb76(L126+L126*M126/100)-[1]!AgePb76(L126)))) -> 35.43952475 | Y126: =IF(X126="","",AVERAGE(([1]!AgePb76($L126)-[1]!AgePb76($L126-$L126*#REF!/100)),([1]!AgePb76($L126+$L126*#REF!/100)-[1]!AgePb76($L126)))) -> 39.35493266 | Z126: 1912.595433 | AA126: =IF(Z126="","",AVERAGE(([1]!AgePb6U8($R126)-[1]!AgePb6U8($R126-$R126*S126/100)),([1]!AgePb6U8($R126+$R126*S126/100)-[1]!AgePb6U8($R126)))) -> 21.17093946 | AB126: =IF(AA126="","",AVERAGE(([1]!AgePb6U8($R126)-[1]!AgePb6U8($R126-$R126*#REF!/100)),([1]!AgePb6U8($R126+$R126*#REF!/100)-[1]!AgePb6U8($R126)))) -> 30.79343808 | AC126: 1928.562269 | AD126: =IF(AC126="","",AVERAGE(([1]!AgePb7U5($P126)-[1]!AgePb7U5($P126-$P126*Q126/100)),([1]!AgePb7U5($P126+$P126*Q126/100)-[1]!AgePb7U5($P126)))) -> 20.37088466 | AE126: =IF(AD126="","",AVERAGE(([1]!AgePb7U5($P126)-[1]!AgePb7U5($P126-$P126*#REF!/100)),([1]!AgePb7U5($P126+$P126*#REF!/100)-[1]!AgePb7U5($P126)))) -> 24.88898715 | AF126: NA | AG126: NA | AH126: NA | AI126: 0.1200324687 | AJ126: 1.704730505 | AL126: 1945.765491 | AM126: 35.43952475 | AN126: 1.821366702 | AO126: 39.35493266 | AP126: 2.04857637
A127: UK010 | B127: UK010_115 | C127: NA | D127: 1940 | E127: 16460 | F127: 192 | G127: 8.101265823 | H127: NA | I127: NA | J127: 2.813731007 | K127: 1.496731037 | L127: 0.1203 | M127: 2.48455401 | N127: NA | O127: NA | P127: 5.895007006 | Q127: 2.900553814 | R127: 0.3554 | S127: 1.496731037 | T127: 0.37391 | U127: NA | V127: NA | W127: 1960.674724 | X127: =IF(W127="","",AVERAGE(([1]!AgePb76(L127)-[1]!AgePb76(L127-L127*M127/100)),([1]!AgePb76(L127+L127*M127/100)-[1]!AgePb76(L127)))) -> 44.35106356 | Y127: =IF(X127="","",AVERAGE(([1]!AgePb76($L127)-[1]!AgePb76($L127-$L127*#REF!/100)),([1]!AgePb76($L127+$L127*#REF!/100)-[1]!AgePb76($L127)))) -> 47.52857943 | Z127: 1960.332723 | AA127: =IF(Z127="","",AVERAGE(([1]!AgePb6U8($R127)-[1]!AgePb6U8($R127-$R127*S127/100)),([1]!AgePb6U8($R127+$R127*S127/100)-[1]!AgePb6U8($R127)))) -> 25.29962838 | AB127: =IF(AA127="","",AVERAGE(([1]!AgePb6U8($R127)-[1]!AgePb6U8($R127-$R127*#REF!/100)),([1]!AgePb6U8($R127+$R127*#REF!/100)-[1]!AgePb6U8($R127)))) -> 34.08359555 | AC127: 1960.499088 | AD127: =IF(AC127="","",AVERAGE(([1]!AgePb7U5($P127)-[1]!AgePb7U5($P127-$P127*Q127/100)),([1]!AgePb7U5($P127+$P127*Q127/100)-[1]!AgePb7U5($P127)))) -> 25.18543771 | AE127: =IF(AD127="","",AVERAGE(([1]!AgePb7U5($P127)-[1]!AgePb7U5($P127-$P127*#REF!/100)),([1]!AgePb7U5($P127+$P127*#REF!/100)-[1]!AgePb7U5($P127)))) -> 29.00153266 | AF127: NA | AG127: NA | AH127: NA | AI127: 0.9906007898 | AJ127: 0.01744299716 | AL127: 1960.674724 | AM127: 44.35106356 | AN127: 2.262030668 | AO127: 47.52857943 | AP127: 2.424412306
A128: UK010 | B128: UK010_133 | C128: NA | D128: 302 | E128: 2600 | F128: 35.6 | G128: 0.6169844021 | H128: NA | I128: NA | J128: 3.144654088 | K128: 2.421759344 | L128: 0.1207 | M128: 6.738972405 | N128: NA | O128: NA | P128: 5.292192888 | Q128: 7.160912469 | R128: 0.318 | S128: 2.421759344 | T128: -0.010806 | U128: NA | V128: NA | W128: 1966.596499 | X128: =IF(W128="","",AVERAGE(([1]!AgePb76(L128)-[1]!AgePb76(L128-L128*M128/100)),([1]!AgePb76(L128+L128*M128/100)-[1]!AgePb76(L128)))) -> 120.4347658 | Y128: =IF(X128="","",AVERAGE(([1]!AgePb76($L128)-[1]!AgePb76($L128-$L128*#REF!/100)),([1]!AgePb76($L128+$L128*#REF!/100)-[1]!AgePb76($L128)))) -> 121.6480348 | Z128: 1779.954463 | AA128: =IF(Z128="","",AVERAGE(([1]!AgePb6U8($R128)-[1]!AgePb6U8($R128-$R128*S128/100)),([1]!AgePb6U8($R128+$R128*S128/100)-[1]!AgePb6U8($R128)))) -> 37.66741716 | AB128: =IF(AA128="","",AVERAGE(([1]!AgePb6U8($R128)-[1]!AgePb6U8($R128-$R128*#REF!/100)),([1]!AgePb6U8($R128+$R128*#REF!/100)-[1]!AgePb6U8($R128)))) -> 43.13345055 | AC128: 1867.603839 | AD128: =IF(AC128="","",AVERAGE(([1]!AgePb7U5($P128)-[1]!AgePb7U5($P128-$P128*Q128/100)),([1]!AgePb7U5($P128+$P128*Q128/100)-[1]!AgePb7U5($P128)))) -> 61.22909929 | AE128: =IF(AD128="","",AVERAGE(([1]!AgePb7U5($P128)-[1]!AgePb7U5($P128-$P128*#REF!/100)),([1]!AgePb7U5($P128+$P128*#REF!/100)-[1]!AgePb7U5($P128)))) -> 62.84842886 | AF128: NA | AG128: NA | AH128: NA | AI128: 0.01757089354 | AJ128: 9.490611616 | AK128: CX | AL128: 1966.596499 | AM128: 120.4347658 | AN128: 6.124020148 | AO128: 121.6480348 | AP128: 6.74870118
A129: UK010 | B129: UK010_53 | C129: NA | D129: 1676 | E129: 14250 | F129: 183 | G129: 0.7721518987 | H129: NA | I129: NA | J129: 2.836074872 | K129: 1.725890468 | L129: 0.1217 | M129: 2.961556905 | N129: NA | O129: NA | P129: 5.91662659 | Q129: 3.427756878 | R129: 0.3526 | S129: 1.725890468 | T129: 0.56962 | U129: NA | V129: NA | W129: 1981.297754 | X129: =IF(W129="","",AVERAGE(([1]!AgePb76(L129)-[1]!AgePb76(L129-L129*M129/100)),([1]!AgePb76(L129+L129*M129/100)-[1]!AgePb76(L129)))) -> 52.74495303 | Y129: =IF(X129="","",AVERAGE(([1]!AgePb76($L129)-[1]!AgePb76($L129-$L129*#REF!/100)),([1]!AgePb76($L129+$L129*#REF!/100)-[1]!AgePb76($L129)))) -> 55.43207711 | Z129: 1947.001877 | AA129: =IF(Z129="","",AVERAGE(([1]!AgePb6U8($R129)-[1]!AgePb6U8($R129-$R129*S129/100)),([1]!AgePb6U8($R129+$R129*S129/100)-[1]!AgePb6U8($R129)))) -> 29.00329173 | AB129: =IF(AA129="","",AVERAGE(([1]!AgePb6U8($R129)-[1]!AgePb6U8($R129-$R129*#REF!/100)),([1]!AgePb6U8($R129+$R129*#REF!/100)-[1]!AgePb6U8($R129)))) -> 36.83416435 | AC129: 1963.677884 | AD129: =IF(AC129="","",AVERAGE(([1]!AgePb7U5($P129)-[1]!AgePb7U5($P129-$P129*Q129/100)),([1]!AgePb7U5($P129+$P129*Q129/100)-[1]!AgePb7U5($P129)))) -> 29.78134192 | AE129: =IF(AD129="","",AVERAGE(([1]!AgePb7U5($P129)-[1]!AgePb7U5($P129-$P129*#REF!/100)),([1]!AgePb7U5($P129+$P129*#REF!/100)-[1]!AgePb7U5($P129)))) -> 33.07563986 | AF129: NA | AG129: NA | AH129: NA | AI129: 0.2223438757 | AJ129: 1.730980443 | AL129: 1981.297754 | AM129: 52.74495303 | AN129: 2.662141666 | AO129: 55.43207711 | AP129: 2.835894846
A130: UK010 | B130: UK010_159 | C130: NA | D130: 486 | E130: 4100 | F130: 53.7 | G130: 3.234939759 | H130: NA | I130: NA | J130: 2.994011976 | K130: 2.599995587 | L130: 0.1221 | M130: 5.655849153 | N130: NA | O130: NA | P130: 5.622939432 | Q130: 6.224837884 | R130: 0.334 | S130: 2.599995587 | T130: 0.24748 | U130: NA | V130: NA | W130: 1987.137457 | X130: =IF(W130="","",AVERAGE(([1]!AgePb76(L130)-[1]!AgePb76(L130-L130*M130/100)),([1]!AgePb76(L130+L130*M130/100)-[1]!AgePb76(L130)))) -> 100.7713944 | Y130: =IF(X130="","",AVERAGE(([1]!AgePb76($L130)-[1]!AgePb76($L130-$L130*#REF!/100)),([1]!AgePb76($L130+$L130*#REF!/100)-[1]!AgePb76($L130)))) -> 102.2077997 | Z130: 1857.740193 | AA130: =IF(Z130="","",AVERAGE(([1]!AgePb6U8($R130)-[1]!AgePb6U8($R130-$R130*S130/100)),([1]!AgePb6U8($R130+$R130*S130/100)-[1]!AgePb6U8($R130)))) -> 41.96503487 | AB130: =IF(AA130="","",AVERAGE(([1]!AgePb6U8($R130)-[1]!AgePb6U8($R130-$R130*#REF!/100)),([1]!AgePb6U8($R130+$R130*#REF!/100)-[1]!AgePb6U8($R130)))) -> 47.2934917 | AC130: 1919.621561 | AD130: =IF(AC130="","",AVERAGE(([1]!AgePb7U5($P130)-[1]!AgePb7U5($P130-$P130*Q130/100)),([1]!AgePb7U5($P130+$P130*Q130/100)-[1]!AgePb7U5($P130)))) -> 53.71250491 | AE130: =IF(AD130="","",AVERAGE(([1]!AgePb7U5($P130)-[1]!AgePb7U5($P130-$P130*#REF!/100)),([1]!AgePb7U5($P130+$P130*#REF!/100)-[1]!AgePb7U5($P130)))) -> 55.58360911 | AF130: NA | AG130: NA | AH130: NA | AI130: 0.03968448688 | AJ130: 6.511741947 | AL130: 1987.137457 | AM130: 100.7713944 | AN130: 5.07118388 | AO130: 102.2077997 | AP130: 5.443773716
A131: UK010 | B131: UK010_275 | C131: NA | D131: 546 | E131: 4490 | F131: 49.5 | G131: 0.5475663717 | H131: NA | I131: NA | J131: 2.762430939 | K131: 2.684372277 | L131: 0.1238 | M131: 5.432844685 | N131: NA | O131: NA | P131: 6.179174928 | Q131: 6.059839593 | R131: 0.362 | S131: 2.684372277 | T131: 0.4434 | U131: NA | V131: NA | W131: 2011.701182 | X131: =IF(W131="","",AVERAGE(([1]!AgePb76(L131)-[1]!AgePb76(L131-L131*M131/100)),([1]!AgePb76(L131+L131*M131/100)-[1]!AgePb76(L131)))) -> 96.51105076 | Y131: =IF(X131="","",AVERAGE(([1]!AgePb76($L131)-[1]!AgePb76($L131-$L131*#REF!/100)),([1]!AgePb76($L131+$L131*#REF!/100)-[1]!AgePb76($L131)))) -> 98.00074802 | Z131: 1991.646786 | AA131: =IF(Z131="","",AVERAGE(([1]!AgePb6U8($R131)-[1]!AgePb6U8($R131-$R131*S131/100)),([1]!AgePb6U8($R131+$R131*S131/100)-[1]!AgePb6U8($R131)))) -> 45.99385192 | AB131: =IF(AA131="","",AVERAGE(([1]!AgePb6U8($R131)-[1]!AgePb6U8($R131-$R131*#REF!/100)),([1]!AgePb6U8($R131+$R131*#REF!/100)-[1]!AgePb6U8($R131)))) -> 51.49176214 | AC131: 2001.5073 | AD131: =IF(AC131="","",AVERAGE(([1]!AgePb7U5($P131)-[1]!AgePb7U5($P131-$P131*Q131/100)),([1]!AgePb7U5($P131+$P131*Q131/100)-[1]!AgePb7U5($P131)))) -> 53.00798286 | AE131: =IF(AD131="","",AVERAGE(([1]!AgePb7U5($P131)-[1]!AgePb7U5($P131-$P131*#REF!/100)),([1]!AgePb7U5($P131+$P131*#REF!/100)-[1]!AgePb7U5($P131)))) -> 54.95457778 | AF131: NA | AG131: NA | AH131: NA | AI131: 0.707881693 | AJ131: 0.9968874001 | AK131: CL | AL131: 2011.701182 | AM131: 96.51105076 | AN131: 4.797484419 | AO131: 98.00074802 | AP131: 4.911587692
A132: UK010 | B132: UK010_26 | C132: NA | D132: 1022 | E132: 8560 | F132: 116.6 | G132: 1.343317972 | H132: NA | I132: NA | J132: 2.801120448 | K132: 2.979540379 | L132: 0.125 | M132: 4.927412791 | N132: NA | O132: NA | P132: 6.152895 | Q132: 5.758216537 | R132: 0.357 | S132: 2.979540379 | T132: 0.544 | U132: NA | V132: NA | W132: 2028.796813 | X132: =IF(W132="","",AVERAGE(([1]!AgePb76(L132)-[1]!AgePb76(L132-L132*M132/100)),([1]!AgePb76(L132+L132*M132/100)-[1]!AgePb76(L132)))) -> 87.33838329 | Y132: =IF(X132="","",AVERAGE(([1]!AgePb76($L132)-[1]!AgePb76($L132-$L132*#REF!/100)),([1]!AgePb76($L132+$L132*#REF!/100)-[1]!AgePb76($L132)))) -> 88.97376404 | Z132: 1967.937991 | AA132: =IF(Z132="","",AVERAGE(([1]!AgePb6U8($R132)-[1]!AgePb6U8($R132-$R132*S132/100)),([1]!AgePb6U8($R132+$R132*S132/100)-[1]!AgePb6U8($R132)))) -> 50.53179718 | AB132: =IF(AA132="","",AVERAGE(([1]!AgePb6U8($R132)-[1]!AgePb6U8($R132-$R132*#REF!/100)),([1]!AgePb6U8($R132+$R132*#REF!/100)-[1]!AgePb6U8($R132)))) -> 55.48496974 | AC132: 1997.783591 | AD132: =IF(AC132="","",AVERAGE(([1]!AgePb7U5($P132)-[1]!AgePb7U5($P132-$P132*Q132/100)),([1]!AgePb7U5($P132+$P132*Q132/100)-[1]!AgePb7U5($P132)))) -> 50.33511947 | AE132: =IF(AD132="","",AVERAGE(([1]!AgePb7U5($P132)-[1]!AgePb7U5($P132-$P132*#REF!/100)),([1]!AgePb7U5($P132+$P132*#REF!/100)-[1]!AgePb7U5($P132)))) -> 52.3780378 | AF132: NA | AG132: NA | AH132: NA | AI132: 0.216476011 | AJ132: 2.999749478 | AK132: DO | AL132: 2028.796813 | AM132: 87.33838329 | AN132: 4.304934961 | AO132: 88.97376404 | AP132: 4.487928493
A133: UK010 | B133: UK010_230 | C133: NA | D133: 703 | E133: 6030 | F133: 67.8 | G133: 2.387323944 | H133: NA | I133: NA | J133: 2.801120448 | K133: 1.958560163 | L133: 0.1261 | M133: 4.723445324 | N133: NA | O133: NA | P133: 6.207040476 | Q133: 5.113403333 | R133: 0.357 | S133: 1.958560163 | T133: 0.217 | U133: NA | V133: NA | W133: 2044.295174 | X133: =IF(W133="","",AVERAGE(([1]!AgePb76(L133)-[1]!AgePb76(L133-L133*M133/100)),([1]!AgePb76(L133+L133*M133/100)-[1]!AgePb76(L133)))) -> 83.56647913 | Y133: =IF(X133="","",AVERAGE(([1]!AgePb76($L133)-[1]!AgePb76($L133-$L133*#REF!/100)),([1]!AgePb76($L133+$L133*#REF!/100)-[1]!AgePb76($L133)))) -> 85.26759198 | Z133: 1967.937991 | AA133: =IF(Z133="","",AVERAGE(([1]!AgePb6U8($R133)-[1]!AgePb6U8($R133-$R133*S133/100)),([1]!AgePb6U8($R133+$R133*S133/100)-[1]!AgePb6U8($R133)))) -> 33.21600018 | AB133: =IF(AA133="","",AVERAGE(([1]!AgePb6U8($R133)-[1]!AgePb6U8($R133-$R133*#REF!/100)),([1]!AgePb6U8($R133+$R133*#REF!/100)-[1]!AgePb6U8($R133)))) -> 40.35340848 | AC133: 2005.440821 | AD133: =IF(AC133="","",AVERAGE(([1]!AgePb7U5($P133)-[1]!AgePb7U5($P133-$P133*Q133/100)),([1]!AgePb7U5($P133+$P133*Q133/100)-[1]!AgePb7U5($P133)))) -> 44.74541861 | AE133: =IF(AD133="","",AVERAGE(([1]!AgePb7U5($P133)-[1]!AgePb7U5($P133-$P133*#REF!/100)),([1]!AgePb7U5($P133+$P133*#REF!/100)-[1]!AgePb7U5($P133)))) -> 47.03568289 | AF133: NA | AG133: NA | AH133: NA | AI133: 0.1336039726 | AJ133: 3.735134948 | AK133: CX | AL133: 2044.295174 | AM133: 83.56647913 | AN133: 4.087789287 | AO133: 85.26759198 | AP133: 4.307777139
A134: UK010 | B134: UK010_70 | C134: NA | D134: 2270 | E134: 17800 | F134: 226 | G134: 1.602836879 | H134: NA | I134: NA | J134: 2.7100271 | K134: 1.686240187 | L134: 0.1276 | M134: 2.552250301 | N134: NA | O134: NA | P134: 6.491997072 | Q134: 3.058984728 | R134: 0.369 | S134: 1.686240187 | T134: 0.55708 | U134: NA | V134: NA | W134: 2065.169354 | X134: =IF(W134="","",AVERAGE(([1]!AgePb76(L134)-[1]!AgePb76(L134-L134*M134/100)),([1]!AgePb76(L134+L134*M134/100)-[1]!AgePb76(L134)))) -> 45.01339593 | Y134: =IF(X134="","",AVERAGE(([1]!AgePb76($L134)-[1]!AgePb76($L134-$L134*#REF!/100)),([1]!AgePb76($L134+$L134*#REF!/100)-[1]!AgePb76($L134)))) -> 48.07498735 | Z134: 2024.693288 | AA134: =IF(Z134="","",AVERAGE(([1]!AgePb6U8($R134)-[1]!AgePb6U8($R134-$R134*S134/100)),([1]!AgePb6U8($R134+$R134*S134/100)-[1]!AgePb6U8($R134)))) -> 29.29972535 | AB134: =IF(AA134="","",AVERAGE(([1]!AgePb6U8($R134)-[1]!AgePb6U8($R134-$R134*#REF!/100)),([1]!AgePb6U8($R134+$R134*#REF!/100)-[1]!AgePb6U8($R134)))) -> 37.54553081 | AC134: 2044.814331 | AD134: =IF(AC134="","",AVERAGE(([1]!AgePb7U5($P134)-[1]!AgePb7U5($P134-$P134*Q134/100)),([1]!AgePb7U5($P134+$P134*Q134/100)-[1]!AgePb7U5($P134)))) -> 26.92090655 | AE134: =IF(AD134="","",AVERAGE(([1]!AgePb7U5($P134)-[1]!AgePb7U5($P134-$P134*#REF!/100)),([1]!AgePb7U5($P134+$P134*#REF!/100)-[1]!AgePb7U5($P134)))) -> 30.61325613 | AF134: NA | AG134: NA | AH134: NA | AI134: 0.1298449007 | AJ134: 1.959939314 | AL134: 2065.169354 | AM134: 45.01339593 | AN134: 2.179646712 | AO134: 48.07498735 | AP134: 2.360702486
A135: UK010 | B135: UK010_294 | C135: NA | D135: 7720 | E135: 57600 | F135: 607 | G135: 6.316337149 | H135: NA | I135: NA | J135: 2.470966148 | K135: 1.515628054 | L135: 0.1365 | M135: 1.706191058 | N135: NA | O135: NA | P135: 7.616704914 | Q135: 2.282151687 | R135: 0.4047 | S135: 1.515628054 | T135: 0.55587 | U135: NA | V135: NA | W135: 2183.260499 | X135: =IF(W135="","",AVERAGE(([1]!AgePb76(L135)-[1]!AgePb76(L135-L135*M135/100)),([1]!AgePb76(L135+L135*M135/100)-[1]!AgePb76(L135)))) -> 29.69210992 | Y135: =IF(X135="","",AVERAGE(([1]!AgePb76($L135)-[1]!AgePb76($L135-$L135*#REF!/100)),([1]!AgePb76($L135+$L135*#REF!/100)-[1]!AgePb76($L135)))) -> 34.04419961 | Z135: 2190.644686 | AA135: =IF(Z135="","",AVERAGE(([1]!AgePb6U8($R135)-[1]!AgePb6U8($R135-$R135*S135/100)),([1]!AgePb6U8($R135+$R135*S135/100)-[1]!AgePb6U8($R135)))) -> 28.14901634 | AB135: =IF(AA135="","",AVERAGE(([1]!AgePb6U8($R135)-[1]!AgePb6U8($R135-$R135*#REF!/100)),([1]!AgePb6U8($R135+$R135*#REF!/100)-[1]!AgePb6U8($R135)))) -> 37.71074774 | AC135: 2186.833275 | AD135: =IF(AC135="","",AVERAGE(([1]!AgePb7U5($P135)-[1]!AgePb7U5($P135-$P135*Q135/100)),([1]!AgePb7U5($P135+$P135*Q135/100)-[1]!AgePb7U5($P135)))) -> 20.48609821 | AE135: =IF(AD135="","",AVERAGE(([1]!AgePb7U5($P135)-[1]!AgePb7U5($P135-$P135*#REF!/100)),([1]!AgePb7U5($P135+$P135*#REF!/100)-[1]!AgePb7U5($P135)))) -> 25.31123785 | AF135: NA | AG135: NA | AH135: NA | AI135: 0.7497398291 | AJ135: -0.3382182864 | AK135: Z | AL135: 2183.260499 | AM135: 29.69210992 | AN135: 1.359989334 | AO135: 34.04419961 | AP135: 1.556312496
A136: UK010 | B136: UK010_182 | C136: NA | D136: 4910 | E136: 35600 | F136: 348 | G136: 2.65648855 | H136: NA | I136: NA | J136: 2.472187886 | K136: 1.381858273 | L136: 0.1388 | M136: 1.676757408 | N136: NA | O136: NA | P136: 7.741217448 | Q136: 2.172797204 | R136: 0.4045 | S136: 1.381858273 | T136: 0.34782 | U136: NA | V136: NA | W136: 2212.289163 | X136: =IF(W136="","",AVERAGE(([1]!AgePb76(L136)-[1]!AgePb76(L136-L136*M136/100)),([1]!AgePb76(L136+L136*M136/100)-[1]!AgePb76(L136)))) -> 29.08730016 | Y136: =IF(X136="","",AVERAGE(([1]!AgePb76($L136)-[1]!AgePb76($L136-$L136*#REF!/100)),([1]!AgePb76($L136+$L136*#REF!/100)-[1]!AgePb76($L136)))) -> 33.49174234 | Z136: 2189.726785 | AA136: =IF(Z136="","",AVERAGE(([1]!AgePb6U8($R136)-[1]!AgePb6U8($R136-$R136*S136/100)),([1]!AgePb6U8($R136+$R136*S136/100)-[1]!AgePb6U8($R136)))) -> 25.65551776 | AB136: =IF(AA136="","",AVERAGE(([1]!AgePb6U8($R136)-[1]!AgePb6U8($R136-$R136*#REF!/100)),([1]!AgePb6U8($R136+$R136*#REF!/100)-[1]!AgePb6U8($R136)))) -> 35.88165505 | AC136: 2201.400697 | AD136: =IF(AC136="","",AVERAGE(([1]!AgePb7U5($P136)-[1]!AgePb7U5($P136-$P136*Q136/100)),([1]!AgePb7U5($P136+$P136*Q136/100)-[1]!AgePb7U5($P136)))) -> 19.54069731 | AE136: =IF(AD136="","",AVERAGE(([1]!AgePb7U5($P136)-[1]!AgePb7U5($P136-$P136*#REF!/100)),([1]!AgePb7U5($P136+$P136*#REF!/100)-[1]!AgePb7U5($P136)))) -> 24.56896318 | AF136: NA | AG136: NA | AH136: NA | AI136: 0.3745601587 | AJ136: 1.019865654 | AL136: 2212.289163 | AM136: 29.08730016 | AN136: 1.314805526 | AO136: 33.49174234 | AP136: 1.523829565
A137: UK010 | B137: UK010_131 | C137: NA | D137: 4440 | E137: 31400 | F137: 321 | G137: 2.309352518 | H137: NA | I137: NA | J137: 2.457606291 | K137: 1.36954002 | L137: 0.1415 | M137: 1.692045474 | N137: NA | O137: NA | P137: 7.938627138 | Q137: 2.176845827 | R137: 0.4069 | S137: 1.36954002 | T137: 0.5218 | U137: NA | V137: NA | W137: 2245.645297 | X137: =IF(W137="","",AVERAGE(([1]!AgePb76(L137)-[1]!AgePb76(L137-L137*M137/100)),([1]!AgePb76(L137+L137*M137/100)-[1]!AgePb76(L137)))) -> 29.24673527 | Y137: =IF(X137="","",AVERAGE(([1]!AgePb76($L137)-[1]!AgePb76($L137-$L137*#REF!/100)),([1]!AgePb76($L137+$L137*#REF!/100)-[1]!AgePb76($L137)))) -> 33.60082348 | Z137: 2200.732973 | AA137: =IF(Z137="","",AVERAGE(([1]!AgePb6U8($R137)-[1]!AgePb6U8($R137-$R137*S137/100)),([1]!AgePb6U8($R137+$R137*S137/100)-[1]!AgePb6U8($R137)))) -> 25.53404765 | AB137: =IF(AA137="","",AVERAGE(([1]!AgePb6U8($R137)-[1]!AgePb6U8($R137-$R137*#REF!/100)),([1]!AgePb6U8($R137+$R137*#REF!/100)-[1]!AgePb6U8($R137)))) -> 35.86912342 | AC137: 2224.076777 | AD137: =IF(AC137="","",AVERAGE(([1]!AgePb7U5($P137)-[1]!AgePb7U5($P137-$P137*Q137/100)),([1]!AgePb7U5($P137+$P137*Q137/100)-[1]!AgePb7U5($P137)))) -> 19.63298264 | AE137: =IF(AD137="","",AVERAGE(([1]!AgePb7U5($P137)-[1]!AgePb7U5($P137-$P137*#REF!/100)),([1]!AgePb7U5($P137+$P137*#REF!/100)-[1]!AgePb7U5($P137)))) -> 24.66815077 | AF137: NA | AG137: NA | AH137: NA | AI137: 0.03944253477 | AJ137: 1.999974091 | AL137: 2245.645297 | AM137: 29.24673527 | AN137: 1.302375549 | AO137: 33.60082348 | AP137: 1.514709038
A138: UK010 | B138: UK010_166 | C138: NA | D138: 1619 | E138: 11650 | F138: 118.3 | G138: 1.661516854 | H138: NA | I138: NA | J138: 2.444987775 | K138: 1.581287219 | L138: 0.1417 | M138: 2.773616466 | N138: NA | O138: NA | P138: 7.990876764 | Q138: 3.192713199 | R138: 0.409 | S138: 1.581287219 | T138: 0.48678 | U138: NA | V138: NA | W138: 2248.08602 | X138: =IF(W138="","",AVERAGE(([1]!AgePb76(L138)-[1]!AgePb76(L138-L138*M138/100)),([1]!AgePb76(L138+L138*M138/100)-[1]!AgePb76(L138)))) -> 47.9394349 | Y138: =IF(X138="","",AVERAGE(([1]!AgePb76($L138)-[1]!AgePb76($L138-$L138*#REF!/100)),([1]!AgePb76($L138+$L138*#REF!/100)-[1]!AgePb76($L138)))) -> 50.71419515 | Z138: 2210.347996 | AA138: =IF(Z138="","",AVERAGE(([1]!AgePb6U8($R138)-[1]!AgePb6U8($R138-$R138*S138/100)),([1]!AgePb6U8($R138+$R138*S138/100)-[1]!AgePb6U8($R138)))) -> 29.58995681 | AB138: =IF(AA138="","",AVERAGE(([1]!AgePb6U8($R138)-[1]!AgePb6U8($R138-$R138*#REF!/100)),([1]!AgePb6U8($R138+$R138*#REF!/100)-[1]!AgePb6U8($R138)))) -> 38.92086933 | AC138: 2229.994791 | AD138: =IF(AC138="","",AVERAGE(([1]!AgePb7U5($P138)-[1]!AgePb7U5($P138-$P138*Q138/100)),([1]!AgePb7U5($P138+$P138*Q138/100)-[1]!AgePb7U5($P138)))) -> 28.82032089 | AE138: =IF(AD138="","",AVERAGE(([1]!AgePb7U5($P138)-[1]!AgePb7U5($P138-$P138*#REF!/100)),([1]!AgePb7U5($P138+$P138*#REF!/100)-[1]!AgePb7U5($P138)))) -> 32.46736714 | AF138: NA | AG138: NA | AH138: NA | AI138: 0.1850257802 | AJ138: 1.678673499 | AK138: DO | AL138: 2248.08602 | AM138: 47.9394349 | AN138: 2.13245554 | AO138: 50.71419515 | AP138: 2.283910406
